Workbook

Sheet DATABASE (hidden)
C3: DATABASE
C4: 资料库
C7: OUTLET BAR | D7: CCS
C8: 分行吧台
C10: YEAR / MONTH | D10: AUGUST 2013
C11: 年/月
B14: ITEM | C14: CATEGORIES | D14: SUPPLIER | E14: PRODUCT DESCRIPTION | F14: PRICE | G14: UOM | H14: PACK.SIZE
B15: 项目 | C15: 分类 | D15: 供应商 | E15: 食材产品 | F15: 价格 | G15: 单位 | H15: 包装
B21: MAIN BEVERAGE MATERIAL 主要饮料的食材
B22: 1 | C22: SRYUP | D22: BEST FICTION | E22: SYRUP CHAMPAGNE GRAPE | F22: 0.00575 | G22: ML | H22: 01drum × 4000ml
B23: =+B22+1 -> 2 | C23: SRYUP | D23: BEST FICTION | E23: SYRUP GREEN APPLE | F23: 0.00575 | G23: ML | H23: 01drum × 4000ml
B24: =+B23+1 -> 3 | C24: SRYUP | D24: BEST FICTION | E24: SYRUP PASSION FRUIT | F24: 0.00575 | G24: ML | H24: 01drum × 4000ml
B25: 4 | C25: SRYUP | D25: BEST FICTION | E25: SYRUP HONEY | F25: 0.0095 | G25: ML | H25: 01drum × 2000ml
B26: 5 | C26: SRYUP | D26: BEST FICTION | E26: SYRUP MANGO | F26: 0.00575 | G26: ML | H26: 01drum × 4000ml
B27: 6 | C27: SRYUP | D27: G&K | E27: SYRUP HONEY | F27: 0.009 | G27: ML | H27: 01drum × 2000ml
B28: 7 | C28: SRYUP | D28: G&K | E28: SYRUP MANGO | F28: 0.00575 | G28: ML | H28: 01drum × 4000ml
B29: 8 | C29: SRYUP | D29: TIEN SWEE | E29: SYRUP RIBENA | F29: 0.01 | G29: ML | H29: 01ctn × 06btl × 1000ml
B30: 9 | C30: TEABAG | D30: BEST FICTION | E30: TEA BAG JASMINE GREEN | F30: 0.75 | G30: BAG | H30: 01pkt × 24bag
B31: 10 | C31: TEABAG | D31: CHUAN HUAT | E31: TEA BAG LIPTON CHAMOMILE | F31: 0.46 | G31: BAG | H31: 01box × 25bag
B32: 11 | C32: TEABAG | D32: CHUAN HUAT | E32: TEA BAG LIPTON DARJEELING | F32: 0.46 | G32: BAG | H32: 01box × 25bag
B33: 12 | C33: TEABAG | D33: CHUAN HUAT | E33: TEA BAG LIPTON EARLGREY | F33: 0.46 | G33: BAG | H33: 01box × 25bag
B34: 13 | C34: TEABAG | D34: CHUAN HUAT | E34: TEA BAG LIPTON RED CATERING | F34: 0.325 | G34: BAG | H34: 01ctn × 12pkt × 20bag
B35: 14 | C35: POWDER | D35: BEST FICTION | E35: POWDER CAPPUCCINO | F35: 0.021 | G35: GM | H35: 01pkt × 1000g
B36: 15 | C36: POWDER | D36: GOLDEN CHOICE | E36: POWDER CHOCOLATE | F36: 0.02 | G36: GM | H36: 01pkt × 1000g
B37: 16 | C37: POWDER | D37: BEST FICTION | E37: POWDER MOCHA | F37: 0.021 | G37: GM | H37: 01pkt × 1000g
B38: 17 | C38: POWDER | D38: CHUAN HUAT | E38: POWDER LIME | F38: 0.02375 | G38: GM | H38: 01ctn × 12pkt × 400g
B39: 18 | C39: POWDER | D39: SYKT.TEE SIANG | E39: POWDER MILO | F39: 0.01546875 | G39: GM | H39: 01ctn × 06pkt × 3200g
B40: 19 | C40: POWDER | D40: SYKT.TEE SIANG | E40: POWDER NESCAFE ICE | F40: 0.01921333333 | G40: GM | H40: 01pkt × 750g
B41: 20 | C41: POWDER | D41: SYKT.TEE SIANG | E41: POWDER NESCAFE WHITE | F41: 0.02021 | G41: GM | H41: 01pkt × 1000g
B42: 21 | C42: CREAMER & SUGAR | D42: SYKT.TEE SIANG | E42: SACHET DAIRY CREAMER | F42: 0.1134 | G42: PCS | H42: 01ctn × 2pkt × 500pcs
B43: 22 | C43: CREAMER & SUGAR | D43: SYKT.TEE SIANG | E43: SACHET SUGAR WHITE | F43: 0.0415 | G43: PCS | H43: 01ctn × 10pkt × 200pcs
B44: 23 | C44: CREAMER & SUGAR | D44: BEST FICTION | E44: POWDER DAIRY CREAMER | F44: 0.009 | G44: GM | H44: 01pkt × 2000g
B45: 24 | C45: CREAMER & SUGAR | D45: S.C. TRADING | E45: MIXED TIDBITS | F45: 0.0102 | G45: GM | H45: 01bag × 3500g
B46: 25 | C46: CANNED & BTL | D46: PERMANIS SANDILAND | E46: LIPTON ICE TEA -LEMON | F46: 1.3416 | G46: CANNED | H46: 01ctn × 24can × 300ml
B47: 26 | C47: CANNED & BTL | D47: PERMANIS SANDILAND | E47: LIPTON ICE TEA -CLEAR GREEN | F47: 1.8708 | G47: BTL | H47: 01ctn × 24btl × 450ml
B48: 27 | C48: CANNED & BTL | D48: PERMANIS SANDILAND | E48: CHILL CHRYSANTHEMUM | F48: 1.1333 | G48: CANNED | H48: 01ctn × 24can × 300ml
B49: 28 | C49: CANNED & BTL | D49: PERMANIS SANDILAND | E49: CHILL SOYA BEAN | F49: 1.1333 | G49: CANNED | H49: 01ctn × 24can × 300ml
B50: 29 | C50: CANNED & BTL | D50: PERMANIS SANDILAND | E50: CHILL CINCAU | F50: 1.2333 | G50: CANNED | H50: 01ctn × 24can × 300ml
B51: 30 | C51: CANNED & BTL | D51: PERMANIS SANDILAND | E51: REVIVE REGULAR | F51: 1.2125 | G51: CANNED | H51: 01ctn × 24can × 325ml
B52: 31 | C52: CANNED & BTL | D52: PERMANIS SANDILAND | E52: PEPSI COLA | F52: 1.2125 | G52: CANNED | H52: 01ctn × 24can × 325ml
B53: 32 | C53: CANNED & BTL | D53: PERMANIS SANDILAND | E53: 7UP | F53: 1.2125 | G53: CANNED | H53: 01ctn × 24can × 325ml
B54: 33 | C54: BEVERAGE | D54: TIEN SWEE | E54: RIBENA MOBILE | F54: 1.982 | G54: PKT | H54: 01ctn × 24pkt × 300ml
B55: 34 | C55: MINERAL WATER | D55: PERMANIS SANDILAND | E55: MINERAL WATER | F55: 0.5833 | G55: BTL | H55: 01ctn × 24 btl
B56: 35 | C56: SOFT DRINKS | D56: PERMANIS SANDILAND | E56: BIB PEPSI | F56: 166.37 | G56: BIB | H56: 01bib × 20lit
B57: 36 | C57: SOFT DRINKS | D57: PERMANIS SANDILAND | E57: BIB 7UP | F57: 166.37 | G57: BIB | H57: 01bib × 20lit
B58: 37 | C58: SOFT DRINKS | D58: PERMANIS SANDILAND | E58: BIB 7UP REVIVE | F58: 166.37 | G58: BIB | H58: 01bib × 20lit
B59: 38 | C59: BEER | D59: GAB | E59: BEER GUINNESS | F59: 6.8104 | G59: PINT | H59: 01ctn × 24btl
B60: 39 | C60: BEER | D60: GAB | E60: BEER HEINEKEN | F60: 8.1146 | G60: PINT | H60: 01ctn × 24btl
B61: 40 | C61: BEER | D61: GAB | E61: BEER TIGER | F61: 6 | G61: PINT | H61: 01ctn × 24btl
B62: 41 | C62: BEER | D62: GAB | E62: STRONGBOW | F62: 9.72 | G62: PINT | H62: 01ctn × 24btl
B63: 42 | C63: BEER | D63: GAB | E63: PAULANAR | F63: 12 | G63: PINT | H63: 01ctn × 24btl
B64: 43 | C64: BEER | D64: LUEN HENG | E64: SOMEBY APPLE CIDER | F64: 9.57 | G64: PINT | H64: 01ctn × 24btl
B65: 44 | C65: BEER | D65: LUEN HENG | E65: HOEGAARDEN | F65: 10.95 | G65: PINT | H65: 01ctn × 24btl
B66: 45 | C66: CIGARETTE | D66: NEW FOO HING | E66: DUNHILL KING | F66: 11.0806 | G66: PKT | H66: 01pkt × 20s
B67: 46 | C67: CIGARETTE | D67: NEW FOO HING | E67: DUNHILL LIGHTS KING | F67: 11.0806 | G67: PKT | H67: 01pkt × 20s
B68: 47 | C68: CIGARETTE | D68: NEW FOO HING | E68: DUNHILL MENTHOL LIGHTS KING | F68: 11.0806 | G68: PKT | H68: 01pkt × 20s
B69: 48 | C69: CIGARETTE | D69: NEW FOO HING | E69: DUNHILL MENTHOL KING | F69: 11.0806 | G69: PKT | H69: 01pkt × 20s
B70: 49 | C70: CIGARETTE | D70: NEW FOO HING | E70: DUNHILL MENTHOL BOOST | F70: 11.0806 | G70: PKT | H70: 01pkt × 20s
B71: 50 | C71: CIGARETTE | D71: NEW FOO HING | E71: DUNHILL MENTHOL SWITCH | F71: 11.0806 | G71: PKT | H71: 01pkt × 20s
B72: 51 | C72: CIGARETTE | D72: NEW FOO HING | E72: DUNHILL ICE | F72: 11.0806 | G72: PKT | H72: 01pkt × 20s
B73: 52 | C73: CIGARETTE | D73: NEW FOO HING | E73: KENT NEO | F73: 11.0806 | G73: PKT | H73: 01pkt × 20s
B74: 53 | C74: CIGARETTE | D74: NEW FOO HING | E74: KENT ORIGINAL | F74: 11.0806 | G74: PKT | H74: 01pkt × 20s
B75: 54 | C75: CIGARETTE | D75: NEW FOO HING | E75: KENT FUTURA | F75: 11.0806 | G75: PKT | H75: 01pkt × 20s
B76: 55 | C76: SRYUP | D76: BEN MART | E76: SYRUP RIBENA | F76: 23.9 | G76: BTL | H76: 01ctn × 06btl × 2000ml

Sheet Summary (hidden)
C3: SUMMARY OF PRODUCT SALES IN MONTH
B6: OUTLET | C6: =MID(CELL("FILENAME",$A$1),FIND("[",CELL("FILENAME",$A$1))+1,3) -> CCS
B8: YEAR | C8: =MID(CELL("FILENAME",$A$1),FIND("[",CELL("FILENAME",$A$1))+4,4) -> 2014
B10: MONTH | C10: =INDEX($C$12:$C$23,MID(CELL("FILENAME",$A$1),FIND("[",CELL("FILENAME",$A$1))+8,2),1) -> APRIL
B12: MONTH | C12: JANUARY
C13: FEBRUARY
C14: MARCH
C15: APRIL
C16: MAY
C17: JUNE
C18: JULY
C19: AUGUST
C20: SEPTEMBER
C21: OCTOBER
C22: NOVEMBER
C23: DECEMBER
B26: PRODUCT | D26: CATEGORY | E26: QTY | F26: QUANTITIES SOLD IN MONTH
E27: PER | F27: TOTAL | G27: =DATE(C8,MID(CELL("FILENAME",$A$1),FIND("[",CELL("FILENAME",$A$1))+8,2),1) -> 2014-04-01 | H27: =IFERROR(IF(MONTH(G27+1)<=MONTH($G$27),G27+1,""),"") -> 2014-04-02 | I27: =IFERROR(IF(MONTH(H27+1)<=MONTH($G$27),H27+1,""),"") -> 2014-04-03 | J27: 2014-04-04 | K27: 2014-04-05 | L27: 2014-04-06 | M27: 2014-04-07 | N27: 2014-04-08 | O27: 2014-04-09 | P27: 2014-04-10 | Q27: 2014-04-11 | R27: 2014-04-12 | S27: 2014-04-13 | T27: 2014-04-14 | U27: 2014-04-15 | V27: 2014-04-16 | W27: 2014-04-17 | X27: 2014-04-18 | Y27: 2014-04-19 | Z27: 2014-04-20 | AA27: 2014-04-21 | AB27: 2014-04-22 | AC27: 2014-04-23 | AD27: 2014-04-24 | AE27: 2014-04-25 | AF27: 2014-04-26 | AG27: 2014-04-27 | AH27: 2014-04-28 | AI27: 2014-04-29 | AJ27: 2014-04-30
E28: ITEM
B30: AA01 1201:SFD STICK | D30: APPETIZER | E30: 1 | F30: =SUM($G30:$AK30) -> 0 | G30: =IFERROR($E30*SUMIF('Daily Log'!$B$18:$B$1017,$B30,'Daily Log'!$C$18:$C$1017),0) -> 0 | H30: =IFERROR($E30*SUMIF('Daily Log'!$E$18:$E$1017,$B30,'Daily Log'!$F$18:$F$1017),0) -> 0 | I30: =IFERROR($E30*SUMIF('Daily Log'!$H$18:$H$1017,$B30,'Daily Log'!$I$18:$I$1017),0) -> 0 | J30: =IFERROR($E30*SUMIF('Daily Log'!$K$18:$K$1017,$B30,'Daily Log'!$L$18:$L$1017),0) -> 0 | K30: =IFERROR($E30*SUMIF('Daily Log'!$N$18:$N$1017,$B30,'Daily Log'!$O$18:$O$1017),0) -> 0 | L30: =IFERROR($E30*SUMIF('Daily Log'!$Q$18:$Q$1017,$B30,'Daily Log'!$R$18:$R$1017),0) -> 0 | M30: =IFERROR($E30*SUMIF('Daily Log'!$T$18:$T$1017,$B30,'Daily Log'!$U$18:$U$1017),0) -> 0 | N30: =IFERROR($E30*SUMIF('Daily Log'!$W$18:$W$1017,$B30,'Daily Log'!$X$18:$X$1017),0) -> 0 | O30: =IFERROR($E30*SUMIF('Daily Log'!$Z$18:$Z$1017,$B30,'Daily Log'!$AA$18:$AA$1017),0) -> 0 | P30: =IFERROR($E30*SUMIF('Daily Log'!$AC$18:$AC$1017,$B30,'Daily Log'!$AD$18:$AD$1017),0) -> 0 | Q30: =IFERROR($E30*SUMIF('Daily Log'!$AF$18:$AF$1017,$B30,'Daily Log'!$AG$18:$AG$1017),0) -> 0 | R30: =IFERROR($E30*SUMIF('Daily Log'!$AI$18:$AI$1017,$B30,'Daily Log'!$AJ$18:$AJ$1017),0) -> 0 | S30: =IFERROR($E30*SUMIF('Daily Log'!$AL$18:$AL$1017,$B30,'Daily Log'!$AM$18:$AM$1017),0) -> 0 | T30: =IFERROR($E30*SUMIF('Daily Log'!$AO$18:$AO$1017,$B30,'Daily Log'!$AP$18:$AP$1017),0) -> 0 | U30: =IFERROR($E30*SUMIF('Daily Log'!$AR$18:$AR$1017,$B30,'Daily Log'!$AS$18:$AS$1017),0) -> 0 | V30: =IFERROR($E30*SUMIF('Daily Log'!$AU$18:$AU$1017,$B30,'Daily Log'!$AV$18:$AV$1017),0) -> 0 | W30: =IFERROR($E30*SUMIF('Daily Log'!$AX$18:$AX$1017,$B30,'Daily Log'!$AY$18:$AY$1017),0) -> 0 | X30: =IFERROR($E30*SUMIF('Daily Log'!$BA$18:$BA$1017,$B30,'Daily Log'!$BB$18:$BB$1017),0) -> 0 | Y30: =IFERROR($E30*SUMIF('Daily Log'!$BD$18:$BD$1017,$B30,'Daily Log'!$BE$18:$BE$1017),0) -> 0 | Z30: =IFERROR($E30*SUMIF('Daily Log'!$BG$18:$BG$1017,$B30,'Daily Log'!$BH$18:$BH$1017),0) -> 0 | AA30: =IFERROR($E30*SUMIF('Daily Log'!$BJ$18:$BJ$1017,$B30,'Daily Log'!$BK$18:$BK$1017),0) -> 0 | AB30: =IFERROR($E30*SUMIF('Daily Log'!$BM$18:$BM$1017,$B30,'Daily Log'!$BN$18:$BN$1017),0) -> 0 | AC30: =IFERROR($E30*SUMIF('Daily Log'!$BP$18:$BP$1017,$B30,'Daily Log'!$BQ$18:$BQ$1017),0) -> 0 | AD30: =IFERROR($E30*SUMIF('Daily Log'!$BS$18:$BS$1017,$B30,'Daily Log'!$BT$18:$BT$1017),0) -> 0 | AE30: =IFERROR($E30*SUMIF('Daily Log'!$BV$18:$BV$1017,$B30,'Daily Log'!$BW$18:$BW$1017),0) -> 0 | AF30: =IFERROR($E30*SUMIF('Daily Log'!$BY$18:$BY$1017,$B30,'Daily Log'!$BZ$18:$BZ$1017),0) -> 0 | AG30: =IFERROR($E30*SUMIF('Daily Log'!$CB$18:$CB$1017,$B30,'Daily Log'!$CC$18:$CC$1017),0) -> 0 | AH30: =IFERROR($E30*SUMIF('Daily Log'!$CE$18:$CE$1017,$B30,'Daily Log'!$CF$18:$CF$1017),0) -> 0 | AI30: =IFERROR($E30*SUMIF('Daily Log'!$CH$18:$CH$1017,$B30,'Daily Log'!$CI$18:$CI$1017),0) -> 0 | AJ30: =IFERROR($E30*SUMIF('Daily Log'!$CK$18:$CK$1017,$B30,'Daily Log'!$CL$18:$CL$1017),0) -> 0 | AK30: =IFERROR($E30*SUMIF('Daily Log'!$CN$18:$CN$1017,$B30,'Daily Log'!$CO$18:$CO$1017),0) -> 0
B31: AA02 1202:FREN FRIES | D31: APPETIZER | E31: 1 | F31: 84 | G31: =IFERROR($E31*SUMIF('Daily Log'!$B$18:$B$1017,$B31,'Daily Log'!$C$18:$C$1017),0) -> 5 | H31: =IFERROR($E31*SUMIF('Daily Log'!$E$18:$E$1017,$B31,'Daily Log'!$F$18:$F$1017),0) -> 1 | I31: =IFERROR($E31*SUMIF('Daily Log'!$H$18:$H$1017,$B31,'Daily Log'!$I$18:$I$1017),0) -> 3 | J31: =IFERROR($E31*SUMIF('Daily Log'!$K$18:$K$1017,$B31,'Daily Log'!$L$18:$L$1017),0) -> 4 | K31: =IFERROR($E31*SUMIF('Daily Log'!$N$18:$N$1017,$B31,'Daily Log'!$O$18:$O$1017),0) -> 9 | L31: =IFERROR($E31*SUMIF('Daily Log'!$Q$18:$Q$1017,$B31,'Daily Log'!$R$18:$R$1017),0) -> 0 | M31: =IFERROR($E31*SUMIF('Daily Log'!$T$18:$T$1017,$B31,'Daily Log'!$U$18:$U$1017),0) -> 2 | N31: =IFERROR($E31*SUMIF('Daily Log'!$W$18:$W$1017,$B31,'Daily Log'!$X$18:$X$1017),0) -> 0 | O31: =IFERROR($E31*SUMIF('Daily Log'!$Z$18:$Z$1017,$B31,'Daily Log'!$AA$18:$AA$1017),0) -> 1 | P31: =IFERROR($E31*SUMIF('Daily Log'!$AC$18:$AC$1017,$B31,'Daily Log'!$AD$18:$AD$1017),0) -> 0 | Q31: =IFERROR($E31*SUMIF('Daily Log'!$AF$18:$AF$1017,$B31,'Daily Log'!$AG$18:$AG$1017),0) -> 2 | R31: =IFERROR($E31*SUMIF('Daily Log'!$AI$18:$AI$1017,$B31,'Daily Log'!$AJ$18:$AJ$1017),0) -> 1 | S31: =IFERROR($E31*SUMIF('Daily Log'!$AL$18:$AL$1017,$B31,'Daily Log'!$AM$18:$AM$1017),0) -> 6 | T31: =IFERROR($E31*SUMIF('Daily Log'!$AO$18:$AO$1017,$B31,'Daily Log'!$AP$18:$AP$1017),0) -> 2 | U31: =IFERROR($E31*SUMIF('Daily Log'!$AR$18:$AR$1017,$B31,'Daily Log'!$AS$18:$AS$1017),0) -> 3 | V31: =IFERROR($E31*SUMIF('Daily Log'!$AU$18:$AU$1017,$B31,'Daily Log'!$AV$18:$AV$1017),0) -> 8 | W31: =IFERROR($E31*SUMIF('Daily Log'!$AX$18:$AX$1017,$B31,'Daily Log'!$AY$18:$AY$1017),0) -> 2 | X31: =IFERROR($E31*SUMIF('Daily Log'!$BA$18:$BA$1017,$B31,'Daily Log'!$BB$18:$BB$1017),0) -> 2 | Y31: =IFERROR($E31*SUMIF('Daily Log'!$BD$18:$BD$1017,$B31,'Daily Log'!$BE$18:$BE$1017),0) -> 7 | Z31: =IFERROR($E31*SUMIF('Daily Log'!$BG$18:$BG$1017,$B31,'Daily Log'!$BH$18:$BH$1017),0) -> 5 | AA31: =IFERROR($E31*SUMIF('Daily Log'!$BJ$18:$BJ$1017,$B31,'Daily Log'!$BK$18:$BK$1017),0) -> 3 | AB31: =IFERROR($E31*SUMIF('Daily Log'!$BM$18:$BM$1017,$B31,'Daily Log'!$BN$18:$BN$1017),0) -> 2 | AC31: =IFERROR($E31*SUMIF('Daily Log'!$BP$18:$BP$1017,$B31,'Daily Log'!$BQ$18:$BQ$1017),0) -> 3 | AD31: =IFERROR($E31*SUMIF('Daily Log'!$BS$18:$BS$1017,$B31,'Daily Log'!$BT$18:$BT$1017),0) -> 0 | AE31: =IFERROR($E31*SUMIF('Daily Log'!$BV$18:$BV$1017,$B31,'Daily Log'!$BW$18:$BW$1017),0) -> 4 | AF31: =IFERROR($E31*SUMIF('Daily Log'!$BY$18:$BY$1017,$B31,'Daily Log'!$BZ$18:$BZ$1017),0) -> 2 | AG31: =IFERROR($E31*SUMIF('Daily Log'!$CB$18:$CB$1017,$B31,'Daily Log'!$CC$18:$CC$1017),0) -> 2 | AH31: =IFERROR($E31*SUMIF('Daily Log'!$CE$18:$CE$1017,$B31,'Daily Log'!$CF$18:$CF$1017),0) -> 1 | AI31: =IFERROR($E31*SUMIF('Daily Log'!$CH$18:$CH$1017,$B31,'Daily Log'!$CI$18:$CI$1017),0) -> 1 | AJ31: =IFERROR($E31*SUMIF('Daily Log'!$CK$18:$CK$1017,$B31,'Daily Log'!$CL$18:$CL$1017),0) -> 3 | AK31: =IFERROR($E31*SUMIF('Daily Log'!$CN$18:$CN$1017,$B31,'Daily Log'!$CO$18:$CO$1017),0) -> 0
B32: AA03 1203:GOLD MR | D32: APPETIZER | E32: 1 | F32: 13 | G32: =IFERROR($E32*SUMIF('Daily Log'!$B$18:$B$1017,$B32,'Daily Log'!$C$18:$C$1017),0) -> 0 | H32: =IFERROR($E32*SUMIF('Daily Log'!$E$18:$E$1017,$B32,'Daily Log'!$F$18:$F$1017),0) -> 1 | I32: =IFERROR($E32*SUMIF('Daily Log'!$H$18:$H$1017,$B32,'Daily Log'!$I$18:$I$1017),0) -> 0 | J32: =IFERROR($E32*SUMIF('Daily Log'!$K$18:$K$1017,$B32,'Daily Log'!$L$18:$L$1017),0) -> 0 | K32: =IFERROR($E32*SUMIF('Daily Log'!$N$18:$N$1017,$B32,'Daily Log'!$O$18:$O$1017),0) -> 0 | L32: =IFERROR($E32*SUMIF('Daily Log'!$Q$18:$Q$1017,$B32,'Daily Log'!$R$18:$R$1017),0) -> 2 | M32: =IFERROR($E32*SUMIF('Daily Log'!$T$18:$T$1017,$B32,'Daily Log'!$U$18:$U$1017),0) -> 0 | N32: =IFERROR($E32*SUMIF('Daily Log'!$W$18:$W$1017,$B32,'Daily Log'!$X$18:$X$1017),0) -> 1 | O32: =IFERROR($E32*SUMIF('Daily Log'!$Z$18:$Z$1017,$B32,'Daily Log'!$AA$18:$AA$1017),0) -> 1 | P32: =IFERROR($E32*SUMIF('Daily Log'!$AC$18:$AC$1017,$B32,'Daily Log'!$AD$18:$AD$1017),0) -> 1 | Q32: =IFERROR($E32*SUMIF('Daily Log'!$AF$18:$AF$1017,$B32,'Daily Log'!$AG$18:$AG$1017),0) -> 0 | R32: =IFERROR($E32*SUMIF('Daily Log'!$AI$18:$AI$1017,$B32,'Daily Log'!$AJ$18:$AJ$1017),0) -> 0 | S32: =IFERROR($E32*SUMIF('Daily Log'!$AL$18:$AL$1017,$B32,'Daily Log'!$AM$18:$AM$1017),0) -> 1 | T32: =IFERROR($E32*SUMIF('Daily Log'!$AO$18:$AO$1017,$B32,'Daily Log'!$AP$18:$AP$1017),0) -> 0 | U32: =IFERROR($E32*SUMIF('Daily Log'!$AR$18:$AR$1017,$B32,'Daily Log'!$AS$18:$AS$1017),0) -> 0 | V32: =IFERROR($E32*SUMIF('Daily Log'!$AU$18:$AU$1017,$B32,'Daily Log'!$AV$18:$AV$1017),0) -> 1 | W32: =IFERROR($E32*SUMIF('Daily Log'!$AX$18:$AX$1017,$B32,'Daily Log'!$AY$18:$AY$1017),0) -> 0 | X32: =IFERROR($E32*SUMIF('Daily Log'!$BA$18:$BA$1017,$B32,'Daily Log'!$BB$18:$BB$1017),0) -> 1 | Y32: =IFERROR($E32*SUMIF('Daily Log'!$BD$18:$BD$1017,$B32,'Daily Log'!$BE$18:$BE$1017),0) -> 0 | Z32: =IFERROR($E32*SUMIF('Daily Log'!$BG$18:$BG$1017,$B32,'Daily Log'!$BH$18:$BH$1017),0) -> 2 | AA32: =IFERROR($E32*SUMIF('Daily Log'!$BJ$18:$BJ$1017,$B32,'Daily Log'!$BK$18:$BK$1017),0) -> 0 | AB32: =IFERROR($E32*SUMIF('Daily Log'!$BM$18:$BM$1017,$B32,'Daily Log'!$BN$18:$BN$1017),0) -> 0 | AC32: =IFERROR($E32*SUMIF('Daily Log'!$BP$18:$BP$1017,$B32,'Daily Log'!$BQ$18:$BQ$1017),0) -> 1 | AD32: =IFERROR($E32*SUMIF('Daily Log'!$BS$18:$BS$1017,$B32,'Daily Log'!$BT$18:$BT$1017),0) -> 0 | AE32: =IFERROR($E32*SUMIF('Daily Log'!$BV$18:$BV$1017,$B32,'Daily Log'!$BW$18:$BW$1017),0) -> 0 | AF32: =IFERROR($E32*SUMIF('Daily Log'!$BY$18:$BY$1017,$B32,'Daily Log'!$BZ$18:$BZ$1017),0) -> 0 | AG32: =IFERROR($E32*SUMIF('Daily Log'!$CB$18:$CB$1017,$B32,'Daily Log'!$CC$18:$CC$1017),0) -> 0 | AH32: =IFERROR($E32*SUMIF('Daily Log'!$CE$18:$CE$1017,$B32,'Daily Log'!$CF$18:$CF$1017),0) -> 0 | AI32: =IFERROR($E32*SUMIF('Daily Log'!$CH$18:$CH$1017,$B32,'Daily Log'!$CI$18:$CI$1017),0) -> 0 | AJ32: =IFERROR($E32*SUMIF('Daily Log'!$CK$18:$CK$1017,$B32,'Daily Log'!$CL$18:$CL$1017),0) -> 1 | AK32: =IFERROR($E32*SUMIF('Daily Log'!$CN$18:$CN$1017,$B32,'Daily Log'!$CO$18:$CO$1017),0) -> 0
B33: AA04 1204:FSH BALL | D33: APPETIZER | E33: 1 | F33: 9 | G33: =IFERROR($E33*SUMIF('Daily Log'!$B$18:$B$1017,$B33,'Daily Log'!$C$18:$C$1017),0) -> 0 | H33: =IFERROR($E33*SUMIF('Daily Log'!$E$18:$E$1017,$B33,'Daily Log'!$F$18:$F$1017),0) -> 0 | I33: =IFERROR($E33*SUMIF('Daily Log'!$H$18:$H$1017,$B33,'Daily Log'!$I$18:$I$1017),0) -> 0 | J33: =IFERROR($E33*SUMIF('Daily Log'!$K$18:$K$1017,$B33,'Daily Log'!$L$18:$L$1017),0) -> 0 | K33: =IFERROR($E33*SUMIF('Daily Log'!$N$18:$N$1017,$B33,'Daily Log'!$O$18:$O$1017),0) -> 0 | L33: =IFERROR($E33*SUMIF('Daily Log'!$Q$18:$Q$1017,$B33,'Daily Log'!$R$18:$R$1017),0) -> 0 | M33: =IFERROR($E33*SUMIF('Daily Log'!$T$18:$T$1017,$B33,'Daily Log'!$U$18:$U$1017),0) -> 0 | N33: =IFERROR($E33*SUMIF('Daily Log'!$W$18:$W$1017,$B33,'Daily Log'!$X$18:$X$1017),0) -> 0 | O33: =IFERROR($E33*SUMIF('Daily Log'!$Z$18:$Z$1017,$B33,'Daily Log'!$AA$18:$AA$1017),0) -> 1 | P33: =IFERROR($E33*SUMIF('Daily Log'!$AC$18:$AC$1017,$B33,'Daily Log'!$AD$18:$AD$1017),0) -> 0 | Q33: =IFERROR($E33*SUMIF('Daily Log'!$AF$18:$AF$1017,$B33,'Daily Log'!$AG$18:$AG$1017),0) -> 0 | R33: =IFERROR($E33*SUMIF('Daily Log'!$AI$18:$AI$1017,$B33,'Daily Log'!$AJ$18:$AJ$1017),0) -> 1 | S33: =IFERROR($E33*SUMIF('Daily Log'!$AL$18:$AL$1017,$B33,'Daily Log'!$AM$18:$AM$1017),0) -> 1 | T33: =IFERROR($E33*SUMIF('Daily Log'!$AO$18:$AO$1017,$B33,'Daily Log'!$AP$18:$AP$1017),0) -> 1 | U33: =IFERROR($E33*SUMIF('Daily Log'!$AR$18:$AR$1017,$B33,'Daily Log'!$AS$18:$AS$1017),0) -> 2 | V33: =IFERROR($E33*SUMIF('Daily Log'!$AU$18:$AU$1017,$B33,'Daily Log'!$AV$18:$AV$1017),0) -> 2 | W33: =IFERROR($E33*SUMIF('Daily Log'!$AX$18:$AX$1017,$B33,'Daily Log'!$AY$18:$AY$1017),0) -> 0 | X33: =IFERROR($E33*SUMIF('Daily Log'!$BA$18:$BA$1017,$B33,'Daily Log'!$BB$18:$BB$1017),0) -> 0 | Y33: =IFERROR($E33*SUMIF('Daily Log'!$BD$18:$BD$1017,$B33,'Daily Log'!$BE$18:$BE$1017),0) -> 1 | Z33: =IFERROR($E33*SUMIF('Daily Log'!$BG$18:$BG$1017,$B33,'Daily Log'!$BH$18:$BH$1017),0) -> 0 | AA33: =IFERROR($E33*SUMIF('Daily Log'!$BJ$18:$BJ$1017,$B33,'Daily Log'!$BK$18:$BK$1017),0) -> 0 | AB33: =IFERROR($E33*SUMIF('Daily Log'!$BM$18:$BM$1017,$B33,'Daily Log'!$BN$18:$BN$1017),0) -> 0 | AC33: =IFERROR($E33*SUMIF('Daily Log'!$BP$18:$BP$1017,$B33,'Daily Log'!$BQ$18:$BQ$1017),0) -> 0 | AD33: =IFERROR($E33*SUMIF('Daily Log'!$BS$18:$BS$1017,$B33,'Daily Log'!$BT$18:$BT$1017),0) -> 0 | AE33: =IFERROR($E33*SUMIF('Daily Log'!$BV$18:$BV$1017,$B33,'Daily Log'!$BW$18:$BW$1017),0) -> 0 | AF33: =IFERROR($E33*SUMIF('Daily Log'!$BY$18:$BY$1017,$B33,'Daily Log'!$BZ$18:$BZ$1017),0) -> 0 | AG33: =IFERROR($E33*SUMIF('Daily Log'!$CB$18:$CB$1017,$B33,'Daily Log'!$CC$18:$CC$1017),0) -> 0 | AH33: =IFERROR($E33*SUMIF('Daily Log'!$CE$18:$CE$1017,$B33,'Daily Log'!$CF$18:$CF$1017),0) -> 0 | AI33: =IFERROR($E33*SUMIF('Daily Log'!$CH$18:$CH$1017,$B33,'Daily Log'!$CI$18:$CI$1017),0) -> 0 | AJ33: =IFERROR($E33*SUMIF('Daily Log'!$CK$18:$CK$1017,$B33,'Daily Log'!$CL$18:$CL$1017),0) -> 0 | AK33: =IFERROR($E33*SUMIF('Daily Log'!$CN$18:$CN$1017,$B33,'Daily Log'!$CO$18:$CO$1017),0) -> 0
B34: AA05 1205:RAINBOW RL | D34: APPETIZER | E34: 1 | F34: 0 | G34: =IFERROR($E34*SUMIF('Daily Log'!$B$18:$B$1017,$B34,'Daily Log'!$C$18:$C$1017),0) -> 0 | H34: =IFERROR($E34*SUMIF('Daily Log'!$E$18:$E$1017,$B34,'Daily Log'!$F$18:$F$1017),0) -> 0 | I34: =IFERROR($E34*SUMIF('Daily Log'!$H$18:$H$1017,$B34,'Daily Log'!$I$18:$I$1017),0) -> 0 | J34: =IFERROR($E34*SUMIF('Daily Log'!$K$18:$K$1017,$B34,'Daily Log'!$L$18:$L$1017),0) -> 0 | K34: =IFERROR($E34*SUMIF('Daily Log'!$N$18:$N$1017,$B34,'Daily Log'!$O$18:$O$1017),0) -> 0 | L34: =IFERROR($E34*SUMIF('Daily Log'!$Q$18:$Q$1017,$B34,'Daily Log'!$R$18:$R$1017),0) -> 0 | M34: =IFERROR($E34*SUMIF('Daily Log'!$T$18:$T$1017,$B34,'Daily Log'!$U$18:$U$1017),0) -> 0 | N34: =IFERROR($E34*SUMIF('Daily Log'!$W$18:$W$1017,$B34,'Daily Log'!$X$18:$X$1017),0) -> 0 | O34: =IFERROR($E34*SUMIF('Daily Log'!$Z$18:$Z$1017,$B34,'Daily Log'!$AA$18:$AA$1017),0) -> 0 | P34: =IFERROR($E34*SUMIF('Daily Log'!$AC$18:$AC$1017,$B34,'Daily Log'!$AD$18:$AD$1017),0) -> 0 | Q34: =IFERROR($E34*SUMIF('Daily Log'!$AF$18:$AF$1017,$B34,'Daily Log'!$AG$18:$AG$1017),0) -> 0 | R34: =IFERROR($E34*SUMIF('Daily Log'!$AI$18:$AI$1017,$B34,'Daily Log'!$AJ$18:$AJ$1017),0) -> 0 | S34: =IFERROR($E34*SUMIF('Daily Log'!$AL$18:$AL$1017,$B34,'Daily Log'!$AM$18:$AM$1017),0) -> 0 | T34: =IFERROR($E34*SUMIF('Daily Log'!$AO$18:$AO$1017,$B34,'Daily Log'!$AP$18:$AP$1017),0) -> 0 | U34: =IFERROR($E34*SUMIF('Daily Log'!$AR$18:$AR$1017,$B34,'Daily Log'!$AS$18:$AS$1017),0) -> 0 | V34: =IFERROR($E34*SUMIF('Daily Log'!$AU$18:$AU$1017,$B34,'Daily Log'!$AV$18:$AV$1017),0) -> 0 | W34: =IFERROR($E34*SUMIF('Daily Log'!$AX$18:$AX$1017,$B34,'Daily Log'!$AY$18:$AY$1017),0) -> 0 | X34: =IFERROR($E34*SUMIF('Daily Log'!$BA$18:$BA$1017,$B34,'Daily Log'!$BB$18:$BB$1017),0) -> 0 | Y34: =IFERROR($E34*SUMIF('Daily Log'!$BD$18:$BD$1017,$B34,'Daily Log'!$BE$18:$BE$1017),0) -> 0 | Z34: =IFERROR($E34*SUMIF('Daily Log'!$BG$18:$BG$1017,$B34,'Daily Log'!$BH$18:$BH$1017),0) -> 0 | AA34: =IFERROR($E34*SUMIF('Daily Log'!$BJ$18:$BJ$1017,$B34,'Daily Log'!$BK$18:$BK$1017),0) -> 0 | AB34: =IFERROR($E34*SUMIF('Daily Log'!$BM$18:$BM$1017,$B34,'Daily Log'!$BN$18:$BN$1017),0) -> 0 | AC34: =IFERROR($E34*SUMIF('Daily Log'!$BP$18:$BP$1017,$B34,'Daily Log'!$BQ$18:$BQ$1017),0) -> 0 | AD34: =IFERROR($E34*SUMIF('Daily Log'!$BS$18:$BS$1017,$B34,'Daily Log'!$BT$18:$BT$1017),0) -> 0 | AE34: =IFERROR($E34*SUMIF('Daily Log'!$BV$18:$BV$1017,$B34,'Daily Log'!$BW$18:$BW$1017),0) -> 0 | AF34: =IFERROR($E34*SUMIF('Daily Log'!$BY$18:$BY$1017,$B34,'Daily Log'!$BZ$18:$BZ$1017),0) -> 0 | AG34: =IFERROR($E34*SUMIF('Daily Log'!$CB$18:$CB$1017,$B34,'Daily Log'!$CC$18:$CC$1017),0) -> 0 | AH34: =IFERROR($E34*SUMIF('Daily Log'!$CE$18:$CE$1017,$B34,'Daily Log'!$CF$18:$CF$1017),0) -> 0 | AI34: =IFERROR($E34*SUMIF('Daily Log'!$CH$18:$CH$1017,$B34,'Daily Log'!$CI$18:$CI$1017),0) -> 0 | AJ34: =IFERROR($E34*SUMIF('Daily Log'!$CK$18:$CK$1017,$B34,'Daily Log'!$CL$18:$CL$1017),0) -> 0 | AK34: =IFERROR($E34*SUMIF('Daily Log'!$CN$18:$CN$1017,$B34,'Daily Log'!$CO$18:$CO$1017),0) -> 0
B35: AA06 1206:SPRING RL | D35: APPETIZER | E35: 1 | F35: 4 | G35: =IFERROR($E35*SUMIF('Daily Log'!$B$18:$B$1017,$B35,'Daily Log'!$C$18:$C$1017),0) -> 0 | H35: =IFERROR($E35*SUMIF('Daily Log'!$E$18:$E$1017,$B35,'Daily Log'!$F$18:$F$1017),0) -> 0 | I35: =IFERROR($E35*SUMIF('Daily Log'!$H$18:$H$1017,$B35,'Daily Log'!$I$18:$I$1017),0) -> 0 | J35: =IFERROR($E35*SUMIF('Daily Log'!$K$18:$K$1017,$B35,'Daily Log'!$L$18:$L$1017),0) -> 0 | K35: =IFERROR($E35*SUMIF('Daily Log'!$N$18:$N$1017,$B35,'Daily Log'!$O$18:$O$1017),0) -> 0 | L35: =IFERROR($E35*SUMIF('Daily Log'!$Q$18:$Q$1017,$B35,'Daily Log'!$R$18:$R$1017),0) -> 0 | M35: =IFERROR($E35*SUMIF('Daily Log'!$T$18:$T$1017,$B35,'Daily Log'!$U$18:$U$1017),0) -> 0 | N35: =IFERROR($E35*SUMIF('Daily Log'!$W$18:$W$1017,$B35,'Daily Log'!$X$18:$X$1017),0) -> 0 | O35: =IFERROR($E35*SUMIF('Daily Log'!$Z$18:$Z$1017,$B35,'Daily Log'!$AA$18:$AA$1017),0) -> 0 | P35: =IFERROR($E35*SUMIF('Daily Log'!$AC$18:$AC$1017,$B35,'Daily Log'!$AD$18:$AD$1017),0) -> 0 | Q35: =IFERROR($E35*SUMIF('Daily Log'!$AF$18:$AF$1017,$B35,'Daily Log'!$AG$18:$AG$1017),0) -> 0 | R35: =IFERROR($E35*SUMIF('Daily Log'!$AI$18:$AI$1017,$B35,'Daily Log'!$AJ$18:$AJ$1017),0) -> 1 | S35: =IFERROR($E35*SUMIF('Daily Log'!$AL$18:$AL$1017,$B35,'Daily Log'!$AM$18:$AM$1017),0) -> 0 | T35: =IFERROR($E35*SUMIF('Daily Log'!$AO$18:$AO$1017,$B35,'Daily Log'!$AP$18:$AP$1017),0) -> 1 | U35: =IFERROR($E35*SUMIF('Daily Log'!$AR$18:$AR$1017,$B35,'Daily Log'!$AS$18:$AS$1017),0) -> 0 | V35: =IFERROR($E35*SUMIF('Daily Log'!$AU$18:$AU$1017,$B35,'Daily Log'!$AV$18:$AV$1017),0) -> 0 | W35: =IFERROR($E35*SUMIF('Daily Log'!$AX$18:$AX$1017,$B35,'Daily Log'!$AY$18:$AY$1017),0) -> 0 | X35: =IFERROR($E35*SUMIF('Daily Log'!$BA$18:$BA$1017,$B35,'Daily Log'!$BB$18:$BB$1017),0) -> 0 | Y35: =IFERROR($E35*SUMIF('Daily Log'!$BD$18:$BD$1017,$B35,'Daily Log'!$BE$18:$BE$1017),0) -> 0 | Z35: =IFERROR($E35*SUMIF('Daily Log'!$BG$18:$BG$1017,$B35,'Daily Log'!$BH$18:$BH$1017),0) -> 0 | AA35: =IFERROR($E35*SUMIF('Daily Log'!$BJ$18:$BJ$1017,$B35,'Daily Log'!$BK$18:$BK$1017),0) -> 0 | AB35: =IFERROR($E35*SUMIF('Daily Log'!$BM$18:$BM$1017,$B35,'Daily Log'!$BN$18:$BN$1017),0) -> 0 | AC35: =IFERROR($E35*SUMIF('Daily Log'!$BP$18:$BP$1017,$B35,'Daily Log'!$BQ$18:$BQ$1017),0) -> 0 | AD35: =IFERROR($E35*SUMIF('Daily Log'!$BS$18:$BS$1017,$B35,'Daily Log'!$BT$18:$BT$1017),0) -> 0 | AE35: =IFERROR($E35*SUMIF('Daily Log'!$BV$18:$BV$1017,$B35,'Daily Log'!$BW$18:$BW$1017),0) -> 1 | AF35: =IFERROR($E35*SUMIF('Daily Log'!$BY$18:$BY$1017,$B35,'Daily Log'!$BZ$18:$BZ$1017),0) -> 0 | AG35: =IFERROR($E35*SUMIF('Daily Log'!$CB$18:$CB$1017,$B35,'Daily Log'!$CC$18:$CC$1017),0) -> 0 | AH35: =IFERROR($E35*SUMIF('Daily Log'!$CE$18:$CE$1017,$B35,'Daily Log'!$CF$18:$CF$1017),0) -> 0 | AI35: =IFERROR($E35*SUMIF('Daily Log'!$CH$18:$CH$1017,$B35,'Daily Log'!$CI$18:$CI$1017),0) -> 1 | AJ35: =IFERROR($E35*SUMIF('Daily Log'!$CK$18:$CK$1017,$B35,'Daily Log'!$CL$18:$CL$1017),0) -> 0 | AK35: =IFERROR($E35*SUMIF('Daily Log'!$CN$18:$CN$1017,$B35,'Daily Log'!$CO$18:$CO$1017),0) -> 0
B36: AA07 1207:SAUSG | D36: APPETIZER | E36: 1 | F36: 14 | G36: =IFERROR($E36*SUMIF('Daily Log'!$B$18:$B$1017,$B36,'Daily Log'!$C$18:$C$1017),0) -> 0 | H36: =IFERROR($E36*SUMIF('Daily Log'!$E$18:$E$1017,$B36,'Daily Log'!$F$18:$F$1017),0) -> 0 | I36: =IFERROR($E36*SUMIF('Daily Log'!$H$18:$H$1017,$B36,'Daily Log'!$I$18:$I$1017),0) -> 0 | J36: =IFERROR($E36*SUMIF('Daily Log'!$K$18:$K$1017,$B36,'Daily Log'!$L$18:$L$1017),0) -> 0 | K36: =IFERROR($E36*SUMIF('Daily Log'!$N$18:$N$1017,$B36,'Daily Log'!$O$18:$O$1017),0) -> 1 | L36: =IFERROR($E36*SUMIF('Daily Log'!$Q$18:$Q$1017,$B36,'Daily Log'!$R$18:$R$1017),0) -> 2 | M36: =IFERROR($E36*SUMIF('Daily Log'!$T$18:$T$1017,$B36,'Daily Log'!$U$18:$U$1017),0) -> 0 | N36: =IFERROR($E36*SUMIF('Daily Log'!$W$18:$W$1017,$B36,'Daily Log'!$X$18:$X$1017),0) -> 1 | O36: =IFERROR($E36*SUMIF('Daily Log'!$Z$18:$Z$1017,$B36,'Daily Log'!$AA$18:$AA$1017),0) -> 2 | P36: =IFERROR($E36*SUMIF('Daily Log'!$AC$18:$AC$1017,$B36,'Daily Log'!$AD$18:$AD$1017),0) -> 0 | Q36: =IFERROR($E36*SUMIF('Daily Log'!$AF$18:$AF$1017,$B36,'Daily Log'!$AG$18:$AG$1017),0) -> 1 | R36: =IFERROR($E36*SUMIF('Daily Log'!$AI$18:$AI$1017,$B36,'Daily Log'!$AJ$18:$AJ$1017),0) -> 0 | S36: =IFERROR($E36*SUMIF('Daily Log'!$AL$18:$AL$1017,$B36,'Daily Log'!$AM$18:$AM$1017),0) -> 0 | T36: =IFERROR($E36*SUMIF('Daily Log'!$AO$18:$AO$1017,$B36,'Daily Log'!$AP$18:$AP$1017),0) -> 1 | U36: =IFERROR($E36*SUMIF('Daily Log'!$AR$18:$AR$1017,$B36,'Daily Log'!$AS$18:$AS$1017),0) -> 0 | V36: =IFERROR($E36*SUMIF('Daily Log'!$AU$18:$AU$1017,$B36,'Daily Log'!$AV$18:$AV$1017),0) -> 0 | W36: =IFERROR($E36*SUMIF('Daily Log'!$AX$18:$AX$1017,$B36,'Daily Log'!$AY$18:$AY$1017),0) -> 1 | X36: =IFERROR($E36*SUMIF('Daily Log'!$BA$18:$BA$1017,$B36,'Daily Log'!$BB$18:$BB$1017),0) -> 1 | Y36: =IFERROR($E36*SUMIF('Daily Log'!$BD$18:$BD$1017,$B36,'Daily Log'!$BE$18:$BE$1017),0) -> 0 | Z36: =IFERROR($E36*SUMIF('Daily Log'!$BG$18:$BG$1017,$B36,'Daily Log'!$BH$18:$BH$1017),0) -> 1 | AA36: =IFERROR($E36*SUMIF('Daily Log'!$BJ$18:$BJ$1017,$B36,'Daily Log'!$BK$18:$BK$1017),0) -> 1 | AB36: =IFERROR($E36*SUMIF('Daily Log'!$BM$18:$BM$1017,$B36,'Daily Log'!$BN$18:$BN$1017),0) -> 0 | AC36: =IFERROR($E36*SUMIF('Daily Log'!$BP$18:$BP$1017,$B36,'Daily Log'!$BQ$18:$BQ$1017),0) -> 1 | AD36: =IFERROR($E36*SUMIF('Daily Log'!$BS$18:$BS$1017,$B36,'Daily Log'!$BT$18:$BT$1017),0) -> 0 | AE36: =IFERROR($E36*SUMIF('Daily Log'!$BV$18:$BV$1017,$B36,'Daily Log'!$BW$18:$BW$1017),0) -> 0 | AF36: =IFERROR($E36*SUMIF('Daily Log'!$BY$18:$BY$1017,$B36,'Daily Log'!$BZ$18:$BZ$1017),0) -> 0 | AG36: =IFERROR($E36*SUMIF('Daily Log'!$CB$18:$CB$1017,$B36,'Daily Log'!$CC$18:$CC$1017),0) -> 0 | AH36: =IFERROR($E36*SUMIF('Daily Log'!$CE$18:$CE$1017,$B36,'Daily Log'!$CF$18:$CF$1017),0) -> 1 | AI36: =IFERROR($E36*SUMIF('Daily Log'!$CH$18:$CH$1017,$B36,'Daily Log'!$CI$18:$CI$1017),0) -> 0 | AJ36: =IFERROR($E36*SUMIF('Daily Log'!$CK$18:$CK$1017,$B36,'Daily Log'!$CL$18:$CL$1017),0) -> 0 | AK36: =IFERROR($E36*SUMIF('Daily Log'!$CN$18:$CN$1017,$B36,'Daily Log'!$CO$18:$CO$1017),0) -> 0
B37: AA31 1301:DUMPLING | D37: APPETIZER | E37: 1 | F37: 0 | G37: =IFERROR($E37*SUMIF('Daily Log'!$B$18:$B$1017,$B37,'Daily Log'!$C$18:$C$1017),0) -> 0 | H37: =IFERROR($E37*SUMIF('Daily Log'!$E$18:$E$1017,$B37,'Daily Log'!$F$18:$F$1017),0) -> 0 | I37: =IFERROR($E37*SUMIF('Daily Log'!$H$18:$H$1017,$B37,'Daily Log'!$I$18:$I$1017),0) -> 0 | J37: =IFERROR($E37*SUMIF('Daily Log'!$K$18:$K$1017,$B37,'Daily Log'!$L$18:$L$1017),0) -> 0 | K37: =IFERROR($E37*SUMIF('Daily Log'!$N$18:$N$1017,$B37,'Daily Log'!$O$18:$O$1017),0) -> 0 | L37: =IFERROR($E37*SUMIF('Daily Log'!$Q$18:$Q$1017,$B37,'Daily Log'!$R$18:$R$1017),0) -> 0 | M37: =IFERROR($E37*SUMIF('Daily Log'!$T$18:$T$1017,$B37,'Daily Log'!$U$18:$U$1017),0) -> 0 | N37: =IFERROR($E37*SUMIF('Daily Log'!$W$18:$W$1017,$B37,'Daily Log'!$X$18:$X$1017),0) -> 0 | O37: =IFERROR($E37*SUMIF('Daily Log'!$Z$18:$Z$1017,$B37,'Daily Log'!$AA$18:$AA$1017),0) -> 0 | P37: =IFERROR($E37*SUMIF('Daily Log'!$AC$18:$AC$1017,$B37,'Daily Log'!$AD$18:$AD$1017),0) -> 0 | Q37: =IFERROR($E37*SUMIF('Daily Log'!$AF$18:$AF$1017,$B37,'Daily Log'!$AG$18:$AG$1017),0) -> 0 | R37: =IFERROR($E37*SUMIF('Daily Log'!$AI$18:$AI$1017,$B37,'Daily Log'!$AJ$18:$AJ$1017),0) -> 0 | S37: =IFERROR($E37*SUMIF('Daily Log'!$AL$18:$AL$1017,$B37,'Daily Log'!$AM$18:$AM$1017),0) -> 0 | T37: =IFERROR($E37*SUMIF('Daily Log'!$AO$18:$AO$1017,$B37,'Daily Log'!$AP$18:$AP$1017),0) -> 0 | U37: =IFERROR($E37*SUMIF('Daily Log'!$AR$18:$AR$1017,$B37,'Daily Log'!$AS$18:$AS$1017),0) -> 0 | V37: =IFERROR($E37*SUMIF('Daily Log'!$AU$18:$AU$1017,$B37,'Daily Log'!$AV$18:$AV$1017),0) -> 0 | W37: =IFERROR($E37*SUMIF('Daily Log'!$AX$18:$AX$1017,$B37,'Daily Log'!$AY$18:$AY$1017),0) -> 0 | X37: =IFERROR($E37*SUMIF('Daily Log'!$BA$18:$BA$1017,$B37,'Daily Log'!$BB$18:$BB$1017),0) -> 0 | Y37: =IFERROR($E37*SUMIF('Daily Log'!$BD$18:$BD$1017,$B37,'Daily Log'!$BE$18:$BE$1017),0) -> 0 | Z37: =IFERROR($E37*SUMIF('Daily Log'!$BG$18:$BG$1017,$B37,'Daily Log'!$BH$18:$BH$1017),0) -> 0 | AA37: =IFERROR($E37*SUMIF('Daily Log'!$BJ$18:$BJ$1017,$B37,'Daily Log'!$BK$18:$BK$1017),0) -> 0 | AB37: =IFERROR($E37*SUMIF('Daily Log'!$BM$18:$BM$1017,$B37,'Daily Log'!$BN$18:$BN$1017),0) -> 0 | AC37: =IFERROR($E37*SUMIF('Daily Log'!$BP$18:$BP$1017,$B37,'Daily Log'!$BQ$18:$BQ$1017),0) -> 0 | AD37: =IFERROR($E37*SUMIF('Daily Log'!$BS$18:$BS$1017,$B37,'Daily Log'!$BT$18:$BT$1017),0) -> 0 | AE37: =IFERROR($E37*SUMIF('Daily Log'!$BV$18:$BV$1017,$B37,'Daily Log'!$BW$18:$BW$1017),0) -> 0 | AF37: =IFERROR($E37*SUMIF('Daily Log'!$BY$18:$BY$1017,$B37,'Daily Log'!$BZ$18:$BZ$1017),0) -> 0 | AG37: =IFERROR($E37*SUMIF('Daily Log'!$CB$18:$CB$1017,$B37,'Daily Log'!$CC$18:$CC$1017),0) -> 0 | AH37: =IFERROR($E37*SUMIF('Daily Log'!$CE$18:$CE$1017,$B37,'Daily Log'!$CF$18:$CF$1017),0) -> 0 | AI37: =IFERROR($E37*SUMIF('Daily Log'!$CH$18:$CH$1017,$B37,'Daily Log'!$CI$18:$CI$1017),0) -> 0 | AJ37: =IFERROR($E37*SUMIF('Daily Log'!$CK$18:$CK$1017,$B37,'Daily Log'!$CL$18:$CL$1017),0) -> 0 | AK37: =IFERROR($E37*SUMIF('Daily Log'!$CN$18:$CN$1017,$B37,'Daily Log'!$CO$18:$CO$1017),0) -> 0
B38: AA32 1302:NUGGET | D38: APPETIZER | E38: 1 | F38: 46 | G38: =IFERROR($E38*SUMIF('Daily Log'!$B$18:$B$1017,$B38,'Daily Log'!$C$18:$C$1017),0) -> 1 | H38: =IFERROR($E38*SUMIF('Daily Log'!$E$18:$E$1017,$B38,'Daily Log'!$F$18:$F$1017),0) -> 0 | I38: =IFERROR($E38*SUMIF('Daily Log'!$H$18:$H$1017,$B38,'Daily Log'!$I$18:$I$1017),0) -> 1 | J38: =IFERROR($E38*SUMIF('Daily Log'!$K$18:$K$1017,$B38,'Daily Log'!$L$18:$L$1017),0) -> 1 | K38: =IFERROR($E38*SUMIF('Daily Log'!$N$18:$N$1017,$B38,'Daily Log'!$O$18:$O$1017),0) -> 3 | L38: =IFERROR($E38*SUMIF('Daily Log'!$Q$18:$Q$1017,$B38,'Daily Log'!$R$18:$R$1017),0) -> 2 | M38: =IFERROR($E38*SUMIF('Daily Log'!$T$18:$T$1017,$B38,'Daily Log'!$U$18:$U$1017),0) -> 0 | N38: =IFERROR($E38*SUMIF('Daily Log'!$W$18:$W$1017,$B38,'Daily Log'!$X$18:$X$1017),0) -> 0 | O38: =IFERROR($E38*SUMIF('Daily Log'!$Z$18:$Z$1017,$B38,'Daily Log'!$AA$18:$AA$1017),0) -> 3 | P38: =IFERROR($E38*SUMIF('Daily Log'!$AC$18:$AC$1017,$B38,'Daily Log'!$AD$18:$AD$1017),0) -> 1 | Q38: =IFERROR($E38*SUMIF('Daily Log'!$AF$18:$AF$1017,$B38,'Daily Log'!$AG$18:$AG$1017),0) -> 0 | R38: =IFERROR($E38*SUMIF('Daily Log'!$AI$18:$AI$1017,$B38,'Daily Log'!$AJ$18:$AJ$1017),0) -> 1 | S38: =IFERROR($E38*SUMIF('Daily Log'!$AL$18:$AL$1017,$B38,'Daily Log'!$AM$18:$AM$1017),0) -> 2 | T38: =IFERROR($E38*SUMIF('Daily Log'!$AO$18:$AO$1017,$B38,'Daily Log'!$AP$18:$AP$1017),0) -> 4 | U38: =IFERROR($E38*SUMIF('Daily Log'!$AR$18:$AR$1017,$B38,'Daily Log'!$AS$18:$AS$1017),0) -> 1 | V38: =IFERROR($E38*SUMIF('Daily Log'!$AU$18:$AU$1017,$B38,'Daily Log'!$AV$18:$AV$1017),0) -> 2 | W38: =IFERROR($E38*SUMIF('Daily Log'!$AX$18:$AX$1017,$B38,'Daily Log'!$AY$18:$AY$1017),0) -> 0 | X38: =IFERROR($E38*SUMIF('Daily Log'!$BA$18:$BA$1017,$B38,'Daily Log'!$BB$18:$BB$1017),0) -> 1 | Y38: =IFERROR($E38*SUMIF('Daily Log'!$BD$18:$BD$1017,$B38,'Daily Log'!$BE$18:$BE$1017),0) -> 1 | Z38: =IFERROR($E38*SUMIF('Daily Log'!$BG$18:$BG$1017,$B38,'Daily Log'!$BH$18:$BH$1017),0) -> 5 | AA38: =IFERROR($E38*SUMIF('Daily Log'!$BJ$18:$BJ$1017,$B38,'Daily Log'!$BK$18:$BK$1017),0) -> 3 | AB38: =IFERROR($E38*SUMIF('Daily Log'!$BM$18:$BM$1017,$B38,'Daily Log'!$BN$18:$BN$1017),0) -> 0 | AC38: =IFERROR($E38*SUMIF('Daily Log'!$BP$18:$BP$1017,$B38,'Daily Log'!$BQ$18:$BQ$1017),0) -> 2 | AD38: =IFERROR($E38*SUMIF('Daily Log'!$BS$18:$BS$1017,$B38,'Daily Log'!$BT$18:$BT$1017),0) -> 2 | AE38: =IFERROR($E38*SUMIF('Daily Log'!$BV$18:$BV$1017,$B38,'Daily Log'!$BW$18:$BW$1017),0) -> 6 | AF38: =IFERROR($E38*SUMIF('Daily Log'!$BY$18:$BY$1017,$B38,'Daily Log'!$BZ$18:$BZ$1017),0) -> 1 | AG38: =IFERROR($E38*SUMIF('Daily Log'!$CB$18:$CB$1017,$B38,'Daily Log'!$CC$18:$CC$1017),0) -> 0 | AH38: =IFERROR($E38*SUMIF('Daily Log'!$CE$18:$CE$1017,$B38,'Daily Log'!$CF$18:$CF$1017),0) -> 0 | AI38: =IFERROR($E38*SUMIF('Daily Log'!$CH$18:$CH$1017,$B38,'Daily Log'!$CI$18:$CI$1017),0) -> 2 | AJ38: =IFERROR($E38*SUMIF('Daily Log'!$CK$18:$CK$1017,$B38,'Daily Log'!$CL$18:$CL$1017),0) -> 1 | AK38: =IFERROR($E38*SUMIF('Daily Log'!$CN$18:$CN$1017,$B38,'Daily Log'!$CO$18:$CO$1017),0) -> 0
B39: AA33 1303:CHK WING | D39: APPETIZER | E39: 1 | F39: 38 | G39: =IFERROR($E39*SUMIF('Daily Log'!$B$18:$B$1017,$B39,'Daily Log'!$C$18:$C$1017),0) -> 1 | H39: =IFERROR($E39*SUMIF('Daily Log'!$E$18:$E$1017,$B39,'Daily Log'!$F$18:$F$1017),0) -> 1 | I39: =IFERROR($E39*SUMIF('Daily Log'!$H$18:$H$1017,$B39,'Daily Log'!$I$18:$I$1017),0) -> 0 | J39: =IFERROR($E39*SUMIF('Daily Log'!$K$18:$K$1017,$B39,'Daily Log'!$L$18:$L$1017),0) -> 1 | K39: =IFERROR($E39*SUMIF('Daily Log'!$N$18:$N$1017,$B39,'Daily Log'!$O$18:$O$1017),0) -> 1 | L39: =IFERROR($E39*SUMIF('Daily Log'!$Q$18:$Q$1017,$B39,'Daily Log'!$R$18:$R$1017),0) -> 1 | M39: =IFERROR($E39*SUMIF('Daily Log'!$T$18:$T$1017,$B39,'Daily Log'!$U$18:$U$1017),0) -> 1 | N39: =IFERROR($E39*SUMIF('Daily Log'!$W$18:$W$1017,$B39,'Daily Log'!$X$18:$X$1017),0) -> 3 | O39: =IFERROR($E39*SUMIF('Daily Log'!$Z$18:$Z$1017,$B39,'Daily Log'!$AA$18:$AA$1017),0) -> 0 | P39: =IFERROR($E39*SUMIF('Daily Log'!$AC$18:$AC$1017,$B39,'Daily Log'!$AD$18:$AD$1017),0) -> 0 | Q39: =IFERROR($E39*SUMIF('Daily Log'!$AF$18:$AF$1017,$B39,'Daily Log'!$AG$18:$AG$1017),0) -> 2 | R39: =IFERROR($E39*SUMIF('Daily Log'!$AI$18:$AI$1017,$B39,'Daily Log'!$AJ$18:$AJ$1017),0) -> 1 | S39: =IFERROR($E39*SUMIF('Daily Log'!$AL$18:$AL$1017,$B39,'Daily Log'!$AM$18:$AM$1017),0) -> 0 | T39: =IFERROR($E39*SUMIF('Daily Log'!$AO$18:$AO$1017,$B39,'Daily Log'!$AP$18:$AP$1017),0) -> 0 | U39: =IFERROR($E39*SUMIF('Daily Log'!$AR$18:$AR$1017,$B39,'Daily Log'!$AS$18:$AS$1017),0) -> 0 | V39: =IFERROR($E39*SUMIF('Daily Log'!$AU$18:$AU$1017,$B39,'Daily Log'!$AV$18:$AV$1017),0) -> 3 | W39: =IFERROR($E39*SUMIF('Daily Log'!$AX$18:$AX$1017,$B39,'Daily Log'!$AY$18:$AY$1017),0) -> 2 | X39: =IFERROR($E39*SUMIF('Daily Log'!$BA$18:$BA$1017,$B39,'Daily Log'!$BB$18:$BB$1017),0) -> 1 | Y39: =IFERROR($E39*SUMIF('Daily Log'!$BD$18:$BD$1017,$B39,'Daily Log'!$BE$18:$BE$1017),0) -> 3 | Z39: =IFERROR($E39*SUMIF('Daily Log'!$BG$18:$BG$1017,$B39,'Daily Log'!$BH$18:$BH$1017),0) -> 2 | AA39: =IFERROR($E39*SUMIF('Daily Log'!$BJ$18:$BJ$1017,$B39,'Daily Log'!$BK$18:$BK$1017),0) -> 1 | AB39: =IFERROR($E39*SUMIF('Daily Log'!$BM$18:$BM$1017,$B39,'Daily Log'!$BN$18:$BN$1017),0) -> 1 | AC39: =IFERROR($E39*SUMIF('Daily Log'!$BP$18:$BP$1017,$B39,'Daily Log'!$BQ$18:$BQ$1017),0) -> 1 | AD39: =IFERROR($E39*SUMIF('Daily Log'!$BS$18:$BS$1017,$B39,'Daily Log'!$BT$18:$BT$1017),0) -> 2 | AE39: =IFERROR($E39*SUMIF('Daily Log'!$BV$18:$BV$1017,$B39,'Daily Log'!$BW$18:$BW$1017),0) -> 4 | AF39: =IFERROR($E39*SUMIF('Daily Log'!$BY$18:$BY$1017,$B39,'Daily Log'!$BZ$18:$BZ$1017),0) -> 2 | AG39: =IFERROR($E39*SUMIF('Daily Log'!$CB$18:$CB$1017,$B39,'Daily Log'!$CC$18:$CC$1017),0) -> 1 | AH39: =IFERROR($E39*SUMIF('Daily Log'!$CE$18:$CE$1017,$B39,'Daily Log'!$CF$18:$CF$1017),0) -> 0 | AI39: =IFERROR($E39*SUMIF('Daily Log'!$CH$18:$CH$1017,$B39,'Daily Log'!$CI$18:$CI$1017),0) -> 1 | AJ39: =IFERROR($E39*SUMIF('Daily Log'!$CK$18:$CK$1017,$B39,'Daily Log'!$CL$18:$CL$1017),0) -> 2 | AK39: =IFERROR($E39*SUMIF('Daily Log'!$CN$18:$CN$1017,$B39,'Daily Log'!$CO$18:$CO$1017),0) -> 0
B40: AA34 1304:IKAN BILIS | D40: APPETIZER | E40: 1 | F40: 5 | G40: =IFERROR($E40*SUMIF('Daily Log'!$B$18:$B$1017,$B40,'Daily Log'!$C$18:$C$1017),0) -> 0 | H40: =IFERROR($E40*SUMIF('Daily Log'!$E$18:$E$1017,$B40,'Daily Log'!$F$18:$F$1017),0) -> 0 | I40: =IFERROR($E40*SUMIF('Daily Log'!$H$18:$H$1017,$B40,'Daily Log'!$I$18:$I$1017),0) -> 0 | J40: =IFERROR($E40*SUMIF('Daily Log'!$K$18:$K$1017,$B40,'Daily Log'!$L$18:$L$1017),0) -> 0 | K40: =IFERROR($E40*SUMIF('Daily Log'!$N$18:$N$1017,$B40,'Daily Log'!$O$18:$O$1017),0) -> 0 | L40: =IFERROR($E40*SUMIF('Daily Log'!$Q$18:$Q$1017,$B40,'Daily Log'!$R$18:$R$1017),0) -> 1 | M40: =IFERROR($E40*SUMIF('Daily Log'!$T$18:$T$1017,$B40,'Daily Log'!$U$18:$U$1017),0) -> 0 | N40: =IFERROR($E40*SUMIF('Daily Log'!$W$18:$W$1017,$B40,'Daily Log'!$X$18:$X$1017),0) -> 1 | O40: =IFERROR($E40*SUMIF('Daily Log'!$Z$18:$Z$1017,$B40,'Daily Log'!$AA$18:$AA$1017),0) -> 1 | P40: =IFERROR($E40*SUMIF('Daily Log'!$AC$18:$AC$1017,$B40,'Daily Log'!$AD$18:$AD$1017),0) -> 0 | Q40: =IFERROR($E40*SUMIF('Daily Log'!$AF$18:$AF$1017,$B40,'Daily Log'!$AG$18:$AG$1017),0) -> 0 | R40: =IFERROR($E40*SUMIF('Daily Log'!$AI$18:$AI$1017,$B40,'Daily Log'!$AJ$18:$AJ$1017),0) -> 0 | S40: =IFERROR($E40*SUMIF('Daily Log'!$AL$18:$AL$1017,$B40,'Daily Log'!$AM$18:$AM$1017),0) -> 0 | T40: =IFERROR($E40*SUMIF('Daily Log'!$AO$18:$AO$1017,$B40,'Daily Log'!$AP$18:$AP$1017),0) -> 0 | U40: =IFERROR($E40*SUMIF('Daily Log'!$AR$18:$AR$1017,$B40,'Daily Log'!$AS$18:$AS$1017),0) -> 0 | V40: =IFERROR($E40*SUMIF('Daily Log'!$AU$18:$AU$1017,$B40,'Daily Log'!$AV$18:$AV$1017),0) -> 0 | W40: =IFERROR($E40*SUMIF('Daily Log'!$AX$18:$AX$1017,$B40,'Daily Log'!$AY$18:$AY$1017),0) -> 0 | X40: =IFERROR($E40*SUMIF('Daily Log'!$BA$18:$BA$1017,$B40,'Daily Log'!$BB$18:$BB$1017),0) -> 0 | Y40: =IFERROR($E40*SUMIF('Daily Log'!$BD$18:$BD$1017,$B40,'Daily Log'!$BE$18:$BE$1017),0) -> 1 | Z40: =IFERROR($E40*SUMIF('Daily Log'!$BG$18:$BG$1017,$B40,'Daily Log'!$BH$18:$BH$1017),0) -> 0 | AA40: =IFERROR($E40*SUMIF('Daily Log'!$BJ$18:$BJ$1017,$B40,'Daily Log'!$BK$18:$BK$1017),0) -> 0 | AB40: =IFERROR($E40*SUMIF('Daily Log'!$BM$18:$BM$1017,$B40,'Daily Log'!$BN$18:$BN$1017),0) -> 0 | AC40: =IFERROR($E40*SUMIF('Daily Log'!$BP$18:$BP$1017,$B40,'Daily Log'!$BQ$18:$BQ$1017),0) -> 1 | AD40: =IFERROR($E40*SUMIF('Daily Log'!$BS$18:$BS$1017,$B40,'Daily Log'!$BT$18:$BT$1017),0) -> 0 | AE40: =IFERROR($E40*SUMIF('Daily Log'!$BV$18:$BV$1017,$B40,'Daily Log'!$BW$18:$BW$1017),0) -> 0 | AF40: =IFERROR($E40*SUMIF('Daily Log'!$BY$18:$BY$1017,$B40,'Daily Log'!$BZ$18:$BZ$1017),0) -> 0 | AG40: =IFERROR($E40*SUMIF('Daily Log'!$CB$18:$CB$1017,$B40,'Daily Log'!$CC$18:$CC$1017),0) -> 0 | AH40: =IFERROR($E40*SUMIF('Daily Log'!$CE$18:$CE$1017,$B40,'Daily Log'!$CF$18:$CF$1017),0) -> 0 | AI40: =IFERROR($E40*SUMIF('Daily Log'!$CH$18:$CH$1017,$B40,'Daily Log'!$CI$18:$CI$1017),0) -> 0 | AJ40: =IFERROR($E40*SUMIF('Daily Log'!$CK$18:$CK$1017,$B40,'Daily Log'!$CL$18:$CL$1017),0) -> 0 | AK40: =IFERROR($E40*SUMIF('Daily Log'!$CN$18:$CN$1017,$B40,'Daily Log'!$CO$18:$CO$1017),0) -> 0
B41: AA35 1305:THAI RL | D41: APPETIZER | E41: 1 | F41: 0 | G41: =IFERROR($E41*SUMIF('Daily Log'!$B$18:$B$1017,$B41,'Daily Log'!$C$18:$C$1017),0) -> 0 | H41: =IFERROR($E41*SUMIF('Daily Log'!$E$18:$E$1017,$B41,'Daily Log'!$F$18:$F$1017),0) -> 0 | I41: =IFERROR($E41*SUMIF('Daily Log'!$H$18:$H$1017,$B41,'Daily Log'!$I$18:$I$1017),0) -> 0 | J41: =IFERROR($E41*SUMIF('Daily Log'!$K$18:$K$1017,$B41,'Daily Log'!$L$18:$L$1017),0) -> 0 | K41: =IFERROR($E41*SUMIF('Daily Log'!$N$18:$N$1017,$B41,'Daily Log'!$O$18:$O$1017),0) -> 0 | L41: =IFERROR($E41*SUMIF('Daily Log'!$Q$18:$Q$1017,$B41,'Daily Log'!$R$18:$R$1017),0) -> 0 | M41: =IFERROR($E41*SUMIF('Daily Log'!$T$18:$T$1017,$B41,'Daily Log'!$U$18:$U$1017),0) -> 0 | N41: =IFERROR($E41*SUMIF('Daily Log'!$W$18:$W$1017,$B41,'Daily Log'!$X$18:$X$1017),0) -> 0 | O41: =IFERROR($E41*SUMIF('Daily Log'!$Z$18:$Z$1017,$B41,'Daily Log'!$AA$18:$AA$1017),0) -> 0 | P41: =IFERROR($E41*SUMIF('Daily Log'!$AC$18:$AC$1017,$B41,'Daily Log'!$AD$18:$AD$1017),0) -> 0 | Q41: =IFERROR($E41*SUMIF('Daily Log'!$AF$18:$AF$1017,$B41,'Daily Log'!$AG$18:$AG$1017),0) -> 0 | R41: =IFERROR($E41*SUMIF('Daily Log'!$AI$18:$AI$1017,$B41,'Daily Log'!$AJ$18:$AJ$1017),0) -> 0 | S41: =IFERROR($E41*SUMIF('Daily Log'!$AL$18:$AL$1017,$B41,'Daily Log'!$AM$18:$AM$1017),0) -> 0 | T41: =IFERROR($E41*SUMIF('Daily Log'!$AO$18:$AO$1017,$B41,'Daily Log'!$AP$18:$AP$1017),0) -> 0 | U41: =IFERROR($E41*SUMIF('Daily Log'!$AR$18:$AR$1017,$B41,'Daily Log'!$AS$18:$AS$1017),0) -> 0 | V41: =IFERROR($E41*SUMIF('Daily Log'!$AU$18:$AU$1017,$B41,'Daily Log'!$AV$18:$AV$1017),0) -> 0 | W41: =IFERROR($E41*SUMIF('Daily Log'!$AX$18:$AX$1017,$B41,'Daily Log'!$AY$18:$AY$1017),0) -> 0 | X41: =IFERROR($E41*SUMIF('Daily Log'!$BA$18:$BA$1017,$B41,'Daily Log'!$BB$18:$BB$1017),0) -> 0 | Y41: =IFERROR($E41*SUMIF('Daily Log'!$BD$18:$BD$1017,$B41,'Daily Log'!$BE$18:$BE$1017),0) -> 0 | Z41: =IFERROR($E41*SUMIF('Daily Log'!$BG$18:$BG$1017,$B41,'Daily Log'!$BH$18:$BH$1017),0) -> 0 | AA41: =IFERROR($E41*SUMIF('Daily Log'!$BJ$18:$BJ$1017,$B41,'Daily Log'!$BK$18:$BK$1017),0) -> 0 | AB41: =IFERROR($E41*SUMIF('Daily Log'!$BM$18:$BM$1017,$B41,'Daily Log'!$BN$18:$BN$1017),0) -> 0 | AC41: =IFERROR($E41*SUMIF('Daily Log'!$BP$18:$BP$1017,$B41,'Daily Log'!$BQ$18:$BQ$1017),0) -> 0 | AD41: =IFERROR($E41*SUMIF('Daily Log'!$BS$18:$BS$1017,$B41,'Daily Log'!$BT$18:$BT$1017),0) -> 0 | AE41: =IFERROR($E41*SUMIF('Daily Log'!$BV$18:$BV$1017,$B41,'Daily Log'!$BW$18:$BW$1017),0) -> 0 | AF41: =IFERROR($E41*SUMIF('Daily Log'!$BY$18:$BY$1017,$B41,'Daily Log'!$BZ$18:$BZ$1017),0) -> 0 | AG41: =IFERROR($E41*SUMIF('Daily Log'!$CB$18:$CB$1017,$B41,'Daily Log'!$CC$18:$CC$1017),0) -> 0 | AH41: =IFERROR($E41*SUMIF('Daily Log'!$CE$18:$CE$1017,$B41,'Daily Log'!$CF$18:$CF$1017),0) -> 0 | AI41: =IFERROR($E41*SUMIF('Daily Log'!$CH$18:$CH$1017,$B41,'Daily Log'!$CI$18:$CI$1017),0) -> 0 | AJ41: =IFERROR($E41*SUMIF('Daily Log'!$CK$18:$CK$1017,$B41,'Daily Log'!$CL$18:$CL$1017),0) -> 0 | AK41: =IFERROR($E41*SUMIF('Daily Log'!$CN$18:$CN$1017,$B41,'Daily Log'!$CO$18:$CO$1017),0) -> 0
B42: AA36 1306:DF WING | D42: APPETIZER | E42: 1 | F42: 4 | G42: =IFERROR($E42*SUMIF('Daily Log'!$B$18:$B$1017,$B42,'Daily Log'!$C$18:$C$1017),0) -> 0 | H42: =IFERROR($E42*SUMIF('Daily Log'!$E$18:$E$1017,$B42,'Daily Log'!$F$18:$F$1017),0) -> 0 | I42: =IFERROR($E42*SUMIF('Daily Log'!$H$18:$H$1017,$B42,'Daily Log'!$I$18:$I$1017),0) -> 0 | J42: =IFERROR($E42*SUMIF('Daily Log'!$K$18:$K$1017,$B42,'Daily Log'!$L$18:$L$1017),0) -> 0 | K42: =IFERROR($E42*SUMIF('Daily Log'!$N$18:$N$1017,$B42,'Daily Log'!$O$18:$O$1017),0) -> 0 | L42: =IFERROR($E42*SUMIF('Daily Log'!$Q$18:$Q$1017,$B42,'Daily Log'!$R$18:$R$1017),0) -> 0 | M42: =IFERROR($E42*SUMIF('Daily Log'!$T$18:$T$1017,$B42,'Daily Log'!$U$18:$U$1017),0) -> 0 | N42: =IFERROR($E42*SUMIF('Daily Log'!$W$18:$W$1017,$B42,'Daily Log'!$X$18:$X$1017),0) -> 1 | O42: =IFERROR($E42*SUMIF('Daily Log'!$Z$18:$Z$1017,$B42,'Daily Log'!$AA$18:$AA$1017),0) -> 0 | P42: =IFERROR($E42*SUMIF('Daily Log'!$AC$18:$AC$1017,$B42,'Daily Log'!$AD$18:$AD$1017),0) -> 0 | Q42: =IFERROR($E42*SUMIF('Daily Log'!$AF$18:$AF$1017,$B42,'Daily Log'!$AG$18:$AG$1017),0) -> 0 | R42: =IFERROR($E42*SUMIF('Daily Log'!$AI$18:$AI$1017,$B42,'Daily Log'!$AJ$18:$AJ$1017),0) -> 0 | S42: =IFERROR($E42*SUMIF('Daily Log'!$AL$18:$AL$1017,$B42,'Daily Log'!$AM$18:$AM$1017),0) -> 0 | T42: =IFERROR($E42*SUMIF('Daily Log'!$AO$18:$AO$1017,$B42,'Daily Log'!$AP$18:$AP$1017),0) -> 0 | U42: =IFERROR($E42*SUMIF('Daily Log'!$AR$18:$AR$1017,$B42,'Daily Log'!$AS$18:$AS$1017),0) -> 0 | V42: =IFERROR($E42*SUMIF('Daily Log'!$AU$18:$AU$1017,$B42,'Daily Log'!$AV$18:$AV$1017),0) -> 0 | W42: =IFERROR($E42*SUMIF('Daily Log'!$AX$18:$AX$1017,$B42,'Daily Log'!$AY$18:$AY$1017),0) -> 0 | X42: =IFERROR($E42*SUMIF('Daily Log'!$BA$18:$BA$1017,$B42,'Daily Log'!$BB$18:$BB$1017),0) -> 0 | Y42: =IFERROR($E42*SUMIF('Daily Log'!$BD$18:$BD$1017,$B42,'Daily Log'!$BE$18:$BE$1017),0) -> 0 | Z42: =IFERROR($E42*SUMIF('Daily Log'!$BG$18:$BG$1017,$B42,'Daily Log'!$BH$18:$BH$1017),0) -> 1 | AA42: =IFERROR($E42*SUMIF('Daily Log'!$BJ$18:$BJ$1017,$B42,'Daily Log'!$BK$18:$BK$1017),0) -> 0 | AB42: =IFERROR($E42*SUMIF('Daily Log'!$BM$18:$BM$1017,$B42,'Daily Log'!$BN$18:$BN$1017),0) -> 0 | AC42: =IFERROR($E42*SUMIF('Daily Log'!$BP$18:$BP$1017,$B42,'Daily Log'!$BQ$18:$BQ$1017),0) -> 0 | AD42: =IFERROR($E42*SUMIF('Daily Log'!$BS$18:$BS$1017,$B42,'Daily Log'!$BT$18:$BT$1017),0) -> 0 | AE42: =IFERROR($E42*SUMIF('Daily Log'!$BV$18:$BV$1017,$B42,'Daily Log'!$BW$18:$BW$1017),0) -> 1 | AF42: =IFERROR($E42*SUMIF('Daily Log'!$BY$18:$BY$1017,$B42,'Daily Log'!$BZ$18:$BZ$1017),0) -> 0 | AG42: =IFERROR($E42*SUMIF('Daily Log'!$CB$18:$CB$1017,$B42,'Daily Log'!$CC$18:$CC$1017),0) -> 0 | AH42: =IFERROR($E42*SUMIF('Daily Log'!$CE$18:$CE$1017,$B42,'Daily Log'!$CF$18:$CF$1017),0) -> 0 | AI42: =IFERROR($E42*SUMIF('Daily Log'!$CH$18:$CH$1017,$B42,'Daily Log'!$CI$18:$CI$1017),0) -> 0 | AJ42: =IFERROR($E42*SUMIF('Daily Log'!$CK$18:$CK$1017,$B42,'Daily Log'!$CL$18:$CL$1017),0) -> 1 | AK42: =IFERROR($E42*SUMIF('Daily Log'!$CN$18:$CN$1017,$B42,'Daily Log'!$CO$18:$CO$1017),0) -> 0
B43: AA37 1307:CALAMARI | D43: APPETIZER | E43: 1 | F43: 5 | G43: =IFERROR($E43*SUMIF('Daily Log'!$B$18:$B$1017,$B43,'Daily Log'!$C$18:$C$1017),0) -> 1 | H43: =IFERROR($E43*SUMIF('Daily Log'!$E$18:$E$1017,$B43,'Daily Log'!$F$18:$F$1017),0) -> 0 | I43: =IFERROR($E43*SUMIF('Daily Log'!$H$18:$H$1017,$B43,'Daily Log'!$I$18:$I$1017),0) -> 0 | J43: =IFERROR($E43*SUMIF('Daily Log'!$K$18:$K$1017,$B43,'Daily Log'!$L$18:$L$1017),0) -> 0 | K43: =IFERROR($E43*SUMIF('Daily Log'!$N$18:$N$1017,$B43,'Daily Log'!$O$18:$O$1017),0) -> 0 | L43: =IFERROR($E43*SUMIF('Daily Log'!$Q$18:$Q$1017,$B43,'Daily Log'!$R$18:$R$1017),0) -> 0 | M43: =IFERROR($E43*SUMIF('Daily Log'!$T$18:$T$1017,$B43,'Daily Log'!$U$18:$U$1017),0) -> 0 | N43: =IFERROR($E43*SUMIF('Daily Log'!$W$18:$W$1017,$B43,'Daily Log'!$X$18:$X$1017),0) -> 0 | O43: =IFERROR($E43*SUMIF('Daily Log'!$Z$18:$Z$1017,$B43,'Daily Log'!$AA$18:$AA$1017),0) -> 0 | P43: =IFERROR($E43*SUMIF('Daily Log'!$AC$18:$AC$1017,$B43,'Daily Log'!$AD$18:$AD$1017),0) -> 0 | Q43: =IFERROR($E43*SUMIF('Daily Log'!$AF$18:$AF$1017,$B43,'Daily Log'!$AG$18:$AG$1017),0) -> 0 | R43: =IFERROR($E43*SUMIF('Daily Log'!$AI$18:$AI$1017,$B43,'Daily Log'!$AJ$18:$AJ$1017),0) -> 0 | S43: =IFERROR($E43*SUMIF('Daily Log'!$AL$18:$AL$1017,$B43,'Daily Log'!$AM$18:$AM$1017),0) -> 0 | T43: =IFERROR($E43*SUMIF('Daily Log'!$AO$18:$AO$1017,$B43,'Daily Log'!$AP$18:$AP$1017),0) -> 0 | U43: =IFERROR($E43*SUMIF('Daily Log'!$AR$18:$AR$1017,$B43,'Daily Log'!$AS$18:$AS$1017),0) -> 1 | V43: =IFERROR($E43*SUMIF('Daily Log'!$AU$18:$AU$1017,$B43,'Daily Log'!$AV$18:$AV$1017),0) -> 1 | W43: =IFERROR($E43*SUMIF('Daily Log'!$AX$18:$AX$1017,$B43,'Daily Log'!$AY$18:$AY$1017),0) -> 0 | X43: =IFERROR($E43*SUMIF('Daily Log'!$BA$18:$BA$1017,$B43,'Daily Log'!$BB$18:$BB$1017),0) -> 0 | Y43: =IFERROR($E43*SUMIF('Daily Log'!$BD$18:$BD$1017,$B43,'Daily Log'!$BE$18:$BE$1017),0) -> 0 | Z43: =IFERROR($E43*SUMIF('Daily Log'!$BG$18:$BG$1017,$B43,'Daily Log'!$BH$18:$BH$1017),0) -> 0 | AA43: =IFERROR($E43*SUMIF('Daily Log'!$BJ$18:$BJ$1017,$B43,'Daily Log'!$BK$18:$BK$1017),0) -> 0 | AB43: =IFERROR($E43*SUMIF('Daily Log'!$BM$18:$BM$1017,$B43,'Daily Log'!$BN$18:$BN$1017),0) -> 0 | AC43: =IFERROR($E43*SUMIF('Daily Log'!$BP$18:$BP$1017,$B43,'Daily Log'!$BQ$18:$BQ$1017),0) -> 0 | AD43: =IFERROR($E43*SUMIF('Daily Log'!$BS$18:$BS$1017,$B43,'Daily Log'!$BT$18:$BT$1017),0) -> 0 | AE43: =IFERROR($E43*SUMIF('Daily Log'!$BV$18:$BV$1017,$B43,'Daily Log'!$BW$18:$BW$1017),0) -> 1 | AF43: =IFERROR($E43*SUMIF('Daily Log'!$BY$18:$BY$1017,$B43,'Daily Log'!$BZ$18:$BZ$1017),0) -> 0 | AG43: =IFERROR($E43*SUMIF('Daily Log'!$CB$18:$CB$1017,$B43,'Daily Log'!$CC$18:$CC$1017),0) -> 0 | AH43: =IFERROR($E43*SUMIF('Daily Log'!$CE$18:$CE$1017,$B43,'Daily Log'!$CF$18:$CF$1017),0) -> 0 | AI43: =IFERROR($E43*SUMIF('Daily Log'!$CH$18:$CH$1017,$B43,'Daily Log'!$CI$18:$CI$1017),0) -> 0 | AJ43: =IFERROR($E43*SUMIF('Daily Log'!$CK$18:$CK$1017,$B43,'Daily Log'!$CL$18:$CL$1017),0) -> 1 | AK43: =IFERROR($E43*SUMIF('Daily Log'!$CN$18:$CN$1017,$B43,'Daily Log'!$CO$18:$CO$1017),0) -> 0
B44: AA38 1308:MC RING | D44: APPETIZER | E44: 1 | F44: 5 | G44: =IFERROR($E44*SUMIF('Daily Log'!$B$18:$B$1017,$B44,'Daily Log'!$C$18:$C$1017),0) -> 0 | H44: =IFERROR($E44*SUMIF('Daily Log'!$E$18:$E$1017,$B44,'Daily Log'!$F$18:$F$1017),0) -> 0 | I44: =IFERROR($E44*SUMIF('Daily Log'!$H$18:$H$1017,$B44,'Daily Log'!$I$18:$I$1017),0) -> 0 | J44: =IFERROR($E44*SUMIF('Daily Log'!$K$18:$K$1017,$B44,'Daily Log'!$L$18:$L$1017),0) -> 0 | K44: =IFERROR($E44*SUMIF('Daily Log'!$N$18:$N$1017,$B44,'Daily Log'!$O$18:$O$1017),0) -> 0 | L44: =IFERROR($E44*SUMIF('Daily Log'!$Q$18:$Q$1017,$B44,'Daily Log'!$R$18:$R$1017),0) -> 0 | M44: =IFERROR($E44*SUMIF('Daily Log'!$T$18:$T$1017,$B44,'Daily Log'!$U$18:$U$1017),0) -> 0 | N44: =IFERROR($E44*SUMIF('Daily Log'!$W$18:$W$1017,$B44,'Daily Log'!$X$18:$X$1017),0) -> 0 | O44: =IFERROR($E44*SUMIF('Daily Log'!$Z$18:$Z$1017,$B44,'Daily Log'!$AA$18:$AA$1017),0) -> 0 | P44: =IFERROR($E44*SUMIF('Daily Log'!$AC$18:$AC$1017,$B44,'Daily Log'!$AD$18:$AD$1017),0) -> 1 | Q44: =IFERROR($E44*SUMIF('Daily Log'!$AF$18:$AF$1017,$B44,'Daily Log'!$AG$18:$AG$1017),0) -> 0 | R44: =IFERROR($E44*SUMIF('Daily Log'!$AI$18:$AI$1017,$B44,'Daily Log'!$AJ$18:$AJ$1017),0) -> 0 | S44: =IFERROR($E44*SUMIF('Daily Log'!$AL$18:$AL$1017,$B44,'Daily Log'!$AM$18:$AM$1017),0) -> 1 | T44: =IFERROR($E44*SUMIF('Daily Log'!$AO$18:$AO$1017,$B44,'Daily Log'!$AP$18:$AP$1017),0) -> 1 | U44: =IFERROR($E44*SUMIF('Daily Log'!$AR$18:$AR$1017,$B44,'Daily Log'!$AS$18:$AS$1017),0) -> 0 | V44: =IFERROR($E44*SUMIF('Daily Log'!$AU$18:$AU$1017,$B44,'Daily Log'!$AV$18:$AV$1017),0) -> 1 | W44: =IFERROR($E44*SUMIF('Daily Log'!$AX$18:$AX$1017,$B44,'Daily Log'!$AY$18:$AY$1017),0) -> 0 | X44: =IFERROR($E44*SUMIF('Daily Log'!$BA$18:$BA$1017,$B44,'Daily Log'!$BB$18:$BB$1017),0) -> 0 | Y44: =IFERROR($E44*SUMIF('Daily Log'!$BD$18:$BD$1017,$B44,'Daily Log'!$BE$18:$BE$1017),0) -> 1 | Z44: =IFERROR($E44*SUMIF('Daily Log'!$BG$18:$BG$1017,$B44,'Daily Log'!$BH$18:$BH$1017),0) -> 0 | AA44: =IFERROR($E44*SUMIF('Daily Log'!$BJ$18:$BJ$1017,$B44,'Daily Log'!$BK$18:$BK$1017),0) -> 0 | AB44: =IFERROR($E44*SUMIF('Daily Log'!$BM$18:$BM$1017,$B44,'Daily Log'!$BN$18:$BN$1017),0) -> 0 | AC44: =IFERROR($E44*SUMIF('Daily Log'!$BP$18:$BP$1017,$B44,'Daily Log'!$BQ$18:$BQ$1017),0) -> 0 | AD44: =IFERROR($E44*SUMIF('Daily Log'!$BS$18:$BS$1017,$B44,'Daily Log'!$BT$18:$BT$1017),0) -> 0 | AE44: =IFERROR($E44*SUMIF('Daily Log'!$BV$18:$BV$1017,$B44,'Daily Log'!$BW$18:$BW$1017),0) -> 0 | AF44: =IFERROR($E44*SUMIF('Daily Log'!$BY$18:$BY$1017,$B44,'Daily Log'!$BZ$18:$BZ$1017),0) -> 0 | AG44: =IFERROR($E44*SUMIF('Daily Log'!$CB$18:$CB$1017,$B44,'Daily Log'!$CC$18:$CC$1017),0) -> 0 | AH44: =IFERROR($E44*SUMIF('Daily Log'!$CE$18:$CE$1017,$B44,'Daily Log'!$CF$18:$CF$1017),0) -> 0 | AI44: =IFERROR($E44*SUMIF('Daily Log'!$CH$18:$CH$1017,$B44,'Daily Log'!$CI$18:$CI$1017),0) -> 0 | AJ44: =IFERROR($E44*SUMIF('Daily Log'!$CK$18:$CK$1017,$B44,'Daily Log'!$CL$18:$CL$1017),0) -> 0 | AK44: =IFERROR($E44*SUMIF('Daily Log'!$CN$18:$CN$1017,$B44,'Daily Log'!$CO$18:$CO$1017),0) -> 0
B45: AA39 1309:MC S.FRIES | D45: APPETIZER | E45: 1 | F45: 13 | G45: =IFERROR($E45*SUMIF('Daily Log'!$B$18:$B$1017,$B45,'Daily Log'!$C$18:$C$1017),0) -> 0 | H45: =IFERROR($E45*SUMIF('Daily Log'!$E$18:$E$1017,$B45,'Daily Log'!$F$18:$F$1017),0) -> 0 | I45: =IFERROR($E45*SUMIF('Daily Log'!$H$18:$H$1017,$B45,'Daily Log'!$I$18:$I$1017),0) -> 1 | J45: =IFERROR($E45*SUMIF('Daily Log'!$K$18:$K$1017,$B45,'Daily Log'!$L$18:$L$1017),0) -> 0 | K45: =IFERROR($E45*SUMIF('Daily Log'!$N$18:$N$1017,$B45,'Daily Log'!$O$18:$O$1017),0) -> 2 | L45: =IFERROR($E45*SUMIF('Daily Log'!$Q$18:$Q$1017,$B45,'Daily Log'!$R$18:$R$1017),0) -> 2 | M45: =IFERROR($E45*SUMIF('Daily Log'!$T$18:$T$1017,$B45,'Daily Log'!$U$18:$U$1017),0) -> 0 | N45: =IFERROR($E45*SUMIF('Daily Log'!$W$18:$W$1017,$B45,'Daily Log'!$X$18:$X$1017),0) -> 1 | O45: =IFERROR($E45*SUMIF('Daily Log'!$Z$18:$Z$1017,$B45,'Daily Log'!$AA$18:$AA$1017),0) -> 0 | P45: =IFERROR($E45*SUMIF('Daily Log'!$AC$18:$AC$1017,$B45,'Daily Log'!$AD$18:$AD$1017),0) -> 0 | Q45: =IFERROR($E45*SUMIF('Daily Log'!$AF$18:$AF$1017,$B45,'Daily Log'!$AG$18:$AG$1017),0) -> 0 | R45: =IFERROR($E45*SUMIF('Daily Log'!$AI$18:$AI$1017,$B45,'Daily Log'!$AJ$18:$AJ$1017),0) -> 0 | S45: =IFERROR($E45*SUMIF('Daily Log'!$AL$18:$AL$1017,$B45,'Daily Log'!$AM$18:$AM$1017),0) -> 1 | T45: =IFERROR($E45*SUMIF('Daily Log'!$AO$18:$AO$1017,$B45,'Daily Log'!$AP$18:$AP$1017),0) -> 0 | U45: =IFERROR($E45*SUMIF('Daily Log'!$AR$18:$AR$1017,$B45,'Daily Log'!$AS$18:$AS$1017),0) -> 0 | V45: =IFERROR($E45*SUMIF('Daily Log'!$AU$18:$AU$1017,$B45,'Daily Log'!$AV$18:$AV$1017),0) -> 0 | W45: =IFERROR($E45*SUMIF('Daily Log'!$AX$18:$AX$1017,$B45,'Daily Log'!$AY$18:$AY$1017),0) -> 0 | X45: =IFERROR($E45*SUMIF('Daily Log'!$BA$18:$BA$1017,$B45,'Daily Log'!$BB$18:$BB$1017),0) -> 0 | Y45: =IFERROR($E45*SUMIF('Daily Log'!$BD$18:$BD$1017,$B45,'Daily Log'!$BE$18:$BE$1017),0) -> 0 | Z45: =IFERROR($E45*SUMIF('Daily Log'!$BG$18:$BG$1017,$B45,'Daily Log'!$BH$18:$BH$1017),0) -> 0 | AA45: =IFERROR($E45*SUMIF('Daily Log'!$BJ$18:$BJ$1017,$B45,'Daily Log'!$BK$18:$BK$1017),0) -> 0 | AB45: =IFERROR($E45*SUMIF('Daily Log'!$BM$18:$BM$1017,$B45,'Daily Log'!$BN$18:$BN$1017),0) -> 1 | AC45: =IFERROR($E45*SUMIF('Daily Log'!$BP$18:$BP$1017,$B45,'Daily Log'!$BQ$18:$BQ$1017),0) -> 1 | AD45: =IFERROR($E45*SUMIF('Daily Log'!$BS$18:$BS$1017,$B45,'Daily Log'!$BT$18:$BT$1017),0) -> 0 | AE45: =IFERROR($E45*SUMIF('Daily Log'!$BV$18:$BV$1017,$B45,'Daily Log'!$BW$18:$BW$1017),0) -> 0 | AF45: =IFERROR($E45*SUMIF('Daily Log'!$BY$18:$BY$1017,$B45,'Daily Log'!$BZ$18:$BZ$1017),0) -> 1 | AG45: =IFERROR($E45*SUMIF('Daily Log'!$CB$18:$CB$1017,$B45,'Daily Log'!$CC$18:$CC$1017),0) -> 0 | AH45: =IFERROR($E45*SUMIF('Daily Log'!$CE$18:$CE$1017,$B45,'Daily Log'!$CF$18:$CF$1017),0) -> 1 | AI45: =IFERROR($E45*SUMIF('Daily Log'!$CH$18:$CH$1017,$B45,'Daily Log'!$CI$18:$CI$1017),0) -> 1 | AJ45: =IFERROR($E45*SUMIF('Daily Log'!$CK$18:$CK$1017,$B45,'Daily Log'!$CL$18:$CL$1017),0) -> 1 | AK45: =IFERROR($E45*SUMIF('Daily Log'!$CN$18:$CN$1017,$B45,'Daily Log'!$CO$18:$CO$1017),0) -> 0
B46: AA40 1310:MC HP SMIL | D46: APPETIZER | E46: 1 | F46: 1 | G46: =IFERROR($E46*SUMIF('Daily Log'!$B$18:$B$1017,$B46,'Daily Log'!$C$18:$C$1017),0) -> 0 | H46: =IFERROR($E46*SUMIF('Daily Log'!$E$18:$E$1017,$B46,'Daily Log'!$F$18:$F$1017),0) -> 0 | I46: =IFERROR($E46*SUMIF('Daily Log'!$H$18:$H$1017,$B46,'Daily Log'!$I$18:$I$1017),0) -> 0 | J46: =IFERROR($E46*SUMIF('Daily Log'!$K$18:$K$1017,$B46,'Daily Log'!$L$18:$L$1017),0) -> 0 | K46: =IFERROR($E46*SUMIF('Daily Log'!$N$18:$N$1017,$B46,'Daily Log'!$O$18:$O$1017),0) -> 0 | L46: =IFERROR($E46*SUMIF('Daily Log'!$Q$18:$Q$1017,$B46,'Daily Log'!$R$18:$R$1017),0) -> 0 | M46: =IFERROR($E46*SUMIF('Daily Log'!$T$18:$T$1017,$B46,'Daily Log'!$U$18:$U$1017),0) -> 0 | N46: =IFERROR($E46*SUMIF('Daily Log'!$W$18:$W$1017,$B46,'Daily Log'!$X$18:$X$1017),0) -> 0 | O46: =IFERROR($E46*SUMIF('Daily Log'!$Z$18:$Z$1017,$B46,'Daily Log'!$AA$18:$AA$1017),0) -> 0 | P46: =IFERROR($E46*SUMIF('Daily Log'!$AC$18:$AC$1017,$B46,'Daily Log'!$AD$18:$AD$1017),0) -> 0 | Q46: =IFERROR($E46*SUMIF('Daily Log'!$AF$18:$AF$1017,$B46,'Daily Log'!$AG$18:$AG$1017),0) -> 0 | R46: =IFERROR($E46*SUMIF('Daily Log'!$AI$18:$AI$1017,$B46,'Daily Log'!$AJ$18:$AJ$1017),0) -> 0 | S46: =IFERROR($E46*SUMIF('Daily Log'!$AL$18:$AL$1017,$B46,'Daily Log'!$AM$18:$AM$1017),0) -> 0 | T46: =IFERROR($E46*SUMIF('Daily Log'!$AO$18:$AO$1017,$B46,'Daily Log'!$AP$18:$AP$1017),0) -> 0 | U46: =IFERROR($E46*SUMIF('Daily Log'!$AR$18:$AR$1017,$B46,'Daily Log'!$AS$18:$AS$1017),0) -> 0 | V46: =IFERROR($E46*SUMIF('Daily Log'!$AU$18:$AU$1017,$B46,'Daily Log'!$AV$18:$AV$1017),0) -> 0 | W46: =IFERROR($E46*SUMIF('Daily Log'!$AX$18:$AX$1017,$B46,'Daily Log'!$AY$18:$AY$1017),0) -> 0 | X46: =IFERROR($E46*SUMIF('Daily Log'!$BA$18:$BA$1017,$B46,'Daily Log'!$BB$18:$BB$1017),0) -> 0 | Y46: =IFERROR($E46*SUMIF('Daily Log'!$BD$18:$BD$1017,$B46,'Daily Log'!$BE$18:$BE$1017),0) -> 1 | Z46: =IFERROR($E46*SUMIF('Daily Log'!$BG$18:$BG$1017,$B46,'Daily Log'!$BH$18:$BH$1017),0) -> 0 | AA46: =IFERROR($E46*SUMIF('Daily Log'!$BJ$18:$BJ$1017,$B46,'Daily Log'!$BK$18:$BK$1017),0) -> 0 | AB46: =IFERROR($E46*SUMIF('Daily Log'!$BM$18:$BM$1017,$B46,'Daily Log'!$BN$18:$BN$1017),0) -> 0 | AC46: =IFERROR($E46*SUMIF('Daily Log'!$BP$18:$BP$1017,$B46,'Daily Log'!$BQ$18:$BQ$1017),0) -> 0 | AD46: =IFERROR($E46*SUMIF('Daily Log'!$BS$18:$BS$1017,$B46,'Daily Log'!$BT$18:$BT$1017),0) -> 0 | AE46: =IFERROR($E46*SUMIF('Daily Log'!$BV$18:$BV$1017,$B46,'Daily Log'!$BW$18:$BW$1017),0) -> 0 | AF46: =IFERROR($E46*SUMIF('Daily Log'!$BY$18:$BY$1017,$B46,'Daily Log'!$BZ$18:$BZ$1017),0) -> 0 | AG46: =IFERROR($E46*SUMIF('Daily Log'!$CB$18:$CB$1017,$B46,'Daily Log'!$CC$18:$CC$1017),0) -> 0 | AH46: =IFERROR($E46*SUMIF('Daily Log'!$CE$18:$CE$1017,$B46,'Daily Log'!$CF$18:$CF$1017),0) -> 0 | AI46: =IFERROR($E46*SUMIF('Daily Log'!$CH$18:$CH$1017,$B46,'Daily Log'!$CI$18:$CI$1017),0) -> 0 | AJ46: =IFERROR($E46*SUMIF('Daily Log'!$CK$18:$CK$1017,$B46,'Daily Log'!$CL$18:$CL$1017),0) -> 0 | AK46: =IFERROR($E46*SUMIF('Daily Log'!$CN$18:$CN$1017,$B46,'Daily Log'!$CO$18:$CO$1017),0) -> 0
B47: AA41 1311:MC HSH BRW | D47: APPETIZER | E47: 1 | F47: 10 | G47: =IFERROR($E47*SUMIF('Daily Log'!$B$18:$B$1017,$B47,'Daily Log'!$C$18:$C$1017),0) -> 0 | H47: =IFERROR($E47*SUMIF('Daily Log'!$E$18:$E$1017,$B47,'Daily Log'!$F$18:$F$1017),0) -> 0 | I47: =IFERROR($E47*SUMIF('Daily Log'!$H$18:$H$1017,$B47,'Daily Log'!$I$18:$I$1017),0) -> 0 | J47: =IFERROR($E47*SUMIF('Daily Log'!$K$18:$K$1017,$B47,'Daily Log'!$L$18:$L$1017),0) -> 0 | K47: =IFERROR($E47*SUMIF('Daily Log'!$N$18:$N$1017,$B47,'Daily Log'!$O$18:$O$1017),0) -> 0 | L47: =IFERROR($E47*SUMIF('Daily Log'!$Q$18:$Q$1017,$B47,'Daily Log'!$R$18:$R$1017),0) -> 0 | M47: =IFERROR($E47*SUMIF('Daily Log'!$T$18:$T$1017,$B47,'Daily Log'!$U$18:$U$1017),0) -> 2 | N47: =IFERROR($E47*SUMIF('Daily Log'!$W$18:$W$1017,$B47,'Daily Log'!$X$18:$X$1017),0) -> 1 | O47: =IFERROR($E47*SUMIF('Daily Log'!$Z$18:$Z$1017,$B47,'Daily Log'!$AA$18:$AA$1017),0) -> 0 | P47: =IFERROR($E47*SUMIF('Daily Log'!$AC$18:$AC$1017,$B47,'Daily Log'!$AD$18:$AD$1017),0) -> 1 | Q47: =IFERROR($E47*SUMIF('Daily Log'!$AF$18:$AF$1017,$B47,'Daily Log'!$AG$18:$AG$1017),0) -> 0 | R47: =IFERROR($E47*SUMIF('Daily Log'!$AI$18:$AI$1017,$B47,'Daily Log'!$AJ$18:$AJ$1017),0) -> 0 | S47: =IFERROR($E47*SUMIF('Daily Log'!$AL$18:$AL$1017,$B47,'Daily Log'!$AM$18:$AM$1017),0) -> 0 | T47: =IFERROR($E47*SUMIF('Daily Log'!$AO$18:$AO$1017,$B47,'Daily Log'!$AP$18:$AP$1017),0) -> 0 | U47: =IFERROR($E47*SUMIF('Daily Log'!$AR$18:$AR$1017,$B47,'Daily Log'!$AS$18:$AS$1017),0) -> 0 | V47: =IFERROR($E47*SUMIF('Daily Log'!$AU$18:$AU$1017,$B47,'Daily Log'!$AV$18:$AV$1017),0) -> 0 | W47: =IFERROR($E47*SUMIF('Daily Log'!$AX$18:$AX$1017,$B47,'Daily Log'!$AY$18:$AY$1017),0) -> 1 | X47: =IFERROR($E47*SUMIF('Daily Log'!$BA$18:$BA$1017,$B47,'Daily Log'!$BB$18:$BB$1017),0) -> 0 | Y47: =IFERROR($E47*SUMIF('Daily Log'!$BD$18:$BD$1017,$B47,'Daily Log'!$BE$18:$BE$1017),0) -> 1 | Z47: =IFERROR($E47*SUMIF('Daily Log'!$BG$18:$BG$1017,$B47,'Daily Log'!$BH$18:$BH$1017),0) -> 1 | AA47: =IFERROR($E47*SUMIF('Daily Log'!$BJ$18:$BJ$1017,$B47,'Daily Log'!$BK$18:$BK$1017),0) -> 0 | AB47: =IFERROR($E47*SUMIF('Daily Log'!$BM$18:$BM$1017,$B47,'Daily Log'!$BN$18:$BN$1017),0) -> 1 | AC47: =IFERROR($E47*SUMIF('Daily Log'!$BP$18:$BP$1017,$B47,'Daily Log'!$BQ$18:$BQ$1017),0) -> 0 | AD47: =IFERROR($E47*SUMIF('Daily Log'!$BS$18:$BS$1017,$B47,'Daily Log'!$BT$18:$BT$1017),0) -> 0 | AE47: =IFERROR($E47*SUMIF('Daily Log'!$BV$18:$BV$1017,$B47,'Daily Log'!$BW$18:$BW$1017),0) -> 1 | AF47: =IFERROR($E47*SUMIF('Daily Log'!$BY$18:$BY$1017,$B47,'Daily Log'!$BZ$18:$BZ$1017),0) -> 1 | AG47: =IFERROR($E47*SUMIF('Daily Log'!$CB$18:$CB$1017,$B47,'Daily Log'!$CC$18:$CC$1017),0) -> 0 | AH47: =IFERROR($E47*SUMIF('Daily Log'!$CE$18:$CE$1017,$B47,'Daily Log'!$CF$18:$CF$1017),0) -> 0 | AI47: =IFERROR($E47*SUMIF('Daily Log'!$CH$18:$CH$1017,$B47,'Daily Log'!$CI$18:$CI$1017),0) -> 0 | AJ47: =IFERROR($E47*SUMIF('Daily Log'!$CK$18:$CK$1017,$B47,'Daily Log'!$CL$18:$CL$1017),0) -> 0 | AK47: =IFERROR($E47*SUMIF('Daily Log'!$CN$18:$CN$1017,$B47,'Daily Log'!$CO$18:$CO$1017),0) -> 0
B48: AF01 91201:SFD STICK | D48: APPETIZER FREE | E48: 1 | F48: 2 | G48: =IFERROR($E48*SUMIF('Daily Log'!$B$18:$B$1017,$B48,'Daily Log'!$C$18:$C$1017),0) -> 0 | H48: =IFERROR($E48*SUMIF('Daily Log'!$E$18:$E$1017,$B48,'Daily Log'!$F$18:$F$1017),0) -> 0 | I48: =IFERROR($E48*SUMIF('Daily Log'!$H$18:$H$1017,$B48,'Daily Log'!$I$18:$I$1017),0) -> 1 | J48: =IFERROR($E48*SUMIF('Daily Log'!$K$18:$K$1017,$B48,'Daily Log'!$L$18:$L$1017),0) -> 0 | K48: =IFERROR($E48*SUMIF('Daily Log'!$N$18:$N$1017,$B48,'Daily Log'!$O$18:$O$1017),0) -> 0 | L48: =IFERROR($E48*SUMIF('Daily Log'!$Q$18:$Q$1017,$B48,'Daily Log'!$R$18:$R$1017),0) -> 0 | M48: =IFERROR($E48*SUMIF('Daily Log'!$T$18:$T$1017,$B48,'Daily Log'!$U$18:$U$1017),0) -> 0 | N48: =IFERROR($E48*SUMIF('Daily Log'!$W$18:$W$1017,$B48,'Daily Log'!$X$18:$X$1017),0) -> 0 | O48: =IFERROR($E48*SUMIF('Daily Log'!$Z$18:$Z$1017,$B48,'Daily Log'!$AA$18:$AA$1017),0) -> 0 | P48: =IFERROR($E48*SUMIF('Daily Log'!$AC$18:$AC$1017,$B48,'Daily Log'!$AD$18:$AD$1017),0) -> 0 | Q48: =IFERROR($E48*SUMIF('Daily Log'!$AF$18:$AF$1017,$B48,'Daily Log'!$AG$18:$AG$1017),0) -> 0 | R48: =IFERROR($E48*SUMIF('Daily Log'!$AI$18:$AI$1017,$B48,'Daily Log'!$AJ$18:$AJ$1017),0) -> 0 | S48: =IFERROR($E48*SUMIF('Daily Log'!$AL$18:$AL$1017,$B48,'Daily Log'!$AM$18:$AM$1017),0) -> 0 | T48: =IFERROR($E48*SUMIF('Daily Log'!$AO$18:$AO$1017,$B48,'Daily Log'!$AP$18:$AP$1017),0) -> 0 | U48: =IFERROR($E48*SUMIF('Daily Log'!$AR$18:$AR$1017,$B48,'Daily Log'!$AS$18:$AS$1017),0) -> 0 | V48: =IFERROR($E48*SUMIF('Daily Log'!$AU$18:$AU$1017,$B48,'Daily Log'!$AV$18:$AV$1017),0) -> 0 | W48: =IFERROR($E48*SUMIF('Daily Log'!$AX$18:$AX$1017,$B48,'Daily Log'!$AY$18:$AY$1017),0) -> 0 | X48: =IFERROR($E48*SUMIF('Daily Log'!$BA$18:$BA$1017,$B48,'Daily Log'!$BB$18:$BB$1017),0) -> 0 | Y48: =IFERROR($E48*SUMIF('Daily Log'!$BD$18:$BD$1017,$B48,'Daily Log'!$BE$18:$BE$1017),0) -> 0 | Z48: =IFERROR($E48*SUMIF('Daily Log'!$BG$18:$BG$1017,$B48,'Daily Log'!$BH$18:$BH$1017),0) -> 0 | AA48: =IFERROR($E48*SUMIF('Daily Log'!$BJ$18:$BJ$1017,$B48,'Daily Log'!$BK$18:$BK$1017),0) -> 0 | AB48: =IFERROR($E48*SUMIF('Daily Log'!$BM$18:$BM$1017,$B48,'Daily Log'!$BN$18:$BN$1017),0) -> 0 | AC48: =IFERROR($E48*SUMIF('Daily Log'!$BP$18:$BP$1017,$B48,'Daily Log'!$BQ$18:$BQ$1017),0) -> 1 | AD48: =IFERROR($E48*SUMIF('Daily Log'!$BS$18:$BS$1017,$B48,'Daily Log'!$BT$18:$BT$1017),0) -> 0 | AE48: =IFERROR($E48*SUMIF('Daily Log'!$BV$18:$BV$1017,$B48,'Daily Log'!$BW$18:$BW$1017),0) -> 0 | AF48: =IFERROR($E48*SUMIF('Daily Log'!$BY$18:$BY$1017,$B48,'Daily Log'!$BZ$18:$BZ$1017),0) -> 0 | AG48: =IFERROR($E48*SUMIF('Daily Log'!$CB$18:$CB$1017,$B48,'Daily Log'!$CC$18:$CC$1017),0) -> 0 | AH48: =IFERROR($E48*SUMIF('Daily Log'!$CE$18:$CE$1017,$B48,'Daily Log'!$CF$18:$CF$1017),0) -> 0 | AI48: =IFERROR($E48*SUMIF('Daily Log'!$CH$18:$CH$1017,$B48,'Daily Log'!$CI$18:$CI$1017),0) -> 0 | AJ48: =IFERROR($E48*SUMIF('Daily Log'!$CK$18:$CK$1017,$B48,'Daily Log'!$CL$18:$CL$1017),0) -> 0 | AK48: =IFERROR($E48*SUMIF('Daily Log'!$CN$18:$CN$1017,$B48,'Daily Log'!$CO$18:$CO$1017),0) -> 0
B49: AF02 91202:FREN FRIES | D49: APPETIZER FREE | E49: 1 | F49: 22 | G49: =IFERROR($E49*SUMIF('Daily Log'!$B$18:$B$1017,$B49,'Daily Log'!$C$18:$C$1017),0) -> 0 | H49: =IFERROR($E49*SUMIF('Daily Log'!$E$18:$E$1017,$B49,'Daily Log'!$F$18:$F$1017),0) -> 0 | I49: =IFERROR($E49*SUMIF('Daily Log'!$H$18:$H$1017,$B49,'Daily Log'!$I$18:$I$1017),0) -> 0 | J49: =IFERROR($E49*SUMIF('Daily Log'!$K$18:$K$1017,$B49,'Daily Log'!$L$18:$L$1017),0) -> 4 | K49: =IFERROR($E49*SUMIF('Daily Log'!$N$18:$N$1017,$B49,'Daily Log'!$O$18:$O$1017),0) -> 1 | L49: =IFERROR($E49*SUMIF('Daily Log'!$Q$18:$Q$1017,$B49,'Daily Log'!$R$18:$R$1017),0) -> 0 | M49: =IFERROR($E49*SUMIF('Daily Log'!$T$18:$T$1017,$B49,'Daily Log'!$U$18:$U$1017),0) -> 1 | N49: =IFERROR($E49*SUMIF('Daily Log'!$W$18:$W$1017,$B49,'Daily Log'!$X$18:$X$1017),0) -> 0 | O49: =IFERROR($E49*SUMIF('Daily Log'!$Z$18:$Z$1017,$B49,'Daily Log'!$AA$18:$AA$1017),0) -> 0 | P49: =IFERROR($E49*SUMIF('Daily Log'!$AC$18:$AC$1017,$B49,'Daily Log'!$AD$18:$AD$1017),0) -> 0 | Q49: =IFERROR($E49*SUMIF('Daily Log'!$AF$18:$AF$1017,$B49,'Daily Log'!$AG$18:$AG$1017),0) -> 1 | R49: =IFERROR($E49*SUMIF('Daily Log'!$AI$18:$AI$1017,$B49,'Daily Log'!$AJ$18:$AJ$1017),0) -> 1 | S49: =IFERROR($E49*SUMIF('Daily Log'!$AL$18:$AL$1017,$B49,'Daily Log'!$AM$18:$AM$1017),0) -> 1 | T49: =IFERROR($E49*SUMIF('Daily Log'!$AO$18:$AO$1017,$B49,'Daily Log'!$AP$18:$AP$1017),0) -> 0 | U49: =IFERROR($E49*SUMIF('Daily Log'!$AR$18:$AR$1017,$B49,'Daily Log'!$AS$18:$AS$1017),0) -> 0 | V49: =IFERROR($E49*SUMIF('Daily Log'!$AU$18:$AU$1017,$B49,'Daily Log'!$AV$18:$AV$1017),0) -> 0 | W49: =IFERROR($E49*SUMIF('Daily Log'!$AX$18:$AX$1017,$B49,'Daily Log'!$AY$18:$AY$1017),0) -> 1 | X49: =IFERROR($E49*SUMIF('Daily Log'!$BA$18:$BA$1017,$B49,'Daily Log'!$BB$18:$BB$1017),0) -> 0 | Y49: =IFERROR($E49*SUMIF('Daily Log'!$BD$18:$BD$1017,$B49,'Daily Log'!$BE$18:$BE$1017),0) -> 0 | Z49: =IFERROR($E49*SUMIF('Daily Log'!$BG$18:$BG$1017,$B49,'Daily Log'!$BH$18:$BH$1017),0) -> 0 | AA49: =IFERROR($E49*SUMIF('Daily Log'!$BJ$18:$BJ$1017,$B49,'Daily Log'!$BK$18:$BK$1017),0) -> 1 | AB49: =IFERROR($E49*SUMIF('Daily Log'!$BM$18:$BM$1017,$B49,'Daily Log'!$BN$18:$BN$1017),0) -> 1 | AC49: =IFERROR($E49*SUMIF('Daily Log'!$BP$18:$BP$1017,$B49,'Daily Log'!$BQ$18:$BQ$1017),0) -> 0 | AD49: =IFERROR($E49*SUMIF('Daily Log'!$BS$18:$BS$1017,$B49,'Daily Log'!$BT$18:$BT$1017),0) -> 0 | AE49: =IFERROR($E49*SUMIF('Daily Log'!$BV$18:$BV$1017,$B49,'Daily Log'!$BW$18:$BW$1017),0) -> 0 | AF49: =IFERROR($E49*SUMIF('Daily Log'!$BY$18:$BY$1017,$B49,'Daily Log'!$BZ$18:$BZ$1017),0) -> 1 | AG49: =IFERROR($E49*SUMIF('Daily Log'!$CB$18:$CB$1017,$B49,'Daily Log'!$CC$18:$CC$1017),0) -> 7 | AH49: =IFERROR($E49*SUMIF('Daily Log'!$CE$18:$CE$1017,$B49,'Daily Log'!$CF$18:$CF$1017),0) -> 2 | AI49: =IFERROR($E49*SUMIF('Daily Log'!$CH$18:$CH$1017,$B49,'Daily Log'!$CI$18:$CI$1017),0) -> 0 | AJ49: =IFERROR($E49*SUMIF('Daily Log'!$CK$18:$CK$1017,$B49,'Daily Log'!$CL$18:$CL$1017),0) -> 0 | AK49: =IFERROR($E49*SUMIF('Daily Log'!$CN$18:$CN$1017,$B49,'Daily Log'!$CO$18:$CO$1017),0) -> 0
B50: AF03 91203:GOLD MR | D50: APPETIZER FREE | E50: 1 | F50: 6 | G50: =IFERROR($E50*SUMIF('Daily Log'!$B$18:$B$1017,$B50,'Daily Log'!$C$18:$C$1017),0) -> 1 | H50: =IFERROR($E50*SUMIF('Daily Log'!$E$18:$E$1017,$B50,'Daily Log'!$F$18:$F$1017),0) -> 0 | I50: =IFERROR($E50*SUMIF('Daily Log'!$H$18:$H$1017,$B50,'Daily Log'!$I$18:$I$1017),0) -> 0 | J50: =IFERROR($E50*SUMIF('Daily Log'!$K$18:$K$1017,$B50,'Daily Log'!$L$18:$L$1017),0) -> 1 | K50: =IFERROR($E50*SUMIF('Daily Log'!$N$18:$N$1017,$B50,'Daily Log'!$O$18:$O$1017),0) -> 0 | L50: =IFERROR($E50*SUMIF('Daily Log'!$Q$18:$Q$1017,$B50,'Daily Log'!$R$18:$R$1017),0) -> 0 | M50: =IFERROR($E50*SUMIF('Daily Log'!$T$18:$T$1017,$B50,'Daily Log'!$U$18:$U$1017),0) -> 0 | N50: =IFERROR($E50*SUMIF('Daily Log'!$W$18:$W$1017,$B50,'Daily Log'!$X$18:$X$1017),0) -> 0 | O50: =IFERROR($E50*SUMIF('Daily Log'!$Z$18:$Z$1017,$B50,'Daily Log'!$AA$18:$AA$1017),0) -> 0 | P50: =IFERROR($E50*SUMIF('Daily Log'!$AC$18:$AC$1017,$B50,'Daily Log'!$AD$18:$AD$1017),0) -> 0 | Q50: =IFERROR($E50*SUMIF('Daily Log'!$AF$18:$AF$1017,$B50,'Daily Log'!$AG$18:$AG$1017),0) -> 0 | R50: =IFERROR($E50*SUMIF('Daily Log'!$AI$18:$AI$1017,$B50,'Daily Log'!$AJ$18:$AJ$1017),0) -> 1 | S50: =IFERROR($E50*SUMIF('Daily Log'!$AL$18:$AL$1017,$B50,'Daily Log'!$AM$18:$AM$1017),0) -> 0 | T50: =IFERROR($E50*SUMIF('Daily Log'!$AO$18:$AO$1017,$B50,'Daily Log'!$AP$18:$AP$1017),0) -> 0 | U50: =IFERROR($E50*SUMIF('Daily Log'!$AR$18:$AR$1017,$B50,'Daily Log'!$AS$18:$AS$1017),0) -> 0 | V50: =IFERROR($E50*SUMIF('Daily Log'!$AU$18:$AU$1017,$B50,'Daily Log'!$AV$18:$AV$1017),0) -> 1 | W50: =IFERROR($E50*SUMIF('Daily Log'!$AX$18:$AX$1017,$B50,'Daily Log'!$AY$18:$AY$1017),0) -> 0 | X50: =IFERROR($E50*SUMIF('Daily Log'!$BA$18:$BA$1017,$B50,'Daily Log'!$BB$18:$BB$1017),0) -> 0 | Y50: =IFERROR($E50*SUMIF('Daily Log'!$BD$18:$BD$1017,$B50,'Daily Log'!$BE$18:$BE$1017),0) -> 1 | Z50: =IFERROR($E50*SUMIF('Daily Log'!$BG$18:$BG$1017,$B50,'Daily Log'!$BH$18:$BH$1017),0) -> 0 | AA50: =IFERROR($E50*SUMIF('Daily Log'!$BJ$18:$BJ$1017,$B50,'Daily Log'!$BK$18:$BK$1017),0) -> 0 | AB50: =IFERROR($E50*SUMIF('Daily Log'!$BM$18:$BM$1017,$B50,'Daily Log'!$BN$18:$BN$1017),0) -> 0 | AC50: =IFERROR($E50*SUMIF('Daily Log'!$BP$18:$BP$1017,$B50,'Daily Log'!$BQ$18:$BQ$1017),0) -> 0 | AD50: =IFERROR($E50*SUMIF('Daily Log'!$BS$18:$BS$1017,$B50,'Daily Log'!$BT$18:$BT$1017),0) -> 0 | AE50: =IFERROR($E50*SUMIF('Daily Log'!$BV$18:$BV$1017,$B50,'Daily Log'!$BW$18:$BW$1017),0) -> 1 | AF50: =IFERROR($E50*SUMIF('Daily Log'!$BY$18:$BY$1017,$B50,'Daily Log'!$BZ$18:$BZ$1017),0) -> 0 | AG50: =IFERROR($E50*SUMIF('Daily Log'!$CB$18:$CB$1017,$B50,'Daily Log'!$CC$18:$CC$1017),0) -> 0 | AH50: =IFERROR($E50*SUMIF('Daily Log'!$CE$18:$CE$1017,$B50,'Daily Log'!$CF$18:$CF$1017),0) -> 0 | AI50: =IFERROR($E50*SUMIF('Daily Log'!$CH$18:$CH$1017,$B50,'Daily Log'!$CI$18:$CI$1017),0) -> 0 | AJ50: =IFERROR($E50*SUMIF('Daily Log'!$CK$18:$CK$1017,$B50,'Daily Log'!$CL$18:$CL$1017),0) -> 0 | AK50: =IFERROR($E50*SUMIF('Daily Log'!$CN$18:$CN$1017,$B50,'Daily Log'!$CO$18:$CO$1017),0) -> 0
B51: AF04 91204:FSH BALL | D51: APPETIZER FREE | E51: 1 | F51: 8 | G51: =IFERROR($E51*SUMIF('Daily Log'!$B$18:$B$1017,$B51,'Daily Log'!$C$18:$C$1017),0) -> 0 | H51: =IFERROR($E51*SUMIF('Daily Log'!$E$18:$E$1017,$B51,'Daily Log'!$F$18:$F$1017),0) -> 1 | I51: =IFERROR($E51*SUMIF('Daily Log'!$H$18:$H$1017,$B51,'Daily Log'!$I$18:$I$1017),0) -> 0 | J51: =IFERROR($E51*SUMIF('Daily Log'!$K$18:$K$1017,$B51,'Daily Log'!$L$18:$L$1017),0) -> 0 | K51: =IFERROR($E51*SUMIF('Daily Log'!$N$18:$N$1017,$B51,'Daily Log'!$O$18:$O$1017),0) -> 2 | L51: =IFERROR($E51*SUMIF('Daily Log'!$Q$18:$Q$1017,$B51,'Daily Log'!$R$18:$R$1017),0) -> 0 | M51: =IFERROR($E51*SUMIF('Daily Log'!$T$18:$T$1017,$B51,'Daily Log'!$U$18:$U$1017),0) -> 0 | N51: =IFERROR($E51*SUMIF('Daily Log'!$W$18:$W$1017,$B51,'Daily Log'!$X$18:$X$1017),0) -> 0 | O51: =IFERROR($E51*SUMIF('Daily Log'!$Z$18:$Z$1017,$B51,'Daily Log'!$AA$18:$AA$1017),0) -> 0 | P51: =IFERROR($E51*SUMIF('Daily Log'!$AC$18:$AC$1017,$B51,'Daily Log'!$AD$18:$AD$1017),0) -> 0 | Q51: =IFERROR($E51*SUMIF('Daily Log'!$AF$18:$AF$1017,$B51,'Daily Log'!$AG$18:$AG$1017),0) -> 0 | R51: =IFERROR($E51*SUMIF('Daily Log'!$AI$18:$AI$1017,$B51,'Daily Log'!$AJ$18:$AJ$1017),0) -> 0 | S51: =IFERROR($E51*SUMIF('Daily Log'!$AL$18:$AL$1017,$B51,'Daily Log'!$AM$18:$AM$1017),0) -> 1 | T51: =IFERROR($E51*SUMIF('Daily Log'!$AO$18:$AO$1017,$B51,'Daily Log'!$AP$18:$AP$1017),0) -> 1 | U51: =IFERROR($E51*SUMIF('Daily Log'!$AR$18:$AR$1017,$B51,'Daily Log'!$AS$18:$AS$1017),0) -> 0 | V51: =IFERROR($E51*SUMIF('Daily Log'!$AU$18:$AU$1017,$B51,'Daily Log'!$AV$18:$AV$1017),0) -> 0 | W51: =IFERROR($E51*SUMIF('Daily Log'!$AX$18:$AX$1017,$B51,'Daily Log'!$AY$18:$AY$1017),0) -> 0 | X51: =IFERROR($E51*SUMIF('Daily Log'!$BA$18:$BA$1017,$B51,'Daily Log'!$BB$18:$BB$1017),0) -> 0 | Y51: =IFERROR($E51*SUMIF('Daily Log'!$BD$18:$BD$1017,$B51,'Daily Log'!$BE$18:$BE$1017),0) -> 0 | Z51: =IFERROR($E51*SUMIF('Daily Log'!$BG$18:$BG$1017,$B51,'Daily Log'!$BH$18:$BH$1017),0) -> 0 | AA51: =IFERROR($E51*SUMIF('Daily Log'!$BJ$18:$BJ$1017,$B51,'Daily Log'!$BK$18:$BK$1017),0) -> 0 | AB51: =IFERROR($E51*SUMIF('Daily Log'!$BM$18:$BM$1017,$B51,'Daily Log'!$BN$18:$BN$1017),0) -> 0 | AC51: =IFERROR($E51*SUMIF('Daily Log'!$BP$18:$BP$1017,$B51,'Daily Log'!$BQ$18:$BQ$1017),0) -> 0 | AD51: =IFERROR($E51*SUMIF('Daily Log'!$BS$18:$BS$1017,$B51,'Daily Log'!$BT$18:$BT$1017),0) -> 0 | AE51: =IFERROR($E51*SUMIF('Daily Log'!$BV$18:$BV$1017,$B51,'Daily Log'!$BW$18:$BW$1017),0) -> 1 | AF51: =IFERROR($E51*SUMIF('Daily Log'!$BY$18:$BY$1017,$B51,'Daily Log'!$BZ$18:$BZ$1017),0) -> 0 | AG51: =IFERROR($E51*SUMIF('Daily Log'!$CB$18:$CB$1017,$B51,'Daily Log'!$CC$18:$CC$1017),0) -> 2 | AH51: =IFERROR($E51*SUMIF('Daily Log'!$CE$18:$CE$1017,$B51,'Daily Log'!$CF$18:$CF$1017),0) -> 0 | AI51: =IFERROR($E51*SUMIF('Daily Log'!$CH$18:$CH$1017,$B51,'Daily Log'!$CI$18:$CI$1017),0) -> 0 | AJ51: =IFERROR($E51*SUMIF('Daily Log'!$CK$18:$CK$1017,$B51,'Daily Log'!$CL$18:$CL$1017),0) -> 0 | AK51: =IFERROR($E51*SUMIF('Daily Log'!$CN$18:$CN$1017,$B51,'Daily Log'!$CO$18:$CO$1017),0) -> 0
B52: AF05 91205:RAINBOW RL | D52: APPETIZER FREE | E52: 1 | F52: 0 | G52: =IFERROR($E52*SUMIF('Daily Log'!$B$18:$B$1017,$B52,'Daily Log'!$C$18:$C$1017),0) -> 0 | H52: =IFERROR($E52*SUMIF('Daily Log'!$E$18:$E$1017,$B52,'Daily Log'!$F$18:$F$1017),0) -> 0 | I52: =IFERROR($E52*SUMIF('Daily Log'!$H$18:$H$1017,$B52,'Daily Log'!$I$18:$I$1017),0) -> 0 | J52: =IFERROR($E52*SUMIF('Daily Log'!$K$18:$K$1017,$B52,'Daily Log'!$L$18:$L$1017),0) -> 0 | K52: =IFERROR($E52*SUMIF('Daily Log'!$N$18:$N$1017,$B52,'Daily Log'!$O$18:$O$1017),0) -> 0 | L52: =IFERROR($E52*SUMIF('Daily Log'!$Q$18:$Q$1017,$B52,'Daily Log'!$R$18:$R$1017),0) -> 0 | M52: =IFERROR($E52*SUMIF('Daily Log'!$T$18:$T$1017,$B52,'Daily Log'!$U$18:$U$1017),0) -> 0 | N52: =IFERROR($E52*SUMIF('Daily Log'!$W$18:$W$1017,$B52,'Daily Log'!$X$18:$X$1017),0) -> 0 | O52: =IFERROR($E52*SUMIF('Daily Log'!$Z$18:$Z$1017,$B52,'Daily Log'!$AA$18:$AA$1017),0) -> 0 | P52: =IFERROR($E52*SUMIF('Daily Log'!$AC$18:$AC$1017,$B52,'Daily Log'!$AD$18:$AD$1017),0) -> 0 | Q52: =IFERROR($E52*SUMIF('Daily Log'!$AF$18:$AF$1017,$B52,'Daily Log'!$AG$18:$AG$1017),0) -> 0 | R52: =IFERROR($E52*SUMIF('Daily Log'!$AI$18:$AI$1017,$B52,'Daily Log'!$AJ$18:$AJ$1017),0) -> 0 | S52: =IFERROR($E52*SUMIF('Daily Log'!$AL$18:$AL$1017,$B52,'Daily Log'!$AM$18:$AM$1017),0) -> 0 | T52: =IFERROR($E52*SUMIF('Daily Log'!$AO$18:$AO$1017,$B52,'Daily Log'!$AP$18:$AP$1017),0) -> 0 | U52: =IFERROR($E52*SUMIF('Daily Log'!$AR$18:$AR$1017,$B52,'Daily Log'!$AS$18:$AS$1017),0) -> 0 | V52: =IFERROR($E52*SUMIF('Daily Log'!$AU$18:$AU$1017,$B52,'Daily Log'!$AV$18:$AV$1017),0) -> 0 | W52: =IFERROR($E52*SUMIF('Daily Log'!$AX$18:$AX$1017,$B52,'Daily Log'!$AY$18:$AY$1017),0) -> 0 | X52: =IFERROR($E52*SUMIF('Daily Log'!$BA$18:$BA$1017,$B52,'Daily Log'!$BB$18:$BB$1017),0) -> 0 | Y52: =IFERROR($E52*SUMIF('Daily Log'!$BD$18:$BD$1017,$B52,'Daily Log'!$BE$18:$BE$1017),0) -> 0 | Z52: =IFERROR($E52*SUMIF('Daily Log'!$BG$18:$BG$1017,$B52,'Daily Log'!$BH$18:$BH$1017),0) -> 0 | AA52: =IFERROR($E52*SUMIF('Daily Log'!$BJ$18:$BJ$1017,$B52,'Daily Log'!$BK$18:$BK$1017),0) -> 0 | AB52: =IFERROR($E52*SUMIF('Daily Log'!$BM$18:$BM$1017,$B52,'Daily Log'!$BN$18:$BN$1017),0) -> 0 | AC52: =IFERROR($E52*SUMIF('Daily Log'!$BP$18:$BP$1017,$B52,'Daily Log'!$BQ$18:$BQ$1017),0) -> 0 | AD52: =IFERROR($E52*SUMIF('Daily Log'!$BS$18:$BS$1017,$B52,'Daily Log'!$BT$18:$BT$1017),0) -> 0 | AE52: =IFERROR($E52*SUMIF('Daily Log'!$BV$18:$BV$1017,$B52,'Daily Log'!$BW$18:$BW$1017),0) -> 0 | AF52: =IFERROR($E52*SUMIF('Daily Log'!$BY$18:$BY$1017,$B52,'Daily Log'!$BZ$18:$BZ$1017),0) -> 0 | AG52: =IFERROR($E52*SUMIF('Daily Log'!$CB$18:$CB$1017,$B52,'Daily Log'!$CC$18:$CC$1017),0) -> 0 | AH52: =IFERROR($E52*SUMIF('Daily Log'!$CE$18:$CE$1017,$B52,'Daily Log'!$CF$18:$CF$1017),0) -> 0 | AI52: =IFERROR($E52*SUMIF('Daily Log'!$CH$18:$CH$1017,$B52,'Daily Log'!$CI$18:$CI$1017),0) -> 0 | AJ52: =IFERROR($E52*SUMIF('Daily Log'!$CK$18:$CK$1017,$B52,'Daily Log'!$CL$18:$CL$1017),0) -> 0 | AK52: =IFERROR($E52*SUMIF('Daily Log'!$CN$18:$CN$1017,$B52,'Daily Log'!$CO$18:$CO$1017),0) -> 0
B53: AF06 91206:SPRING RL | D53: APPETIZER FREE | E53: 1 | F53: 6 | G53: =IFERROR($E53*SUMIF('Daily Log'!$B$18:$B$1017,$B53,'Daily Log'!$C$18:$C$1017),0) -> 0 | H53: =IFERROR($E53*SUMIF('Daily Log'!$E$18:$E$1017,$B53,'Daily Log'!$F$18:$F$1017),0) -> 0 | I53: =IFERROR($E53*SUMIF('Daily Log'!$H$18:$H$1017,$B53,'Daily Log'!$I$18:$I$1017),0) -> 0 | J53: =IFERROR($E53*SUMIF('Daily Log'!$K$18:$K$1017,$B53,'Daily Log'!$L$18:$L$1017),0) -> 1 | K53: =IFERROR($E53*SUMIF('Daily Log'!$N$18:$N$1017,$B53,'Daily Log'!$O$18:$O$1017),0) -> 0 | L53: =IFERROR($E53*SUMIF('Daily Log'!$Q$18:$Q$1017,$B53,'Daily Log'!$R$18:$R$1017),0) -> 0 | M53: =IFERROR($E53*SUMIF('Daily Log'!$T$18:$T$1017,$B53,'Daily Log'!$U$18:$U$1017),0) -> 0 | N53: =IFERROR($E53*SUMIF('Daily Log'!$W$18:$W$1017,$B53,'Daily Log'!$X$18:$X$1017),0) -> 0 | O53: =IFERROR($E53*SUMIF('Daily Log'!$Z$18:$Z$1017,$B53,'Daily Log'!$AA$18:$AA$1017),0) -> 0 | P53: =IFERROR($E53*SUMIF('Daily Log'!$AC$18:$AC$1017,$B53,'Daily Log'!$AD$18:$AD$1017),0) -> 0 | Q53: =IFERROR($E53*SUMIF('Daily Log'!$AF$18:$AF$1017,$B53,'Daily Log'!$AG$18:$AG$1017),0) -> 0 | R53: =IFERROR($E53*SUMIF('Daily Log'!$AI$18:$AI$1017,$B53,'Daily Log'!$AJ$18:$AJ$1017),0) -> 0 | S53: =IFERROR($E53*SUMIF('Daily Log'!$AL$18:$AL$1017,$B53,'Daily Log'!$AM$18:$AM$1017),0) -> 1 | T53: =IFERROR($E53*SUMIF('Daily Log'!$AO$18:$AO$1017,$B53,'Daily Log'!$AP$18:$AP$1017),0) -> 0 | U53: =IFERROR($E53*SUMIF('Daily Log'!$AR$18:$AR$1017,$B53,'Daily Log'!$AS$18:$AS$1017),0) -> 0 | V53: =IFERROR($E53*SUMIF('Daily Log'!$AU$18:$AU$1017,$B53,'Daily Log'!$AV$18:$AV$1017),0) -> 0 | W53: =IFERROR($E53*SUMIF('Daily Log'!$AX$18:$AX$1017,$B53,'Daily Log'!$AY$18:$AY$1017),0) -> 0 | X53: =IFERROR($E53*SUMIF('Daily Log'!$BA$18:$BA$1017,$B53,'Daily Log'!$BB$18:$BB$1017),0) -> 0 | Y53: =IFERROR($E53*SUMIF('Daily Log'!$BD$18:$BD$1017,$B53,'Daily Log'!$BE$18:$BE$1017),0) -> 0 | Z53: =IFERROR($E53*SUMIF('Daily Log'!$BG$18:$BG$1017,$B53,'Daily Log'!$BH$18:$BH$1017),0) -> 0 | AA53: =IFERROR($E53*SUMIF('Daily Log'!$BJ$18:$BJ$1017,$B53,'Daily Log'!$BK$18:$BK$1017),0) -> 0 | AB53: =IFERROR($E53*SUMIF('Daily Log'!$BM$18:$BM$1017,$B53,'Daily Log'!$BN$18:$BN$1017),0) -> 0 | AC53: =IFERROR($E53*SUMIF('Daily Log'!$BP$18:$BP$1017,$B53,'Daily Log'!$BQ$18:$BQ$1017),0) -> 0 | AD53: =IFERROR($E53*SUMIF('Daily Log'!$BS$18:$BS$1017,$B53,'Daily Log'!$BT$18:$BT$1017),0) -> 0 | AE53: =IFERROR($E53*SUMIF('Daily Log'!$BV$18:$BV$1017,$B53,'Daily Log'!$BW$18:$BW$1017),0) -> 3 | AF53: =IFERROR($E53*SUMIF('Daily Log'!$BY$18:$BY$1017,$B53,'Daily Log'!$BZ$18:$BZ$1017),0) -> 0 | AG53: =IFERROR($E53*SUMIF('Daily Log'!$CB$18:$CB$1017,$B53,'Daily Log'!$CC$18:$CC$1017),0) -> 1 | AH53: =IFERROR($E53*SUMIF('Daily Log'!$CE$18:$CE$1017,$B53,'Daily Log'!$CF$18:$CF$1017),0) -> 0 | AI53: =IFERROR($E53*SUMIF('Daily Log'!$CH$18:$CH$1017,$B53,'Daily Log'!$CI$18:$CI$1017),0) -> 0 | AJ53: =IFERROR($E53*SUMIF('Daily Log'!$CK$18:$CK$1017,$B53,'Daily Log'!$CL$18:$CL$1017),0) -> 0 | AK53: =IFERROR($E53*SUMIF('Daily Log'!$CN$18:$CN$1017,$B53,'Daily Log'!$CO$18:$CO$1017),0) -> 0
B54: AF07 91207:SAUSG | D54: APPETIZER FREE | E54: 1 | F54: 9 | G54: =IFERROR($E54*SUMIF('Daily Log'!$B$18:$B$1017,$B54,'Daily Log'!$C$18:$C$1017),0) -> 0 | H54: =IFERROR($E54*SUMIF('Daily Log'!$E$18:$E$1017,$B54,'Daily Log'!$F$18:$F$1017),0) -> 1 | I54: =IFERROR($E54*SUMIF('Daily Log'!$H$18:$H$1017,$B54,'Daily Log'!$I$18:$I$1017),0) -> 0 | J54: =IFERROR($E54*SUMIF('Daily Log'!$K$18:$K$1017,$B54,'Daily Log'!$L$18:$L$1017),0) -> 2 | K54: =IFERROR($E54*SUMIF('Daily Log'!$N$18:$N$1017,$B54,'Daily Log'!$O$18:$O$1017),0) -> 1 | L54: =IFERROR($E54*SUMIF('Daily Log'!$Q$18:$Q$1017,$B54,'Daily Log'!$R$18:$R$1017),0) -> 1 | M54: =IFERROR($E54*SUMIF('Daily Log'!$T$18:$T$1017,$B54,'Daily Log'!$U$18:$U$1017),0) -> 1 | N54: =IFERROR($E54*SUMIF('Daily Log'!$W$18:$W$1017,$B54,'Daily Log'!$X$18:$X$1017),0) -> 0 | O54: =IFERROR($E54*SUMIF('Daily Log'!$Z$18:$Z$1017,$B54,'Daily Log'!$AA$18:$AA$1017),0) -> 1 | P54: =IFERROR($E54*SUMIF('Daily Log'!$AC$18:$AC$1017,$B54,'Daily Log'!$AD$18:$AD$1017),0) -> 0 | Q54: =IFERROR($E54*SUMIF('Daily Log'!$AF$18:$AF$1017,$B54,'Daily Log'!$AG$18:$AG$1017),0) -> 0 | R54: =IFERROR($E54*SUMIF('Daily Log'!$AI$18:$AI$1017,$B54,'Daily Log'!$AJ$18:$AJ$1017),0) -> 0 | S54: =IFERROR($E54*SUMIF('Daily Log'!$AL$18:$AL$1017,$B54,'Daily Log'!$AM$18:$AM$1017),0) -> 0 | T54: =IFERROR($E54*SUMIF('Daily Log'!$AO$18:$AO$1017,$B54,'Daily Log'!$AP$18:$AP$1017),0) -> 0 | U54: =IFERROR($E54*SUMIF('Daily Log'!$AR$18:$AR$1017,$B54,'Daily Log'!$AS$18:$AS$1017),0) -> 0 | V54: =IFERROR($E54*SUMIF('Daily Log'!$AU$18:$AU$1017,$B54,'Daily Log'!$AV$18:$AV$1017),0) -> 0 | W54: =IFERROR($E54*SUMIF('Daily Log'!$AX$18:$AX$1017,$B54,'Daily Log'!$AY$18:$AY$1017),0) -> 0 | X54: =IFERROR($E54*SUMIF('Daily Log'!$BA$18:$BA$1017,$B54,'Daily Log'!$BB$18:$BB$1017),0) -> 0 | Y54: =IFERROR($E54*SUMIF('Daily Log'!$BD$18:$BD$1017,$B54,'Daily Log'!$BE$18:$BE$1017),0) -> 0 | Z54: =IFERROR($E54*SUMIF('Daily Log'!$BG$18:$BG$1017,$B54,'Daily Log'!$BH$18:$BH$1017),0) -> 0 | AA54: =IFERROR($E54*SUMIF('Daily Log'!$BJ$18:$BJ$1017,$B54,'Daily Log'!$BK$18:$BK$1017),0) -> 0 | AB54: =IFERROR($E54*SUMIF('Daily Log'!$BM$18:$BM$1017,$B54,'Daily Log'!$BN$18:$BN$1017),0) -> 0 | AC54: =IFERROR($E54*SUMIF('Daily Log'!$BP$18:$BP$1017,$B54,'Daily Log'!$BQ$18:$BQ$1017),0) -> 0 | AD54: =IFERROR($E54*SUMIF('Daily Log'!$BS$18:$BS$1017,$B54,'Daily Log'!$BT$18:$BT$1017),0) -> 0 | AE54: =IFERROR($E54*SUMIF('Daily Log'!$BV$18:$BV$1017,$B54,'Daily Log'!$BW$18:$BW$1017),0) -> 0 | AF54: =IFERROR($E54*SUMIF('Daily Log'!$BY$18:$BY$1017,$B54,'Daily Log'!$BZ$18:$BZ$1017),0) -> 0 | AG54: =IFERROR($E54*SUMIF('Daily Log'!$CB$18:$CB$1017,$B54,'Daily Log'!$CC$18:$CC$1017),0) -> 2 | AH54: =IFERROR($E54*SUMIF('Daily Log'!$CE$18:$CE$1017,$B54,'Daily Log'!$CF$18:$CF$1017),0) -> 0 | AI54: =IFERROR($E54*SUMIF('Daily Log'!$CH$18:$CH$1017,$B54,'Daily Log'!$CI$18:$CI$1017),0) -> 0 | AJ54: =IFERROR($E54*SUMIF('Daily Log'!$CK$18:$CK$1017,$B54,'Daily Log'!$CL$18:$CL$1017),0) -> 0 | AK54: =IFERROR($E54*SUMIF('Daily Log'!$CN$18:$CN$1017,$B54,'Daily Log'!$CO$18:$CO$1017),0) -> 0
B55: AF31 91301:DUMPLING | D55: APPETIZER FREE | E55: 1 | F55: 0 | G55: =IFERROR($E55*SUMIF('Daily Log'!$B$18:$B$1017,$B55,'Daily Log'!$C$18:$C$1017),0) -> 0 | H55: =IFERROR($E55*SUMIF('Daily Log'!$E$18:$E$1017,$B55,'Daily Log'!$F$18:$F$1017),0) -> 0 | I55: =IFERROR($E55*SUMIF('Daily Log'!$H$18:$H$1017,$B55,'Daily Log'!$I$18:$I$1017),0) -> 0 | J55: =IFERROR($E55*SUMIF('Daily Log'!$K$18:$K$1017,$B55,'Daily Log'!$L$18:$L$1017),0) -> 0 | K55: =IFERROR($E55*SUMIF('Daily Log'!$N$18:$N$1017,$B55,'Daily Log'!$O$18:$O$1017),0) -> 0 | L55: =IFERROR($E55*SUMIF('Daily Log'!$Q$18:$Q$1017,$B55,'Daily Log'!$R$18:$R$1017),0) -> 0 | M55: =IFERROR($E55*SUMIF('Daily Log'!$T$18:$T$1017,$B55,'Daily Log'!$U$18:$U$1017),0) -> 0 | N55: =IFERROR($E55*SUMIF('Daily Log'!$W$18:$W$1017,$B55,'Daily Log'!$X$18:$X$1017),0) -> 0 | O55: =IFERROR($E55*SUMIF('Daily Log'!$Z$18:$Z$1017,$B55,'Daily Log'!$AA$18:$AA$1017),0) -> 0 | P55: =IFERROR($E55*SUMIF('Daily Log'!$AC$18:$AC$1017,$B55,'Daily Log'!$AD$18:$AD$1017),0) -> 0 | Q55: =IFERROR($E55*SUMIF('Daily Log'!$AF$18:$AF$1017,$B55,'Daily Log'!$AG$18:$AG$1017),0) -> 0 | R55: =IFERROR($E55*SUMIF('Daily Log'!$AI$18:$AI$1017,$B55,'Daily Log'!$AJ$18:$AJ$1017),0) -> 0 | S55: =IFERROR($E55*SUMIF('Daily Log'!$AL$18:$AL$1017,$B55,'Daily Log'!$AM$18:$AM$1017),0) -> 0 | T55: =IFERROR($E55*SUMIF('Daily Log'!$AO$18:$AO$1017,$B55,'Daily Log'!$AP$18:$AP$1017),0) -> 0 | U55: =IFERROR($E55*SUMIF('Daily Log'!$AR$18:$AR$1017,$B55,'Daily Log'!$AS$18:$AS$1017),0) -> 0 | V55: =IFERROR($E55*SUMIF('Daily Log'!$AU$18:$AU$1017,$B55,'Daily Log'!$AV$18:$AV$1017),0) -> 0 | W55: =IFERROR($E55*SUMIF('Daily Log'!$AX$18:$AX$1017,$B55,'Daily Log'!$AY$18:$AY$1017),0) -> 0 | X55: =IFERROR($E55*SUMIF('Daily Log'!$BA$18:$BA$1017,$B55,'Daily Log'!$BB$18:$BB$1017),0) -> 0 | Y55: =IFERROR($E55*SUMIF('Daily Log'!$BD$18:$BD$1017,$B55,'Daily Log'!$BE$18:$BE$1017),0) -> 0 | Z55: =IFERROR($E55*SUMIF('Daily Log'!$BG$18:$BG$1017,$B55,'Daily Log'!$BH$18:$BH$1017),0) -> 0 | AA55: =IFERROR($E55*SUMIF('Daily Log'!$BJ$18:$BJ$1017,$B55,'Daily Log'!$BK$18:$BK$1017),0) -> 0 | AB55: =IFERROR($E55*SUMIF('Daily Log'!$BM$18:$BM$1017,$B55,'Daily Log'!$BN$18:$BN$1017),0) -> 0 | AC55: =IFERROR($E55*SUMIF('Daily Log'!$BP$18:$BP$1017,$B55,'Daily Log'!$BQ$18:$BQ$1017),0) -> 0 | AD55: =IFERROR($E55*SUMIF('Daily Log'!$BS$18:$BS$1017,$B55,'Daily Log'!$BT$18:$BT$1017),0) -> 0 | AE55: =IFERROR($E55*SUMIF('Daily Log'!$BV$18:$BV$1017,$B55,'Daily Log'!$BW$18:$BW$1017),0) -> 0 | AF55: =IFERROR($E55*SUMIF('Daily Log'!$BY$18:$BY$1017,$B55,'Daily Log'!$BZ$18:$BZ$1017),0) -> 0 | AG55: =IFERROR($E55*SUMIF('Daily Log'!$CB$18:$CB$1017,$B55,'Daily Log'!$CC$18:$CC$1017),0) -> 0 | AH55: =IFERROR($E55*SUMIF('Daily Log'!$CE$18:$CE$1017,$B55,'Daily Log'!$CF$18:$CF$1017),0) -> 0 | AI55: =IFERROR($E55*SUMIF('Daily Log'!$CH$18:$CH$1017,$B55,'Daily Log'!$CI$18:$CI$1017),0) -> 0 | AJ55: =IFERROR($E55*SUMIF('Daily Log'!$CK$18:$CK$1017,$B55,'Daily Log'!$CL$18:$CL$1017),0) -> 0 | AK55: =IFERROR($E55*SUMIF('Daily Log'!$CN$18:$CN$1017,$B55,'Daily Log'!$CO$18:$CO$1017),0) -> 0
B56: AF32 91302:NUGGET | D56: APPETIZER FREE | E56: 1 | F56: 32 | G56: =IFERROR($E56*SUMIF('Daily Log'!$B$18:$B$1017,$B56,'Daily Log'!$C$18:$C$1017),0) -> 1 | H56: =IFERROR($E56*SUMIF('Daily Log'!$E$18:$E$1017,$B56,'Daily Log'!$F$18:$F$1017),0) -> 1 | I56: =IFERROR($E56*SUMIF('Daily Log'!$H$18:$H$1017,$B56,'Daily Log'!$I$18:$I$1017),0) -> 1 | J56: =IFERROR($E56*SUMIF('Daily Log'!$K$18:$K$1017,$B56,'Daily Log'!$L$18:$L$1017),0) -> 6 | K56: =IFERROR($E56*SUMIF('Daily Log'!$N$18:$N$1017,$B56,'Daily Log'!$O$18:$O$1017),0) -> 3 | L56: =IFERROR($E56*SUMIF('Daily Log'!$Q$18:$Q$1017,$B56,'Daily Log'!$R$18:$R$1017),0) -> 0 | M56: =IFERROR($E56*SUMIF('Daily Log'!$T$18:$T$1017,$B56,'Daily Log'!$U$18:$U$1017),0) -> 0 | N56: =IFERROR($E56*SUMIF('Daily Log'!$W$18:$W$1017,$B56,'Daily Log'!$X$18:$X$1017),0) -> 0 | O56: =IFERROR($E56*SUMIF('Daily Log'!$Z$18:$Z$1017,$B56,'Daily Log'!$AA$18:$AA$1017),0) -> 1 | P56: =IFERROR($E56*SUMIF('Daily Log'!$AC$18:$AC$1017,$B56,'Daily Log'!$AD$18:$AD$1017),0) -> 1 | Q56: =IFERROR($E56*SUMIF('Daily Log'!$AF$18:$AF$1017,$B56,'Daily Log'!$AG$18:$AG$1017),0) -> 0 | R56: =IFERROR($E56*SUMIF('Daily Log'!$AI$18:$AI$1017,$B56,'Daily Log'!$AJ$18:$AJ$1017),0) -> 0 | S56: =IFERROR($E56*SUMIF('Daily Log'!$AL$18:$AL$1017,$B56,'Daily Log'!$AM$18:$AM$1017),0) -> 1 | T56: =IFERROR($E56*SUMIF('Daily Log'!$AO$18:$AO$1017,$B56,'Daily Log'!$AP$18:$AP$1017),0) -> 1 | U56: =IFERROR($E56*SUMIF('Daily Log'!$AR$18:$AR$1017,$B56,'Daily Log'!$AS$18:$AS$1017),0) -> 0 | V56: =IFERROR($E56*SUMIF('Daily Log'!$AU$18:$AU$1017,$B56,'Daily Log'!$AV$18:$AV$1017),0) -> 0 | W56: =IFERROR($E56*SUMIF('Daily Log'!$AX$18:$AX$1017,$B56,'Daily Log'!$AY$18:$AY$1017),0) -> 0 | X56: =IFERROR($E56*SUMIF('Daily Log'!$BA$18:$BA$1017,$B56,'Daily Log'!$BB$18:$BB$1017),0) -> 0 | Y56: =IFERROR($E56*SUMIF('Daily Log'!$BD$18:$BD$1017,$B56,'Daily Log'!$BE$18:$BE$1017),0) -> 1 | Z56: =IFERROR($E56*SUMIF('Daily Log'!$BG$18:$BG$1017,$B56,'Daily Log'!$BH$18:$BH$1017),0) -> 0 | AA56: =IFERROR($E56*SUMIF('Daily Log'!$BJ$18:$BJ$1017,$B56,'Daily Log'!$BK$18:$BK$1017),0) -> 2 | AB56: =IFERROR($E56*SUMIF('Daily Log'!$BM$18:$BM$1017,$B56,'Daily Log'!$BN$18:$BN$1017),0) -> 0 | AC56: =IFERROR($E56*SUMIF('Daily Log'!$BP$18:$BP$1017,$B56,'Daily Log'!$BQ$18:$BQ$1017),0) -> 0 | AD56: =IFERROR($E56*SUMIF('Daily Log'!$BS$18:$BS$1017,$B56,'Daily Log'!$BT$18:$BT$1017),0) -> 0 | AE56: =IFERROR($E56*SUMIF('Daily Log'!$BV$18:$BV$1017,$B56,'Daily Log'!$BW$18:$BW$1017),0) -> 0 | AF56: =IFERROR($E56*SUMIF('Daily Log'!$BY$18:$BY$1017,$B56,'Daily Log'!$BZ$18:$BZ$1017),0) -> 1 | AG56: =IFERROR($E56*SUMIF('Daily Log'!$CB$18:$CB$1017,$B56,'Daily Log'!$CC$18:$CC$1017),0) -> 10 | AH56: =IFERROR($E56*SUMIF('Daily Log'!$CE$18:$CE$1017,$B56,'Daily Log'!$CF$18:$CF$1017),0) -> 2 | AI56: =IFERROR($E56*SUMIF('Daily Log'!$CH$18:$CH$1017,$B56,'Daily Log'!$CI$18:$CI$1017),0) -> 0 | AJ56: =IFERROR($E56*SUMIF('Daily Log'!$CK$18:$CK$1017,$B56,'Daily Log'!$CL$18:$CL$1017),0) -> 0 | AK56: =IFERROR($E56*SUMIF('Daily Log'!$CN$18:$CN$1017,$B56,'Daily Log'!$CO$18:$CO$1017),0) -> 0
B57: AF33 91303:CHK WING | D57: APPETIZER FREE | E57: 1 | F57: 57 | G57: =IFERROR($E57*SUMIF('Daily Log'!$B$18:$B$1017,$B57,'Daily Log'!$C$18:$C$1017),0) -> 1 | H57: =IFERROR($E57*SUMIF('Daily Log'!$E$18:$E$1017,$B57,'Daily Log'!$F$18:$F$1017),0) -> 6 | I57: =IFERROR($E57*SUMIF('Daily Log'!$H$18:$H$1017,$B57,'Daily Log'!$I$18:$I$1017),0) -> 2 | J57: =IFERROR($E57*SUMIF('Daily Log'!$K$18:$K$1017,$B57,'Daily Log'!$L$18:$L$1017),0) -> 2 | K57: =IFERROR($E57*SUMIF('Daily Log'!$N$18:$N$1017,$B57,'Daily Log'!$O$18:$O$1017),0) -> 2 | L57: =IFERROR($E57*SUMIF('Daily Log'!$Q$18:$Q$1017,$B57,'Daily Log'!$R$18:$R$1017),0) -> 1 | M57: =IFERROR($E57*SUMIF('Daily Log'!$T$18:$T$1017,$B57,'Daily Log'!$U$18:$U$1017),0) -> 1 | N57: =IFERROR($E57*SUMIF('Daily Log'!$W$18:$W$1017,$B57,'Daily Log'!$X$18:$X$1017),0) -> 0 | O57: =IFERROR($E57*SUMIF('Daily Log'!$Z$18:$Z$1017,$B57,'Daily Log'!$AA$18:$AA$1017),0) -> 0 | P57: =IFERROR($E57*SUMIF('Daily Log'!$AC$18:$AC$1017,$B57,'Daily Log'!$AD$18:$AD$1017),0) -> 4 | Q57: =IFERROR($E57*SUMIF('Daily Log'!$AF$18:$AF$1017,$B57,'Daily Log'!$AG$18:$AG$1017),0) -> 2 | R57: =IFERROR($E57*SUMIF('Daily Log'!$AI$18:$AI$1017,$B57,'Daily Log'!$AJ$18:$AJ$1017),0) -> 3 | S57: =IFERROR($E57*SUMIF('Daily Log'!$AL$18:$AL$1017,$B57,'Daily Log'!$AM$18:$AM$1017),0) -> 3 | T57: =IFERROR($E57*SUMIF('Daily Log'!$AO$18:$AO$1017,$B57,'Daily Log'!$AP$18:$AP$1017),0) -> 0 | U57: =IFERROR($E57*SUMIF('Daily Log'!$AR$18:$AR$1017,$B57,'Daily Log'!$AS$18:$AS$1017),0) -> 0 | V57: =IFERROR($E57*SUMIF('Daily Log'!$AU$18:$AU$1017,$B57,'Daily Log'!$AV$18:$AV$1017),0) -> 0 | W57: =IFERROR($E57*SUMIF('Daily Log'!$AX$18:$AX$1017,$B57,'Daily Log'!$AY$18:$AY$1017),0) -> 0 | X57: =IFERROR($E57*SUMIF('Daily Log'!$BA$18:$BA$1017,$B57,'Daily Log'!$BB$18:$BB$1017),0) -> 0 | Y57: =IFERROR($E57*SUMIF('Daily Log'!$BD$18:$BD$1017,$B57,'Daily Log'!$BE$18:$BE$1017),0) -> 3 | Z57: =IFERROR($E57*SUMIF('Daily Log'!$BG$18:$BG$1017,$B57,'Daily Log'!$BH$18:$BH$1017),0) -> 2 | AA57: =IFERROR($E57*SUMIF('Daily Log'!$BJ$18:$BJ$1017,$B57,'Daily Log'!$BK$18:$BK$1017),0) -> 2 | AB57: =IFERROR($E57*SUMIF('Daily Log'!$BM$18:$BM$1017,$B57,'Daily Log'!$BN$18:$BN$1017),0) -> 3 | AC57: =IFERROR($E57*SUMIF('Daily Log'!$BP$18:$BP$1017,$B57,'Daily Log'!$BQ$18:$BQ$1017),0) -> 0 | AD57: =IFERROR($E57*SUMIF('Daily Log'!$BS$18:$BS$1017,$B57,'Daily Log'!$BT$18:$BT$1017),0) -> 0 | AE57: =IFERROR($E57*SUMIF('Daily Log'!$BV$18:$BV$1017,$B57,'Daily Log'!$BW$18:$BW$1017),0) -> 0 | AF57: =IFERROR($E57*SUMIF('Daily Log'!$BY$18:$BY$1017,$B57,'Daily Log'!$BZ$18:$BZ$1017),0) -> 4 | AG57: =IFERROR($E57*SUMIF('Daily Log'!$CB$18:$CB$1017,$B57,'Daily Log'!$CC$18:$CC$1017),0) -> 7 | AH57: =IFERROR($E57*SUMIF('Daily Log'!$CE$18:$CE$1017,$B57,'Daily Log'!$CF$18:$CF$1017),0) -> 5 | AI57: =IFERROR($E57*SUMIF('Daily Log'!$CH$18:$CH$1017,$B57,'Daily Log'!$CI$18:$CI$1017),0) -> 2 | AJ57: =IFERROR($E57*SUMIF('Daily Log'!$CK$18:$CK$1017,$B57,'Daily Log'!$CL$18:$CL$1017),0) -> 2 | AK57: =IFERROR($E57*SUMIF('Daily Log'!$CN$18:$CN$1017,$B57,'Daily Log'!$CO$18:$CO$1017),0) -> 0
B58: AF34 91304:IKAN BILIS | D58: APPETIZER FREE | E58: 1 | F58: 3 | G58: =IFERROR($E58*SUMIF('Daily Log'!$B$18:$B$1017,$B58,'Daily Log'!$C$18:$C$1017),0) -> 0 | H58: =IFERROR($E58*SUMIF('Daily Log'!$E$18:$E$1017,$B58,'Daily Log'!$F$18:$F$1017),0) -> 0 | I58: =IFERROR($E58*SUMIF('Daily Log'!$H$18:$H$1017,$B58,'Daily Log'!$I$18:$I$1017),0) -> 0 | J58: =IFERROR($E58*SUMIF('Daily Log'!$K$18:$K$1017,$B58,'Daily Log'!$L$18:$L$1017),0) -> 0 | K58: =IFERROR($E58*SUMIF('Daily Log'!$N$18:$N$1017,$B58,'Daily Log'!$O$18:$O$1017),0) -> 0 | L58: =IFERROR($E58*SUMIF('Daily Log'!$Q$18:$Q$1017,$B58,'Daily Log'!$R$18:$R$1017),0) -> 0 | M58: =IFERROR($E58*SUMIF('Daily Log'!$T$18:$T$1017,$B58,'Daily Log'!$U$18:$U$1017),0) -> 0 | N58: =IFERROR($E58*SUMIF('Daily Log'!$W$18:$W$1017,$B58,'Daily Log'!$X$18:$X$1017),0) -> 0 | O58: =IFERROR($E58*SUMIF('Daily Log'!$Z$18:$Z$1017,$B58,'Daily Log'!$AA$18:$AA$1017),0) -> 0 | P58: =IFERROR($E58*SUMIF('Daily Log'!$AC$18:$AC$1017,$B58,'Daily Log'!$AD$18:$AD$1017),0) -> 1 | Q58: =IFERROR($E58*SUMIF('Daily Log'!$AF$18:$AF$1017,$B58,'Daily Log'!$AG$18:$AG$1017),0) -> 0 | R58: =IFERROR($E58*SUMIF('Daily Log'!$AI$18:$AI$1017,$B58,'Daily Log'!$AJ$18:$AJ$1017),0) -> 0 | S58: =IFERROR($E58*SUMIF('Daily Log'!$AL$18:$AL$1017,$B58,'Daily Log'!$AM$18:$AM$1017),0) -> 2 | T58: =IFERROR($E58*SUMIF('Daily Log'!$AO$18:$AO$1017,$B58,'Daily Log'!$AP$18:$AP$1017),0) -> 0 | U58: =IFERROR($E58*SUMIF('Daily Log'!$AR$18:$AR$1017,$B58,'Daily Log'!$AS$18:$AS$1017),0) -> 0 | V58: =IFERROR($E58*SUMIF('Daily Log'!$AU$18:$AU$1017,$B58,'Daily Log'!$AV$18:$AV$1017),0) -> 0 | W58: =IFERROR($E58*SUMIF('Daily Log'!$AX$18:$AX$1017,$B58,'Daily Log'!$AY$18:$AY$1017),0) -> 0 | X58: =IFERROR($E58*SUMIF('Daily Log'!$BA$18:$BA$1017,$B58,'Daily Log'!$BB$18:$BB$1017),0) -> 0 | Y58: =IFERROR($E58*SUMIF('Daily Log'!$BD$18:$BD$1017,$B58,'Daily Log'!$BE$18:$BE$1017),0) -> 0 | Z58: =IFERROR($E58*SUMIF('Daily Log'!$BG$18:$BG$1017,$B58,'Daily Log'!$BH$18:$BH$1017),0) -> 0 | AA58: =IFERROR($E58*SUMIF('Daily Log'!$BJ$18:$BJ$1017,$B58,'Daily Log'!$BK$18:$BK$1017),0) -> 0 | AB58: =IFERROR($E58*SUMIF('Daily Log'!$BM$18:$BM$1017,$B58,'Daily Log'!$BN$18:$BN$1017),0) -> 0 | AC58: =IFERROR($E58*SUMIF('Daily Log'!$BP$18:$BP$1017,$B58,'Daily Log'!$BQ$18:$BQ$1017),0) -> 0 | AD58: =IFERROR($E58*SUMIF('Daily Log'!$BS$18:$BS$1017,$B58,'Daily Log'!$BT$18:$BT$1017),0) -> 0 | AE58: =IFERROR($E58*SUMIF('Daily Log'!$BV$18:$BV$1017,$B58,'Daily Log'!$BW$18:$BW$1017),0) -> 0 | AF58: =IFERROR($E58*SUMIF('Daily Log'!$BY$18:$BY$1017,$B58,'Daily Log'!$BZ$18:$BZ$1017),0) -> 0 | AG58: =IFERROR($E58*SUMIF('Daily Log'!$CB$18:$CB$1017,$B58,'Daily Log'!$CC$18:$CC$1017),0) -> 0 | AH58: =IFERROR($E58*SUMIF('Daily Log'!$CE$18:$CE$1017,$B58,'Daily Log'!$CF$18:$CF$1017),0) -> 0 | AI58: =IFERROR($E58*SUMIF('Daily Log'!$CH$18:$CH$1017,$B58,'Daily Log'!$CI$18:$CI$1017),0) -> 0 | AJ58: =IFERROR($E58*SUMIF('Daily Log'!$CK$18:$CK$1017,$B58,'Daily Log'!$CL$18:$CL$1017),0) -> 0 | AK58: =IFERROR($E58*SUMIF('Daily Log'!$CN$18:$CN$1017,$B58,'Daily Log'!$CO$18:$CO$1017),0) -> 0
B59: AF35 91305:THAI RL | D59: APPETIZER FREE | E59: 1 | F59: 2 | G59: =IFERROR($E59*SUMIF('Daily Log'!$B$18:$B$1017,$B59,'Daily Log'!$C$18:$C$1017),0) -> 0 | H59: =IFERROR($E59*SUMIF('Daily Log'!$E$18:$E$1017,$B59,'Daily Log'!$F$18:$F$1017),0) -> 0 | I59: =IFERROR($E59*SUMIF('Daily Log'!$H$18:$H$1017,$B59,'Daily Log'!$I$18:$I$1017),0) -> 0 | J59: =IFERROR($E59*SUMIF('Daily Log'!$K$18:$K$1017,$B59,'Daily Log'!$L$18:$L$1017),0) -> 0 | K59: =IFERROR($E59*SUMIF('Daily Log'!$N$18:$N$1017,$B59,'Daily Log'!$O$18:$O$1017),0) -> 1 | L59: =IFERROR($E59*SUMIF('Daily Log'!$Q$18:$Q$1017,$B59,'Daily Log'!$R$18:$R$1017),0) -> 1 | M59: =IFERROR($E59*SUMIF('Daily Log'!$T$18:$T$1017,$B59,'Daily Log'!$U$18:$U$1017),0) -> 0 | N59: =IFERROR($E59*SUMIF('Daily Log'!$W$18:$W$1017,$B59,'Daily Log'!$X$18:$X$1017),0) -> 0 | O59: =IFERROR($E59*SUMIF('Daily Log'!$Z$18:$Z$1017,$B59,'Daily Log'!$AA$18:$AA$1017),0) -> 0 | P59: =IFERROR($E59*SUMIF('Daily Log'!$AC$18:$AC$1017,$B59,'Daily Log'!$AD$18:$AD$1017),0) -> 0 | Q59: =IFERROR($E59*SUMIF('Daily Log'!$AF$18:$AF$1017,$B59,'Daily Log'!$AG$18:$AG$1017),0) -> 0 | R59: =IFERROR($E59*SUMIF('Daily Log'!$AI$18:$AI$1017,$B59,'Daily Log'!$AJ$18:$AJ$1017),0) -> 0 | S59: =IFERROR($E59*SUMIF('Daily Log'!$AL$18:$AL$1017,$B59,'Daily Log'!$AM$18:$AM$1017),0) -> 0 | T59: =IFERROR($E59*SUMIF('Daily Log'!$AO$18:$AO$1017,$B59,'Daily Log'!$AP$18:$AP$1017),0) -> 0 | U59: =IFERROR($E59*SUMIF('Daily Log'!$AR$18:$AR$1017,$B59,'Daily Log'!$AS$18:$AS$1017),0) -> 0 | V59: =IFERROR($E59*SUMIF('Daily Log'!$AU$18:$AU$1017,$B59,'Daily Log'!$AV$18:$AV$1017),0) -> 0 | W59: =IFERROR($E59*SUMIF('Daily Log'!$AX$18:$AX$1017,$B59,'Daily Log'!$AY$18:$AY$1017),0) -> 0 | X59: =IFERROR($E59*SUMIF('Daily Log'!$BA$18:$BA$1017,$B59,'Daily Log'!$BB$18:$BB$1017),0) -> 0 | Y59: =IFERROR($E59*SUMIF('Daily Log'!$BD$18:$BD$1017,$B59,'Daily Log'!$BE$18:$BE$1017),0) -> 0 | Z59: =IFERROR($E59*SUMIF('Daily Log'!$BG$18:$BG$1017,$B59,'Daily Log'!$BH$18:$BH$1017),0) -> 0 | AA59: =IFERROR($E59*SUMIF('Daily Log'!$BJ$18:$BJ$1017,$B59,'Daily Log'!$BK$18:$BK$1017),0) -> 0 | AB59: =IFERROR($E59*SUMIF('Daily Log'!$BM$18:$BM$1017,$B59,'Daily Log'!$BN$18:$BN$1017),0) -> 0 | AC59: =IFERROR($E59*SUMIF('Daily Log'!$BP$18:$BP$1017,$B59,'Daily Log'!$BQ$18:$BQ$1017),0) -> 0 | AD59: =IFERROR($E59*SUMIF('Daily Log'!$BS$18:$BS$1017,$B59,'Daily Log'!$BT$18:$BT$1017),0) -> 0 | AE59: =IFERROR($E59*SUMIF('Daily Log'!$BV$18:$BV$1017,$B59,'Daily Log'!$BW$18:$BW$1017),0) -> 0 | AF59: =IFERROR($E59*SUMIF('Daily Log'!$BY$18:$BY$1017,$B59,'Daily Log'!$BZ$18:$BZ$1017),0) -> 0 | AG59: =IFERROR($E59*SUMIF('Daily Log'!$CB$18:$CB$1017,$B59,'Daily Log'!$CC$18:$CC$1017),0) -> 0 | AH59: =IFERROR($E59*SUMIF('Daily Log'!$CE$18:$CE$1017,$B59,'Daily Log'!$CF$18:$CF$1017),0) -> 0 | AI59: =IFERROR($E59*SUMIF('Daily Log'!$CH$18:$CH$1017,$B59,'Daily Log'!$CI$18:$CI$1017),0) -> 0 | AJ59: =IFERROR($E59*SUMIF('Daily Log'!$CK$18:$CK$1017,$B59,'Daily Log'!$CL$18:$CL$1017),0) -> 0 | AK59: =IFERROR($E59*SUMIF('Daily Log'!$CN$18:$CN$1017,$B59,'Daily Log'!$CO$18:$CO$1017),0) -> 0
B60: AF36 91306:DF WING | D60: APPETIZER FREE | E60: 1 | F60: 7 | G60: =IFERROR($E60*SUMIF('Daily Log'!$B$18:$B$1017,$B60,'Daily Log'!$C$18:$C$1017),0) -> 0 | H60: =IFERROR($E60*SUMIF('Daily Log'!$E$18:$E$1017,$B60,'Daily Log'!$F$18:$F$1017),0) -> 0 | I60: =IFERROR($E60*SUMIF('Daily Log'!$H$18:$H$1017,$B60,'Daily Log'!$I$18:$I$1017),0) -> 0 | J60: =IFERROR($E60*SUMIF('Daily Log'!$K$18:$K$1017,$B60,'Daily Log'!$L$18:$L$1017),0) -> 1 | K60: =IFERROR($E60*SUMIF('Daily Log'!$N$18:$N$1017,$B60,'Daily Log'!$O$18:$O$1017),0) -> 0 | L60: =IFERROR($E60*SUMIF('Daily Log'!$Q$18:$Q$1017,$B60,'Daily Log'!$R$18:$R$1017),0) -> 0 | M60: =IFERROR($E60*SUMIF('Daily Log'!$T$18:$T$1017,$B60,'Daily Log'!$U$18:$U$1017),0) -> 0 | N60: =IFERROR($E60*SUMIF('Daily Log'!$W$18:$W$1017,$B60,'Daily Log'!$X$18:$X$1017),0) -> 0 | O60: =IFERROR($E60*SUMIF('Daily Log'!$Z$18:$Z$1017,$B60,'Daily Log'!$AA$18:$AA$1017),0) -> 0 | P60: =IFERROR($E60*SUMIF('Daily Log'!$AC$18:$AC$1017,$B60,'Daily Log'!$AD$18:$AD$1017),0) -> 0 | Q60: =IFERROR($E60*SUMIF('Daily Log'!$AF$18:$AF$1017,$B60,'Daily Log'!$AG$18:$AG$1017),0) -> 0 | R60: =IFERROR($E60*SUMIF('Daily Log'!$AI$18:$AI$1017,$B60,'Daily Log'!$AJ$18:$AJ$1017),0) -> 0 | S60: =IFERROR($E60*SUMIF('Daily Log'!$AL$18:$AL$1017,$B60,'Daily Log'!$AM$18:$AM$1017),0) -> 0 | T60: =IFERROR($E60*SUMIF('Daily Log'!$AO$18:$AO$1017,$B60,'Daily Log'!$AP$18:$AP$1017),0) -> 2 | U60: =IFERROR($E60*SUMIF('Daily Log'!$AR$18:$AR$1017,$B60,'Daily Log'!$AS$18:$AS$1017),0) -> 0 | V60: =IFERROR($E60*SUMIF('Daily Log'!$AU$18:$AU$1017,$B60,'Daily Log'!$AV$18:$AV$1017),0) -> 0 | W60: =IFERROR($E60*SUMIF('Daily Log'!$AX$18:$AX$1017,$B60,'Daily Log'!$AY$18:$AY$1017),0) -> 0 | X60: =IFERROR($E60*SUMIF('Daily Log'!$BA$18:$BA$1017,$B60,'Daily Log'!$BB$18:$BB$1017),0) -> 1 | Y60: =IFERROR($E60*SUMIF('Daily Log'!$BD$18:$BD$1017,$B60,'Daily Log'!$BE$18:$BE$1017),0) -> 0 | Z60: =IFERROR($E60*SUMIF('Daily Log'!$BG$18:$BG$1017,$B60,'Daily Log'!$BH$18:$BH$1017),0) -> 0 | AA60: =IFERROR($E60*SUMIF('Daily Log'!$BJ$18:$BJ$1017,$B60,'Daily Log'!$BK$18:$BK$1017),0) -> 0 | AB60: =IFERROR($E60*SUMIF('Daily Log'!$BM$18:$BM$1017,$B60,'Daily Log'!$BN$18:$BN$1017),0) -> 0 | AC60: =IFERROR($E60*SUMIF('Daily Log'!$BP$18:$BP$1017,$B60,'Daily Log'!$BQ$18:$BQ$1017),0) -> 0 | AD60: =IFERROR($E60*SUMIF('Daily Log'!$BS$18:$BS$1017,$B60,'Daily Log'!$BT$18:$BT$1017),0) -> 0 | AE60: =IFERROR($E60*SUMIF('Daily Log'!$BV$18:$BV$1017,$B60,'Daily Log'!$BW$18:$BW$1017),0) -> 0 | AF60: =IFERROR($E60*SUMIF('Daily Log'!$BY$18:$BY$1017,$B60,'Daily Log'!$BZ$18:$BZ$1017),0) -> 1 | AG60: =IFERROR($E60*SUMIF('Daily Log'!$CB$18:$CB$1017,$B60,'Daily Log'!$CC$18:$CC$1017),0) -> 1 | AH60: =IFERROR($E60*SUMIF('Daily Log'!$CE$18:$CE$1017,$B60,'Daily Log'!$CF$18:$CF$1017),0) -> 0 | AI60: =IFERROR($E60*SUMIF('Daily Log'!$CH$18:$CH$1017,$B60,'Daily Log'!$CI$18:$CI$1017),0) -> 1 | AJ60: =IFERROR($E60*SUMIF('Daily Log'!$CK$18:$CK$1017,$B60,'Daily Log'!$CL$18:$CL$1017),0) -> 0 | AK60: =IFERROR($E60*SUMIF('Daily Log'!$CN$18:$CN$1017,$B60,'Daily Log'!$CO$18:$CO$1017),0) -> 0
B61: AF37 91307:CALAMARI | D61: APPETIZER FREE | E61: 1 | F61: 11 | G61: =IFERROR($E61*SUMIF('Daily Log'!$B$18:$B$1017,$B61,'Daily Log'!$C$18:$C$1017),0) -> 0 | H61: =IFERROR($E61*SUMIF('Daily Log'!$E$18:$E$1017,$B61,'Daily Log'!$F$18:$F$1017),0) -> 1 | I61: =IFERROR($E61*SUMIF('Daily Log'!$H$18:$H$1017,$B61,'Daily Log'!$I$18:$I$1017),0) -> 1 | J61: =IFERROR($E61*SUMIF('Daily Log'!$K$18:$K$1017,$B61,'Daily Log'!$L$18:$L$1017),0) -> 1 | K61: =IFERROR($E61*SUMIF('Daily Log'!$N$18:$N$1017,$B61,'Daily Log'!$O$18:$O$1017),0) -> 0 | L61: =IFERROR($E61*SUMIF('Daily Log'!$Q$18:$Q$1017,$B61,'Daily Log'!$R$18:$R$1017),0) -> 0 | M61: =IFERROR($E61*SUMIF('Daily Log'!$T$18:$T$1017,$B61,'Daily Log'!$U$18:$U$1017),0) -> 0 | N61: =IFERROR($E61*SUMIF('Daily Log'!$W$18:$W$1017,$B61,'Daily Log'!$X$18:$X$1017),0) -> 0 | O61: =IFERROR($E61*SUMIF('Daily Log'!$Z$18:$Z$1017,$B61,'Daily Log'!$AA$18:$AA$1017),0) -> 0 | P61: =IFERROR($E61*SUMIF('Daily Log'!$AC$18:$AC$1017,$B61,'Daily Log'!$AD$18:$AD$1017),0) -> 0 | Q61: =IFERROR($E61*SUMIF('Daily Log'!$AF$18:$AF$1017,$B61,'Daily Log'!$AG$18:$AG$1017),0) -> 0 | R61: =IFERROR($E61*SUMIF('Daily Log'!$AI$18:$AI$1017,$B61,'Daily Log'!$AJ$18:$AJ$1017),0) -> 0 | S61: =IFERROR($E61*SUMIF('Daily Log'!$AL$18:$AL$1017,$B61,'Daily Log'!$AM$18:$AM$1017),0) -> 0 | T61: =IFERROR($E61*SUMIF('Daily Log'!$AO$18:$AO$1017,$B61,'Daily Log'!$AP$18:$AP$1017),0) -> 0 | U61: =IFERROR($E61*SUMIF('Daily Log'!$AR$18:$AR$1017,$B61,'Daily Log'!$AS$18:$AS$1017),0) -> 0 | V61: =IFERROR($E61*SUMIF('Daily Log'!$AU$18:$AU$1017,$B61,'Daily Log'!$AV$18:$AV$1017),0) -> 0 | W61: =IFERROR($E61*SUMIF('Daily Log'!$AX$18:$AX$1017,$B61,'Daily Log'!$AY$18:$AY$1017),0) -> 0 | X61: =IFERROR($E61*SUMIF('Daily Log'!$BA$18:$BA$1017,$B61,'Daily Log'!$BB$18:$BB$1017),0) -> 0 | Y61: =IFERROR($E61*SUMIF('Daily Log'!$BD$18:$BD$1017,$B61,'Daily Log'!$BE$18:$BE$1017),0) -> 1 | Z61: =IFERROR($E61*SUMIF('Daily Log'!$BG$18:$BG$1017,$B61,'Daily Log'!$BH$18:$BH$1017),0) -> 1 | AA61: =IFERROR($E61*SUMIF('Daily Log'!$BJ$18:$BJ$1017,$B61,'Daily Log'!$BK$18:$BK$1017),0) -> 0 | AB61: =IFERROR($E61*SUMIF('Daily Log'!$BM$18:$BM$1017,$B61,'Daily Log'!$BN$18:$BN$1017),0) -> 1 | AC61: =IFERROR($E61*SUMIF('Daily Log'!$BP$18:$BP$1017,$B61,'Daily Log'!$BQ$18:$BQ$1017),0) -> 0 | AD61: =IFERROR($E61*SUMIF('Daily Log'!$BS$18:$BS$1017,$B61,'Daily Log'!$BT$18:$BT$1017),0) -> 0 | AE61: =IFERROR($E61*SUMIF('Daily Log'!$BV$18:$BV$1017,$B61,'Daily Log'!$BW$18:$BW$1017),0) -> 0 | AF61: =IFERROR($E61*SUMIF('Daily Log'!$BY$18:$BY$1017,$B61,'Daily Log'!$BZ$18:$BZ$1017),0) -> 2 | AG61: =IFERROR($E61*SUMIF('Daily Log'!$CB$18:$CB$1017,$B61,'Daily Log'!$CC$18:$CC$1017),0) -> 2 | AH61: =IFERROR($E61*SUMIF('Daily Log'!$CE$18:$CE$1017,$B61,'Daily Log'!$CF$18:$CF$1017),0) -> 1 | AI61: =IFERROR($E61*SUMIF('Daily Log'!$CH$18:$CH$1017,$B61,'Daily Log'!$CI$18:$CI$1017),0) -> 0 | AJ61: =IFERROR($E61*SUMIF('Daily Log'!$CK$18:$CK$1017,$B61,'Daily Log'!$CL$18:$CL$1017),0) -> 0 | AK61: =IFERROR($E61*SUMIF('Daily Log'!$CN$18:$CN$1017,$B61,'Daily Log'!$CO$18:$CO$1017),0) -> 0
B62: AF38 91308:MC RING | D62: APPETIZER FREE | E62: 1 | F62: 10 | G62: =IFERROR($E62*SUMIF('Daily Log'!$B$18:$B$1017,$B62,'Daily Log'!$C$18:$C$1017),0) -> 0 | H62: =IFERROR($E62*SUMIF('Daily Log'!$E$18:$E$1017,$B62,'Daily Log'!$F$18:$F$1017),0) -> 1 | I62: =IFERROR($E62*SUMIF('Daily Log'!$H$18:$H$1017,$B62,'Daily Log'!$I$18:$I$1017),0) -> 0 | J62: =IFERROR($E62*SUMIF('Daily Log'!$K$18:$K$1017,$B62,'Daily Log'!$L$18:$L$1017),0) -> 1 | K62: =IFERROR($E62*SUMIF('Daily Log'!$N$18:$N$1017,$B62,'Daily Log'!$O$18:$O$1017),0) -> 0 | L62: =IFERROR($E62*SUMIF('Daily Log'!$Q$18:$Q$1017,$B62,'Daily Log'!$R$18:$R$1017),0) -> 0 | M62: =IFERROR($E62*SUMIF('Daily Log'!$T$18:$T$1017,$B62,'Daily Log'!$U$18:$U$1017),0) -> 0 | N62: =IFERROR($E62*SUMIF('Daily Log'!$W$18:$W$1017,$B62,'Daily Log'!$X$18:$X$1017),0) -> 0 | O62: =IFERROR($E62*SUMIF('Daily Log'!$Z$18:$Z$1017,$B62,'Daily Log'!$AA$18:$AA$1017),0) -> 0 | P62: =IFERROR($E62*SUMIF('Daily Log'!$AC$18:$AC$1017,$B62,'Daily Log'!$AD$18:$AD$1017),0) -> 0 | Q62: =IFERROR($E62*SUMIF('Daily Log'!$AF$18:$AF$1017,$B62,'Daily Log'!$AG$18:$AG$1017),0) -> 0 | R62: =IFERROR($E62*SUMIF('Daily Log'!$AI$18:$AI$1017,$B62,'Daily Log'!$AJ$18:$AJ$1017),0) -> 0 | S62: =IFERROR($E62*SUMIF('Daily Log'!$AL$18:$AL$1017,$B62,'Daily Log'!$AM$18:$AM$1017),0) -> 1 | T62: =IFERROR($E62*SUMIF('Daily Log'!$AO$18:$AO$1017,$B62,'Daily Log'!$AP$18:$AP$1017),0) -> 0 | U62: =IFERROR($E62*SUMIF('Daily Log'!$AR$18:$AR$1017,$B62,'Daily Log'!$AS$18:$AS$1017),0) -> 0 | V62: =IFERROR($E62*SUMIF('Daily Log'!$AU$18:$AU$1017,$B62,'Daily Log'!$AV$18:$AV$1017),0) -> 0 | W62: =IFERROR($E62*SUMIF('Daily Log'!$AX$18:$AX$1017,$B62,'Daily Log'!$AY$18:$AY$1017),0) -> 0 | X62: =IFERROR($E62*SUMIF('Daily Log'!$BA$18:$BA$1017,$B62,'Daily Log'!$BB$18:$BB$1017),0) -> 1 | Y62: =IFERROR($E62*SUMIF('Daily Log'!$BD$18:$BD$1017,$B62,'Daily Log'!$BE$18:$BE$1017),0) -> 0 | Z62: =IFERROR($E62*SUMIF('Daily Log'!$BG$18:$BG$1017,$B62,'Daily Log'!$BH$18:$BH$1017),0) -> 0 | AA62: =IFERROR($E62*SUMIF('Daily Log'!$BJ$18:$BJ$1017,$B62,'Daily Log'!$BK$18:$BK$1017),0) -> 1 | AB62: =IFERROR($E62*SUMIF('Daily Log'!$BM$18:$BM$1017,$B62,'Daily Log'!$BN$18:$BN$1017),0) -> 1 | AC62: =IFERROR($E62*SUMIF('Daily Log'!$BP$18:$BP$1017,$B62,'Daily Log'!$BQ$18:$BQ$1017),0) -> 0 | AD62: =IFERROR($E62*SUMIF('Daily Log'!$BS$18:$BS$1017,$B62,'Daily Log'!$BT$18:$BT$1017),0) -> 0 | AE62: =IFERROR($E62*SUMIF('Daily Log'!$BV$18:$BV$1017,$B62,'Daily Log'!$BW$18:$BW$1017),0) -> 0 | AF62: =IFERROR($E62*SUMIF('Daily Log'!$BY$18:$BY$1017,$B62,'Daily Log'!$BZ$18:$BZ$1017),0) -> 0 | AG62: =IFERROR($E62*SUMIF('Daily Log'!$CB$18:$CB$1017,$B62,'Daily Log'!$CC$18:$CC$1017),0) -> 4 | AH62: =IFERROR($E62*SUMIF('Daily Log'!$CE$18:$CE$1017,$B62,'Daily Log'!$CF$18:$CF$1017),0) -> 0 | AI62: =IFERROR($E62*SUMIF('Daily Log'!$CH$18:$CH$1017,$B62,'Daily Log'!$CI$18:$CI$1017),0) -> 0 | AJ62: =IFERROR($E62*SUMIF('Daily Log'!$CK$18:$CK$1017,$B62,'Daily Log'!$CL$18:$CL$1017),0) -> 0 | AK62: =IFERROR($E62*SUMIF('Daily Log'!$CN$18:$CN$1017,$B62,'Daily Log'!$CO$18:$CO$1017),0) -> 0
B63: AF39 91309:MC S.FRIES | D63: APPETIZER FREE | E63: 1 | F63: 9 | G63: =IFERROR($E63*SUMIF('Daily Log'!$B$18:$B$1017,$B63,'Daily Log'!$C$18:$C$1017),0) -> 0 | H63: =IFERROR($E63*SUMIF('Daily Log'!$E$18:$E$1017,$B63,'Daily Log'!$F$18:$F$1017),0) -> 0 | I63: =IFERROR($E63*SUMIF('Daily Log'!$H$18:$H$1017,$B63,'Daily Log'!$I$18:$I$1017),0) -> 0 | J63: =IFERROR($E63*SUMIF('Daily Log'!$K$18:$K$1017,$B63,'Daily Log'!$L$18:$L$1017),0) -> 4 | K63: =IFERROR($E63*SUMIF('Daily Log'!$N$18:$N$1017,$B63,'Daily Log'!$O$18:$O$1017),0) -> 0 | L63: =IFERROR($E63*SUMIF('Daily Log'!$Q$18:$Q$1017,$B63,'Daily Log'!$R$18:$R$1017),0) -> 0 | M63: =IFERROR($E63*SUMIF('Daily Log'!$T$18:$T$1017,$B63,'Daily Log'!$U$18:$U$1017),0) -> 0 | N63: =IFERROR($E63*SUMIF('Daily Log'!$W$18:$W$1017,$B63,'Daily Log'!$X$18:$X$1017),0) -> 0 | O63: =IFERROR($E63*SUMIF('Daily Log'!$Z$18:$Z$1017,$B63,'Daily Log'!$AA$18:$AA$1017),0) -> 0 | P63: =IFERROR($E63*SUMIF('Daily Log'!$AC$18:$AC$1017,$B63,'Daily Log'!$AD$18:$AD$1017),0) -> 0 | Q63: =IFERROR($E63*SUMIF('Daily Log'!$AF$18:$AF$1017,$B63,'Daily Log'!$AG$18:$AG$1017),0) -> 0 | R63: =IFERROR($E63*SUMIF('Daily Log'!$AI$18:$AI$1017,$B63,'Daily Log'!$AJ$18:$AJ$1017),0) -> 1 | S63: =IFERROR($E63*SUMIF('Daily Log'!$AL$18:$AL$1017,$B63,'Daily Log'!$AM$18:$AM$1017),0) -> 0 | T63: =IFERROR($E63*SUMIF('Daily Log'!$AO$18:$AO$1017,$B63,'Daily Log'!$AP$18:$AP$1017),0) -> 0 | U63: =IFERROR($E63*SUMIF('Daily Log'!$AR$18:$AR$1017,$B63,'Daily Log'!$AS$18:$AS$1017),0) -> 0 | V63: =IFERROR($E63*SUMIF('Daily Log'!$AU$18:$AU$1017,$B63,'Daily Log'!$AV$18:$AV$1017),0) -> 0 | W63: =IFERROR($E63*SUMIF('Daily Log'!$AX$18:$AX$1017,$B63,'Daily Log'!$AY$18:$AY$1017),0) -> 0 | X63: =IFERROR($E63*SUMIF('Daily Log'!$BA$18:$BA$1017,$B63,'Daily Log'!$BB$18:$BB$1017),0) -> 1 | Y63: =IFERROR($E63*SUMIF('Daily Log'!$BD$18:$BD$1017,$B63,'Daily Log'!$BE$18:$BE$1017),0) -> 0 | Z63: =IFERROR($E63*SUMIF('Daily Log'!$BG$18:$BG$1017,$B63,'Daily Log'!$BH$18:$BH$1017),0) -> 0 | AA63: =IFERROR($E63*SUMIF('Daily Log'!$BJ$18:$BJ$1017,$B63,'Daily Log'!$BK$18:$BK$1017),0) -> 0 | AB63: =IFERROR($E63*SUMIF('Daily Log'!$BM$18:$BM$1017,$B63,'Daily Log'!$BN$18:$BN$1017),0) -> 1 | AC63: =IFERROR($E63*SUMIF('Daily Log'!$BP$18:$BP$1017,$B63,'Daily Log'!$BQ$18:$BQ$1017),0) -> 0 | AD63: =IFERROR($E63*SUMIF('Daily Log'!$BS$18:$BS$1017,$B63,'Daily Log'!$BT$18:$BT$1017),0) -> 0 | AE63: =IFERROR($E63*SUMIF('Daily Log'!$BV$18:$BV$1017,$B63,'Daily Log'!$BW$18:$BW$1017),0) -> 0 | AF63: =IFERROR($E63*SUMIF('Daily Log'!$BY$18:$BY$1017,$B63,'Daily Log'!$BZ$18:$BZ$1017),0) -> 0 | AG63: =IFERROR($E63*SUMIF('Daily Log'!$CB$18:$CB$1017,$B63,'Daily Log'!$CC$18:$CC$1017),0) -> 1 | AH63: =IFERROR($E63*SUMIF('Daily Log'!$CE$18:$CE$1017,$B63,'Daily Log'!$CF$18:$CF$1017),0) -> 0 | AI63: =IFERROR($E63*SUMIF('Daily Log'!$CH$18:$CH$1017,$B63,'Daily Log'!$CI$18:$CI$1017),0) -> 0 | AJ63: =IFERROR($E63*SUMIF('Daily Log'!$CK$18:$CK$1017,$B63,'Daily Log'!$CL$18:$CL$1017),0) -> 1 | AK63: =IFERROR($E63*SUMIF('Daily Log'!$CN$18:$CN$1017,$B63,'Daily Log'!$CO$18:$CO$1017),0) -> 0
B64: AF40 91310:MC HP SMIL | D64: APPETIZER FREE | E64: 1 | F64: 1 | G64: =IFERROR($E64*SUMIF('Daily Log'!$B$18:$B$1017,$B64,'Daily Log'!$C$18:$C$1017),0) -> 0 | H64: =IFERROR($E64*SUMIF('Daily Log'!$E$18:$E$1017,$B64,'Daily Log'!$F$18:$F$1017),0) -> 0 | I64: =IFERROR($E64*SUMIF('Daily Log'!$H$18:$H$1017,$B64,'Daily Log'!$I$18:$I$1017),0) -> 0 | J64: =IFERROR($E64*SUMIF('Daily Log'!$K$18:$K$1017,$B64,'Daily Log'!$L$18:$L$1017),0) -> 0 | K64: =IFERROR($E64*SUMIF('Daily Log'!$N$18:$N$1017,$B64,'Daily Log'!$O$18:$O$1017),0) -> 0 | L64: =IFERROR($E64*SUMIF('Daily Log'!$Q$18:$Q$1017,$B64,'Daily Log'!$R$18:$R$1017),0) -> 0 | M64: =IFERROR($E64*SUMIF('Daily Log'!$T$18:$T$1017,$B64,'Daily Log'!$U$18:$U$1017),0) -> 0 | N64: =IFERROR($E64*SUMIF('Daily Log'!$W$18:$W$1017,$B64,'Daily Log'!$X$18:$X$1017),0) -> 0 | O64: =IFERROR($E64*SUMIF('Daily Log'!$Z$18:$Z$1017,$B64,'Daily Log'!$AA$18:$AA$1017),0) -> 0 | P64: =IFERROR($E64*SUMIF('Daily Log'!$AC$18:$AC$1017,$B64,'Daily Log'!$AD$18:$AD$1017),0) -> 0 | Q64: =IFERROR($E64*SUMIF('Daily Log'!$AF$18:$AF$1017,$B64,'Daily Log'!$AG$18:$AG$1017),0) -> 0 | R64: =IFERROR($E64*SUMIF('Daily Log'!$AI$18:$AI$1017,$B64,'Daily Log'!$AJ$18:$AJ$1017),0) -> 0 | S64: =IFERROR($E64*SUMIF('Daily Log'!$AL$18:$AL$1017,$B64,'Daily Log'!$AM$18:$AM$1017),0) -> 0 | T64: =IFERROR($E64*SUMIF('Daily Log'!$AO$18:$AO$1017,$B64,'Daily Log'!$AP$18:$AP$1017),0) -> 0 | U64: =IFERROR($E64*SUMIF('Daily Log'!$AR$18:$AR$1017,$B64,'Daily Log'!$AS$18:$AS$1017),0) -> 0 | V64: =IFERROR($E64*SUMIF('Daily Log'!$AU$18:$AU$1017,$B64,'Daily Log'!$AV$18:$AV$1017),0) -> 0 | W64: =IFERROR($E64*SUMIF('Daily Log'!$AX$18:$AX$1017,$B64,'Daily Log'!$AY$18:$AY$1017),0) -> 0 | X64: =IFERROR($E64*SUMIF('Daily Log'!$BA$18:$BA$1017,$B64,'Daily Log'!$BB$18:$BB$1017),0) -> 0 | Y64: =IFERROR($E64*SUMIF('Daily Log'!$BD$18:$BD$1017,$B64,'Daily Log'!$BE$18:$BE$1017),0) -> 0 | Z64: =IFERROR($E64*SUMIF('Daily Log'!$BG$18:$BG$1017,$B64,'Daily Log'!$BH$18:$BH$1017),0) -> 0 | AA64: =IFERROR($E64*SUMIF('Daily Log'!$BJ$18:$BJ$1017,$B64,'Daily Log'!$BK$18:$BK$1017),0) -> 0 | AB64: =IFERROR($E64*SUMIF('Daily Log'!$BM$18:$BM$1017,$B64,'Daily Log'!$BN$18:$BN$1017),0) -> 0 | AC64: =IFERROR($E64*SUMIF('Daily Log'!$BP$18:$BP$1017,$B64,'Daily Log'!$BQ$18:$BQ$1017),0) -> 0 | AD64: =IFERROR($E64*SUMIF('Daily Log'!$BS$18:$BS$1017,$B64,'Daily Log'!$BT$18:$BT$1017),0) -> 0 | AE64: =IFERROR($E64*SUMIF('Daily Log'!$BV$18:$BV$1017,$B64,'Daily Log'!$BW$18:$BW$1017),0) -> 0 | AF64: =IFERROR($E64*SUMIF('Daily Log'!$BY$18:$BY$1017,$B64,'Daily Log'!$BZ$18:$BZ$1017),0) -> 0 | AG64: =IFERROR($E64*SUMIF('Daily Log'!$CB$18:$CB$1017,$B64,'Daily Log'!$CC$18:$CC$1017),0) -> 1 | AH64: =IFERROR($E64*SUMIF('Daily Log'!$CE$18:$CE$1017,$B64,'Daily Log'!$CF$18:$CF$1017),0) -> 0 | AI64: =IFERROR($E64*SUMIF('Daily Log'!$CH$18:$CH$1017,$B64,'Daily Log'!$CI$18:$CI$1017),0) -> 0 | AJ64: =IFERROR($E64*SUMIF('Daily Log'!$CK$18:$CK$1017,$B64,'Daily Log'!$CL$18:$CL$1017),0) -> 0 | AK64: =IFERROR($E64*SUMIF('Daily Log'!$CN$18:$CN$1017,$B64,'Daily Log'!$CO$18:$CO$1017),0) -> 0
B65: AF41 91311:MC HSH BRW | D65: APPETIZER FREE | E65: 1 | F65: 8 | G65: =IFERROR($E65*SUMIF('Daily Log'!$B$18:$B$1017,$B65,'Daily Log'!$C$18:$C$1017),0) -> 0 | H65: =IFERROR($E65*SUMIF('Daily Log'!$E$18:$E$1017,$B65,'Daily Log'!$F$18:$F$1017),0) -> 1 | I65: =IFERROR($E65*SUMIF('Daily Log'!$H$18:$H$1017,$B65,'Daily Log'!$I$18:$I$1017),0) -> 0 | J65: =IFERROR($E65*SUMIF('Daily Log'!$K$18:$K$1017,$B65,'Daily Log'!$L$18:$L$1017),0) -> 1 | K65: =IFERROR($E65*SUMIF('Daily Log'!$N$18:$N$1017,$B65,'Daily Log'!$O$18:$O$1017),0) -> 0 | L65: =IFERROR($E65*SUMIF('Daily Log'!$Q$18:$Q$1017,$B65,'Daily Log'!$R$18:$R$1017),0) -> 2 | M65: =IFERROR($E65*SUMIF('Daily Log'!$T$18:$T$1017,$B65,'Daily Log'!$U$18:$U$1017),0) -> 0 | N65: =IFERROR($E65*SUMIF('Daily Log'!$W$18:$W$1017,$B65,'Daily Log'!$X$18:$X$1017),0) -> 0 | O65: =IFERROR($E65*SUMIF('Daily Log'!$Z$18:$Z$1017,$B65,'Daily Log'!$AA$18:$AA$1017),0) -> 0 | P65: =IFERROR($E65*SUMIF('Daily Log'!$AC$18:$AC$1017,$B65,'Daily Log'!$AD$18:$AD$1017),0) -> 1 | Q65: =IFERROR($E65*SUMIF('Daily Log'!$AF$18:$AF$1017,$B65,'Daily Log'!$AG$18:$AG$1017),0) -> 0 | R65: =IFERROR($E65*SUMIF('Daily Log'!$AI$18:$AI$1017,$B65,'Daily Log'!$AJ$18:$AJ$1017),0) -> 1 | S65: =IFERROR($E65*SUMIF('Daily Log'!$AL$18:$AL$1017,$B65,'Daily Log'!$AM$18:$AM$1017),0) -> 0 | T65: =IFERROR($E65*SUMIF('Daily Log'!$AO$18:$AO$1017,$B65,'Daily Log'!$AP$18:$AP$1017),0) -> 0 | U65: =IFERROR($E65*SUMIF('Daily Log'!$AR$18:$AR$1017,$B65,'Daily Log'!$AS$18:$AS$1017),0) -> 0 | V65: =IFERROR($E65*SUMIF('Daily Log'!$AU$18:$AU$1017,$B65,'Daily Log'!$AV$18:$AV$1017),0) -> 1 | W65: =IFERROR($E65*SUMIF('Daily Log'!$AX$18:$AX$1017,$B65,'Daily Log'!$AY$18:$AY$1017),0) -> 0 | X65: =IFERROR($E65*SUMIF('Daily Log'!$BA$18:$BA$1017,$B65,'Daily Log'!$BB$18:$BB$1017),0) -> 0 | Y65: =IFERROR($E65*SUMIF('Daily Log'!$BD$18:$BD$1017,$B65,'Daily Log'!$BE$18:$BE$1017),0) -> 0 | Z65: =IFERROR($E65*SUMIF('Daily Log'!$BG$18:$BG$1017,$B65,'Daily Log'!$BH$18:$BH$1017),0) -> 0 | AA65: =IFERROR($E65*SUMIF('Daily Log'!$BJ$18:$BJ$1017,$B65,'Daily Log'!$BK$18:$BK$1017),0) -> 0 | AB65: =IFERROR($E65*SUMIF('Daily Log'!$BM$18:$BM$1017,$B65,'Daily Log'!$BN$18:$BN$1017),0) -> 0 | AC65: =IFERROR($E65*SUMIF('Daily Log'!$BP$18:$BP$1017,$B65,'Daily Log'!$BQ$18:$BQ$1017),0) -> 0 | AD65: =IFERROR($E65*SUMIF('Daily Log'!$BS$18:$BS$1017,$B65,'Daily Log'!$BT$18:$BT$1017),0) -> 0 | AE65: =IFERROR($E65*SUMIF('Daily Log'!$BV$18:$BV$1017,$B65,'Daily Log'!$BW$18:$BW$1017),0) -> 0 | AF65: =IFERROR($E65*SUMIF('Daily Log'!$BY$18:$BY$1017,$B65,'Daily Log'!$BZ$18:$BZ$1017),0) -> 0 | AG65: =IFERROR($E65*SUMIF('Daily Log'!$CB$18:$CB$1017,$B65,'Daily Log'!$CC$18:$CC$1017),0) -> 1 | AH65: =IFERROR($E65*SUMIF('Daily Log'!$CE$18:$CE$1017,$B65,'Daily Log'!$CF$18:$CF$1017),0) -> 0 | AI65: =IFERROR($E65*SUMIF('Daily Log'!$CH$18:$CH$1017,$B65,'Daily Log'!$CI$18:$CI$1017),0) -> 0 | AJ65: =IFERROR($E65*SUMIF('Daily Log'!$CK$18:$CK$1017,$B65,'Daily Log'!$CL$18:$CL$1017),0) -> 0 | AK65: =IFERROR($E65*SUMIF('Daily Log'!$CN$18:$CN$1017,$B65,'Daily Log'!$CO$18:$CO$1017),0) -> 0
B66: BG01 6001:GUI BTL | D66: BEER | E66: 1 | F66: 14 | G66: =IFERROR($E66*SUMIF('Daily Log'!$B$18:$B$1017,$B66,'Daily Log'!$C$18:$C$1017),0) -> 0 | H66: =IFERROR($E66*SUMIF('Daily Log'!$E$18:$E$1017,$B66,'Daily Log'!$F$18:$F$1017),0) -> 0 | I66: =IFERROR($E66*SUMIF('Daily Log'!$H$18:$H$1017,$B66,'Daily Log'!$I$18:$I$1017),0) -> 2 | J66: =IFERROR($E66*SUMIF('Daily Log'!$K$18:$K$1017,$B66,'Daily Log'!$L$18:$L$1017),0) -> 0 | K66: =IFERROR($E66*SUMIF('Daily Log'!$N$18:$N$1017,$B66,'Daily Log'!$O$18:$O$1017),0) -> 0 | L66: =IFERROR($E66*SUMIF('Daily Log'!$Q$18:$Q$1017,$B66,'Daily Log'!$R$18:$R$1017),0) -> 0 | M66: =IFERROR($E66*SUMIF('Daily Log'!$T$18:$T$1017,$B66,'Daily Log'!$U$18:$U$1017),0) -> 0 | N66: =IFERROR($E66*SUMIF('Daily Log'!$W$18:$W$1017,$B66,'Daily Log'!$X$18:$X$1017),0) -> 0 | O66: =IFERROR($E66*SUMIF('Daily Log'!$Z$18:$Z$1017,$B66,'Daily Log'!$AA$18:$AA$1017),0) -> 2 | P66: =IFERROR($E66*SUMIF('Daily Log'!$AC$18:$AC$1017,$B66,'Daily Log'!$AD$18:$AD$1017),0) -> 0 | Q66: =IFERROR($E66*SUMIF('Daily Log'!$AF$18:$AF$1017,$B66,'Daily Log'!$AG$18:$AG$1017),0) -> 0 | R66: =IFERROR($E66*SUMIF('Daily Log'!$AI$18:$AI$1017,$B66,'Daily Log'!$AJ$18:$AJ$1017),0) -> 0 | S66: =IFERROR($E66*SUMIF('Daily Log'!$AL$18:$AL$1017,$B66,'Daily Log'!$AM$18:$AM$1017),0) -> 0 | T66: =IFERROR($E66*SUMIF('Daily Log'!$AO$18:$AO$1017,$B66,'Daily Log'!$AP$18:$AP$1017),0) -> 0 | U66: =IFERROR($E66*SUMIF('Daily Log'!$AR$18:$AR$1017,$B66,'Daily Log'!$AS$18:$AS$1017),0) -> 0 | V66: =IFERROR($E66*SUMIF('Daily Log'!$AU$18:$AU$1017,$B66,'Daily Log'!$AV$18:$AV$1017),0) -> 0 | W66: =IFERROR($E66*SUMIF('Daily Log'!$AX$18:$AX$1017,$B66,'Daily Log'!$AY$18:$AY$1017),0) -> 0 | X66: =IFERROR($E66*SUMIF('Daily Log'!$BA$18:$BA$1017,$B66,'Daily Log'!$BB$18:$BB$1017),0) -> 2 | Y66: =IFERROR($E66*SUMIF('Daily Log'!$BD$18:$BD$1017,$B66,'Daily Log'!$BE$18:$BE$1017),0) -> 0 | Z66: =IFERROR($E66*SUMIF('Daily Log'!$BG$18:$BG$1017,$B66,'Daily Log'!$BH$18:$BH$1017),0) -> 0 | AA66: =IFERROR($E66*SUMIF('Daily Log'!$BJ$18:$BJ$1017,$B66,'Daily Log'!$BK$18:$BK$1017),0) -> 2 | AB66: =IFERROR($E66*SUMIF('Daily Log'!$BM$18:$BM$1017,$B66,'Daily Log'!$BN$18:$BN$1017),0) -> 1 | AC66: =IFERROR($E66*SUMIF('Daily Log'!$BP$18:$BP$1017,$B66,'Daily Log'!$BQ$18:$BQ$1017),0) -> 0 | AD66: =IFERROR($E66*SUMIF('Daily Log'!$BS$18:$BS$1017,$B66,'Daily Log'!$BT$18:$BT$1017),0) -> 0 | AE66: =IFERROR($E66*SUMIF('Daily Log'!$BV$18:$BV$1017,$B66,'Daily Log'!$BW$18:$BW$1017),0) -> 0 | AF66: =IFERROR($E66*SUMIF('Daily Log'!$BY$18:$BY$1017,$B66,'Daily Log'!$BZ$18:$BZ$1017),0) -> 3 | AG66: =IFERROR($E66*SUMIF('Daily Log'!$CB$18:$CB$1017,$B66,'Daily Log'!$CC$18:$CC$1017),0) -> 0 | AH66: =IFERROR($E66*SUMIF('Daily Log'!$CE$18:$CE$1017,$B66,'Daily Log'!$CF$18:$CF$1017),0) -> 0 | AI66: =IFERROR($E66*SUMIF('Daily Log'!$CH$18:$CH$1017,$B66,'Daily Log'!$CI$18:$CI$1017),0) -> 0 | AJ66: =IFERROR($E66*SUMIF('Daily Log'!$CK$18:$CK$1017,$B66,'Daily Log'!$CL$18:$CL$1017),0) -> 2 | AK66: =IFERROR($E66*SUMIF('Daily Log'!$CN$18:$CN$1017,$B66,'Daily Log'!$CO$18:$CO$1017),0) -> 0
B67: BG02 6002:GUI BKT | D67: BEER | E67: 4 | F67: 64 | G67: =IFERROR($E67*SUMIF('Daily Log'!$B$18:$B$1017,$B67,'Daily Log'!$C$18:$C$1017),0) -> 4 | H67: =IFERROR($E67*SUMIF('Daily Log'!$E$18:$E$1017,$B67,'Daily Log'!$F$18:$F$1017),0) -> 0 | I67: =IFERROR($E67*SUMIF('Daily Log'!$H$18:$H$1017,$B67,'Daily Log'!$I$18:$I$1017),0) -> 0 | J67: =IFERROR($E67*SUMIF('Daily Log'!$K$18:$K$1017,$B67,'Daily Log'!$L$18:$L$1017),0) -> 12 | K67: =IFERROR($E67*SUMIF('Daily Log'!$N$18:$N$1017,$B67,'Daily Log'!$O$18:$O$1017),0) -> 0 | L67: =IFERROR($E67*SUMIF('Daily Log'!$Q$18:$Q$1017,$B67,'Daily Log'!$R$18:$R$1017),0) -> 0 | M67: =IFERROR($E67*SUMIF('Daily Log'!$T$18:$T$1017,$B67,'Daily Log'!$U$18:$U$1017),0) -> 0 | N67: =IFERROR($E67*SUMIF('Daily Log'!$W$18:$W$1017,$B67,'Daily Log'!$X$18:$X$1017),0) -> 4 | O67: =IFERROR($E67*SUMIF('Daily Log'!$Z$18:$Z$1017,$B67,'Daily Log'!$AA$18:$AA$1017),0) -> 0 | P67: =IFERROR($E67*SUMIF('Daily Log'!$AC$18:$AC$1017,$B67,'Daily Log'!$AD$18:$AD$1017),0) -> 8 | Q67: =IFERROR($E67*SUMIF('Daily Log'!$AF$18:$AF$1017,$B67,'Daily Log'!$AG$18:$AG$1017),0) -> 8 | R67: =IFERROR($E67*SUMIF('Daily Log'!$AI$18:$AI$1017,$B67,'Daily Log'!$AJ$18:$AJ$1017),0) -> 0 | S67: =IFERROR($E67*SUMIF('Daily Log'!$AL$18:$AL$1017,$B67,'Daily Log'!$AM$18:$AM$1017),0) -> 0 | T67: =IFERROR($E67*SUMIF('Daily Log'!$AO$18:$AO$1017,$B67,'Daily Log'!$AP$18:$AP$1017),0) -> 0 | U67: =IFERROR($E67*SUMIF('Daily Log'!$AR$18:$AR$1017,$B67,'Daily Log'!$AS$18:$AS$1017),0) -> 0 | V67: =IFERROR($E67*SUMIF('Daily Log'!$AU$18:$AU$1017,$B67,'Daily Log'!$AV$18:$AV$1017),0) -> 0 | W67: =IFERROR($E67*SUMIF('Daily Log'!$AX$18:$AX$1017,$B67,'Daily Log'!$AY$18:$AY$1017),0) -> 8 | X67: =IFERROR($E67*SUMIF('Daily Log'!$BA$18:$BA$1017,$B67,'Daily Log'!$BB$18:$BB$1017),0) -> 4 | Y67: =IFERROR($E67*SUMIF('Daily Log'!$BD$18:$BD$1017,$B67,'Daily Log'!$BE$18:$BE$1017),0) -> 0 | Z67: =IFERROR($E67*SUMIF('Daily Log'!$BG$18:$BG$1017,$B67,'Daily Log'!$BH$18:$BH$1017),0) -> 0 | AA67: =IFERROR($E67*SUMIF('Daily Log'!$BJ$18:$BJ$1017,$B67,'Daily Log'!$BK$18:$BK$1017),0) -> 0 | AB67: =IFERROR($E67*SUMIF('Daily Log'!$BM$18:$BM$1017,$B67,'Daily Log'!$BN$18:$BN$1017),0) -> 0 | AC67: =IFERROR($E67*SUMIF('Daily Log'!$BP$18:$BP$1017,$B67,'Daily Log'!$BQ$18:$BQ$1017),0) -> 0 | AD67: =IFERROR($E67*SUMIF('Daily Log'!$BS$18:$BS$1017,$B67,'Daily Log'!$BT$18:$BT$1017),0) -> 0 | AE67: =IFERROR($E67*SUMIF('Daily Log'!$BV$18:$BV$1017,$B67,'Daily Log'!$BW$18:$BW$1017),0) -> 4 | AF67: =IFERROR($E67*SUMIF('Daily Log'!$BY$18:$BY$1017,$B67,'Daily Log'!$BZ$18:$BZ$1017),0) -> 0 | AG67: =IFERROR($E67*SUMIF('Daily Log'!$CB$18:$CB$1017,$B67,'Daily Log'!$CC$18:$CC$1017),0) -> 0 | AH67: =IFERROR($E67*SUMIF('Daily Log'!$CE$18:$CE$1017,$B67,'Daily Log'!$CF$18:$CF$1017),0) -> 0 | AI67: =IFERROR($E67*SUMIF('Daily Log'!$CH$18:$CH$1017,$B67,'Daily Log'!$CI$18:$CI$1017),0) -> 12 | AJ67: =IFERROR($E67*SUMIF('Daily Log'!$CK$18:$CK$1017,$B67,'Daily Log'!$CL$18:$CL$1017),0) -> 0 | AK67: =IFERROR($E67*SUMIF('Daily Log'!$CN$18:$CN$1017,$B67,'Daily Log'!$CO$18:$CO$1017),0) -> 0
B68: BG03 6003:GUI RND | D68: BEER | E68: 12 | F68: 48 | G68: =IFERROR($E68*SUMIF('Daily Log'!$B$18:$B$1017,$B68,'Daily Log'!$C$18:$C$1017),0) -> 0 | H68: =IFERROR($E68*SUMIF('Daily Log'!$E$18:$E$1017,$B68,'Daily Log'!$F$18:$F$1017),0) -> 0 | I68: =IFERROR($E68*SUMIF('Daily Log'!$H$18:$H$1017,$B68,'Daily Log'!$I$18:$I$1017),0) -> 0 | J68: =IFERROR($E68*SUMIF('Daily Log'!$K$18:$K$1017,$B68,'Daily Log'!$L$18:$L$1017),0) -> 0 | K68: =IFERROR($E68*SUMIF('Daily Log'!$N$18:$N$1017,$B68,'Daily Log'!$O$18:$O$1017),0) -> 0 | L68: =IFERROR($E68*SUMIF('Daily Log'!$Q$18:$Q$1017,$B68,'Daily Log'!$R$18:$R$1017),0) -> 0 | M68: =IFERROR($E68*SUMIF('Daily Log'!$T$18:$T$1017,$B68,'Daily Log'!$U$18:$U$1017),0) -> 0 | N68: =IFERROR($E68*SUMIF('Daily Log'!$W$18:$W$1017,$B68,'Daily Log'!$X$18:$X$1017),0) -> 0 | O68: =IFERROR($E68*SUMIF('Daily Log'!$Z$18:$Z$1017,$B68,'Daily Log'!$AA$18:$AA$1017),0) -> 0 | P68: =IFERROR($E68*SUMIF('Daily Log'!$AC$18:$AC$1017,$B68,'Daily Log'!$AD$18:$AD$1017),0) -> 0 | Q68: =IFERROR($E68*SUMIF('Daily Log'!$AF$18:$AF$1017,$B68,'Daily Log'!$AG$18:$AG$1017),0) -> 0 | R68: =IFERROR($E68*SUMIF('Daily Log'!$AI$18:$AI$1017,$B68,'Daily Log'!$AJ$18:$AJ$1017),0) -> 12 | S68: =IFERROR($E68*SUMIF('Daily Log'!$AL$18:$AL$1017,$B68,'Daily Log'!$AM$18:$AM$1017),0) -> 0 | T68: =IFERROR($E68*SUMIF('Daily Log'!$AO$18:$AO$1017,$B68,'Daily Log'!$AP$18:$AP$1017),0) -> 12 | U68: =IFERROR($E68*SUMIF('Daily Log'!$AR$18:$AR$1017,$B68,'Daily Log'!$AS$18:$AS$1017),0) -> 0 | V68: =IFERROR($E68*SUMIF('Daily Log'!$AU$18:$AU$1017,$B68,'Daily Log'!$AV$18:$AV$1017),0) -> 0 | W68: =IFERROR($E68*SUMIF('Daily Log'!$AX$18:$AX$1017,$B68,'Daily Log'!$AY$18:$AY$1017),0) -> 0 | X68: =IFERROR($E68*SUMIF('Daily Log'!$BA$18:$BA$1017,$B68,'Daily Log'!$BB$18:$BB$1017),0) -> 0 | Y68: =IFERROR($E68*SUMIF('Daily Log'!$BD$18:$BD$1017,$B68,'Daily Log'!$BE$18:$BE$1017),0) -> 24 | Z68: =IFERROR($E68*SUMIF('Daily Log'!$BG$18:$BG$1017,$B68,'Daily Log'!$BH$18:$BH$1017),0) -> 0 | AA68: =IFERROR($E68*SUMIF('Daily Log'!$BJ$18:$BJ$1017,$B68,'Daily Log'!$BK$18:$BK$1017),0) -> 0 | AB68: =IFERROR($E68*SUMIF('Daily Log'!$BM$18:$BM$1017,$B68,'Daily Log'!$BN$18:$BN$1017),0) -> 0 | AC68: =IFERROR($E68*SUMIF('Daily Log'!$BP$18:$BP$1017,$B68,'Daily Log'!$BQ$18:$BQ$1017),0) -> 0 | AD68: =IFERROR($E68*SUMIF('Daily Log'!$BS$18:$BS$1017,$B68,'Daily Log'!$BT$18:$BT$1017),0) -> 0 | AE68: =IFERROR($E68*SUMIF('Daily Log'!$BV$18:$BV$1017,$B68,'Daily Log'!$BW$18:$BW$1017),0) -> 0 | AF68: =IFERROR($E68*SUMIF('Daily Log'!$BY$18:$BY$1017,$B68,'Daily Log'!$BZ$18:$BZ$1017),0) -> 0 | AG68: =IFERROR($E68*SUMIF('Daily Log'!$CB$18:$CB$1017,$B68,'Daily Log'!$CC$18:$CC$1017),0) -> 0 | AH68: =IFERROR($E68*SUMIF('Daily Log'!$CE$18:$CE$1017,$B68,'Daily Log'!$CF$18:$CF$1017),0) -> 0 | AI68: =IFERROR($E68*SUMIF('Daily Log'!$CH$18:$CH$1017,$B68,'Daily Log'!$CI$18:$CI$1017),0) -> 0 | AJ68: =IFERROR($E68*SUMIF('Daily Log'!$CK$18:$CK$1017,$B68,'Daily Log'!$CL$18:$CL$1017),0) -> 0 | AK68: =IFERROR($E68*SUMIF('Daily Log'!$CN$18:$CN$1017,$B68,'Daily Log'!$CO$18:$CO$1017),0) -> 0
B69: CJ01 86001:GUI BTL | D69: BEER | E69: 1 | F69: =SUM($G69:$AK69) -> 3 | G69: =IFERROR($E69*SUMIF('Daily Log'!$B$18:$B$1017,$B69,'Daily Log'!$C$18:$C$1017),0) -> 1 | H69: =IFERROR($E69*SUMIF('Daily Log'!$E$18:$E$1017,$B69,'Daily Log'!$F$18:$F$1017),0) -> 0 | I69: =IFERROR($E69*SUMIF('Daily Log'!$H$18:$H$1017,$B69,'Daily Log'!$I$18:$I$1017),0) -> 0 | J69: =IFERROR($E69*SUMIF('Daily Log'!$K$18:$K$1017,$B69,'Daily Log'!$L$18:$L$1017),0) -> 0 | K69: =IFERROR($E69*SUMIF('Daily Log'!$N$18:$N$1017,$B69,'Daily Log'!$O$18:$O$1017),0) -> 0 | L69: =IFERROR($E69*SUMIF('Daily Log'!$Q$18:$Q$1017,$B69,'Daily Log'!$R$18:$R$1017),0) -> 0 | M69: =IFERROR($E69*SUMIF('Daily Log'!$T$18:$T$1017,$B69,'Daily Log'!$U$18:$U$1017),0) -> 0 | N69: =IFERROR($E69*SUMIF('Daily Log'!$W$18:$W$1017,$B69,'Daily Log'!$X$18:$X$1017),0) -> 0 | O69: =IFERROR($E69*SUMIF('Daily Log'!$Z$18:$Z$1017,$B69,'Daily Log'!$AA$18:$AA$1017),0) -> 0 | P69: =IFERROR($E69*SUMIF('Daily Log'!$AC$18:$AC$1017,$B69,'Daily Log'!$AD$18:$AD$1017),0) -> 0 | Q69: =IFERROR($E69*SUMIF('Daily Log'!$AF$18:$AF$1017,$B69,'Daily Log'!$AG$18:$AG$1017),0) -> 1 | R69: =IFERROR($E69*SUMIF('Daily Log'!$AI$18:$AI$1017,$B69,'Daily Log'!$AJ$18:$AJ$1017),0) -> 0 | S69: =IFERROR($E69*SUMIF('Daily Log'!$AL$18:$AL$1017,$B69,'Daily Log'!$AM$18:$AM$1017),0) -> 0 | T69: =IFERROR($E69*SUMIF('Daily Log'!$AO$18:$AO$1017,$B69,'Daily Log'!$AP$18:$AP$1017),0) -> 0 | U69: =IFERROR($E69*SUMIF('Daily Log'!$AR$18:$AR$1017,$B69,'Daily Log'!$AS$18:$AS$1017),0) -> 0 | V69: =IFERROR($E69*SUMIF('Daily Log'!$AU$18:$AU$1017,$B69,'Daily Log'!$AV$18:$AV$1017),0) -> 0 | W69: =IFERROR($E69*SUMIF('Daily Log'!$AX$18:$AX$1017,$B69,'Daily Log'!$AY$18:$AY$1017),0) -> 0 | X69: =IFERROR($E69*SUMIF('Daily Log'!$BA$18:$BA$1017,$B69,'Daily Log'!$BB$18:$BB$1017),0) -> 0 | Y69: =IFERROR($E69*SUMIF('Daily Log'!$BD$18:$BD$1017,$B69,'Daily Log'!$BE$18:$BE$1017),0) -> 0 | Z69: =IFERROR($E69*SUMIF('Daily Log'!$BG$18:$BG$1017,$B69,'Daily Log'!$BH$18:$BH$1017),0) -> 0 | AA69: =IFERROR($E69*SUMIF('Daily Log'!$BJ$18:$BJ$1017,$B69,'Daily Log'!$BK$18:$BK$1017),0) -> 0 | AB69: =IFERROR($E69*SUMIF('Daily Log'!$BM$18:$BM$1017,$B69,'Daily Log'!$BN$18:$BN$1017),0) -> 1 | AC69: =IFERROR($E69*SUMIF('Daily Log'!$BP$18:$BP$1017,$B69,'Daily Log'!$BQ$18:$BQ$1017),0) -> 0 | AD69: =IFERROR($E69*SUMIF('Daily Log'!$BS$18:$BS$1017,$B69,'Daily Log'!$BT$18:$BT$1017),0) -> 0 | AE69: =IFERROR($E69*SUMIF('Daily Log'!$BV$18:$BV$1017,$B69,'Daily Log'!$BW$18:$BW$1017),0) -> 0 | AF69: =IFERROR($E69*SUMIF('Daily Log'!$BY$18:$BY$1017,$B69,'Daily Log'!$BZ$18:$BZ$1017),0) -> 0 | AG69: =IFERROR($E69*SUMIF('Daily Log'!$CB$18:$CB$1017,$B69,'Daily Log'!$CC$18:$CC$1017),0) -> 0 | AH69: =IFERROR($E69*SUMIF('Daily Log'!$CE$18:$CE$1017,$B69,'Daily Log'!$CF$18:$CF$1017),0) -> 0 | AI69: =IFERROR($E69*SUMIF('Daily Log'!$CH$18:$CH$1017,$B69,'Daily Log'!$CI$18:$CI$1017),0) -> 0 | AJ69: =IFERROR($E69*SUMIF('Daily Log'!$CK$18:$CK$1017,$B69,'Daily Log'!$CL$18:$CL$1017),0) -> 0 | AK69: =IFERROR($E69*SUMIF('Daily Log'!$CN$18:$CN$1017,$B69,'Daily Log'!$CO$18:$CO$1017),0) -> 0
B70: CJ02 86002:GUI BKT | D70: BEER | E70: 4 | F70: =SUM($G70:$AK70) -> 24 | G70: =IFERROR($E70*SUMIF('Daily Log'!$B$18:$B$1017,$B70,'Daily Log'!$C$18:$C$1017),0) -> 0 | H70: =IFERROR($E70*SUMIF('Daily Log'!$E$18:$E$1017,$B70,'Daily Log'!$F$18:$F$1017),0) -> 0 | I70: =IFERROR($E70*SUMIF('Daily Log'!$H$18:$H$1017,$B70,'Daily Log'!$I$18:$I$1017),0) -> 0 | J70: =IFERROR($E70*SUMIF('Daily Log'!$K$18:$K$1017,$B70,'Daily Log'!$L$18:$L$1017),0) -> 0 | K70: =IFERROR($E70*SUMIF('Daily Log'!$N$18:$N$1017,$B70,'Daily Log'!$O$18:$O$1017),0) -> 0 | L70: =IFERROR($E70*SUMIF('Daily Log'!$Q$18:$Q$1017,$B70,'Daily Log'!$R$18:$R$1017),0) -> 0 | M70: =IFERROR($E70*SUMIF('Daily Log'!$T$18:$T$1017,$B70,'Daily Log'!$U$18:$U$1017),0) -> 0 | N70: =IFERROR($E70*SUMIF('Daily Log'!$W$18:$W$1017,$B70,'Daily Log'!$X$18:$X$1017),0) -> 0 | O70: =IFERROR($E70*SUMIF('Daily Log'!$Z$18:$Z$1017,$B70,'Daily Log'!$AA$18:$AA$1017),0) -> 0 | P70: =IFERROR($E70*SUMIF('Daily Log'!$AC$18:$AC$1017,$B70,'Daily Log'!$AD$18:$AD$1017),0) -> 0 | Q70: =IFERROR($E70*SUMIF('Daily Log'!$AF$18:$AF$1017,$B70,'Daily Log'!$AG$18:$AG$1017),0) -> 4 | R70: =IFERROR($E70*SUMIF('Daily Log'!$AI$18:$AI$1017,$B70,'Daily Log'!$AJ$18:$AJ$1017),0) -> 8 | S70: =IFERROR($E70*SUMIF('Daily Log'!$AL$18:$AL$1017,$B70,'Daily Log'!$AM$18:$AM$1017),0) -> 0 | T70: =IFERROR($E70*SUMIF('Daily Log'!$AO$18:$AO$1017,$B70,'Daily Log'!$AP$18:$AP$1017),0) -> 0 | U70: =IFERROR($E70*SUMIF('Daily Log'!$AR$18:$AR$1017,$B70,'Daily Log'!$AS$18:$AS$1017),0) -> 0 | V70: =IFERROR($E70*SUMIF('Daily Log'!$AU$18:$AU$1017,$B70,'Daily Log'!$AV$18:$AV$1017),0) -> 0 | W70: =IFERROR($E70*SUMIF('Daily Log'!$AX$18:$AX$1017,$B70,'Daily Log'!$AY$18:$AY$1017),0) -> 0 | X70: =IFERROR($E70*SUMIF('Daily Log'!$BA$18:$BA$1017,$B70,'Daily Log'!$BB$18:$BB$1017),0) -> 0 | Y70: =IFERROR($E70*SUMIF('Daily Log'!$BD$18:$BD$1017,$B70,'Daily Log'!$BE$18:$BE$1017),0) -> 0 | Z70: =IFERROR($E70*SUMIF('Daily Log'!$BG$18:$BG$1017,$B70,'Daily Log'!$BH$18:$BH$1017),0) -> 0 | AA70: =IFERROR($E70*SUMIF('Daily Log'!$BJ$18:$BJ$1017,$B70,'Daily Log'!$BK$18:$BK$1017),0) -> 0 | AB70: =IFERROR($E70*SUMIF('Daily Log'!$BM$18:$BM$1017,$B70,'Daily Log'!$BN$18:$BN$1017),0) -> 0 | AC70: =IFERROR($E70*SUMIF('Daily Log'!$BP$18:$BP$1017,$B70,'Daily Log'!$BQ$18:$BQ$1017),0) -> 0 | AD70: =IFERROR($E70*SUMIF('Daily Log'!$BS$18:$BS$1017,$B70,'Daily Log'!$BT$18:$BT$1017),0) -> 0 | AE70: =IFERROR($E70*SUMIF('Daily Log'!$BV$18:$BV$1017,$B70,'Daily Log'!$BW$18:$BW$1017),0) -> 4 | AF70: =IFERROR($E70*SUMIF('Daily Log'!$BY$18:$BY$1017,$B70,'Daily Log'!$BZ$18:$BZ$1017),0) -> 8 | AG70: =IFERROR($E70*SUMIF('Daily Log'!$CB$18:$CB$1017,$B70,'Daily Log'!$CC$18:$CC$1017),0) -> 0 | AH70: =IFERROR($E70*SUMIF('Daily Log'!$CE$18:$CE$1017,$B70,'Daily Log'!$CF$18:$CF$1017),0) -> 0 | AI70: =IFERROR($E70*SUMIF('Daily Log'!$CH$18:$CH$1017,$B70,'Daily Log'!$CI$18:$CI$1017),0) -> 0 | AJ70: =IFERROR($E70*SUMIF('Daily Log'!$CK$18:$CK$1017,$B70,'Daily Log'!$CL$18:$CL$1017),0) -> 0 | AK70: =IFERROR($E70*SUMIF('Daily Log'!$CN$18:$CN$1017,$B70,'Daily Log'!$CO$18:$CO$1017),0) -> 0
B71: ZBR03 GUI EX BKT | D71: BEER | E71: 4 | F71: =SUM($G71:$AK71) -> 52 | G71: =IFERROR($E71*SUMIF('Daily Log'!$B$18:$B$1017,$B71,'Daily Log'!$C$18:$C$1017),0) -> 0 | H71: =IFERROR($E71*SUMIF('Daily Log'!$E$18:$E$1017,$B71,'Daily Log'!$F$18:$F$1017),0) -> 0 | I71: =IFERROR($E71*SUMIF('Daily Log'!$H$18:$H$1017,$B71,'Daily Log'!$I$18:$I$1017),0) -> 0 | J71: =IFERROR($E71*SUMIF('Daily Log'!$K$18:$K$1017,$B71,'Daily Log'!$L$18:$L$1017),0) -> 32 | K71: =IFERROR($E71*SUMIF('Daily Log'!$N$18:$N$1017,$B71,'Daily Log'!$O$18:$O$1017),0) -> 0 | L71: =IFERROR($E71*SUMIF('Daily Log'!$Q$18:$Q$1017,$B71,'Daily Log'!$R$18:$R$1017),0) -> 0 | M71: =IFERROR($E71*SUMIF('Daily Log'!$T$18:$T$1017,$B71,'Daily Log'!$U$18:$U$1017),0) -> 0 | N71: =IFERROR($E71*SUMIF('Daily Log'!$W$18:$W$1017,$B71,'Daily Log'!$X$18:$X$1017),0) -> 0 | O71: =IFERROR($E71*SUMIF('Daily Log'!$Z$18:$Z$1017,$B71,'Daily Log'!$AA$18:$AA$1017),0) -> 0 | P71: =IFERROR($E71*SUMIF('Daily Log'!$AC$18:$AC$1017,$B71,'Daily Log'!$AD$18:$AD$1017),0) -> 0 | Q71: =IFERROR($E71*SUMIF('Daily Log'!$AF$18:$AF$1017,$B71,'Daily Log'!$AG$18:$AG$1017),0) -> 0 | R71: =IFERROR($E71*SUMIF('Daily Log'!$AI$18:$AI$1017,$B71,'Daily Log'!$AJ$18:$AJ$1017),0) -> 0 | S71: =IFERROR($E71*SUMIF('Daily Log'!$AL$18:$AL$1017,$B71,'Daily Log'!$AM$18:$AM$1017),0) -> 0 | T71: =IFERROR($E71*SUMIF('Daily Log'!$AO$18:$AO$1017,$B71,'Daily Log'!$AP$18:$AP$1017),0) -> 0 | U71: =IFERROR($E71*SUMIF('Daily Log'!$AR$18:$AR$1017,$B71,'Daily Log'!$AS$18:$AS$1017),0) -> 0 | V71: =IFERROR($E71*SUMIF('Daily Log'!$AU$18:$AU$1017,$B71,'Daily Log'!$AV$18:$AV$1017),0) -> 0 | W71: =IFERROR($E71*SUMIF('Daily Log'!$AX$18:$AX$1017,$B71,'Daily Log'!$AY$18:$AY$1017),0) -> 4 | X71: =IFERROR($E71*SUMIF('Daily Log'!$BA$18:$BA$1017,$B71,'Daily Log'!$BB$18:$BB$1017),0) -> 4 | Y71: =IFERROR($E71*SUMIF('Daily Log'!$BD$18:$BD$1017,$B71,'Daily Log'!$BE$18:$BE$1017),0) -> 0 | Z71: =IFERROR($E71*SUMIF('Daily Log'!$BG$18:$BG$1017,$B71,'Daily Log'!$BH$18:$BH$1017),0) -> 0 | AA71: =IFERROR($E71*SUMIF('Daily Log'!$BJ$18:$BJ$1017,$B71,'Daily Log'!$BK$18:$BK$1017),0) -> 0 | AB71: =IFERROR($E71*SUMIF('Daily Log'!$BM$18:$BM$1017,$B71,'Daily Log'!$BN$18:$BN$1017),0) -> 0 | AC71: =IFERROR($E71*SUMIF('Daily Log'!$BP$18:$BP$1017,$B71,'Daily Log'!$BQ$18:$BQ$1017),0) -> 0 | AD71: =IFERROR($E71*SUMIF('Daily Log'!$BS$18:$BS$1017,$B71,'Daily Log'!$BT$18:$BT$1017),0) -> 0 | AE71: =IFERROR($E71*SUMIF('Daily Log'!$BV$18:$BV$1017,$B71,'Daily Log'!$BW$18:$BW$1017),0) -> 0 | AF71: =IFERROR($E71*SUMIF('Daily Log'!$BY$18:$BY$1017,$B71,'Daily Log'!$BZ$18:$BZ$1017),0) -> 0 | AG71: =IFERROR($E71*SUMIF('Daily Log'!$CB$18:$CB$1017,$B71,'Daily Log'!$CC$18:$CC$1017),0) -> 12 | AH71: =IFERROR($E71*SUMIF('Daily Log'!$CE$18:$CE$1017,$B71,'Daily Log'!$CF$18:$CF$1017),0) -> 0 | AI71: =IFERROR($E71*SUMIF('Daily Log'!$CH$18:$CH$1017,$B71,'Daily Log'!$CI$18:$CI$1017),0) -> 0 | AJ71: =IFERROR($E71*SUMIF('Daily Log'!$CK$18:$CK$1017,$B71,'Daily Log'!$CL$18:$CL$1017),0) -> 0 | AK71: =IFERROR($E71*SUMIF('Daily Log'!$CN$18:$CN$1017,$B71,'Daily Log'!$CO$18:$CO$1017),0) -> 0
B72: ZBM03 GUI MEM EX BKT | D72: BEER | E72: 4 | F72: 0 | G72: =IFERROR($E72*SUMIF('Daily Log'!$B$18:$B$1017,$B72,'Daily Log'!$C$18:$C$1017),0) -> 0 | H72: =IFERROR($E72*SUMIF('Daily Log'!$E$18:$E$1017,$B72,'Daily Log'!$F$18:$F$1017),0) -> 0 | I72: =IFERROR($E72*SUMIF('Daily Log'!$H$18:$H$1017,$B72,'Daily Log'!$I$18:$I$1017),0) -> 0 | J72: =IFERROR($E72*SUMIF('Daily Log'!$K$18:$K$1017,$B72,'Daily Log'!$L$18:$L$1017),0) -> 0 | K72: =IFERROR($E72*SUMIF('Daily Log'!$N$18:$N$1017,$B72,'Daily Log'!$O$18:$O$1017),0) -> 0 | L72: =IFERROR($E72*SUMIF('Daily Log'!$Q$18:$Q$1017,$B72,'Daily Log'!$R$18:$R$1017),0) -> 0 | M72: =IFERROR($E72*SUMIF('Daily Log'!$T$18:$T$1017,$B72,'Daily Log'!$U$18:$U$1017),0) -> 0 | N72: =IFERROR($E72*SUMIF('Daily Log'!$W$18:$W$1017,$B72,'Daily Log'!$X$18:$X$1017),0) -> 0 | O72: =IFERROR($E72*SUMIF('Daily Log'!$Z$18:$Z$1017,$B72,'Daily Log'!$AA$18:$AA$1017),0) -> 0 | P72: =IFERROR($E72*SUMIF('Daily Log'!$AC$18:$AC$1017,$B72,'Daily Log'!$AD$18:$AD$1017),0) -> 0 | Q72: =IFERROR($E72*SUMIF('Daily Log'!$AF$18:$AF$1017,$B72,'Daily Log'!$AG$18:$AG$1017),0) -> 0 | R72: =IFERROR($E72*SUMIF('Daily Log'!$AI$18:$AI$1017,$B72,'Daily Log'!$AJ$18:$AJ$1017),0) -> 0 | S72: =IFERROR($E72*SUMIF('Daily Log'!$AL$18:$AL$1017,$B72,'Daily Log'!$AM$18:$AM$1017),0) -> 0 | T72: =IFERROR($E72*SUMIF('Daily Log'!$AO$18:$AO$1017,$B72,'Daily Log'!$AP$18:$AP$1017),0) -> 0 | U72: =IFERROR($E72*SUMIF('Daily Log'!$AR$18:$AR$1017,$B72,'Daily Log'!$AS$18:$AS$1017),0) -> 0 | V72: =IFERROR($E72*SUMIF('Daily Log'!$AU$18:$AU$1017,$B72,'Daily Log'!$AV$18:$AV$1017),0) -> 0 | W72: =IFERROR($E72*SUMIF('Daily Log'!$AX$18:$AX$1017,$B72,'Daily Log'!$AY$18:$AY$1017),0) -> 0 | X72: =IFERROR($E72*SUMIF('Daily Log'!$BA$18:$BA$1017,$B72,'Daily Log'!$BB$18:$BB$1017),0) -> 0 | Y72: =IFERROR($E72*SUMIF('Daily Log'!$BD$18:$BD$1017,$B72,'Daily Log'!$BE$18:$BE$1017),0) -> 0 | Z72: =IFERROR($E72*SUMIF('Daily Log'!$BG$18:$BG$1017,$B72,'Daily Log'!$BH$18:$BH$1017),0) -> 0 | AA72: =IFERROR($E72*SUMIF('Daily Log'!$BJ$18:$BJ$1017,$B72,'Daily Log'!$BK$18:$BK$1017),0) -> 0 | AB72: =IFERROR($E72*SUMIF('Daily Log'!$BM$18:$BM$1017,$B72,'Daily Log'!$BN$18:$BN$1017),0) -> 0 | AC72: =IFERROR($E72*SUMIF('Daily Log'!$BP$18:$BP$1017,$B72,'Daily Log'!$BQ$18:$BQ$1017),0) -> 0 | AD72: =IFERROR($E72*SUMIF('Daily Log'!$BS$18:$BS$1017,$B72,'Daily Log'!$BT$18:$BT$1017),0) -> 0 | AE72: =IFERROR($E72*SUMIF('Daily Log'!$BV$18:$BV$1017,$B72,'Daily Log'!$BW$18:$BW$1017),0) -> 0 | AF72: =IFERROR($E72*SUMIF('Daily Log'!$BY$18:$BY$1017,$B72,'Daily Log'!$BZ$18:$BZ$1017),0) -> 0 | AG72: =IFERROR($E72*SUMIF('Daily Log'!$CB$18:$CB$1017,$B72,'Daily Log'!$CC$18:$CC$1017),0) -> 0 | AH72: =IFERROR($E72*SUMIF('Daily Log'!$CE$18:$CE$1017,$B72,'Daily Log'!$CF$18:$CF$1017),0) -> 0 | AI72: =IFERROR($E72*SUMIF('Daily Log'!$CH$18:$CH$1017,$B72,'Daily Log'!$CI$18:$CI$1017),0) -> 0 | AJ72: =IFERROR($E72*SUMIF('Daily Log'!$CK$18:$CK$1017,$B72,'Daily Log'!$CL$18:$CL$1017),0) -> 0 | AK72: =IFERROR($E72*SUMIF('Daily Log'!$CN$18:$CN$1017,$B72,'Daily Log'!$CO$18:$CO$1017),0) -> 0
B73: GUINNESS BEER TOTAL | D73: BEER | F73: 205 | G73: =SUM(G66:G71) -> 5 | H73: =SUM(H66:H71) -> 0 | I73: 2 | J73: 44 | K73: 0 | L73: 0 | M73: 0 | N73: 4 | O73: 2 | P73: 8 | Q73: 13 | R73: 20 | S73: 0 | T73: 12 | U73: 0 | V73: 0 | W73: 12 | X73: =SUM(X66:X72) -> 10 | Y73: 24 | Z73: 0 | AA73: 2 | AB73: 2 | AC73: 0 | AD73: 0 | AE73: 8 | AF73: 11 | AG73: 12 | AH73: 0 | AI73: 12 | AJ73: 2 | AK73: 0 | AL73: 0
B74: BH01 5001:HEI BTL | D74: BEER | E74: 1 | F74: 15 | G74: =IFERROR($E74*SUMIF('Daily Log'!$B$18:$B$1017,$B74,'Daily Log'!$C$18:$C$1017),0) -> 0 | H74: =IFERROR($E74*SUMIF('Daily Log'!$E$18:$E$1017,$B74,'Daily Log'!$F$18:$F$1017),0) -> 0 | I74: =IFERROR($E74*SUMIF('Daily Log'!$H$18:$H$1017,$B74,'Daily Log'!$I$18:$I$1017),0) -> 0 | J74: =IFERROR($E74*SUMIF('Daily Log'!$K$18:$K$1017,$B74,'Daily Log'!$L$18:$L$1017),0) -> 0 | K74: =IFERROR($E74*SUMIF('Daily Log'!$N$18:$N$1017,$B74,'Daily Log'!$O$18:$O$1017),0) -> 2 | L74: =IFERROR($E74*SUMIF('Daily Log'!$Q$18:$Q$1017,$B74,'Daily Log'!$R$18:$R$1017),0) -> 0 | M74: =IFERROR($E74*SUMIF('Daily Log'!$T$18:$T$1017,$B74,'Daily Log'!$U$18:$U$1017),0) -> 0 | N74: =IFERROR($E74*SUMIF('Daily Log'!$W$18:$W$1017,$B74,'Daily Log'!$X$18:$X$1017),0) -> 0 | O74: =IFERROR($E74*SUMIF('Daily Log'!$Z$18:$Z$1017,$B74,'Daily Log'!$AA$18:$AA$1017),0) -> 0 | P74: =IFERROR($E74*SUMIF('Daily Log'!$AC$18:$AC$1017,$B74,'Daily Log'!$AD$18:$AD$1017),0) -> 0 | Q74: =IFERROR($E74*SUMIF('Daily Log'!$AF$18:$AF$1017,$B74,'Daily Log'!$AG$18:$AG$1017),0) -> 1 | R74: =IFERROR($E74*SUMIF('Daily Log'!$AI$18:$AI$1017,$B74,'Daily Log'!$AJ$18:$AJ$1017),0) -> 0 | S74: =IFERROR($E74*SUMIF('Daily Log'!$AL$18:$AL$1017,$B74,'Daily Log'!$AM$18:$AM$1017),0) -> 0 | T74: =IFERROR($E74*SUMIF('Daily Log'!$AO$18:$AO$1017,$B74,'Daily Log'!$AP$18:$AP$1017),0) -> 0 | U74: =IFERROR($E74*SUMIF('Daily Log'!$AR$18:$AR$1017,$B74,'Daily Log'!$AS$18:$AS$1017),0) -> 0 | V74: =IFERROR($E74*SUMIF('Daily Log'!$AU$18:$AU$1017,$B74,'Daily Log'!$AV$18:$AV$1017),0) -> 1 | W74: =IFERROR($E74*SUMIF('Daily Log'!$AX$18:$AX$1017,$B74,'Daily Log'!$AY$18:$AY$1017),0) -> 0 | X74: =IFERROR($E74*SUMIF('Daily Log'!$BA$18:$BA$1017,$B74,'Daily Log'!$BB$18:$BB$1017),0) -> 0 | Y74: =IFERROR($E74*SUMIF('Daily Log'!$BD$18:$BD$1017,$B74,'Daily Log'!$BE$18:$BE$1017),0) -> 1 | Z74: =IFERROR($E74*SUMIF('Daily Log'!$BG$18:$BG$1017,$B74,'Daily Log'!$BH$18:$BH$1017),0) -> 0 | AA74: =IFERROR($E74*SUMIF('Daily Log'!$BJ$18:$BJ$1017,$B74,'Daily Log'!$BK$18:$BK$1017),0) -> 0 | AB74: =IFERROR($E74*SUMIF('Daily Log'!$BM$18:$BM$1017,$B74,'Daily Log'!$BN$18:$BN$1017),0) -> 2 | AC74: =IFERROR($E74*SUMIF('Daily Log'!$BP$18:$BP$1017,$B74,'Daily Log'!$BQ$18:$BQ$1017),0) -> 0 | AD74: =IFERROR($E74*SUMIF('Daily Log'!$BS$18:$BS$1017,$B74,'Daily Log'!$BT$18:$BT$1017),0) -> 2 | AE74: =IFERROR($E74*SUMIF('Daily Log'!$BV$18:$BV$1017,$B74,'Daily Log'!$BW$18:$BW$1017),0) -> 0 | AF74: =IFERROR($E74*SUMIF('Daily Log'!$BY$18:$BY$1017,$B74,'Daily Log'!$BZ$18:$BZ$1017),0) -> 4 | AG74: =IFERROR($E74*SUMIF('Daily Log'!$CB$18:$CB$1017,$B74,'Daily Log'!$CC$18:$CC$1017),0) -> 0 | AH74: =IFERROR($E74*SUMIF('Daily Log'!$CE$18:$CE$1017,$B74,'Daily Log'!$CF$18:$CF$1017),0) -> 0 | AI74: =IFERROR($E74*SUMIF('Daily Log'!$CH$18:$CH$1017,$B74,'Daily Log'!$CI$18:$CI$1017),0) -> 0 | AJ74: =IFERROR($E74*SUMIF('Daily Log'!$CK$18:$CK$1017,$B74,'Daily Log'!$CL$18:$CL$1017),0) -> 2 | AK74: =IFERROR($E74*SUMIF('Daily Log'!$CN$18:$CN$1017,$B74,'Daily Log'!$CO$18:$CO$1017),0) -> 0
B75: BH02 5002:HEI BKT | D75: BEER | E75: 4 | F75: 376 | G75: =IFERROR($E75*SUMIF('Daily Log'!$B$18:$B$1017,$B75,'Daily Log'!$C$18:$C$1017),0) -> 12 | H75: =IFERROR($E75*SUMIF('Daily Log'!$E$18:$E$1017,$B75,'Daily Log'!$F$18:$F$1017),0) -> 36 | I75: =IFERROR($E75*SUMIF('Daily Log'!$H$18:$H$1017,$B75,'Daily Log'!$I$18:$I$1017),0) -> 12 | J75: =IFERROR($E75*SUMIF('Daily Log'!$K$18:$K$1017,$B75,'Daily Log'!$L$18:$L$1017),0) -> 12 | K75: =IFERROR($E75*SUMIF('Daily Log'!$N$18:$N$1017,$B75,'Daily Log'!$O$18:$O$1017),0) -> 12 | L75: =IFERROR($E75*SUMIF('Daily Log'!$Q$18:$Q$1017,$B75,'Daily Log'!$R$18:$R$1017),0) -> 8 | M75: =IFERROR($E75*SUMIF('Daily Log'!$T$18:$T$1017,$B75,'Daily Log'!$U$18:$U$1017),0) -> 4 | N75: =IFERROR($E75*SUMIF('Daily Log'!$W$18:$W$1017,$B75,'Daily Log'!$X$18:$X$1017),0) -> 0 | O75: =IFERROR($E75*SUMIF('Daily Log'!$Z$18:$Z$1017,$B75,'Daily Log'!$AA$18:$AA$1017),0) -> 52 | P75: =IFERROR($E75*SUMIF('Daily Log'!$AC$18:$AC$1017,$B75,'Daily Log'!$AD$18:$AD$1017),0) -> 0 | Q75: =IFERROR($E75*SUMIF('Daily Log'!$AF$18:$AF$1017,$B75,'Daily Log'!$AG$18:$AG$1017),0) -> 0 | R75: =IFERROR($E75*SUMIF('Daily Log'!$AI$18:$AI$1017,$B75,'Daily Log'!$AJ$18:$AJ$1017),0) -> 8 | S75: =IFERROR($E75*SUMIF('Daily Log'!$AL$18:$AL$1017,$B75,'Daily Log'!$AM$18:$AM$1017),0) -> 8 | T75: =IFERROR($E75*SUMIF('Daily Log'!$AO$18:$AO$1017,$B75,'Daily Log'!$AP$18:$AP$1017),0) -> 0 | U75: =IFERROR($E75*SUMIF('Daily Log'!$AR$18:$AR$1017,$B75,'Daily Log'!$AS$18:$AS$1017),0) -> 0 | V75: =IFERROR($E75*SUMIF('Daily Log'!$AU$18:$AU$1017,$B75,'Daily Log'!$AV$18:$AV$1017),0) -> 84 | W75: =IFERROR($E75*SUMIF('Daily Log'!$AX$18:$AX$1017,$B75,'Daily Log'!$AY$18:$AY$1017),0) -> 0 | X75: =IFERROR($E75*SUMIF('Daily Log'!$BA$18:$BA$1017,$B75,'Daily Log'!$BB$18:$BB$1017),0) -> 12 | Y75: =IFERROR($E75*SUMIF('Daily Log'!$BD$18:$BD$1017,$B75,'Daily Log'!$BE$18:$BE$1017),0) -> 8 | Z75: =IFERROR($E75*SUMIF('Daily Log'!$BG$18:$BG$1017,$B75,'Daily Log'!$BH$18:$BH$1017),0) -> 0 | AA75: =IFERROR($E75*SUMIF('Daily Log'!$BJ$18:$BJ$1017,$B75,'Daily Log'!$BK$18:$BK$1017),0) -> 4 | AB75: =IFERROR($E75*SUMIF('Daily Log'!$BM$18:$BM$1017,$B75,'Daily Log'!$BN$18:$BN$1017),0) -> 4 | AC75: =IFERROR($E75*SUMIF('Daily Log'!$BP$18:$BP$1017,$B75,'Daily Log'!$BQ$18:$BQ$1017),0) -> 72 | AD75: =IFERROR($E75*SUMIF('Daily Log'!$BS$18:$BS$1017,$B75,'Daily Log'!$BT$18:$BT$1017),0) -> 4 | AE75: =IFERROR($E75*SUMIF('Daily Log'!$BV$18:$BV$1017,$B75,'Daily Log'!$BW$18:$BW$1017),0) -> 4 | AF75: =IFERROR($E75*SUMIF('Daily Log'!$BY$18:$BY$1017,$B75,'Daily Log'!$BZ$18:$BZ$1017),0) -> 20 | AG75: =IFERROR($E75*SUMIF('Daily Log'!$CB$18:$CB$1017,$B75,'Daily Log'!$CC$18:$CC$1017),0) -> 0 | AH75: =IFERROR($E75*SUMIF('Daily Log'!$CE$18:$CE$1017,$B75,'Daily Log'!$CF$18:$CF$1017),0) -> 0 | AI75: =IFERROR($E75*SUMIF('Daily Log'!$CH$18:$CH$1017,$B75,'Daily Log'!$CI$18:$CI$1017),0) -> 0 | AJ75: =IFERROR($E75*SUMIF('Daily Log'!$CK$18:$CK$1017,$B75,'Daily Log'!$CL$18:$CL$1017),0) -> 0 | AK75: =IFERROR($E75*SUMIF('Daily Log'!$CN$18:$CN$1017,$B75,'Daily Log'!$CO$18:$CO$1017),0) -> 0
B76: BH03 5003:HEI RND | D76: BEER | E76: 12 | F76: 168 | G76: =IFERROR($E76*SUMIF('Daily Log'!$B$18:$B$1017,$B76,'Daily Log'!$C$18:$C$1017),0) -> 0 | H76: =IFERROR($E76*SUMIF('Daily Log'!$E$18:$E$1017,$B76,'Daily Log'!$F$18:$F$1017),0) -> 0 | I76: =IFERROR($E76*SUMIF('Daily Log'!$H$18:$H$1017,$B76,'Daily Log'!$I$18:$I$1017),0) -> 0 | J76: =IFERROR($E76*SUMIF('Daily Log'!$K$18:$K$1017,$B76,'Daily Log'!$L$18:$L$1017),0) -> 72 | K76: =IFERROR($E76*SUMIF('Daily Log'!$N$18:$N$1017,$B76,'Daily Log'!$O$18:$O$1017),0) -> 0 | L76: =IFERROR($E76*SUMIF('Daily Log'!$Q$18:$Q$1017,$B76,'Daily Log'!$R$18:$R$1017),0) -> 0 | M76: =IFERROR($E76*SUMIF('Daily Log'!$T$18:$T$1017,$B76,'Daily Log'!$U$18:$U$1017),0) -> 36 | N76: =IFERROR($E76*SUMIF('Daily Log'!$W$18:$W$1017,$B76,'Daily Log'!$X$18:$X$1017),0) -> 0 | O76: =IFERROR($E76*SUMIF('Daily Log'!$Z$18:$Z$1017,$B76,'Daily Log'!$AA$18:$AA$1017),0) -> 0 | P76: =IFERROR($E76*SUMIF('Daily Log'!$AC$18:$AC$1017,$B76,'Daily Log'!$AD$18:$AD$1017),0) -> 0 | Q76: =IFERROR($E76*SUMIF('Daily Log'!$AF$18:$AF$1017,$B76,'Daily Log'!$AG$18:$AG$1017),0) -> 0 | R76: =IFERROR($E76*SUMIF('Daily Log'!$AI$18:$AI$1017,$B76,'Daily Log'!$AJ$18:$AJ$1017),0) -> 0 | S76: =IFERROR($E76*SUMIF('Daily Log'!$AL$18:$AL$1017,$B76,'Daily Log'!$AM$18:$AM$1017),0) -> 0 | T76: =IFERROR($E76*SUMIF('Daily Log'!$AO$18:$AO$1017,$B76,'Daily Log'!$AP$18:$AP$1017),0) -> 0 | U76: =IFERROR($E76*SUMIF('Daily Log'!$AR$18:$AR$1017,$B76,'Daily Log'!$AS$18:$AS$1017),0) -> 0 | V76: =IFERROR($E76*SUMIF('Daily Log'!$AU$18:$AU$1017,$B76,'Daily Log'!$AV$18:$AV$1017),0) -> 0 | W76: =IFERROR($E76*SUMIF('Daily Log'!$AX$18:$AX$1017,$B76,'Daily Log'!$AY$18:$AY$1017),0) -> 0 | X76: =IFERROR($E76*SUMIF('Daily Log'!$BA$18:$BA$1017,$B76,'Daily Log'!$BB$18:$BB$1017),0) -> 0 | Y76: =IFERROR($E76*SUMIF('Daily Log'!$BD$18:$BD$1017,$B76,'Daily Log'!$BE$18:$BE$1017),0) -> 0 | Z76: =IFERROR($E76*SUMIF('Daily Log'!$BG$18:$BG$1017,$B76,'Daily Log'!$BH$18:$BH$1017),0) -> 0 | AA76: =IFERROR($E76*SUMIF('Daily Log'!$BJ$18:$BJ$1017,$B76,'Daily Log'!$BK$18:$BK$1017),0) -> 12 | AB76: =IFERROR($E76*SUMIF('Daily Log'!$BM$18:$BM$1017,$B76,'Daily Log'!$BN$18:$BN$1017),0) -> 12 | AC76: =IFERROR($E76*SUMIF('Daily Log'!$BP$18:$BP$1017,$B76,'Daily Log'!$BQ$18:$BQ$1017),0) -> 0 | AD76: =IFERROR($E76*SUMIF('Daily Log'!$BS$18:$BS$1017,$B76,'Daily Log'!$BT$18:$BT$1017),0) -> 0 | AE76: =IFERROR($E76*SUMIF('Daily Log'!$BV$18:$BV$1017,$B76,'Daily Log'!$BW$18:$BW$1017),0) -> 12 | AF76: =IFERROR($E76*SUMIF('Daily Log'!$BY$18:$BY$1017,$B76,'Daily Log'!$BZ$18:$BZ$1017),0) -> 0 | AG76: =IFERROR($E76*SUMIF('Daily Log'!$CB$18:$CB$1017,$B76,'Daily Log'!$CC$18:$CC$1017),0) -> 12 | AH76: =IFERROR($E76*SUMIF('Daily Log'!$CE$18:$CE$1017,$B76,'Daily Log'!$CF$18:$CF$1017),0) -> 0 | AI76: =IFERROR($E76*SUMIF('Daily Log'!$CH$18:$CH$1017,$B76,'Daily Log'!$CI$18:$CI$1017),0) -> 12 | AJ76: =IFERROR($E76*SUMIF('Daily Log'!$CK$18:$CK$1017,$B76,'Daily Log'!$CL$18:$CL$1017),0) -> 0 | AK76: =IFERROR($E76*SUMIF('Daily Log'!$CN$18:$CN$1017,$B76,'Daily Log'!$CO$18:$CO$1017),0) -> 0
B77: CI02 85002:HEI BKT | D77: BEER | E77: 4 | F77: 0 | G77: =IFERROR($E77*SUMIF('Daily Log'!$B$18:$B$1017,$B77,'Daily Log'!$C$18:$C$1017),0) -> 0 | H77: =IFERROR($E77*SUMIF('Daily Log'!$E$18:$E$1017,$B77,'Daily Log'!$F$18:$F$1017),0) -> 0 | I77: =IFERROR($E77*SUMIF('Daily Log'!$H$18:$H$1017,$B77,'Daily Log'!$I$18:$I$1017),0) -> 0 | J77: =IFERROR($E77*SUMIF('Daily Log'!$K$18:$K$1017,$B77,'Daily Log'!$L$18:$L$1017),0) -> 0 | K77: =IFERROR($E77*SUMIF('Daily Log'!$N$18:$N$1017,$B77,'Daily Log'!$O$18:$O$1017),0) -> 0 | L77: =IFERROR($E77*SUMIF('Daily Log'!$Q$18:$Q$1017,$B77,'Daily Log'!$R$18:$R$1017),0) -> 0 | M77: =IFERROR($E77*SUMIF('Daily Log'!$T$18:$T$1017,$B77,'Daily Log'!$U$18:$U$1017),0) -> 0 | N77: =IFERROR($E77*SUMIF('Daily Log'!$W$18:$W$1017,$B77,'Daily Log'!$X$18:$X$1017),0) -> 0 | O77: =IFERROR($E77*SUMIF('Daily Log'!$Z$18:$Z$1017,$B77,'Daily Log'!$AA$18:$AA$1017),0) -> 0 | P77: =IFERROR($E77*SUMIF('Daily Log'!$AC$18:$AC$1017,$B77,'Daily Log'!$AD$18:$AD$1017),0) -> 0 | Q77: =IFERROR($E77*SUMIF('Daily Log'!$AF$18:$AF$1017,$B77,'Daily Log'!$AG$18:$AG$1017),0) -> 0 | R77: =IFERROR($E77*SUMIF('Daily Log'!$AI$18:$AI$1017,$B77,'Daily Log'!$AJ$18:$AJ$1017),0) -> 0 | S77: =IFERROR($E77*SUMIF('Daily Log'!$AL$18:$AL$1017,$B77,'Daily Log'!$AM$18:$AM$1017),0) -> 0 | T77: =IFERROR($E77*SUMIF('Daily Log'!$AO$18:$AO$1017,$B77,'Daily Log'!$AP$18:$AP$1017),0) -> 0 | U77: =IFERROR($E77*SUMIF('Daily Log'!$AR$18:$AR$1017,$B77,'Daily Log'!$AS$18:$AS$1017),0) -> 0 | V77: =IFERROR($E77*SUMIF('Daily Log'!$AU$18:$AU$1017,$B77,'Daily Log'!$AV$18:$AV$1017),0) -> 0 | W77: =IFERROR($E77*SUMIF('Daily Log'!$AX$18:$AX$1017,$B77,'Daily Log'!$AY$18:$AY$1017),0) -> 0 | X77: =IFERROR($E77*SUMIF('Daily Log'!$BA$18:$BA$1017,$B77,'Daily Log'!$BB$18:$BB$1017),0) -> 0 | Y77: =IFERROR($E77*SUMIF('Daily Log'!$BD$18:$BD$1017,$B77,'Daily Log'!$BE$18:$BE$1017),0) -> 0 | Z77: =IFERROR($E77*SUMIF('Daily Log'!$BG$18:$BG$1017,$B77,'Daily Log'!$BH$18:$BH$1017),0) -> 0 | AA77: =IFERROR($E77*SUMIF('Daily Log'!$BJ$18:$BJ$1017,$B77,'Daily Log'!$BK$18:$BK$1017),0) -> 0 | AB77: =IFERROR($E77*SUMIF('Daily Log'!$BM$18:$BM$1017,$B77,'Daily Log'!$BN$18:$BN$1017),0) -> 0 | AC77: =IFERROR($E77*SUMIF('Daily Log'!$BP$18:$BP$1017,$B77,'Daily Log'!$BQ$18:$BQ$1017),0) -> 0 | AD77: =IFERROR($E77*SUMIF('Daily Log'!$BS$18:$BS$1017,$B77,'Daily Log'!$BT$18:$BT$1017),0) -> 0 | AE77: =IFERROR($E77*SUMIF('Daily Log'!$BV$18:$BV$1017,$B77,'Daily Log'!$BW$18:$BW$1017),0) -> 0 | AF77: =IFERROR($E77*SUMIF('Daily Log'!$BY$18:$BY$1017,$B77,'Daily Log'!$BZ$18:$BZ$1017),0) -> 0 | AG77: =IFERROR($E77*SUMIF('Daily Log'!$CB$18:$CB$1017,$B77,'Daily Log'!$CC$18:$CC$1017),0) -> 0 | AH77: =IFERROR($E77*SUMIF('Daily Log'!$CE$18:$CE$1017,$B77,'Daily Log'!$CF$18:$CF$1017),0) -> 0 | AI77: =IFERROR($E77*SUMIF('Daily Log'!$CH$18:$CH$1017,$B77,'Daily Log'!$CI$18:$CI$1017),0) -> 0 | AJ77: =IFERROR($E77*SUMIF('Daily Log'!$CK$18:$CK$1017,$B77,'Daily Log'!$CL$18:$CL$1017),0) -> 0 | AK77: =IFERROR($E77*SUMIF('Daily Log'!$CN$18:$CN$1017,$B77,'Daily Log'!$CO$18:$CO$1017),0) -> 0
B78: CI01 85001:HEI BTL | D78: BEER | E78: 1 | F78: =SUM($G78:$AK78) -> 5 | G78: =IFERROR($E78*SUMIF('Daily Log'!$B$18:$B$1017,$B78,'Daily Log'!$C$18:$C$1017),0) -> 0 | H78: =IFERROR($E78*SUMIF('Daily Log'!$E$18:$E$1017,$B78,'Daily Log'!$F$18:$F$1017),0) -> 0 | I78: =IFERROR($E78*SUMIF('Daily Log'!$H$18:$H$1017,$B78,'Daily Log'!$I$18:$I$1017),0) -> 0 | J78: =IFERROR($E78*SUMIF('Daily Log'!$K$18:$K$1017,$B78,'Daily Log'!$L$18:$L$1017),0) -> 0 | K78: =IFERROR($E78*SUMIF('Daily Log'!$N$18:$N$1017,$B78,'Daily Log'!$O$18:$O$1017),0) -> 0 | L78: =IFERROR($E78*SUMIF('Daily Log'!$Q$18:$Q$1017,$B78,'Daily Log'!$R$18:$R$1017),0) -> 0 | M78: =IFERROR($E78*SUMIF('Daily Log'!$T$18:$T$1017,$B78,'Daily Log'!$U$18:$U$1017),0) -> 0 | N78: =IFERROR($E78*SUMIF('Daily Log'!$W$18:$W$1017,$B78,'Daily Log'!$X$18:$X$1017),0) -> 0 | O78: =IFERROR($E78*SUMIF('Daily Log'!$Z$18:$Z$1017,$B78,'Daily Log'!$AA$18:$AA$1017),0) -> 0 | P78: =IFERROR($E78*SUMIF('Daily Log'!$AC$18:$AC$1017,$B78,'Daily Log'!$AD$18:$AD$1017),0) -> 0 | Q78: =IFERROR($E78*SUMIF('Daily Log'!$AF$18:$AF$1017,$B78,'Daily Log'!$AG$18:$AG$1017),0) -> 0 | R78: =IFERROR($E78*SUMIF('Daily Log'!$AI$18:$AI$1017,$B78,'Daily Log'!$AJ$18:$AJ$1017),0) -> 0 | S78: =IFERROR($E78*SUMIF('Daily Log'!$AL$18:$AL$1017,$B78,'Daily Log'!$AM$18:$AM$1017),0) -> 1 | T78: =IFERROR($E78*SUMIF('Daily Log'!$AO$18:$AO$1017,$B78,'Daily Log'!$AP$18:$AP$1017),0) -> 0 | U78: =IFERROR($E78*SUMIF('Daily Log'!$AR$18:$AR$1017,$B78,'Daily Log'!$AS$18:$AS$1017),0) -> 0 | V78: =IFERROR($E78*SUMIF('Daily Log'!$AU$18:$AU$1017,$B78,'Daily Log'!$AV$18:$AV$1017),0) -> 0 | W78: =IFERROR($E78*SUMIF('Daily Log'!$AX$18:$AX$1017,$B78,'Daily Log'!$AY$18:$AY$1017),0) -> 0 | X78: =IFERROR($E78*SUMIF('Daily Log'!$BA$18:$BA$1017,$B78,'Daily Log'!$BB$18:$BB$1017),0) -> 0 | Y78: =IFERROR($E78*SUMIF('Daily Log'!$BD$18:$BD$1017,$B78,'Daily Log'!$BE$18:$BE$1017),0) -> 2 | Z78: =IFERROR($E78*SUMIF('Daily Log'!$BG$18:$BG$1017,$B78,'Daily Log'!$BH$18:$BH$1017),0) -> 0 | AA78: =IFERROR($E78*SUMIF('Daily Log'!$BJ$18:$BJ$1017,$B78,'Daily Log'!$BK$18:$BK$1017),0) -> 0 | AB78: =IFERROR($E78*SUMIF('Daily Log'!$BM$18:$BM$1017,$B78,'Daily Log'!$BN$18:$BN$1017),0) -> 0 | AC78: =IFERROR($E78*SUMIF('Daily Log'!$BP$18:$BP$1017,$B78,'Daily Log'!$BQ$18:$BQ$1017),0) -> 0 | AD78: =IFERROR($E78*SUMIF('Daily Log'!$BS$18:$BS$1017,$B78,'Daily Log'!$BT$18:$BT$1017),0) -> 0 | AE78: =IFERROR($E78*SUMIF('Daily Log'!$BV$18:$BV$1017,$B78,'Daily Log'!$BW$18:$BW$1017),0) -> 0 | AF78: =IFERROR($E78*SUMIF('Daily Log'!$BY$18:$BY$1017,$B78,'Daily Log'!$BZ$18:$BZ$1017),0) -> 0 | AG78: =IFERROR($E78*SUMIF('Daily Log'!$CB$18:$CB$1017,$B78,'Daily Log'!$CC$18:$CC$1017),0) -> 0 | AH78: =IFERROR($E78*SUMIF('Daily Log'!$CE$18:$CE$1017,$B78,'Daily Log'!$CF$18:$CF$1017),0) -> 0 | AI78: =IFERROR($E78*SUMIF('Daily Log'!$CH$18:$CH$1017,$B78,'Daily Log'!$CI$18:$CI$1017),0) -> 0 | AJ78: =IFERROR($E78*SUMIF('Daily Log'!$CK$18:$CK$1017,$B78,'Daily Log'!$CL$18:$CL$1017),0) -> 2 | AK78: =IFERROR($E78*SUMIF('Daily Log'!$CN$18:$CN$1017,$B78,'Daily Log'!$CO$18:$CO$1017),0) -> 0
B79: ZBR02 HEI EX BKT | D79: BEER | E79: 4 | F79: =SUM($G79:$AK79) -> 44 | G79: =IFERROR($E79*SUMIF('Daily Log'!$B$18:$B$1017,$B79,'Daily Log'!$C$18:$C$1017),0) -> 0 | H79: =IFERROR($E79*SUMIF('Daily Log'!$E$18:$E$1017,$B79,'Daily Log'!$F$18:$F$1017),0) -> 0 | I79: =IFERROR($E79*SUMIF('Daily Log'!$H$18:$H$1017,$B79,'Daily Log'!$I$18:$I$1017),0) -> 0 | J79: =IFERROR($E79*SUMIF('Daily Log'!$K$18:$K$1017,$B79,'Daily Log'!$L$18:$L$1017),0) -> 8 | K79: =IFERROR($E79*SUMIF('Daily Log'!$N$18:$N$1017,$B79,'Daily Log'!$O$18:$O$1017),0) -> 12 | L79: =IFERROR($E79*SUMIF('Daily Log'!$Q$18:$Q$1017,$B79,'Daily Log'!$R$18:$R$1017),0) -> 0 | M79: =IFERROR($E79*SUMIF('Daily Log'!$T$18:$T$1017,$B79,'Daily Log'!$U$18:$U$1017),0) -> 12 | N79: =IFERROR($E79*SUMIF('Daily Log'!$W$18:$W$1017,$B79,'Daily Log'!$X$18:$X$1017),0) -> 4 | O79: =IFERROR($E79*SUMIF('Daily Log'!$Z$18:$Z$1017,$B79,'Daily Log'!$AA$18:$AA$1017),0) -> 0 | P79: =IFERROR($E79*SUMIF('Daily Log'!$AC$18:$AC$1017,$B79,'Daily Log'!$AD$18:$AD$1017),0) -> 0 | Q79: =IFERROR($E79*SUMIF('Daily Log'!$AF$18:$AF$1017,$B79,'Daily Log'!$AG$18:$AG$1017),0) -> 0 | R79: =IFERROR($E79*SUMIF('Daily Log'!$AI$18:$AI$1017,$B79,'Daily Log'!$AJ$18:$AJ$1017),0) -> 0 | S79: =IFERROR($E79*SUMIF('Daily Log'!$AL$18:$AL$1017,$B79,'Daily Log'!$AM$18:$AM$1017),0) -> 4 | T79: =IFERROR($E79*SUMIF('Daily Log'!$AO$18:$AO$1017,$B79,'Daily Log'!$AP$18:$AP$1017),0) -> 0 | U79: =IFERROR($E79*SUMIF('Daily Log'!$AR$18:$AR$1017,$B79,'Daily Log'!$AS$18:$AS$1017),0) -> 0 | V79: =IFERROR($E79*SUMIF('Daily Log'!$AU$18:$AU$1017,$B79,'Daily Log'!$AV$18:$AV$1017),0) -> 0 | W79: =IFERROR($E79*SUMIF('Daily Log'!$AX$18:$AX$1017,$B79,'Daily Log'!$AY$18:$AY$1017),0) -> 4 | X79: =IFERROR($E79*SUMIF('Daily Log'!$BA$18:$BA$1017,$B79,'Daily Log'!$BB$18:$BB$1017),0) -> 0 | Y79: =IFERROR($E79*SUMIF('Daily Log'!$BD$18:$BD$1017,$B79,'Daily Log'!$BE$18:$BE$1017),0) -> 0 | Z79: =IFERROR($E79*SUMIF('Daily Log'!$BG$18:$BG$1017,$B79,'Daily Log'!$BH$18:$BH$1017),0) -> 0 | AA79: =IFERROR($E79*SUMIF('Daily Log'!$BJ$18:$BJ$1017,$B79,'Daily Log'!$BK$18:$BK$1017),0) -> 0 | AB79: =IFERROR($E79*SUMIF('Daily Log'!$BM$18:$BM$1017,$B79,'Daily Log'!$BN$18:$BN$1017),0) -> 0 | AC79: =IFERROR($E79*SUMIF('Daily Log'!$BP$18:$BP$1017,$B79,'Daily Log'!$BQ$18:$BQ$1017),0) -> 0 | AD79: =IFERROR($E79*SUMIF('Daily Log'!$BS$18:$BS$1017,$B79,'Daily Log'!$BT$18:$BT$1017),0) -> 0 | AE79: =IFERROR($E79*SUMIF('Daily Log'!$BV$18:$BV$1017,$B79,'Daily Log'!$BW$18:$BW$1017),0) -> 0 | AF79: =IFERROR($E79*SUMIF('Daily Log'!$BY$18:$BY$1017,$B79,'Daily Log'!$BZ$18:$BZ$1017),0) -> 0 | AG79: =IFERROR($E79*SUMIF('Daily Log'!$CB$18:$CB$1017,$B79,'Daily Log'!$CC$18:$CC$1017),0) -> 0 | AH79: =IFERROR($E79*SUMIF('Daily Log'!$CE$18:$CE$1017,$B79,'Daily Log'!$CF$18:$CF$1017),0) -> 0 | AI79: =IFERROR($E79*SUMIF('Daily Log'!$CH$18:$CH$1017,$B79,'Daily Log'!$CI$18:$CI$1017),0) -> 0 | AJ79: =IFERROR($E79*SUMIF('Daily Log'!$CK$18:$CK$1017,$B79,'Daily Log'!$CL$18:$CL$1017),0) -> 0 | AK79: =IFERROR($E79*SUMIF('Daily Log'!$CN$18:$CN$1017,$B79,'Daily Log'!$CO$18:$CO$1017),0) -> 0
B80: ZBM02 HEI MEM EX BKT | D80: BEER | E80: 4 | F80: 108 | G80: =IFERROR($E80*SUMIF('Daily Log'!$B$18:$B$1017,$B80,'Daily Log'!$C$18:$C$1017),0) -> 12 | H80: =IFERROR($E80*SUMIF('Daily Log'!$E$18:$E$1017,$B80,'Daily Log'!$F$18:$F$1017),0) -> 0 | I80: =IFERROR($E80*SUMIF('Daily Log'!$H$18:$H$1017,$B80,'Daily Log'!$I$18:$I$1017),0) -> 0 | J80: =IFERROR($E80*SUMIF('Daily Log'!$K$18:$K$1017,$B80,'Daily Log'!$L$18:$L$1017),0) -> 0 | K80: =IFERROR($E80*SUMIF('Daily Log'!$N$18:$N$1017,$B80,'Daily Log'!$O$18:$O$1017),0) -> 0 | L80: =IFERROR($E80*SUMIF('Daily Log'!$Q$18:$Q$1017,$B80,'Daily Log'!$R$18:$R$1017),0) -> 0 | M80: =IFERROR($E80*SUMIF('Daily Log'!$T$18:$T$1017,$B80,'Daily Log'!$U$18:$U$1017),0) -> 0 | N80: =IFERROR($E80*SUMIF('Daily Log'!$W$18:$W$1017,$B80,'Daily Log'!$X$18:$X$1017),0) -> 60 | O80: =IFERROR($E80*SUMIF('Daily Log'!$Z$18:$Z$1017,$B80,'Daily Log'!$AA$18:$AA$1017),0) -> 0 | P80: =IFERROR($E80*SUMIF('Daily Log'!$AC$18:$AC$1017,$B80,'Daily Log'!$AD$18:$AD$1017),0) -> 0 | Q80: =IFERROR($E80*SUMIF('Daily Log'!$AF$18:$AF$1017,$B80,'Daily Log'!$AG$18:$AG$1017),0) -> 0 | R80: =IFERROR($E80*SUMIF('Daily Log'!$AI$18:$AI$1017,$B80,'Daily Log'!$AJ$18:$AJ$1017),0) -> 0 | S80: =IFERROR($E80*SUMIF('Daily Log'!$AL$18:$AL$1017,$B80,'Daily Log'!$AM$18:$AM$1017),0) -> 0 | T80: =IFERROR($E80*SUMIF('Daily Log'!$AO$18:$AO$1017,$B80,'Daily Log'!$AP$18:$AP$1017),0) -> 0 | U80: =IFERROR($E80*SUMIF('Daily Log'!$AR$18:$AR$1017,$B80,'Daily Log'!$AS$18:$AS$1017),0) -> 12 | V80: =IFERROR($E80*SUMIF('Daily Log'!$AU$18:$AU$1017,$B80,'Daily Log'!$AV$18:$AV$1017),0) -> 0 | W80: =IFERROR($E80*SUMIF('Daily Log'!$AX$18:$AX$1017,$B80,'Daily Log'!$AY$18:$AY$1017),0) -> 0 | X80: =IFERROR($E80*SUMIF('Daily Log'!$BA$18:$BA$1017,$B80,'Daily Log'!$BB$18:$BB$1017),0) -> 0 | Y80: =IFERROR($E80*SUMIF('Daily Log'!$BD$18:$BD$1017,$B80,'Daily Log'!$BE$18:$BE$1017),0) -> 0 | Z80: =IFERROR($E80*SUMIF('Daily Log'!$BG$18:$BG$1017,$B80,'Daily Log'!$BH$18:$BH$1017),0) -> 0 | AA80: =IFERROR($E80*SUMIF('Daily Log'!$BJ$18:$BJ$1017,$B80,'Daily Log'!$BK$18:$BK$1017),0) -> 0 | AB80: =IFERROR($E80*SUMIF('Daily Log'!$BM$18:$BM$1017,$B80,'Daily Log'!$BN$18:$BN$1017),0) -> 12 | AC80: =IFERROR($E80*SUMIF('Daily Log'!$BP$18:$BP$1017,$B80,'Daily Log'!$BQ$18:$BQ$1017),0) -> 0 | AD80: =IFERROR($E80*SUMIF('Daily Log'!$BS$18:$BS$1017,$B80,'Daily Log'!$BT$18:$BT$1017),0) -> 0 | AE80: =IFERROR($E80*SUMIF('Daily Log'!$BV$18:$BV$1017,$B80,'Daily Log'!$BW$18:$BW$1017),0) -> 0 | AF80: =IFERROR($E80*SUMIF('Daily Log'!$BY$18:$BY$1017,$B80,'Daily Log'!$BZ$18:$BZ$1017),0) -> 0 | AG80: =IFERROR($E80*SUMIF('Daily Log'!$CB$18:$CB$1017,$B80,'Daily Log'!$CC$18:$CC$1017),0) -> 0 | AH80: =IFERROR($E80*SUMIF('Daily Log'!$CE$18:$CE$1017,$B80,'Daily Log'!$CF$18:$CF$1017),0) -> 0 | AI80: =IFERROR($E80*SUMIF('Daily Log'!$CH$18:$CH$1017,$B80,'Daily Log'!$CI$18:$CI$1017),0) -> 12 | AJ80: =IFERROR($E80*SUMIF('Daily Log'!$CK$18:$CK$1017,$B80,'Daily Log'!$CL$18:$CL$1017),0) -> 0 | AK80: =IFERROR($E80*SUMIF('Daily Log'!$CN$18:$CN$1017,$B80,'Daily Log'!$CO$18:$CO$1017),0) -> 0
B81: HEINEKEN BEER TOTAL | D81: BEER | F81: 716 | G81: =SUM(G74:G80) -> 24 | H81: =SUM(H74:H78) -> 36 | I81: 12 | J81: =SUM(J74:J80) -> 92 | K81: =SUM(K74:K80) -> 26 | L81: =SUM(L74:L80) -> 8 | M81: 52 | N81: 64 | O81: 52 | P81: 0 | Q81: 1 | R81: 8 | S81: =SUM(S74:S80) -> 13 | T81: =SUM(T74:T79) -> 0 | U81: =SUM(U74:U80) -> 12 | V81: 85 | W81: =SUM(W74:W80) -> 4 | X81: =SUM(X74:X80) -> 12 | Y81: =SUM(Y74:Y80) -> 11 | Z81: 0 | AA81: 16 | AB81: =SUM(AB74:AB80) -> 30 | AC81: =SUM(AC74:AC80) -> 72 | AD81: 6 | AE81: 16 | AF81: 24 | AG81: =SUM(AG74:AG80) -> 12 | AH81: 0 | AI81: =SUM(AI74:AI80) -> 24 | AJ81: =SUM(AJ74:AJ79) -> 4 | AK81: 0
B82: BT01 7001:TIG BTL | D82: BEER | E82: 1 | F82: =SUM($G82:$AK82) -> 37 | G82: =IFERROR($E82*SUMIF('Daily Log'!$B$18:$B$1017,$B82,'Daily Log'!$C$18:$C$1017),0) -> 2 | H82: =IFERROR($E82*SUMIF('Daily Log'!$E$18:$E$1017,$B82,'Daily Log'!$F$18:$F$1017),0) -> 0 | I82: =IFERROR($E82*SUMIF('Daily Log'!$H$18:$H$1017,$B82,'Daily Log'!$I$18:$I$1017),0) -> 2 | J82: =IFERROR($E82*SUMIF('Daily Log'!$K$18:$K$1017,$B82,'Daily Log'!$L$18:$L$1017),0) -> 0 | K82: =IFERROR($E82*SUMIF('Daily Log'!$N$18:$N$1017,$B82,'Daily Log'!$O$18:$O$1017),0) -> 1 | L82: =IFERROR($E82*SUMIF('Daily Log'!$Q$18:$Q$1017,$B82,'Daily Log'!$R$18:$R$1017),0) -> 0 | M82: =IFERROR($E82*SUMIF('Daily Log'!$T$18:$T$1017,$B82,'Daily Log'!$U$18:$U$1017),0) -> 2 | N82: =IFERROR($E82*SUMIF('Daily Log'!$W$18:$W$1017,$B82,'Daily Log'!$X$18:$X$1017),0) -> 1 | O82: =IFERROR($E82*SUMIF('Daily Log'!$Z$18:$Z$1017,$B82,'Daily Log'!$AA$18:$AA$1017),0) -> 0 | P82: =IFERROR($E82*SUMIF('Daily Log'!$AC$18:$AC$1017,$B82,'Daily Log'!$AD$18:$AD$1017),0) -> 0 | Q82: =IFERROR($E82*SUMIF('Daily Log'!$AF$18:$AF$1017,$B82,'Daily Log'!$AG$18:$AG$1017),0) -> 0 | R82: =IFERROR($E82*SUMIF('Daily Log'!$AI$18:$AI$1017,$B82,'Daily Log'!$AJ$18:$AJ$1017),0) -> 0 | S82: =IFERROR($E82*SUMIF('Daily Log'!$AL$18:$AL$1017,$B82,'Daily Log'!$AM$18:$AM$1017),0) -> 0 | T82: =IFERROR($E82*SUMIF('Daily Log'!$AO$18:$AO$1017,$B82,'Daily Log'!$AP$18:$AP$1017),0) -> 0 | U82: =IFERROR($E82*SUMIF('Daily Log'!$AR$18:$AR$1017,$B82,'Daily Log'!$AS$18:$AS$1017),0) -> 3 | V82: =IFERROR($E82*SUMIF('Daily Log'!$AU$18:$AU$1017,$B82,'Daily Log'!$AV$18:$AV$1017),0) -> 5 | W82: =IFERROR($E82*SUMIF('Daily Log'!$AX$18:$AX$1017,$B82,'Daily Log'!$AY$18:$AY$1017),0) -> 0 | X82: =IFERROR($E82*SUMIF('Daily Log'!$BA$18:$BA$1017,$B82,'Daily Log'!$BB$18:$BB$1017),0) -> 2 | Y82: =IFERROR($E82*SUMIF('Daily Log'!$BD$18:$BD$1017,$B82,'Daily Log'!$BE$18:$BE$1017),0) -> 1 | Z82: =IFERROR($E82*SUMIF('Daily Log'!$BG$18:$BG$1017,$B82,'Daily Log'!$BH$18:$BH$1017),0) -> 1 | AA82: =IFERROR($E82*SUMIF('Daily Log'!$BJ$18:$BJ$1017,$B82,'Daily Log'!$BK$18:$BK$1017),0) -> 1 | AB82: =IFERROR($E82*SUMIF('Daily Log'!$BM$18:$BM$1017,$B82,'Daily Log'!$BN$18:$BN$1017),0) -> 0 | AC82: =IFERROR($E82*SUMIF('Daily Log'!$BP$18:$BP$1017,$B82,'Daily Log'!$BQ$18:$BQ$1017),0) -> 0 | AD82: =IFERROR($E82*SUMIF('Daily Log'!$BS$18:$BS$1017,$B82,'Daily Log'!$BT$18:$BT$1017),0) -> 5 | AE82: =IFERROR($E82*SUMIF('Daily Log'!$BV$18:$BV$1017,$B82,'Daily Log'!$BW$18:$BW$1017),0) -> 0 | AF82: =IFERROR($E82*SUMIF('Daily Log'!$BY$18:$BY$1017,$B82,'Daily Log'!$BZ$18:$BZ$1017),0) -> 4 | AG82: =IFERROR($E82*SUMIF('Daily Log'!$CB$18:$CB$1017,$B82,'Daily Log'!$CC$18:$CC$1017),0) -> 6 | AH82: =IFERROR($E82*SUMIF('Daily Log'!$CE$18:$CE$1017,$B82,'Daily Log'!$CF$18:$CF$1017),0) -> 0 | AI82: =IFERROR($E82*SUMIF('Daily Log'!$CH$18:$CH$1017,$B82,'Daily Log'!$CI$18:$CI$1017),0) -> 0 | AJ82: =IFERROR($E82*SUMIF('Daily Log'!$CK$18:$CK$1017,$B82,'Daily Log'!$CL$18:$CL$1017),0) -> 1 | AK82: =IFERROR($E82*SUMIF('Daily Log'!$CN$18:$CN$1017,$B82,'Daily Log'!$CO$18:$CO$1017),0) -> 0
B83: BT02 7002:TIG BKT | D83: BEER | E83: 4 | F83: =SUM($G83:$AK83) -> 1572 | G83: =IFERROR($E83*SUMIF('Daily Log'!$B$18:$B$1017,$B83,'Daily Log'!$C$18:$C$1017),0) -> 100 | H83: =IFERROR($E83*SUMIF('Daily Log'!$E$18:$E$1017,$B83,'Daily Log'!$F$18:$F$1017),0) -> 28 | I83: =IFERROR($E83*SUMIF('Daily Log'!$H$18:$H$1017,$B83,'Daily Log'!$I$18:$I$1017),0) -> 64 | J83: =IFERROR($E83*SUMIF('Daily Log'!$K$18:$K$1017,$B83,'Daily Log'!$L$18:$L$1017),0) -> 52 | K83: =IFERROR($E83*SUMIF('Daily Log'!$N$18:$N$1017,$B83,'Daily Log'!$O$18:$O$1017),0) -> 116 | L83: =IFERROR($E83*SUMIF('Daily Log'!$Q$18:$Q$1017,$B83,'Daily Log'!$R$18:$R$1017),0) -> 36 | M83: =IFERROR($E83*SUMIF('Daily Log'!$T$18:$T$1017,$B83,'Daily Log'!$U$18:$U$1017),0) -> 68 | N83: =IFERROR($E83*SUMIF('Daily Log'!$W$18:$W$1017,$B83,'Daily Log'!$X$18:$X$1017),0) -> 64 | O83: =IFERROR($E83*SUMIF('Daily Log'!$Z$18:$Z$1017,$B83,'Daily Log'!$AA$18:$AA$1017),0) -> 52 | P83: =IFERROR($E83*SUMIF('Daily Log'!$AC$18:$AC$1017,$B83,'Daily Log'!$AD$18:$AD$1017),0) -> 8 | Q83: =IFERROR($E83*SUMIF('Daily Log'!$AF$18:$AF$1017,$B83,'Daily Log'!$AG$18:$AG$1017),0) -> 48 | R83: =IFERROR($E83*SUMIF('Daily Log'!$AI$18:$AI$1017,$B83,'Daily Log'!$AJ$18:$AJ$1017),0) -> 56 | S83: =IFERROR($E83*SUMIF('Daily Log'!$AL$18:$AL$1017,$B83,'Daily Log'!$AM$18:$AM$1017),0) -> 24 | T83: =IFERROR($E83*SUMIF('Daily Log'!$AO$18:$AO$1017,$B83,'Daily Log'!$AP$18:$AP$1017),0) -> 76 | U83: =IFERROR($E83*SUMIF('Daily Log'!$AR$18:$AR$1017,$B83,'Daily Log'!$AS$18:$AS$1017),0) -> 24 | V83: =IFERROR($E83*SUMIF('Daily Log'!$AU$18:$AU$1017,$B83,'Daily Log'!$AV$18:$AV$1017),0) -> 56 | W83: =IFERROR($E83*SUMIF('Daily Log'!$AX$18:$AX$1017,$B83,'Daily Log'!$AY$18:$AY$1017),0) -> 32 | X83: =IFERROR($E83*SUMIF('Daily Log'!$BA$18:$BA$1017,$B83,'Daily Log'!$BB$18:$BB$1017),0) -> 32 | Y83: =IFERROR($E83*SUMIF('Daily Log'!$BD$18:$BD$1017,$B83,'Daily Log'!$BE$18:$BE$1017),0) -> 48 | Z83: =IFERROR($E83*SUMIF('Daily Log'!$BG$18:$BG$1017,$B83,'Daily Log'!$BH$18:$BH$1017),0) -> 0 | AA83: =IFERROR($E83*SUMIF('Daily Log'!$BJ$18:$BJ$1017,$B83,'Daily Log'!$BK$18:$BK$1017),0) -> 68 | AB83: =IFERROR($E83*SUMIF('Daily Log'!$BM$18:$BM$1017,$B83,'Daily Log'!$BN$18:$BN$1017),0) -> 56 | AC83: =IFERROR($E83*SUMIF('Daily Log'!$BP$18:$BP$1017,$B83,'Daily Log'!$BQ$18:$BQ$1017),0) -> 24 | AD83: =IFERROR($E83*SUMIF('Daily Log'!$BS$18:$BS$1017,$B83,'Daily Log'!$BT$18:$BT$1017),0) -> 84 | AE83: =IFERROR($E83*SUMIF('Daily Log'!$BV$18:$BV$1017,$B83,'Daily Log'!$BW$18:$BW$1017),0) -> 60 | AF83: =IFERROR($E83*SUMIF('Daily Log'!$BY$18:$BY$1017,$B83,'Daily Log'!$BZ$18:$BZ$1017),0) -> 40 | AG83: =IFERROR($E83*SUMIF('Daily Log'!$CB$18:$CB$1017,$B83,'Daily Log'!$CC$18:$CC$1017),0) -> 44 | AH83: =IFERROR($E83*SUMIF('Daily Log'!$CE$18:$CE$1017,$B83,'Daily Log'!$CF$18:$CF$1017),0) -> 80 | AI83: =IFERROR($E83*SUMIF('Daily Log'!$CH$18:$CH$1017,$B83,'Daily Log'!$CI$18:$CI$1017),0) -> 64 | AJ83: =IFERROR($E83*SUMIF('Daily Log'!$CK$18:$CK$1017,$B83,'Daily Log'!$CL$18:$CL$1017),0) -> 68 | AK83: =IFERROR($E83*SUMIF('Daily Log'!$CN$18:$CN$1017,$B83,'Daily Log'!$CO$18:$CO$1017),0) -> 0
B84: BT03 7003:TIG RND | D84: BEER | E84: 12 | F84: =SUM($G84:$AK84) -> 792 | G84: =IFERROR($E84*SUMIF('Daily Log'!$B$18:$B$1017,$B84,'Daily Log'!$C$18:$C$1017),0) -> 36 | H84: =IFERROR($E84*SUMIF('Daily Log'!$E$18:$E$1017,$B84,'Daily Log'!$F$18:$F$1017),0) -> 0 | I84: =IFERROR($E84*SUMIF('Daily Log'!$H$18:$H$1017,$B84,'Daily Log'!$I$18:$I$1017),0) -> 36 | J84: =IFERROR($E84*SUMIF('Daily Log'!$K$18:$K$1017,$B84,'Daily Log'!$L$18:$L$1017),0) -> 0 | K84: =IFERROR($E84*SUMIF('Daily Log'!$N$18:$N$1017,$B84,'Daily Log'!$O$18:$O$1017),0) -> 60 | L84: =IFERROR($E84*SUMIF('Daily Log'!$Q$18:$Q$1017,$B84,'Daily Log'!$R$18:$R$1017),0) -> 48 | M84: =IFERROR($E84*SUMIF('Daily Log'!$T$18:$T$1017,$B84,'Daily Log'!$U$18:$U$1017),0) -> 0 | N84: =IFERROR($E84*SUMIF('Daily Log'!$W$18:$W$1017,$B84,'Daily Log'!$X$18:$X$1017),0) -> 60 | O84: =IFERROR($E84*SUMIF('Daily Log'!$Z$18:$Z$1017,$B84,'Daily Log'!$AA$18:$AA$1017),0) -> 0 | P84: =IFERROR($E84*SUMIF('Daily Log'!$AC$18:$AC$1017,$B84,'Daily Log'!$AD$18:$AD$1017),0) -> 24 | Q84: =IFERROR($E84*SUMIF('Daily Log'!$AF$18:$AF$1017,$B84,'Daily Log'!$AG$18:$AG$1017),0) -> 12 | R84: =IFERROR($E84*SUMIF('Daily Log'!$AI$18:$AI$1017,$B84,'Daily Log'!$AJ$18:$AJ$1017),0) -> 48 | S84: =IFERROR($E84*SUMIF('Daily Log'!$AL$18:$AL$1017,$B84,'Daily Log'!$AM$18:$AM$1017),0) -> 12 | T84: =IFERROR($E84*SUMIF('Daily Log'!$AO$18:$AO$1017,$B84,'Daily Log'!$AP$18:$AP$1017),0) -> 0 | U84: =IFERROR($E84*SUMIF('Daily Log'!$AR$18:$AR$1017,$B84,'Daily Log'!$AS$18:$AS$1017),0) -> 12 | V84: =IFERROR($E84*SUMIF('Daily Log'!$AU$18:$AU$1017,$B84,'Daily Log'!$AV$18:$AV$1017),0) -> 24 | W84: =IFERROR($E84*SUMIF('Daily Log'!$AX$18:$AX$1017,$B84,'Daily Log'!$AY$18:$AY$1017),0) -> 60 | X84: =IFERROR($E84*SUMIF('Daily Log'!$BA$18:$BA$1017,$B84,'Daily Log'!$BB$18:$BB$1017),0) -> 12 | Y84: =IFERROR($E84*SUMIF('Daily Log'!$BD$18:$BD$1017,$B84,'Daily Log'!$BE$18:$BE$1017),0) -> 60 | Z84: =IFERROR($E84*SUMIF('Daily Log'!$BG$18:$BG$1017,$B84,'Daily Log'!$BH$18:$BH$1017),0) -> 12 | AA84: =IFERROR($E84*SUMIF('Daily Log'!$BJ$18:$BJ$1017,$B84,'Daily Log'!$BK$18:$BK$1017),0) -> 0 | AB84: =IFERROR($E84*SUMIF('Daily Log'!$BM$18:$BM$1017,$B84,'Daily Log'!$BN$18:$BN$1017),0) -> 48 | AC84: =IFERROR($E84*SUMIF('Daily Log'!$BP$18:$BP$1017,$B84,'Daily Log'!$BQ$18:$BQ$1017),0) -> 12 | AD84: =IFERROR($E84*SUMIF('Daily Log'!$BS$18:$BS$1017,$B84,'Daily Log'!$BT$18:$BT$1017),0) -> 24 | AE84: =IFERROR($E84*SUMIF('Daily Log'!$BV$18:$BV$1017,$B84,'Daily Log'!$BW$18:$BW$1017),0) -> 36 | AF84: =IFERROR($E84*SUMIF('Daily Log'!$BY$18:$BY$1017,$B84,'Daily Log'!$BZ$18:$BZ$1017),0) -> 84 | AG84: =IFERROR($E84*SUMIF('Daily Log'!$CB$18:$CB$1017,$B84,'Daily Log'!$CC$18:$CC$1017),0) -> 12 | AH84: =IFERROR($E84*SUMIF('Daily Log'!$CE$18:$CE$1017,$B84,'Daily Log'!$CF$18:$CF$1017),0) -> 0 | AI84: =IFERROR($E84*SUMIF('Daily Log'!$CH$18:$CH$1017,$B84,'Daily Log'!$CI$18:$CI$1017),0) -> 12 | AJ84: =IFERROR($E84*SUMIF('Daily Log'!$CK$18:$CK$1017,$B84,'Daily Log'!$CL$18:$CL$1017),0) -> 48 | AK84: =IFERROR($E84*SUMIF('Daily Log'!$CN$18:$CN$1017,$B84,'Daily Log'!$CO$18:$CO$1017),0) -> 0
B85: BT05 7005:TIG RD BTL | D85: BEER | E85: 1 | F85: =SUM($G85:$AK85) -> 0 | G85: =IFERROR($E85*SUMIF('Daily Log'!$B$18:$B$1017,$B85,'Daily Log'!$C$18:$C$1017),0) -> 0 | H85: =IFERROR($E85*SUMIF('Daily Log'!$E$18:$E$1017,$B85,'Daily Log'!$F$18:$F$1017),0) -> 0 | I85: =IFERROR($E85*SUMIF('Daily Log'!$H$18:$H$1017,$B85,'Daily Log'!$I$18:$I$1017),0) -> 0 | J85: =IFERROR($E85*SUMIF('Daily Log'!$K$18:$K$1017,$B85,'Daily Log'!$L$18:$L$1017),0) -> 0 | K85: =IFERROR($E85*SUMIF('Daily Log'!$N$18:$N$1017,$B85,'Daily Log'!$O$18:$O$1017),0) -> 0 | L85: =IFERROR($E85*SUMIF('Daily Log'!$Q$18:$Q$1017,$B85,'Daily Log'!$R$18:$R$1017),0) -> 0 | M85: =IFERROR($E85*SUMIF('Daily Log'!$T$18:$T$1017,$B85,'Daily Log'!$U$18:$U$1017),0) -> 0 | N85: =IFERROR($E85*SUMIF('Daily Log'!$W$18:$W$1017,$B85,'Daily Log'!$X$18:$X$1017),0) -> 0 | O85: =IFERROR($E85*SUMIF('Daily Log'!$Z$18:$Z$1017,$B85,'Daily Log'!$AA$18:$AA$1017),0) -> 0 | P85: =IFERROR($E85*SUMIF('Daily Log'!$AC$18:$AC$1017,$B85,'Daily Log'!$AD$18:$AD$1017),0) -> 0 | Q85: =IFERROR($E85*SUMIF('Daily Log'!$AF$18:$AF$1017,$B85,'Daily Log'!$AG$18:$AG$1017),0) -> 0 | R85: =IFERROR($E85*SUMIF('Daily Log'!$AI$18:$AI$1017,$B85,'Daily Log'!$AJ$18:$AJ$1017),0) -> 0 | S85: =IFERROR($E85*SUMIF('Daily Log'!$AL$18:$AL$1017,$B85,'Daily Log'!$AM$18:$AM$1017),0) -> 0 | T85: =IFERROR($E85*SUMIF('Daily Log'!$AO$18:$AO$1017,$B85,'Daily Log'!$AP$18:$AP$1017),0) -> 0 | U85: =IFERROR($E85*SUMIF('Daily Log'!$AR$18:$AR$1017,$B85,'Daily Log'!$AS$18:$AS$1017),0) -> 0 | V85: =IFERROR($E85*SUMIF('Daily Log'!$AU$18:$AU$1017,$B85,'Daily Log'!$AV$18:$AV$1017),0) -> 0 | W85: =IFERROR($E85*SUMIF('Daily Log'!$AX$18:$AX$1017,$B85,'Daily Log'!$AY$18:$AY$1017),0) -> 0 | X85: =IFERROR($E85*SUMIF('Daily Log'!$BA$18:$BA$1017,$B85,'Daily Log'!$BB$18:$BB$1017),0) -> 0 | Y85: =IFERROR($E85*SUMIF('Daily Log'!$BD$18:$BD$1017,$B85,'Daily Log'!$BE$18:$BE$1017),0) -> 0 | Z85: =IFERROR($E85*SUMIF('Daily Log'!$BG$18:$BG$1017,$B85,'Daily Log'!$BH$18:$BH$1017),0) -> 0 | AA85: =IFERROR($E85*SUMIF('Daily Log'!$BJ$18:$BJ$1017,$B85,'Daily Log'!$BK$18:$BK$1017),0) -> 0 | AB85: =IFERROR($E85*SUMIF('Daily Log'!$BM$18:$BM$1017,$B85,'Daily Log'!$BN$18:$BN$1017),0) -> 0 | AC85: =IFERROR($E85*SUMIF('Daily Log'!$BP$18:$BP$1017,$B85,'Daily Log'!$BQ$18:$BQ$1017),0) -> 0 | AD85: =IFERROR($E85*SUMIF('Daily Log'!$BS$18:$BS$1017,$B85,'Daily Log'!$BT$18:$BT$1017),0) -> 0 | AE85: =IFERROR($E85*SUMIF('Daily Log'!$BV$18:$BV$1017,$B85,'Daily Log'!$BW$18:$BW$1017),0) -> 0 | AF85: =IFERROR($E85*SUMIF('Daily Log'!$BY$18:$BY$1017,$B85,'Daily Log'!$BZ$18:$BZ$1017),0) -> 0 | AG85: =IFERROR($E85*SUMIF('Daily Log'!$CB$18:$CB$1017,$B85,'Daily Log'!$CC$18:$CC$1017),0) -> 0 | AH85: =IFERROR($E85*SUMIF('Daily Log'!$CE$18:$CE$1017,$B85,'Daily Log'!$CF$18:$CF$1017),0) -> 0 | AI85: =IFERROR($E85*SUMIF('Daily Log'!$CH$18:$CH$1017,$B85,'Daily Log'!$CI$18:$CI$1017),0) -> 0 | AJ85: =IFERROR($E85*SUMIF('Daily Log'!$CK$18:$CK$1017,$B85,'Daily Log'!$CL$18:$CL$1017),0) -> 0 | AK85: =IFERROR($E85*SUMIF('Daily Log'!$CN$18:$CN$1017,$B85,'Daily Log'!$CO$18:$CO$1017),0) -> 0
B86: BT06 7006:TIG RD BKT | D86: BEER | E86: 4 | F86: 0 | G86: =IFERROR($E86*SUMIF('Daily Log'!$B$18:$B$1017,$B86,'Daily Log'!$C$18:$C$1017),0) -> 0 | H86: =IFERROR($E86*SUMIF('Daily Log'!$E$18:$E$1017,$B86,'Daily Log'!$F$18:$F$1017),0) -> 0 | I86: =IFERROR($E86*SUMIF('Daily Log'!$H$18:$H$1017,$B86,'Daily Log'!$I$18:$I$1017),0) -> 0 | J86: =IFERROR($E86*SUMIF('Daily Log'!$K$18:$K$1017,$B86,'Daily Log'!$L$18:$L$1017),0) -> 0 | K86: =IFERROR($E86*SUMIF('Daily Log'!$N$18:$N$1017,$B86,'Daily Log'!$O$18:$O$1017),0) -> 0 | L86: =IFERROR($E86*SUMIF('Daily Log'!$Q$18:$Q$1017,$B86,'Daily Log'!$R$18:$R$1017),0) -> 0 | M86: =IFERROR($E86*SUMIF('Daily Log'!$T$18:$T$1017,$B86,'Daily Log'!$U$18:$U$1017),0) -> 0 | N86: =IFERROR($E86*SUMIF('Daily Log'!$W$18:$W$1017,$B86,'Daily Log'!$X$18:$X$1017),0) -> 0 | O86: =IFERROR($E86*SUMIF('Daily Log'!$Z$18:$Z$1017,$B86,'Daily Log'!$AA$18:$AA$1017),0) -> 0 | P86: =IFERROR($E86*SUMIF('Daily Log'!$AC$18:$AC$1017,$B86,'Daily Log'!$AD$18:$AD$1017),0) -> 0 | Q86: =IFERROR($E86*SUMIF('Daily Log'!$AF$18:$AF$1017,$B86,'Daily Log'!$AG$18:$AG$1017),0) -> 0 | R86: =IFERROR($E86*SUMIF('Daily Log'!$AI$18:$AI$1017,$B86,'Daily Log'!$AJ$18:$AJ$1017),0) -> 0 | S86: =IFERROR($E86*SUMIF('Daily Log'!$AL$18:$AL$1017,$B86,'Daily Log'!$AM$18:$AM$1017),0) -> 0 | T86: =IFERROR($E86*SUMIF('Daily Log'!$AO$18:$AO$1017,$B86,'Daily Log'!$AP$18:$AP$1017),0) -> 0 | U86: =IFERROR($E86*SUMIF('Daily Log'!$AR$18:$AR$1017,$B86,'Daily Log'!$AS$18:$AS$1017),0) -> 0 | V86: =IFERROR($E86*SUMIF('Daily Log'!$AU$18:$AU$1017,$B86,'Daily Log'!$AV$18:$AV$1017),0) -> 0 | W86: =IFERROR($E86*SUMIF('Daily Log'!$AX$18:$AX$1017,$B86,'Daily Log'!$AY$18:$AY$1017),0) -> 0 | X86: =IFERROR($E86*SUMIF('Daily Log'!$BA$18:$BA$1017,$B86,'Daily Log'!$BB$18:$BB$1017),0) -> 0 | Y86: =IFERROR($E86*SUMIF('Daily Log'!$BD$18:$BD$1017,$B86,'Daily Log'!$BE$18:$BE$1017),0) -> 0 | Z86: =IFERROR($E86*SUMIF('Daily Log'!$BG$18:$BG$1017,$B86,'Daily Log'!$BH$18:$BH$1017),0) -> 0 | AA86: =IFERROR($E86*SUMIF('Daily Log'!$BJ$18:$BJ$1017,$B86,'Daily Log'!$BK$18:$BK$1017),0) -> 0 | AB86: =IFERROR($E86*SUMIF('Daily Log'!$BM$18:$BM$1017,$B86,'Daily Log'!$BN$18:$BN$1017),0) -> 0 | AC86: =IFERROR($E86*SUMIF('Daily Log'!$BP$18:$BP$1017,$B86,'Daily Log'!$BQ$18:$BQ$1017),0) -> 0 | AD86: =IFERROR($E86*SUMIF('Daily Log'!$BS$18:$BS$1017,$B86,'Daily Log'!$BT$18:$BT$1017),0) -> 0 | AE86: =IFERROR($E86*SUMIF('Daily Log'!$BV$18:$BV$1017,$B86,'Daily Log'!$BW$18:$BW$1017),0) -> 0 | AF86: =IFERROR($E86*SUMIF('Daily Log'!$BY$18:$BY$1017,$B86,'Daily Log'!$BZ$18:$BZ$1017),0) -> 0 | AG86: =IFERROR($E86*SUMIF('Daily Log'!$CB$18:$CB$1017,$B86,'Daily Log'!$CC$18:$CC$1017),0) -> 0 | AH86: =IFERROR($E86*SUMIF('Daily Log'!$CE$18:$CE$1017,$B86,'Daily Log'!$CF$18:$CF$1017),0) -> 0 | AI86: =IFERROR($E86*SUMIF('Daily Log'!$CH$18:$CH$1017,$B86,'Daily Log'!$CI$18:$CI$1017),0) -> 0 | AJ86: =IFERROR($E86*SUMIF('Daily Log'!$CK$18:$CK$1017,$B86,'Daily Log'!$CL$18:$CL$1017),0) -> 0 | AK86: =IFERROR($E86*SUMIF('Daily Log'!$CN$18:$CN$1017,$B86,'Daily Log'!$CO$18:$CO$1017),0) -> 0
B87: CZ06 87006:TIG 2BKT P *Link BT02 | D87: BEER | F87: 0 | O87: =IFERROR($E87*SUMIF('Daily Log'!$Z$18:$Z$1017,$B87,'Daily Log'!$AA$18:$AA$1017),0) -> 0 | T87: =IFERROR($E87*SUMIF('Daily Log'!$AO$18:$AO$1017,$B87,'Daily Log'!$AP$18:$AP$1017),0) -> 0 | AK87: =IFERROR($E87*SUMIF('Daily Log'!$CN$18:$CN$1017,$B87,'Daily Log'!$CO$18:$CO$1017),0) -> 0
B88: CZ02 87002:TIG BKT | D88: BEER | E88: 4 | F88: 12 | G88: =IFERROR($E88*SUMIF('Daily Log'!$B$18:$B$1017,$B88,'Daily Log'!$C$18:$C$1017),0) -> 0 | H88: =IFERROR($E88*SUMIF('Daily Log'!$E$18:$E$1017,$B88,'Daily Log'!$F$18:$F$1017),0) -> 0 | I88: =IFERROR($E88*SUMIF('Daily Log'!$H$18:$H$1017,$B88,'Daily Log'!$I$18:$I$1017),0) -> 0 | J88: =IFERROR($E88*SUMIF('Daily Log'!$K$18:$K$1017,$B88,'Daily Log'!$L$18:$L$1017),0) -> 0 | K88: =IFERROR($E88*SUMIF('Daily Log'!$N$18:$N$1017,$B88,'Daily Log'!$O$18:$O$1017),0) -> 0 | L88: =IFERROR($E88*SUMIF('Daily Log'!$Q$18:$Q$1017,$B88,'Daily Log'!$R$18:$R$1017),0) -> 0 | M88: =IFERROR($E88*SUMIF('Daily Log'!$T$18:$T$1017,$B88,'Daily Log'!$U$18:$U$1017),0) -> 0 | N88: =IFERROR($E88*SUMIF('Daily Log'!$W$18:$W$1017,$B88,'Daily Log'!$X$18:$X$1017),0) -> 0 | O88: =IFERROR($E88*SUMIF('Daily Log'!$Z$18:$Z$1017,$B88,'Daily Log'!$AA$18:$AA$1017),0) -> 0 | P88: =IFERROR($E88*SUMIF('Daily Log'!$AC$18:$AC$1017,$B88,'Daily Log'!$AD$18:$AD$1017),0) -> 0 | Q88: =IFERROR($E88*SUMIF('Daily Log'!$AF$18:$AF$1017,$B88,'Daily Log'!$AG$18:$AG$1017),0) -> 0 | R88: =IFERROR($E88*SUMIF('Daily Log'!$AI$18:$AI$1017,$B88,'Daily Log'!$AJ$18:$AJ$1017),0) -> 0 | S88: =IFERROR($E88*SUMIF('Daily Log'!$AL$18:$AL$1017,$B88,'Daily Log'!$AM$18:$AM$1017),0) -> 0 | T88: =IFERROR($E88*SUMIF('Daily Log'!$AO$18:$AO$1017,$B88,'Daily Log'!$AP$18:$AP$1017),0) -> 0 | U88: =IFERROR($E88*SUMIF('Daily Log'!$AR$18:$AR$1017,$B88,'Daily Log'!$AS$18:$AS$1017),0) -> 0 | V88: =IFERROR($E88*SUMIF('Daily Log'!$AU$18:$AU$1017,$B88,'Daily Log'!$AV$18:$AV$1017),0) -> 0 | W88: =IFERROR($E88*SUMIF('Daily Log'!$AX$18:$AX$1017,$B88,'Daily Log'!$AY$18:$AY$1017),0) -> 0 | X88: =IFERROR($E88*SUMIF('Daily Log'!$BA$18:$BA$1017,$B88,'Daily Log'!$BB$18:$BB$1017),0) -> 0 | Y88: =IFERROR($E88*SUMIF('Daily Log'!$BD$18:$BD$1017,$B88,'Daily Log'!$BE$18:$BE$1017),0) -> 4 | Z88: =IFERROR($E88*SUMIF('Daily Log'!$BG$18:$BG$1017,$B88,'Daily Log'!$BH$18:$BH$1017),0) -> 8 | AA88: =IFERROR($E88*SUMIF('Daily Log'!$BJ$18:$BJ$1017,$B88,'Daily Log'!$BK$18:$BK$1017),0) -> 0 | AB88: =IFERROR($E88*SUMIF('Daily Log'!$BM$18:$BM$1017,$B88,'Daily Log'!$BN$18:$BN$1017),0) -> 0 | AC88: =IFERROR($E88*SUMIF('Daily Log'!$BP$18:$BP$1017,$B88,'Daily Log'!$BQ$18:$BQ$1017),0) -> 0 | AD88: =IFERROR($E88*SUMIF('Daily Log'!$BS$18:$BS$1017,$B88,'Daily Log'!$BT$18:$BT$1017),0) -> 0 | AE88: =IFERROR($E88*SUMIF('Daily Log'!$BV$18:$BV$1017,$B88,'Daily Log'!$BW$18:$BW$1017),0) -> 0 | AF88: =IFERROR($E88*SUMIF('Daily Log'!$BY$18:$BY$1017,$B88,'Daily Log'!$BZ$18:$BZ$1017),0) -> 0 | AG88: =IFERROR($E88*SUMIF('Daily Log'!$CB$18:$CB$1017,$B88,'Daily Log'!$CC$18:$CC$1017),0) -> 0 | AH88: =IFERROR($E88*SUMIF('Daily Log'!$CE$18:$CE$1017,$B88,'Daily Log'!$CF$18:$CF$1017),0) -> 0 | AI88: =IFERROR($E88*SUMIF('Daily Log'!$CH$18:$CH$1017,$B88,'Daily Log'!$CI$18:$CI$1017),0) -> 0 | AJ88: =IFERROR($E88*SUMIF('Daily Log'!$CK$18:$CK$1017,$B88,'Daily Log'!$CL$18:$CL$1017),0) -> 0 | AK88: =IFERROR($E88*SUMIF('Daily Log'!$CN$18:$CN$1017,$B88,'Daily Log'!$CO$18:$CO$1017),0) -> 0
B89: CZ01 87001:TIG BTL | D89: BEER | E89: 1 | F89: 1 | O89: =IFERROR($E89*SUMIF('Daily Log'!$Z$18:$Z$1017,$B89,'Daily Log'!$AA$18:$AA$1017),0) -> 0 | T89: =IFERROR($E89*SUMIF('Daily Log'!$AO$18:$AO$1017,$B89,'Daily Log'!$AP$18:$AP$1017),0) -> 1 | AF89: =IFERROR($E89*SUMIF('Daily Log'!$BY$18:$BY$1017,$B89,'Daily Log'!$BZ$18:$BZ$1017),0) -> 0
B90: ZBR01 TIG BKT | D90: BEER | E90: 4 | F90: 1816 | G90: =IFERROR($E90*SUMIF('Daily Log'!$B$18:$B$1017,$B90,'Daily Log'!$C$18:$C$1017),0) -> 60 | H90: =IFERROR($E90*SUMIF('Daily Log'!$B$18:$B$1017,$B90,'Daily Log'!$C$18:$C$1017),0) -> 60 | I90: =IFERROR($E90*SUMIF('Daily Log'!$B$18:$B$1017,$B90,'Daily Log'!$C$18:$C$1017),0) -> 60 | J90: =IFERROR($E90*SUMIF('Daily Log'!$B$18:$B$1017,$B90,'Daily Log'!$C$18:$C$1017),0) -> 60 | K90: =IFERROR($E90*SUMIF('Daily Log'!$N$18:$N$1017,$B90,'Daily Log'!$O$18:$O$1017),0) -> 156 | L90: =IFERROR($E90*SUMIF('Daily Log'!$Q$18:$Q$1017,$B90,'Daily Log'!$R$18:$R$1017),0) -> 48 | M90: =IFERROR($E90*SUMIF('Daily Log'!$T$18:$T$1017,$B90,'Daily Log'!$U$18:$U$1017),0) -> 60 | N90: =IFERROR($E90*SUMIF('Daily Log'!$W$18:$W$1017,$B90,'Daily Log'!$X$18:$X$1017),0) -> 32 | O90: =IFERROR($E90*SUMIF('Daily Log'!$Z$18:$Z$1017,$B90,'Daily Log'!$AA$18:$AA$1017),0) -> 24 | P90: =IFERROR($E90*SUMIF('Daily Log'!$AC$18:$AC$1017,$B90,'Daily Log'!$AD$18:$AD$1017),0) -> 36 | Q90: =IFERROR($E90*SUMIF('Daily Log'!$AF$18:$AF$1017,$B90,'Daily Log'!$AG$18:$AG$1017),0) -> 60 | R90: =IFERROR($E90*SUMIF('Daily Log'!$AI$18:$AI$1017,$B90,'Daily Log'!$AJ$18:$AJ$1017),0) -> 108 | S90: =IFERROR($E90*SUMIF('Daily Log'!$AL$18:$AL$1017,$B90,'Daily Log'!$AM$18:$AM$1017),0) -> 68 | T90: =IFERROR($E90*SUMIF('Daily Log'!$AO$18:$AO$1017,$B90,'Daily Log'!$AP$18:$AP$1017),0) -> 48 | U90: =IFERROR($E90*SUMIF('Daily Log'!$AR$18:$AR$1017,$B90,'Daily Log'!$AS$18:$AS$1017),0) -> 12 | V90: =IFERROR($E90*SUMIF('Daily Log'!$AU$18:$AU$1017,$B90,'Daily Log'!$AV$18:$AV$1017),0) -> 36 | W90: =IFERROR($E90*SUMIF('Daily Log'!$AX$18:$AX$1017,$B90,'Daily Log'!$AY$18:$AY$1017),0) -> 28 | X90: =IFERROR($E90*SUMIF('Daily Log'!$BA$18:$BA$1017,$B90,'Daily Log'!$BB$18:$BB$1017),0) -> 140 | Y90: =IFERROR($E90*SUMIF('Daily Log'!$BD$18:$BD$1017,$B90,'Daily Log'!$BE$18:$BE$1017),0) -> 144 | Z90: =IFERROR($E90*SUMIF('Daily Log'!$BG$18:$BG$1017,$B90,'Daily Log'!$BH$18:$BH$1017),0) -> 48 | AA90: =IFERROR($E90*SUMIF('Daily Log'!$BJ$18:$BJ$1017,$B90,'Daily Log'!$BK$18:$BK$1017),0) -> 0 | AB90: =IFERROR($E90*SUMIF('Daily Log'!$BM$18:$BM$1017,$B90,'Daily Log'!$BN$18:$BN$1017),0) -> 12 | AC90: =IFERROR($E90*SUMIF('Daily Log'!$BP$18:$BP$1017,$B90,'Daily Log'!$BQ$18:$BQ$1017),0) -> 24 | AD90: =IFERROR($E90*SUMIF('Daily Log'!$BS$18:$BS$1017,$B90,'Daily Log'!$BT$18:$BT$1017),0) -> 36 | AE90: =IFERROR($E90*SUMIF('Daily Log'!$BV$18:$BV$1017,$B90,'Daily Log'!$BW$18:$BW$1017),0) -> 48 | AF90: =IFERROR($E90*SUMIF('Daily Log'!$BY$18:$BY$1017,$B90,'Daily Log'!$BZ$18:$BZ$1017),0) -> 156 | AG90: =IFERROR($E90*SUMIF('Daily Log'!$CB$18:$CB$1017,$B90,'Daily Log'!$CC$18:$CC$1017),0) -> 48 | AH90: =IFERROR($E90*SUMIF('Daily Log'!$CE$18:$CE$1017,$B90,'Daily Log'!$CF$18:$CF$1017),0) -> 36 | AI90: =IFERROR($E90*SUMIF('Daily Log'!$CH$18:$CH$1017,$B90,'Daily Log'!$CI$18:$CI$1017),0) -> 0 | AJ90: =IFERROR($E90*SUMIF('Daily Log'!$CK$18:$CK$1017,$B90,'Daily Log'!$CL$18:$CL$1017),0) -> 168 | AK90: =IFERROR($E90*SUMIF('Daily Log'!$CN$18:$CN$1017,$B90,'Daily Log'!$CO$18:$CO$1017),0) -> 0
B91: ZBM01 TIG MEM BKT | D91: BEER | E91: 4 | F91: 12 | T91: =IFERROR($E91*SUMIF('Daily Log'!$AO$18:$AO$1017,$B91,'Daily Log'!$AP$18:$AP$1017),0) -> 0 | U91: =IFERROR($E91*SUMIF('Daily Log'!$AR$18:$AR$1017,$B91,'Daily Log'!$AS$18:$AS$1017),0) -> 12
B92: TIGER BEER TOTAL | D92: BEER | G92: =SUM(G82:G90) -> 198 | H92: 88 | I92: 162 | J92: 112 | K92: 333 | L92: 132 | M92: 130 | N92: 157 | O92: 76 | P92: 68 | Q92: 120 | R92: 212 | S92: 104 | T92: 125 | U92: =SUM(U82:U91) -> 63 | V92: =SUM(V82:V90) -> 121 | W92: 120 | X92: 186 | Y92: 257 | Z92: 69 | AA92: 69 | AB92: 116 | AC92: 60 | AD92: 149 | AE92: 144 | AF92: 284 | AG92: 110 | AH92: 116 | AI92: 76 | AJ92: 285 | AK92: 0
B93: BN02 8202:HOE BKT | D93: BEER | E93: 4 | F93: 16 | G93: =IFERROR($E93*SUMIF('Daily Log'!$B$18:$B$1017,$B93,'Daily Log'!$C$18:$C$1017),0) -> 0 | H93: =IFERROR($E93*SUMIF('Daily Log'!$E$18:$E$1017,$B93,'Daily Log'!$F$18:$F$1017),0) -> 0 | I93: =IFERROR($E93*SUMIF('Daily Log'!$H$18:$H$1017,$B93,'Daily Log'!$I$18:$I$1017),0) -> 0 | J93: =IFERROR($E93*SUMIF('Daily Log'!$K$18:$K$1017,$B93,'Daily Log'!$L$18:$L$1017),0) -> 4 | K93: =IFERROR($E93*SUMIF('Daily Log'!$N$18:$N$1017,$B93,'Daily Log'!$O$18:$O$1017),0) -> 0 | L93: =IFERROR($E93*SUMIF('Daily Log'!$Q$18:$Q$1017,$B93,'Daily Log'!$R$18:$R$1017),0) -> 0 | M93: =IFERROR($E93*SUMIF('Daily Log'!$T$18:$T$1017,$B93,'Daily Log'!$U$18:$U$1017),0) -> 0 | N93: =IFERROR($E93*SUMIF('Daily Log'!$W$18:$W$1017,$B93,'Daily Log'!$X$18:$X$1017),0) -> 0 | O93: =IFERROR($E93*SUMIF('Daily Log'!$Z$18:$Z$1017,$B93,'Daily Log'!$AA$18:$AA$1017),0) -> 0 | P93: =IFERROR($E93*SUMIF('Daily Log'!$AC$18:$AC$1017,$B93,'Daily Log'!$AD$18:$AD$1017),0) -> 0 | Q93: =IFERROR($E93*SUMIF('Daily Log'!$AF$18:$AF$1017,$B93,'Daily Log'!$AG$18:$AG$1017),0) -> 0 | R93: =IFERROR($E93*SUMIF('Daily Log'!$AI$18:$AI$1017,$B93,'Daily Log'!$AJ$18:$AJ$1017),0) -> 0 | S93: =IFERROR($E93*SUMIF('Daily Log'!$AL$18:$AL$1017,$B93,'Daily Log'!$AM$18:$AM$1017),0) -> 0 | T93: =IFERROR($E93*SUMIF('Daily Log'!$AO$18:$AO$1017,$B93,'Daily Log'!$AP$18:$AP$1017),0) -> 0 | U93: =IFERROR($E93*SUMIF('Daily Log'!$AR$18:$AR$1017,$B93,'Daily Log'!$AS$18:$AS$1017),0) -> 4 | V93: =IFERROR($E93*SUMIF('Daily Log'!$AU$18:$AU$1017,$B93,'Daily Log'!$AV$18:$AV$1017),0) -> 0 | W93: =IFERROR($E93*SUMIF('Daily Log'!$AX$18:$AX$1017,$B93,'Daily Log'!$AY$18:$AY$1017),0) -> 0 | X93: =IFERROR($E93*SUMIF('Daily Log'!$BA$18:$BA$1017,$B93,'Daily Log'!$BB$18:$BB$1017),0) -> 0 | Y93: =IFERROR($E93*SUMIF('Daily Log'!$BD$18:$BD$1017,$B93,'Daily Log'!$BE$18:$BE$1017),0) -> 8 | Z93: =IFERROR($E93*SUMIF('Daily Log'!$BG$18:$BG$1017,$B93,'Daily Log'!$BH$18:$BH$1017),0) -> 0 | AA93: =IFERROR($E93*SUMIF('Daily Log'!$BJ$18:$BJ$1017,$B93,'Daily Log'!$BK$18:$BK$1017),0) -> 0 | AB93: =IFERROR($E93*SUMIF('Daily Log'!$BM$18:$BM$1017,$B93,'Daily Log'!$BN$18:$BN$1017),0) -> 0 | AC93: =IFERROR($E93*SUMIF('Daily Log'!$BP$18:$BP$1017,$B93,'Daily Log'!$BQ$18:$BQ$1017),0) -> 0 | AD93: =IFERROR($E93*SUMIF('Daily Log'!$BS$18:$BS$1017,$B93,'Daily Log'!$BT$18:$BT$1017),0) -> 0 | AE93: =IFERROR($E93*SUMIF('Daily Log'!$BV$18:$BV$1017,$B93,'Daily Log'!$BW$18:$BW$1017),0) -> 0 | AF93: =IFERROR($E93*SUMIF('Daily Log'!$BY$18:$BY$1017,$B93,'Daily Log'!$BZ$18:$BZ$1017),0) -> 0 | AG93: =IFERROR($E93*SUMIF('Daily Log'!$CB$18:$CB$1017,$B93,'Daily Log'!$CC$18:$CC$1017),0) -> 0 | AH93: =IFERROR($E93*SUMIF('Daily Log'!$CE$18:$CE$1017,$B93,'Daily Log'!$CF$18:$CF$1017),0) -> 0 | AI93: =IFERROR($E93*SUMIF('Daily Log'!$CH$18:$CH$1017,$B93,'Daily Log'!$CI$18:$CI$1017),0) -> 0 | AJ93: =IFERROR($E93*SUMIF('Daily Log'!$CK$18:$CK$1017,$B93,'Daily Log'!$CL$18:$CL$1017),0) -> 0 | AK93: =IFERROR($E93*SUMIF('Daily Log'!$CN$18:$CN$1017,$B93,'Daily Log'!$CO$18:$CO$1017),0) -> 0
B94: BN01 8201:HOE BTL | D94: BEER | E94: 1 | F94: 1 | G94: =IFERROR($E94*SUMIF('Daily Log'!$B$18:$B$1017,$B94,'Daily Log'!$C$18:$C$1017),0) -> 0 | H94: =IFERROR($E94*SUMIF('Daily Log'!$E$18:$E$1017,$B94,'Daily Log'!$F$18:$F$1017),0) -> 0 | I94: =IFERROR($E94*SUMIF('Daily Log'!$H$18:$H$1017,$B94,'Daily Log'!$I$18:$I$1017),0) -> 0 | J94: =IFERROR($E94*SUMIF('Daily Log'!$K$18:$K$1017,$B94,'Daily Log'!$L$18:$L$1017),0) -> 0 | K94: =IFERROR($E94*SUMIF('Daily Log'!$N$18:$N$1017,$B94,'Daily Log'!$O$18:$O$1017),0) -> 0 | L94: =IFERROR($E94*SUMIF('Daily Log'!$Q$18:$Q$1017,$B94,'Daily Log'!$R$18:$R$1017),0) -> 0 | M94: =IFERROR($E94*SUMIF('Daily Log'!$T$18:$T$1017,$B94,'Daily Log'!$U$18:$U$1017),0) -> 0 | N94: =IFERROR($E94*SUMIF('Daily Log'!$W$18:$W$1017,$B94,'Daily Log'!$X$18:$X$1017),0) -> 0 | O94: =IFERROR($E94*SUMIF('Daily Log'!$Z$18:$Z$1017,$B94,'Daily Log'!$AA$18:$AA$1017),0) -> 0 | P94: =IFERROR($E94*SUMIF('Daily Log'!$AC$18:$AC$1017,$B94,'Daily Log'!$AD$18:$AD$1017),0) -> 0 | Q94: =IFERROR($E94*SUMIF('Daily Log'!$AF$18:$AF$1017,$B94,'Daily Log'!$AG$18:$AG$1017),0) -> 0 | R94: =IFERROR($E94*SUMIF('Daily Log'!$AI$18:$AI$1017,$B94,'Daily Log'!$AJ$18:$AJ$1017),0) -> 0 | S94: =IFERROR($E94*SUMIF('Daily Log'!$AL$18:$AL$1017,$B94,'Daily Log'!$AM$18:$AM$1017),0) -> 0 | T94: =IFERROR($E94*SUMIF('Daily Log'!$AO$18:$AO$1017,$B94,'Daily Log'!$AP$18:$AP$1017),0) -> 0 | U94: =IFERROR($E94*SUMIF('Daily Log'!$AR$18:$AR$1017,$B94,'Daily Log'!$AS$18:$AS$1017),0) -> 1 | V94: =IFERROR($E94*SUMIF('Daily Log'!$AU$18:$AU$1017,$B94,'Daily Log'!$AV$18:$AV$1017),0) -> 0 | W94: =IFERROR($E94*SUMIF('Daily Log'!$AX$18:$AX$1017,$B94,'Daily Log'!$AY$18:$AY$1017),0) -> 0 | X94: =IFERROR($E94*SUMIF('Daily Log'!$BA$18:$BA$1017,$B94,'Daily Log'!$BB$18:$BB$1017),0) -> 0 | Y94: =IFERROR($E94*SUMIF('Daily Log'!$BD$18:$BD$1017,$B94,'Daily Log'!$BE$18:$BE$1017),0) -> 0 | Z94: =IFERROR($E94*SUMIF('Daily Log'!$BG$18:$BG$1017,$B94,'Daily Log'!$BH$18:$BH$1017),0) -> 0 | AA94: =IFERROR($E94*SUMIF('Daily Log'!$BJ$18:$BJ$1017,$B94,'Daily Log'!$BK$18:$BK$1017),0) -> 0 | AB94: =IFERROR($E94*SUMIF('Daily Log'!$BM$18:$BM$1017,$B94,'Daily Log'!$BN$18:$BN$1017),0) -> 0 | AC94: =IFERROR($E94*SUMIF('Daily Log'!$BP$18:$BP$1017,$B94,'Daily Log'!$BQ$18:$BQ$1017),0) -> 0 | AD94: =IFERROR($E94*SUMIF('Daily Log'!$BS$18:$BS$1017,$B94,'Daily Log'!$BT$18:$BT$1017),0) -> 0 | AE94: =IFERROR($E94*SUMIF('Daily Log'!$BV$18:$BV$1017,$B94,'Daily Log'!$BW$18:$BW$1017),0) -> 0 | AF94: =IFERROR($E94*SUMIF('Daily Log'!$BY$18:$BY$1017,$B94,'Daily Log'!$BZ$18:$BZ$1017),0) -> 0 | AG94: =IFERROR($E94*SUMIF('Daily Log'!$CB$18:$CB$1017,$B94,'Daily Log'!$CC$18:$CC$1017),0) -> 0 | AH94: =IFERROR($E94*SUMIF('Daily Log'!$CE$18:$CE$1017,$B94,'Daily Log'!$CF$18:$CF$1017),0) -> 0 | AI94: =IFERROR($E94*SUMIF('Daily Log'!$CH$18:$CH$1017,$B94,'Daily Log'!$CI$18:$CI$1017),0) -> 0 | AJ94: =IFERROR($E94*SUMIF('Daily Log'!$CK$18:$CK$1017,$B94,'Daily Log'!$CL$18:$CL$1017),0) -> 0 | AK94: =IFERROR($E94*SUMIF('Daily Log'!$CN$18:$CN$1017,$B94,'Daily Log'!$CO$18:$CO$1017),0) -> 0
B95: CN01 88201:HOE BTL | D95: BEER | E95: 1 | F95: =SUM($G95:$AK95) -> 1 | G95: =IFERROR($E95*SUMIF('Daily Log'!$B$18:$B$1017,$B95,'Daily Log'!$C$18:$C$1017),0) -> 0 | H95: =IFERROR($E95*SUMIF('Daily Log'!$E$18:$E$1017,$B95,'Daily Log'!$F$18:$F$1017),0) -> 0 | I95: =IFERROR($E95*SUMIF('Daily Log'!$H$18:$H$1017,$B95,'Daily Log'!$I$18:$I$1017),0) -> 0 | J95: =IFERROR($E95*SUMIF('Daily Log'!$K$18:$K$1017,$B95,'Daily Log'!$L$18:$L$1017),0) -> 0 | K95: =IFERROR($E95*SUMIF('Daily Log'!$N$18:$N$1017,$B95,'Daily Log'!$O$18:$O$1017),0) -> 0 | L95: =IFERROR($E95*SUMIF('Daily Log'!$Q$18:$Q$1017,$B95,'Daily Log'!$R$18:$R$1017),0) -> 0 | M95: =IFERROR($E95*SUMIF('Daily Log'!$T$18:$T$1017,$B95,'Daily Log'!$U$18:$U$1017),0) -> 0 | N95: =IFERROR($E95*SUMIF('Daily Log'!$W$18:$W$1017,$B95,'Daily Log'!$X$18:$X$1017),0) -> 0 | O95: =IFERROR($E95*SUMIF('Daily Log'!$Z$18:$Z$1017,$B95,'Daily Log'!$AA$18:$AA$1017),0) -> 0 | P95: =IFERROR($E95*SUMIF('Daily Log'!$AC$18:$AC$1017,$B95,'Daily Log'!$AD$18:$AD$1017),0) -> 0 | Q95: =IFERROR($E95*SUMIF('Daily Log'!$AF$18:$AF$1017,$B95,'Daily Log'!$AG$18:$AG$1017),0) -> 0 | R95: =IFERROR($E95*SUMIF('Daily Log'!$AI$18:$AI$1017,$B95,'Daily Log'!$AJ$18:$AJ$1017),0) -> 1 | S95: =IFERROR($E95*SUMIF('Daily Log'!$AL$18:$AL$1017,$B95,'Daily Log'!$AM$18:$AM$1017),0) -> 0 | T95: =IFERROR($E95*SUMIF('Daily Log'!$AO$18:$AO$1017,$B95,'Daily Log'!$AP$18:$AP$1017),0) -> 0 | U95: =IFERROR($E95*SUMIF('Daily Log'!$AR$18:$AR$1017,$B95,'Daily Log'!$AS$18:$AS$1017),0) -> 0 | V95: =IFERROR($E95*SUMIF('Daily Log'!$AU$18:$AU$1017,$B95,'Daily Log'!$AV$18:$AV$1017),0) -> 0 | W95: =IFERROR($E95*SUMIF('Daily Log'!$AX$18:$AX$1017,$B95,'Daily Log'!$AY$18:$AY$1017),0) -> 0 | X95: =IFERROR($E95*SUMIF('Daily Log'!$BA$18:$BA$1017,$B95,'Daily Log'!$BB$18:$BB$1017),0) -> 0 | Y95: =IFERROR($E95*SUMIF('Daily Log'!$BD$18:$BD$1017,$B95,'Daily Log'!$BE$18:$BE$1017),0) -> 0 | Z95: =IFERROR($E95*SUMIF('Daily Log'!$BG$18:$BG$1017,$B95,'Daily Log'!$BH$18:$BH$1017),0) -> 0 | AA95: =IFERROR($E95*SUMIF('Daily Log'!$BJ$18:$BJ$1017,$B95,'Daily Log'!$BK$18:$BK$1017),0) -> 0 | AB95: =IFERROR($E95*SUMIF('Daily Log'!$BM$18:$BM$1017,$B95,'Daily Log'!$BN$18:$BN$1017),0) -> 0 | AC95: =IFERROR($E95*SUMIF('Daily Log'!$BP$18:$BP$1017,$B95,'Daily Log'!$BQ$18:$BQ$1017),0) -> 0 | AD95: =IFERROR($E95*SUMIF('Daily Log'!$BS$18:$BS$1017,$B95,'Daily Log'!$BT$18:$BT$1017),0) -> 0 | AE95: =IFERROR($E95*SUMIF('Daily Log'!$BV$18:$BV$1017,$B95,'Daily Log'!$BW$18:$BW$1017),0) -> 0 | AF95: =IFERROR($E95*SUMIF('Daily Log'!$BY$18:$BY$1017,$B95,'Daily Log'!$BZ$18:$BZ$1017),0) -> 0 | AG95: =IFERROR($E95*SUMIF('Daily Log'!$CB$18:$CB$1017,$B95,'Daily Log'!$CC$18:$CC$1017),0) -> 0 | AH95: =IFERROR($E95*SUMIF('Daily Log'!$CE$18:$CE$1017,$B95,'Daily Log'!$CF$18:$CF$1017),0) -> 0 | AI95: =IFERROR($E95*SUMIF('Daily Log'!$CH$18:$CH$1017,$B95,'Daily Log'!$CI$18:$CI$1017),0) -> 0 | AJ95: =IFERROR($E95*SUMIF('Daily Log'!$CK$18:$CK$1017,$B95,'Daily Log'!$CL$18:$CL$1017),0) -> 0 | AK95: =IFERROR($E95*SUMIF('Daily Log'!$CN$18:$CN$1017,$B95,'Daily Log'!$CO$18:$CO$1017),0) -> 0
B96: CN02 88202:HOE BKT | D96: BEER | E96: 4 | F96: =SUM($G96:$AK96) -> 4 | AC96: =IFERROR($E96*SUMIF('Daily Log'!$BP$18:$BP$1017,$B96,'Daily Log'!$BQ$18:$BQ$1017),0) -> 0 | AD96: =IFERROR($E96*SUMIF('Daily Log'!$BS$18:$BS$1017,$B96,'Daily Log'!$BT$18:$BT$1017),0) -> 0 | AE96: =IFERROR($E96*SUMIF('Daily Log'!$BV$18:$BV$1017,$B96,'Daily Log'!$BW$18:$BW$1017),0) -> 0 | AF96: =IFERROR($E96*SUMIF('Daily Log'!$BY$18:$BY$1017,$B96,'Daily Log'!$BZ$18:$BZ$1017),0) -> 4 | AG96: =IFERROR($E96*SUMIF('Daily Log'!$CB$18:$CB$1017,$B96,'Daily Log'!$CC$18:$CC$1017),0) -> 0 | AH96: =IFERROR($E96*SUMIF('Daily Log'!$CE$18:$CE$1017,$B96,'Daily Log'!$CF$18:$CF$1017),0) -> 0 | AI96: =IFERROR($E96*SUMIF('Daily Log'!$CH$18:$CH$1017,$B96,'Daily Log'!$CI$18:$CI$1017),0) -> 0 | AJ96: =IFERROR($E96*SUMIF('Daily Log'!$CK$18:$CK$1017,$B96,'Daily Log'!$CL$18:$CL$1017),0) -> 0 | AK96: =IFERROR($E96*SUMIF('Daily Log'!$CN$18:$CN$1017,$B96,'Daily Log'!$CO$18:$CO$1017),0) -> 0
B97: HOEGAARDEN BEER TOTAL | D97: BEER | F97: =SUM($G97:$AK97) -> 22 | G97: =SUM(G93:G95) -> 0 | H97: =SUM(H93:H95) -> 0 | I97: 0 | J97: 4 | K97: 0 | L97: 0 | M97: 0 | N97: 0 | O97: 0 | P97: 0 | Q97: 0 | R97: 1 | S97: 0 | T97: =SUM(T93:T95) -> 0 | U97: 5 | V97: 0 | W97: 0 | X97: 0 | Y97: 8 | Z97: 0 | AA97: 0 | AB97: 0 | AC97: =SUM(AC93:AC96) -> 0 | AD97: =SUM(AD93:AD96) -> 0 | AE97: 0 | AF97: 4 | AG97: 0 | AH97: 0 | AI97: 0 | AJ97: 0 | AK97: 0
B98: BY01 8001:SOME BTL | D98: BEER | E98: 1 | F98: 6 | G98: =IFERROR($E98*SUMIF('Daily Log'!$B$18:$B$1017,$B98,'Daily Log'!$C$18:$C$1017),0) -> 0 | H98: =IFERROR($E98*SUMIF('Daily Log'!$E$18:$E$1017,$B98,'Daily Log'!$F$18:$F$1017),0) -> 0 | I98: =IFERROR($E98*SUMIF('Daily Log'!$H$18:$H$1017,$B98,'Daily Log'!$I$18:$I$1017),0) -> 0 | J98: =IFERROR($E98*SUMIF('Daily Log'!$K$18:$K$1017,$B98,'Daily Log'!$L$18:$L$1017),0) -> 0 | K98: =IFERROR($E98*SUMIF('Daily Log'!$N$18:$N$1017,$B98,'Daily Log'!$O$18:$O$1017),0) -> 1 | L98: =IFERROR($E98*SUMIF('Daily Log'!$Q$18:$Q$1017,$B98,'Daily Log'!$R$18:$R$1017),0) -> 0 | M98: =IFERROR($E98*SUMIF('Daily Log'!$T$18:$T$1017,$B98,'Daily Log'!$U$18:$U$1017),0) -> 1 | N98: =IFERROR($E98*SUMIF('Daily Log'!$W$18:$W$1017,$B98,'Daily Log'!$X$18:$X$1017),0) -> 0 | O98: =IFERROR($E98*SUMIF('Daily Log'!$Z$18:$Z$1017,$B98,'Daily Log'!$AA$18:$AA$1017),0) -> 0 | P98: =IFERROR($E98*SUMIF('Daily Log'!$AC$18:$AC$1017,$B98,'Daily Log'!$AD$18:$AD$1017),0) -> 0 | Q98: =IFERROR($E98*SUMIF('Daily Log'!$AF$18:$AF$1017,$B98,'Daily Log'!$AG$18:$AG$1017),0) -> 0 | R98: =IFERROR($E98*SUMIF('Daily Log'!$AI$18:$AI$1017,$B98,'Daily Log'!$AJ$18:$AJ$1017),0) -> 0 | S98: =IFERROR($E98*SUMIF('Daily Log'!$AL$18:$AL$1017,$B98,'Daily Log'!$AM$18:$AM$1017),0) -> 0 | T98: =IFERROR($E98*SUMIF('Daily Log'!$AO$18:$AO$1017,$B98,'Daily Log'!$AP$18:$AP$1017),0) -> 0 | U98: =IFERROR($E98*SUMIF('Daily Log'!$AR$18:$AR$1017,$B98,'Daily Log'!$AS$18:$AS$1017),0) -> 0 | V98: =IFERROR($E98*SUMIF('Daily Log'!$AU$18:$AU$1017,$B98,'Daily Log'!$AV$18:$AV$1017),0) -> 0 | W98: =IFERROR($E98*SUMIF('Daily Log'!$AX$18:$AX$1017,$B98,'Daily Log'!$AY$18:$AY$1017),0) -> 1 | X98: =IFERROR($E98*SUMIF('Daily Log'!$BA$18:$BA$1017,$B98,'Daily Log'!$BB$18:$BB$1017),0) -> 0 | Y98: =IFERROR($E98*SUMIF('Daily Log'!$BD$18:$BD$1017,$B98,'Daily Log'!$BE$18:$BE$1017),0) -> 0 | Z98: =IFERROR($E98*SUMIF('Daily Log'!$BG$18:$BG$1017,$B98,'Daily Log'!$BH$18:$BH$1017),0) -> 0 | AA98: =IFERROR($E98*SUMIF('Daily Log'!$BJ$18:$BJ$1017,$B98,'Daily Log'!$BK$18:$BK$1017),0) -> 0 | AB98: =IFERROR($E98*SUMIF('Daily Log'!$BM$18:$BM$1017,$B98,'Daily Log'!$BN$18:$BN$1017),0) -> 0 | AC98: =IFERROR($E98*SUMIF('Daily Log'!$BP$18:$BP$1017,$B98,'Daily Log'!$BQ$18:$BQ$1017),0) -> 0 | AD98: =IFERROR($E98*SUMIF('Daily Log'!$BS$18:$BS$1017,$B98,'Daily Log'!$BT$18:$BT$1017),0) -> 0 | AE98: =IFERROR($E98*SUMIF('Daily Log'!$BV$18:$BV$1017,$B98,'Daily Log'!$BW$18:$BW$1017),0) -> 2 | AF98: =IFERROR($E98*SUMIF('Daily Log'!$BY$18:$BY$1017,$B98,'Daily Log'!$BZ$18:$BZ$1017),0) -> 0 | AG98: =IFERROR($E98*SUMIF('Daily Log'!$CB$18:$CB$1017,$B98,'Daily Log'!$CC$18:$CC$1017),0) -> 1 | AH98: =IFERROR($E98*SUMIF('Daily Log'!$CE$18:$CE$1017,$B98,'Daily Log'!$CF$18:$CF$1017),0) -> 0 | AI98: =IFERROR($E98*SUMIF('Daily Log'!$CH$18:$CH$1017,$B98,'Daily Log'!$CI$18:$CI$1017),0) -> 0 | AJ98: =IFERROR($E98*SUMIF('Daily Log'!$CK$18:$CK$1017,$B98,'Daily Log'!$CL$18:$CL$1017),0) -> 0 | AK98: =IFERROR($E98*SUMIF('Daily Log'!$CN$18:$CN$1017,$B98,'Daily Log'!$CO$18:$CO$1017),0) -> 0
B99: BY02 8002:SOME BKT | D99: BEER | E99: 4 | F99: 36 | G99: =IFERROR($E99*SUMIF('Daily Log'!$B$18:$B$1017,$B99,'Daily Log'!$C$18:$C$1017),0) -> 0 | H99: =IFERROR($E99*SUMIF('Daily Log'!$E$18:$E$1017,$B99,'Daily Log'!$F$18:$F$1017),0) -> 0 | I99: =IFERROR($E99*SUMIF('Daily Log'!$H$18:$H$1017,$B99,'Daily Log'!$I$18:$I$1017),0) -> 0 | J99: =IFERROR($E99*SUMIF('Daily Log'!$K$18:$K$1017,$B99,'Daily Log'!$L$18:$L$1017),0) -> 4 | K99: =IFERROR($E99*SUMIF('Daily Log'!$N$18:$N$1017,$B99,'Daily Log'!$O$18:$O$1017),0) -> 4 | L99: =IFERROR($E99*SUMIF('Daily Log'!$Q$18:$Q$1017,$B99,'Daily Log'!$R$18:$R$1017),0) -> 4 | M99: =IFERROR($E99*SUMIF('Daily Log'!$T$18:$T$1017,$B99,'Daily Log'!$U$18:$U$1017),0) -> 0 | N99: =IFERROR($E99*SUMIF('Daily Log'!$W$18:$W$1017,$B99,'Daily Log'!$X$18:$X$1017),0) -> 4 | O99: =IFERROR($E99*SUMIF('Daily Log'!$Z$18:$Z$1017,$B99,'Daily Log'!$AA$18:$AA$1017),0) -> 0 | P99: =IFERROR($E99*SUMIF('Daily Log'!$AC$18:$AC$1017,$B99,'Daily Log'!$AD$18:$AD$1017),0) -> 0 | Q99: =IFERROR($E99*SUMIF('Daily Log'!$AF$18:$AF$1017,$B99,'Daily Log'!$AG$18:$AG$1017),0) -> 0 | R99: =IFERROR($E99*SUMIF('Daily Log'!$AI$18:$AI$1017,$B99,'Daily Log'!$AJ$18:$AJ$1017),0) -> 0 | S99: =IFERROR($E99*SUMIF('Daily Log'!$AL$18:$AL$1017,$B99,'Daily Log'!$AM$18:$AM$1017),0) -> 4 | T99: =IFERROR($E99*SUMIF('Daily Log'!$AO$18:$AO$1017,$B99,'Daily Log'!$AP$18:$AP$1017),0) -> 0 | U99: =IFERROR($E99*SUMIF('Daily Log'!$AR$18:$AR$1017,$B99,'Daily Log'!$AS$18:$AS$1017),0) -> 0 | V99: =IFERROR($E99*SUMIF('Daily Log'!$AU$18:$AU$1017,$B99,'Daily Log'!$AV$18:$AV$1017),0) -> 4 | W99: =IFERROR($E99*SUMIF('Daily Log'!$AX$18:$AX$1017,$B99,'Daily Log'!$AY$18:$AY$1017),0) -> 0 | X99: =IFERROR($E99*SUMIF('Daily Log'!$BA$18:$BA$1017,$B99,'Daily Log'!$BB$18:$BB$1017),0) -> 0 | Y99: =IFERROR($E99*SUMIF('Daily Log'!$BD$18:$BD$1017,$B99,'Daily Log'!$BE$18:$BE$1017),0) -> 0 | Z99: =IFERROR($E99*SUMIF('Daily Log'!$BG$18:$BG$1017,$B99,'Daily Log'!$BH$18:$BH$1017),0) -> 0 | AA99: =IFERROR($E99*SUMIF('Daily Log'!$BJ$18:$BJ$1017,$B99,'Daily Log'!$BK$18:$BK$1017),0) -> 0 | AB99: =IFERROR($E99*SUMIF('Daily Log'!$BM$18:$BM$1017,$B99,'Daily Log'!$BN$18:$BN$1017),0) -> 0 | AC99: =IFERROR($E99*SUMIF('Daily Log'!$BP$18:$BP$1017,$B99,'Daily Log'!$BQ$18:$BQ$1017),0) -> 0 | AD99: =IFERROR($E99*SUMIF('Daily Log'!$BS$18:$BS$1017,$B99,'Daily Log'!$BT$18:$BT$1017),0) -> 0 | AE99: =IFERROR($E99*SUMIF('Daily Log'!$BV$18:$BV$1017,$B99,'Daily Log'!$BW$18:$BW$1017),0) -> 4 | AF99: =IFERROR($E99*SUMIF('Daily Log'!$BY$18:$BY$1017,$B99,'Daily Log'!$BZ$18:$BZ$1017),0) -> 0 | AG99: =IFERROR($E99*SUMIF('Daily Log'!$CB$18:$CB$1017,$B99,'Daily Log'!$CC$18:$CC$1017),0) -> 0 | AH99: =IFERROR($E99*SUMIF('Daily Log'!$CE$18:$CE$1017,$B99,'Daily Log'!$CF$18:$CF$1017),0) -> 4 | AI99: =IFERROR($E99*SUMIF('Daily Log'!$CH$18:$CH$1017,$B99,'Daily Log'!$CI$18:$CI$1017),0) -> 4 | AJ99: =IFERROR($E99*SUMIF('Daily Log'!$CK$18:$CK$1017,$B99,'Daily Log'!$CL$18:$CL$1017),0) -> 0 | AK99: =IFERROR($E99*SUMIF('Daily Log'!$CN$18:$CN$1017,$B99,'Daily Log'!$CO$18:$CO$1017),0) -> 0
B100: CY01 88001:SOME BTL | D100: BEER | E100: 1 | F100: =SUM($G100:$AK100) -> 8 | G100: =IFERROR($E100*SUMIF('Daily Log'!$B$18:$B$1017,$B100,'Daily Log'!$C$18:$C$1017),0) -> 0 | H100: =IFERROR($E100*SUMIF('Daily Log'!$E$18:$E$1017,$B100,'Daily Log'!$F$18:$F$1017),0) -> 0 | I100: =IFERROR($E100*SUMIF('Daily Log'!$H$18:$H$1017,$B100,'Daily Log'!$I$18:$I$1017),0) -> 2 | J100: =IFERROR($E100*SUMIF('Daily Log'!$K$18:$K$1017,$B100,'Daily Log'!$L$18:$L$1017),0) -> 0 | K100: =IFERROR($E100*SUMIF('Daily Log'!$N$18:$N$1017,$B100,'Daily Log'!$O$18:$O$1017),0) -> 0 | L100: =IFERROR($E100*SUMIF('Daily Log'!$Q$18:$Q$1017,$B100,'Daily Log'!$R$18:$R$1017),0) -> 0 | M100: =IFERROR($E100*SUMIF('Daily Log'!$T$18:$T$1017,$B100,'Daily Log'!$U$18:$U$1017),0) -> 0 | N100: =IFERROR($E100*SUMIF('Daily Log'!$W$18:$W$1017,$B100,'Daily Log'!$X$18:$X$1017),0) -> 1 | O100: =IFERROR($E100*SUMIF('Daily Log'!$Z$18:$Z$1017,$B100,'Daily Log'!$AA$18:$AA$1017),0) -> 1 | P100: =IFERROR($E100*SUMIF('Daily Log'!$AC$18:$AC$1017,$B100,'Daily Log'!$AD$18:$AD$1017),0) -> 0 | Q100: =IFERROR($E100*SUMIF('Daily Log'!$AF$18:$AF$1017,$B100,'Daily Log'!$AG$18:$AG$1017),0) -> 1 | R100: =IFERROR($E100*SUMIF('Daily Log'!$AI$18:$AI$1017,$B100,'Daily Log'!$AJ$18:$AJ$1017),0) -> 0 | S100: =IFERROR($E100*SUMIF('Daily Log'!$AL$18:$AL$1017,$B100,'Daily Log'!$AM$18:$AM$1017),0) -> 0 | T100: =IFERROR($E100*SUMIF('Daily Log'!$AO$18:$AO$1017,$B100,'Daily Log'!$AP$18:$AP$1017),0) -> 0 | U100: =IFERROR($E100*SUMIF('Daily Log'!$AR$18:$AR$1017,$B100,'Daily Log'!$AS$18:$AS$1017),0) -> 0 | V100: =IFERROR($E100*SUMIF('Daily Log'!$AU$18:$AU$1017,$B100,'Daily Log'!$AV$18:$AV$1017),0) -> 0 | W100: =IFERROR($E100*SUMIF('Daily Log'!$AX$18:$AX$1017,$B100,'Daily Log'!$AY$18:$AY$1017),0) -> 0 | X100: =IFERROR($E100*SUMIF('Daily Log'!$BA$18:$BA$1017,$B100,'Daily Log'!$BB$18:$BB$1017),0) -> 0 | Y100: =IFERROR($E100*SUMIF('Daily Log'!$BD$18:$BD$1017,$B100,'Daily Log'!$BE$18:$BE$1017),0) -> 0 | Z100: =IFERROR($E100*SUMIF('Daily Log'!$BG$18:$BG$1017,$B100,'Daily Log'!$BH$18:$BH$1017),0) -> 0 | AA100: =IFERROR($E100*SUMIF('Daily Log'!$BJ$18:$BJ$1017,$B100,'Daily Log'!$BK$18:$BK$1017),0) -> 0 | AB100: =IFERROR($E100*SUMIF('Daily Log'!$BM$18:$BM$1017,$B100,'Daily Log'!$BN$18:$BN$1017),0) -> 0 | AC100: =IFERROR($E100*SUMIF('Daily Log'!$BP$18:$BP$1017,$B100,'Daily Log'!$BQ$18:$BQ$1017),0) -> 0 | AD100: =IFERROR($E100*SUMIF('Daily Log'!$BS$18:$BS$1017,$B100,'Daily Log'!$BT$18:$BT$1017),0) -> 0 | AE100: =IFERROR($E100*SUMIF('Daily Log'!$BV$18:$BV$1017,$B100,'Daily Log'!$BW$18:$BW$1017),0) -> 0 | AF100: =IFERROR($E100*SUMIF('Daily Log'!$BY$18:$BY$1017,$B100,'Daily Log'!$BZ$18:$BZ$1017),0) -> 3 | AG100: =IFERROR($E100*SUMIF('Daily Log'!$CB$18:$CB$1017,$B100,'Daily Log'!$CC$18:$CC$1017),0) -> 0 | AH100: =IFERROR($E100*SUMIF('Daily Log'!$CE$18:$CE$1017,$B100,'Daily Log'!$CF$18:$CF$1017),0) -> 0 | AI100: =IFERROR($E100*SUMIF('Daily Log'!$CH$18:$CH$1017,$B100,'Daily Log'!$CI$18:$CI$1017),0) -> 0 | AJ100: =IFERROR($E100*SUMIF('Daily Log'!$CK$18:$CK$1017,$B100,'Daily Log'!$CL$18:$CL$1017),0) -> 0 | AK100: =IFERROR($E100*SUMIF('Daily Log'!$CN$18:$CN$1017,$B100,'Daily Log'!$CO$18:$CO$1017),0) -> 0
B101: CY02 88002:SOME BKT | D101: BEER | E101: 4 | F101: =SUM($G101:$AK101) -> 32 | G101: =IFERROR($E101*SUMIF('Daily Log'!$B$18:$B$1017,$B101,'Daily Log'!$C$18:$C$1017),0) -> 4 | H101: =IFERROR($E101*SUMIF('Daily Log'!$E$18:$E$1017,$B101,'Daily Log'!$F$18:$F$1017),0) -> 0 | I101: =IFERROR($E101*SUMIF('Daily Log'!$H$18:$H$1017,$B101,'Daily Log'!$I$18:$I$1017),0) -> 0 | J101: =IFERROR($E101*SUMIF('Daily Log'!$K$18:$K$1017,$B101,'Daily Log'!$L$18:$L$1017),0) -> 0 | K101: =IFERROR($E101*SUMIF('Daily Log'!$N$18:$N$1017,$B101,'Daily Log'!$O$18:$O$1017),0) -> 4 | L101: =IFERROR($E101*SUMIF('Daily Log'!$Q$18:$Q$1017,$B101,'Daily Log'!$R$18:$R$1017),0) -> 0 | M101: =IFERROR($E101*SUMIF('Daily Log'!$T$18:$T$1017,$B101,'Daily Log'!$U$18:$U$1017),0) -> 0 | N101: =IFERROR($E101*SUMIF('Daily Log'!$W$18:$W$1017,$B101,'Daily Log'!$X$18:$X$1017),0) -> 0 | O101: =IFERROR($E101*SUMIF('Daily Log'!$Z$18:$Z$1017,$B101,'Daily Log'!$AA$18:$AA$1017),0) -> 0 | P101: =IFERROR($E101*SUMIF('Daily Log'!$AC$18:$AC$1017,$B101,'Daily Log'!$AD$18:$AD$1017),0) -> 4 | Q101: =IFERROR($E101*SUMIF('Daily Log'!$AF$18:$AF$1017,$B101,'Daily Log'!$AG$18:$AG$1017),0) -> 8 | R101: =IFERROR($E101*SUMIF('Daily Log'!$AI$18:$AI$1017,$B101,'Daily Log'!$AJ$18:$AJ$1017),0) -> 0 | S101: =IFERROR($E101*SUMIF('Daily Log'!$AL$18:$AL$1017,$B101,'Daily Log'!$AM$18:$AM$1017),0) -> 0 | T101: =IFERROR($E101*SUMIF('Daily Log'!$AO$18:$AO$1017,$B101,'Daily Log'!$AP$18:$AP$1017),0) -> 4 | U101: =IFERROR($E101*SUMIF('Daily Log'!$AR$18:$AR$1017,$B101,'Daily Log'!$AS$18:$AS$1017),0) -> 0 | V101: =IFERROR($E101*SUMIF('Daily Log'!$AU$18:$AU$1017,$B101,'Daily Log'!$AV$18:$AV$1017),0) -> 0 | W101: =IFERROR($E101*SUMIF('Daily Log'!$AX$18:$AX$1017,$B101,'Daily Log'!$AY$18:$AY$1017),0) -> 8 | X101: =IFERROR($E101*SUMIF('Daily Log'!$BA$18:$BA$1017,$B101,'Daily Log'!$BB$18:$BB$1017),0) -> 0 | Y101: =IFERROR($E101*SUMIF('Daily Log'!$BD$18:$BD$1017,$B101,'Daily Log'!$BE$18:$BE$1017),0) -> 0 | Z101: =IFERROR($E101*SUMIF('Daily Log'!$BG$18:$BG$1017,$B101,'Daily Log'!$BH$18:$BH$1017),0) -> 0 | AA101: =IFERROR($E101*SUMIF('Daily Log'!$BJ$18:$BJ$1017,$B101,'Daily Log'!$BK$18:$BK$1017),0) -> 0 | AB101: =IFERROR($E101*SUMIF('Daily Log'!$BM$18:$BM$1017,$B101,'Daily Log'!$BN$18:$BN$1017),0) -> 0 | AC101: =IFERROR($E101*SUMIF('Daily Log'!$BP$18:$BP$1017,$B101,'Daily Log'!$BQ$18:$BQ$1017),0) -> 0 | AD101: =IFERROR($E101*SUMIF('Daily Log'!$BS$18:$BS$1017,$B101,'Daily Log'!$BT$18:$BT$1017),0) -> 0 | AE101: =IFERROR($E101*SUMIF('Daily Log'!$BV$18:$BV$1017,$B101,'Daily Log'!$BW$18:$BW$1017),0) -> 0 | AF101: =IFERROR($E101*SUMIF('Daily Log'!$BY$18:$BY$1017,$B101,'Daily Log'!$BZ$18:$BZ$1017),0) -> 0 | AG101: =IFERROR($E101*SUMIF('Daily Log'!$CB$18:$CB$1017,$B101,'Daily Log'!$CC$18:$CC$1017),0) -> 0 | AH101: =IFERROR($E101*SUMIF('Daily Log'!$CE$18:$CE$1017,$B101,'Daily Log'!$CF$18:$CF$1017),0) -> 0 | AI101: =IFERROR($E101*SUMIF('Daily Log'!$CH$18:$CH$1017,$B101,'Daily Log'!$CI$18:$CI$1017),0) -> 0 | AJ101: =IFERROR($E101*SUMIF('Daily Log'!$CK$18:$CK$1017,$B101,'Daily Log'!$CL$18:$CL$1017),0) -> 0 | AK101: =IFERROR($E101*SUMIF('Daily Log'!$CN$18:$CN$1017,$B101,'Daily Log'!$CO$18:$CO$1017),0) -> 0
B102: APPLE CIDER BEER TOTAL | D102: BEER | F102: =SUM($G102:$AK102) -> 82 | G102: =SUM(G98:G101) -> 4 | H102: =SUM(H98:H101) -> 0 | I102: 2 | J102: 4 | K102: 9 | L102: 4 | M102: 1 | N102: 5 | O102: 1 | P102: 4 | Q102: 9 | R102: 0 | S102: 4 | T102: 4 | U102: =SUM(U98:U101) -> 0 | V102: 4 | W102: 9 | X102: 0 | Y102: 0 | Z102: 0 | AA102: 0 | AB102: 0 | AC102: 0 | AD102: 0 | AE102: 6 | AF102: 3 | AG102: 1 | AH102: 4 | AI102: 4 | AJ102: 0 | AK102: 0
B103: CK01 88101:STRONG BTL | D103: BEER | E103: 1 | F103: 1 | G103: =IFERROR($E103*SUMIF('Daily Log'!$B$18:$B$1017,$B103,'Daily Log'!$C$18:$C$1017),0) -> 0 | H103: =IFERROR($E103*SUMIF('Daily Log'!$E$18:$E$1017,$B103,'Daily Log'!$F$18:$F$1017),0) -> 0 | I103: =IFERROR($E103*SUMIF('Daily Log'!$H$18:$H$1017,$B103,'Daily Log'!$I$18:$I$1017),0) -> 1 | J103: =IFERROR($E103*SUMIF('Daily Log'!$K$18:$K$1017,$B103,'Daily Log'!$L$18:$L$1017),0) -> 0 | K103: =IFERROR($E103*SUMIF('Daily Log'!$N$18:$N$1017,$B103,'Daily Log'!$O$18:$O$1017),0) -> 0 | L103: =IFERROR($E103*SUMIF('Daily Log'!$Q$18:$Q$1017,$B103,'Daily Log'!$R$18:$R$1017),0) -> 0 | M103: =IFERROR($E103*SUMIF('Daily Log'!$T$18:$T$1017,$B103,'Daily Log'!$U$18:$U$1017),0) -> 0 | N103: =IFERROR($E103*SUMIF('Daily Log'!$W$18:$W$1017,$B103,'Daily Log'!$X$18:$X$1017),0) -> 0 | O103: =IFERROR($E103*SUMIF('Daily Log'!$Z$18:$Z$1017,$B103,'Daily Log'!$AA$18:$AA$1017),0) -> 0 | P103: =IFERROR($E103*SUMIF('Daily Log'!$AC$18:$AC$1017,$B103,'Daily Log'!$AD$18:$AD$1017),0) -> 0 | Q103: =IFERROR($E103*SUMIF('Daily Log'!$AF$18:$AF$1017,$B103,'Daily Log'!$AG$18:$AG$1017),0) -> 0 | R103: =IFERROR($E103*SUMIF('Daily Log'!$AI$18:$AI$1017,$B103,'Daily Log'!$AJ$18:$AJ$1017),0) -> 0 | S103: =IFERROR($E103*SUMIF('Daily Log'!$AL$18:$AL$1017,$B103,'Daily Log'!$AM$18:$AM$1017),0) -> 0 | T103: =IFERROR($E103*SUMIF('Daily Log'!$AO$18:$AO$1017,$B103,'Daily Log'!$AP$18:$AP$1017),0) -> 0 | U103: =IFERROR($E103*SUMIF('Daily Log'!$AR$18:$AR$1017,$B103,'Daily Log'!$AS$18:$AS$1017),0) -> 0 | V103: =IFERROR($E103*SUMIF('Daily Log'!$AU$18:$AU$1017,$B103,'Daily Log'!$AV$18:$AV$1017),0) -> 0 | W103: =IFERROR($E103*SUMIF('Daily Log'!$AX$18:$AX$1017,$B103,'Daily Log'!$AY$18:$AY$1017),0) -> 0 | X103: =IFERROR($E103*SUMIF('Daily Log'!$BA$18:$BA$1017,$B103,'Daily Log'!$BB$18:$BB$1017),0) -> 0 | Y103: =IFERROR($E103*SUMIF('Daily Log'!$BD$18:$BD$1017,$B103,'Daily Log'!$BE$18:$BE$1017),0) -> 0 | Z103: =IFERROR($E103*SUMIF('Daily Log'!$BG$18:$BG$1017,$B103,'Daily Log'!$BH$18:$BH$1017),0) -> 0 | AA103: =IFERROR($E103*SUMIF('Daily Log'!$BJ$18:$BJ$1017,$B103,'Daily Log'!$BK$18:$BK$1017),0) -> 0 | AB103: =IFERROR($E103*SUMIF('Daily Log'!$BM$18:$BM$1017,$B103,'Daily Log'!$BN$18:$BN$1017),0) -> 0 | AC103: =IFERROR($E103*SUMIF('Daily Log'!$BP$18:$BP$1017,$B103,'Daily Log'!$BQ$18:$BQ$1017),0) -> 0 | AD103: =IFERROR($E103*SUMIF('Daily Log'!$BS$18:$BS$1017,$B103,'Daily Log'!$BT$18:$BT$1017),0) -> 0 | AE103: =IFERROR($E103*SUMIF('Daily Log'!$BV$18:$BV$1017,$B103,'Daily Log'!$BW$18:$BW$1017),0) -> 0 | AF103: =IFERROR($E103*SUMIF('Daily Log'!$BY$18:$BY$1017,$B103,'Daily Log'!$BZ$18:$BZ$1017),0) -> 0 | AG103: =IFERROR($E103*SUMIF('Daily Log'!$CB$18:$CB$1017,$B103,'Daily Log'!$CC$18:$CC$1017),0) -> 0 | AH103: =IFERROR($E103*SUMIF('Daily Log'!$CE$18:$CE$1017,$B103,'Daily Log'!$CF$18:$CF$1017),0) -> 0 | AI103: =IFERROR($E103*SUMIF('Daily Log'!$CH$18:$CH$1017,$B103,'Daily Log'!$CI$18:$CI$1017),0) -> 0 | AJ103: =IFERROR($E103*SUMIF('Daily Log'!$CK$18:$CK$1017,$B103,'Daily Log'!$CL$18:$CL$1017),0) -> 0 | AK103: =IFERROR($E103*SUMIF('Daily Log'!$CN$18:$CN$1017,$B103,'Daily Log'!$CO$18:$CO$1017),0) -> 0
B104: CK02 88102:STRONG BKT | D104: BEER | E104: 4 | F104: 0 | G104: =IFERROR($E104*SUMIF('Daily Log'!$B$18:$B$1017,$B104,'Daily Log'!$C$18:$C$1017),0) -> 0 | H104: =IFERROR($E104*SUMIF('Daily Log'!$E$18:$E$1017,$B104,'Daily Log'!$F$18:$F$1017),0) -> 0 | I104: =IFERROR($E104*SUMIF('Daily Log'!$H$18:$H$1017,$B104,'Daily Log'!$I$18:$I$1017),0) -> 0 | J104: =IFERROR($E104*SUMIF('Daily Log'!$K$18:$K$1017,$B104,'Daily Log'!$L$18:$L$1017),0) -> 0 | K104: =IFERROR($E104*SUMIF('Daily Log'!$N$18:$N$1017,$B104,'Daily Log'!$O$18:$O$1017),0) -> 0 | L104: =IFERROR($E104*SUMIF('Daily Log'!$Q$18:$Q$1017,$B104,'Daily Log'!$R$18:$R$1017),0) -> 0 | M104: =IFERROR($E104*SUMIF('Daily Log'!$T$18:$T$1017,$B104,'Daily Log'!$U$18:$U$1017),0) -> 0 | N104: =IFERROR($E104*SUMIF('Daily Log'!$W$18:$W$1017,$B104,'Daily Log'!$X$18:$X$1017),0) -> 0 | O104: =IFERROR($E104*SUMIF('Daily Log'!$Z$18:$Z$1017,$B104,'Daily Log'!$AA$18:$AA$1017),0) -> 0 | P104: =IFERROR($E104*SUMIF('Daily Log'!$AC$18:$AC$1017,$B104,'Daily Log'!$AD$18:$AD$1017),0) -> 0 | Q104: =IFERROR($E104*SUMIF('Daily Log'!$AF$18:$AF$1017,$B104,'Daily Log'!$AG$18:$AG$1017),0) -> 0 | R104: =IFERROR($E104*SUMIF('Daily Log'!$AI$18:$AI$1017,$B104,'Daily Log'!$AJ$18:$AJ$1017),0) -> 0 | S104: =IFERROR($E104*SUMIF('Daily Log'!$AL$18:$AL$1017,$B104,'Daily Log'!$AM$18:$AM$1017),0) -> 0 | T104: =IFERROR($E104*SUMIF('Daily Log'!$AO$18:$AO$1017,$B104,'Daily Log'!$AP$18:$AP$1017),0) -> 0 | U104: =IFERROR($E104*SUMIF('Daily Log'!$AR$18:$AR$1017,$B104,'Daily Log'!$AS$18:$AS$1017),0) -> 0 | V104: =IFERROR($E104*SUMIF('Daily Log'!$AU$18:$AU$1017,$B104,'Daily Log'!$AV$18:$AV$1017),0) -> 0 | W104: =IFERROR($E104*SUMIF('Daily Log'!$AX$18:$AX$1017,$B104,'Daily Log'!$AY$18:$AY$1017),0) -> 0 | X104: =IFERROR($E104*SUMIF('Daily Log'!$BA$18:$BA$1017,$B104,'Daily Log'!$BB$18:$BB$1017),0) -> 0 | Y104: =IFERROR($E104*SUMIF('Daily Log'!$BD$18:$BD$1017,$B104,'Daily Log'!$BE$18:$BE$1017),0) -> 0 | Z104: =IFERROR($E104*SUMIF('Daily Log'!$BG$18:$BG$1017,$B104,'Daily Log'!$BH$18:$BH$1017),0) -> 0 | AA104: =IFERROR($E104*SUMIF('Daily Log'!$BJ$18:$BJ$1017,$B104,'Daily Log'!$BK$18:$BK$1017),0) -> 0 | AB104: =IFERROR($E104*SUMIF('Daily Log'!$BM$18:$BM$1017,$B104,'Daily Log'!$BN$18:$BN$1017),0) -> 0 | AC104: =IFERROR($E104*SUMIF('Daily Log'!$BP$18:$BP$1017,$B104,'Daily Log'!$BQ$18:$BQ$1017),0) -> 0 | AD104: =IFERROR($E104*SUMIF('Daily Log'!$BS$18:$BS$1017,$B104,'Daily Log'!$BT$18:$BT$1017),0) -> 0 | AE104: =IFERROR($E104*SUMIF('Daily Log'!$BV$18:$BV$1017,$B104,'Daily Log'!$BW$18:$BW$1017),0) -> 0 | AF104: =IFERROR($E104*SUMIF('Daily Log'!$BY$18:$BY$1017,$B104,'Daily Log'!$BZ$18:$BZ$1017),0) -> 0 | AG104: =IFERROR($E104*SUMIF('Daily Log'!$CB$18:$CB$1017,$B104,'Daily Log'!$CC$18:$CC$1017),0) -> 0 | AH104: =IFERROR($E104*SUMIF('Daily Log'!$CE$18:$CE$1017,$B104,'Daily Log'!$CF$18:$CF$1017),0) -> 0 | AI104: =IFERROR($E104*SUMIF('Daily Log'!$CH$18:$CH$1017,$B104,'Daily Log'!$CI$18:$CI$1017),0) -> 0 | AJ104: =IFERROR($E104*SUMIF('Daily Log'!$CK$18:$CK$1017,$B104,'Daily Log'!$CL$18:$CL$1017),0) -> 0 | AK104: =IFERROR($E104*SUMIF('Daily Log'!$CN$18:$CN$1017,$B104,'Daily Log'!$CO$18:$CO$1017),0) -> 0
B105: BW01 8101:STRONG BTL | D105: BEER | E105: 1 | F105: 1 | P105: =IFERROR($E105*SUMIF('Daily Log'!$AC$18:$AC$1017,$B105,'Daily Log'!$AD$18:$AD$1017),0) -> 0 | Q105: =IFERROR($E105*SUMIF('Daily Log'!$AF$18:$AF$1017,$B105,'Daily Log'!$AG$18:$AG$1017),0) -> 0 | R105: =IFERROR($E105*SUMIF('Daily Log'!$AI$18:$AI$1017,$B105,'Daily Log'!$AJ$18:$AJ$1017),0) -> 0 | S105: =IFERROR($E105*SUMIF('Daily Log'!$AL$18:$AL$1017,$B105,'Daily Log'!$AM$18:$AM$1017),0) -> 0 | T105: =IFERROR($E105*SUMIF('Daily Log'!$AO$18:$AO$1017,$B105,'Daily Log'!$AP$18:$AP$1017),0) -> 0 | U105: =IFERROR($E105*SUMIF('Daily Log'!$AR$18:$AR$1017,$B105,'Daily Log'!$AS$18:$AS$1017),0) -> 0 | V105: =IFERROR($E105*SUMIF('Daily Log'!$AU$18:$AU$1017,$B105,'Daily Log'!$AV$18:$AV$1017),0) -> 0 | W105: =IFERROR($E105*SUMIF('Daily Log'!$AX$18:$AX$1017,$B105,'Daily Log'!$AY$18:$AY$1017),0) -> 0 | X105: =IFERROR($E105*SUMIF('Daily Log'!$BA$18:$BA$1017,$B105,'Daily Log'!$BB$18:$BB$1017),0) -> 0 | Y105: =IFERROR($E105*SUMIF('Daily Log'!$BD$18:$BD$1017,$B105,'Daily Log'!$BE$18:$BE$1017),0) -> 0 | Z105: =IFERROR($E105*SUMIF('Daily Log'!$BG$18:$BG$1017,$B105,'Daily Log'!$BH$18:$BH$1017),0) -> 0 | AA105: =IFERROR($E105*SUMIF('Daily Log'!$BJ$18:$BJ$1017,$B105,'Daily Log'!$BK$18:$BK$1017),0) -> 0 | AB105: =IFERROR($E105*SUMIF('Daily Log'!$BM$18:$BM$1017,$B105,'Daily Log'!$BN$18:$BN$1017),0) -> 0 | AC105: =IFERROR($E105*SUMIF('Daily Log'!$BP$18:$BP$1017,$B105,'Daily Log'!$BQ$18:$BQ$1017),0) -> 0 | AD105: =IFERROR($E105*SUMIF('Daily Log'!$BS$18:$BS$1017,$B105,'Daily Log'!$BT$18:$BT$1017),0) -> 1 | AE105: =IFERROR($E105*SUMIF('Daily Log'!$BV$18:$BV$1017,$B105,'Daily Log'!$BW$18:$BW$1017),0) -> 0 | AF105: =IFERROR($E105*SUMIF('Daily Log'!$BY$18:$BY$1017,$B105,'Daily Log'!$BZ$18:$BZ$1017),0) -> 0 | AG105: =IFERROR($E105*SUMIF('Daily Log'!$CB$18:$CB$1017,$B105,'Daily Log'!$CC$18:$CC$1017),0) -> 0 | AH105: =IFERROR($E105*SUMIF('Daily Log'!$CE$18:$CE$1017,$B105,'Daily Log'!$CF$18:$CF$1017),0) -> 0 | AI105: =IFERROR($E105*SUMIF('Daily Log'!$CH$18:$CH$1017,$B105,'Daily Log'!$CI$18:$CI$1017),0) -> 0 | AJ105: =IFERROR($E105*SUMIF('Daily Log'!$CK$18:$CK$1017,$B105,'Daily Log'!$CL$18:$CL$1017),0) -> 0 | AK105: =IFERROR($E105*SUMIF('Daily Log'!$CN$18:$CN$1017,$B105,'Daily Log'!$CO$18:$CO$1017),0) -> 0
B106: BW02 8102:STRONG BKT | D106: BEER | E106: 4 | P106: =IFERROR($E106*SUMIF('Daily Log'!$AC$18:$AC$1017,$B106,'Daily Log'!$AD$18:$AD$1017),0) -> 0 | Q106: =IFERROR($E106*SUMIF('Daily Log'!$AF$18:$AF$1017,$B106,'Daily Log'!$AG$18:$AG$1017),0) -> 0 | R106: =IFERROR($E106*SUMIF('Daily Log'!$AI$18:$AI$1017,$B106,'Daily Log'!$AJ$18:$AJ$1017),0) -> 0 | S106: =IFERROR($E106*SUMIF('Daily Log'!$AL$18:$AL$1017,$B106,'Daily Log'!$AM$18:$AM$1017),0) -> 4 | T106: =IFERROR($E106*SUMIF('Daily Log'!$AO$18:$AO$1017,$B106,'Daily Log'!$AP$18:$AP$1017),0) -> 0 | U106: =IFERROR($E106*SUMIF('Daily Log'!$AR$18:$AR$1017,$B106,'Daily Log'!$AS$18:$AS$1017),0) -> 0 | V106: =IFERROR($E106*SUMIF('Daily Log'!$AU$18:$AU$1017,$B106,'Daily Log'!$AV$18:$AV$1017),0) -> 0 | W106: =IFERROR($E106*SUMIF('Daily Log'!$AX$18:$AX$1017,$B106,'Daily Log'!$AY$18:$AY$1017),0) -> 0 | X106: =IFERROR($E106*SUMIF('Daily Log'!$BA$18:$BA$1017,$B106,'Daily Log'!$BB$18:$BB$1017),0) -> 0 | Y106: =IFERROR($E106*SUMIF('Daily Log'!$BD$18:$BD$1017,$B106,'Daily Log'!$BE$18:$BE$1017),0) -> 0 | Z106: =IFERROR($E106*SUMIF('Daily Log'!$BG$18:$BG$1017,$B106,'Daily Log'!$BH$18:$BH$1017),0) -> 0 | AA106: =IFERROR($E106*SUMIF('Daily Log'!$BJ$18:$BJ$1017,$B106,'Daily Log'!$BK$18:$BK$1017),0) -> 0 | AB106: =IFERROR($E106*SUMIF('Daily Log'!$BM$18:$BM$1017,$B106,'Daily Log'!$BN$18:$BN$1017),0) -> 0 | AC106: =IFERROR($E106*SUMIF('Daily Log'!$BP$18:$BP$1017,$B106,'Daily Log'!$BQ$18:$BQ$1017),0) -> 0 | AD106: =IFERROR($E106*SUMIF('Daily Log'!$BS$18:$BS$1017,$B106,'Daily Log'!$BT$18:$BT$1017),0) -> 0 | AE106: =IFERROR($E106*SUMIF('Daily Log'!$BV$18:$BV$1017,$B106,'Daily Log'!$BW$18:$BW$1017),0) -> 0 | AF106: =IFERROR($E106*SUMIF('Daily Log'!$BY$18:$BY$1017,$B106,'Daily Log'!$BZ$18:$BZ$1017),0) -> 0 | AG106: =IFERROR($E106*SUMIF('Daily Log'!$CB$18:$CB$1017,$B106,'Daily Log'!$CC$18:$CC$1017),0) -> 0 | AH106: =IFERROR($E106*SUMIF('Daily Log'!$CE$18:$CE$1017,$B106,'Daily Log'!$CF$18:$CF$1017),0) -> 0 | AI106: =IFERROR($E106*SUMIF('Daily Log'!$CH$18:$CH$1017,$B106,'Daily Log'!$CI$18:$CI$1017),0) -> 0 | AJ106: =IFERROR($E106*SUMIF('Daily Log'!$CK$18:$CK$1017,$B106,'Daily Log'!$CL$18:$CL$1017),0) -> 0 | AK106: =IFERROR($E106*SUMIF('Daily Log'!$CN$18:$CN$1017,$B106,'Daily Log'!$CO$18:$CO$1017),0) -> 0
B107: STRONGBOW BEER TOTAL | D107: BEER | F107: =SUM($G107:$AK107) -> 6 | G107: =SUM(G103:G104) -> 0 | H107: =SUM(H103:H104) -> 0 | I107: 1 | J107: 0 | K107: 0 | L107: 0 | M107: 0 | N107: 0 | O107: 0 | P107: =SUM(P103:P106) -> 0 | Q107: =SUM(Q103:Q106) -> 0 | R107: =SUM(R103:R106) -> 0 | S107: =SUM(S103:S106) -> 4 | T107: =SUM(T103:T106) -> 0 | U107: =SUM(U103:U106) -> 0 | V107: 0 | W107: 0 | X107: 0 | Y107: 0 | Z107: 0 | AA107: 0 | AB107: 0 | AC107: 0 | AD107: 1 | AE107: 0 | AF107: 0 | AG107: 0 | AH107: 0 | AI107: 0 | AJ107: 0 | AK107: 0
B108: BR01 8301:PAUL BTL | D108: BEER | E108: 1 | G108: =IFERROR($E108*SUMIF('Daily Log'!$B$18:$B$1017,$B108,'Daily Log'!$C$18:$C$1017),0) -> 0 | H108: =IFERROR($E108*SUMIF('Daily Log'!$E$18:$E$1017,$B108,'Daily Log'!$F$18:$F$1017),0) -> 0 | I108: =IFERROR($E108*SUMIF('Daily Log'!$H$18:$H$1017,$B108,'Daily Log'!$I$18:$I$1017),0) -> 0 | J108: =IFERROR($E108*SUMIF('Daily Log'!$K$18:$K$1017,$B108,'Daily Log'!$L$18:$L$1017),0) -> 0 | K108: =IFERROR($E108*SUMIF('Daily Log'!$N$18:$N$1017,$B108,'Daily Log'!$O$18:$O$1017),0) -> 0 | L108: =IFERROR($E108*SUMIF('Daily Log'!$Q$18:$Q$1017,$B108,'Daily Log'!$R$18:$R$1017),0) -> 0 | M108: =IFERROR($E108*SUMIF('Daily Log'!$T$18:$T$1017,$B108,'Daily Log'!$U$18:$U$1017),0) -> 0 | N108: =IFERROR($E108*SUMIF('Daily Log'!$W$18:$W$1017,$B108,'Daily Log'!$X$18:$X$1017),0) -> 0 | O108: =IFERROR($E108*SUMIF('Daily Log'!$Z$18:$Z$1017,$B108,'Daily Log'!$AA$18:$AA$1017),0) -> 0 | P108: =IFERROR($E108*SUMIF('Daily Log'!$AC$18:$AC$1017,$B108,'Daily Log'!$AD$18:$AD$1017),0) -> 0 | Q108: =IFERROR($E108*SUMIF('Daily Log'!$AF$18:$AF$1017,$B108,'Daily Log'!$AG$18:$AG$1017),0) -> 0 | R108: =IFERROR($E108*SUMIF('Daily Log'!$AI$18:$AI$1017,$B108,'Daily Log'!$AJ$18:$AJ$1017),0) -> 0 | S108: =IFERROR($E108*SUMIF('Daily Log'!$AL$18:$AL$1017,$B108,'Daily Log'!$AM$18:$AM$1017),0) -> 0 | T108: =IFERROR($E108*SUMIF('Daily Log'!$AO$18:$AO$1017,$B108,'Daily Log'!$AP$18:$AP$1017),0) -> 0 | U108: =IFERROR($E108*SUMIF('Daily Log'!$AR$18:$AR$1017,$B108,'Daily Log'!$AS$18:$AS$1017),0) -> 0 | V108: =IFERROR($E108*SUMIF('Daily Log'!$AU$18:$AU$1017,$B108,'Daily Log'!$AV$18:$AV$1017),0) -> 0 | W108: =IFERROR($E108*SUMIF('Daily Log'!$AX$18:$AX$1017,$B108,'Daily Log'!$AY$18:$AY$1017),0) -> 0 | X108: =IFERROR($E108*SUMIF('Daily Log'!$BA$18:$BA$1017,$B108,'Daily Log'!$BB$18:$BB$1017),0) -> 0 | Y108: =IFERROR($E108*SUMIF('Daily Log'!$BD$18:$BD$1017,$B108,'Daily Log'!$BE$18:$BE$1017),0) -> 0 | Z108: =IFERROR($E108*SUMIF('Daily Log'!$BG$18:$BG$1017,$B108,'Daily Log'!$BH$18:$BH$1017),0) -> 0 | AA108: =IFERROR($E108*SUMIF('Daily Log'!$BJ$18:$BJ$1017,$B108,'Daily Log'!$BK$18:$BK$1017),0) -> 0 | AB108: =IFERROR($E108*SUMIF('Daily Log'!$BM$18:$BM$1017,$B108,'Daily Log'!$BN$18:$BN$1017),0) -> 0 | AC108: =IFERROR($E108*SUMIF('Daily Log'!$BP$18:$BP$1017,$B108,'Daily Log'!$BQ$18:$BQ$1017),0) -> 0 | AD108: =IFERROR($E108*SUMIF('Daily Log'!$BS$18:$BS$1017,$B108,'Daily Log'!$BT$18:$BT$1017),0) -> 0 | AE108: =IFERROR($E108*SUMIF('Daily Log'!$BV$18:$BV$1017,$B108,'Daily Log'!$BW$18:$BW$1017),0) -> 0 | AF108: =IFERROR($E108*SUMIF('Daily Log'!$BY$18:$BY$1017,$B108,'Daily Log'!$BZ$18:$BZ$1017),0) -> 0 | AG108: =IFERROR($E108*SUMIF('Daily Log'!$CB$18:$CB$1017,$B108,'Daily Log'!$CC$18:$CC$1017),0) -> 0 | AH108: =IFERROR($E108*SUMIF('Daily Log'!$CE$18:$CE$1017,$B108,'Daily Log'!$CF$18:$CF$1017),0) -> 0 | AI108: =IFERROR($E108*SUMIF('Daily Log'!$CH$18:$CH$1017,$B108,'Daily Log'!$CI$18:$CI$1017),0) -> 0 | AJ108: =IFERROR($E108*SUMIF('Daily Log'!$CK$18:$CK$1017,$B108,'Daily Log'!$CL$18:$CL$1017),0) -> 0 | AK108: =IFERROR($E108*SUMIF('Daily Log'!$CN$18:$CN$1017,$B108,'Daily Log'!$CO$18:$CO$1017),0) -> 0
B109: BR02 8302:PAUL BKT | D109: BEER | E109: 4 | G109: =IFERROR($E109*SUMIF('Daily Log'!$B$18:$B$1017,$B109,'Daily Log'!$C$18:$C$1017),0) -> 0 | H109: =IFERROR($E109*SUMIF('Daily Log'!$E$18:$E$1017,$B109,'Daily Log'!$F$18:$F$1017),0) -> 0 | I109: =IFERROR($E109*SUMIF('Daily Log'!$H$18:$H$1017,$B109,'Daily Log'!$I$18:$I$1017),0) -> 0 | J109: =IFERROR($E109*SUMIF('Daily Log'!$K$18:$K$1017,$B109,'Daily Log'!$L$18:$L$1017),0) -> 0 | K109: =IFERROR($E109*SUMIF('Daily Log'!$N$18:$N$1017,$B109,'Daily Log'!$O$18:$O$1017),0) -> 0 | L109: =IFERROR($E109*SUMIF('Daily Log'!$Q$18:$Q$1017,$B109,'Daily Log'!$R$18:$R$1017),0) -> 0 | M109: =IFERROR($E109*SUMIF('Daily Log'!$T$18:$T$1017,$B109,'Daily Log'!$U$18:$U$1017),0) -> 0 | N109: =IFERROR($E109*SUMIF('Daily Log'!$W$18:$W$1017,$B109,'Daily Log'!$X$18:$X$1017),0) -> 0 | O109: =IFERROR($E109*SUMIF('Daily Log'!$Z$18:$Z$1017,$B109,'Daily Log'!$AA$18:$AA$1017),0) -> 0 | P109: =IFERROR($E109*SUMIF('Daily Log'!$AC$18:$AC$1017,$B109,'Daily Log'!$AD$18:$AD$1017),0) -> 0 | Q109: =IFERROR($E109*SUMIF('Daily Log'!$AF$18:$AF$1017,$B109,'Daily Log'!$AG$18:$AG$1017),0) -> 0 | R109: =IFERROR($E109*SUMIF('Daily Log'!$AI$18:$AI$1017,$B109,'Daily Log'!$AJ$18:$AJ$1017),0) -> 0 | S109: =IFERROR($E109*SUMIF('Daily Log'!$AL$18:$AL$1017,$B109,'Daily Log'!$AM$18:$AM$1017),0) -> 0 | T109: =IFERROR($E109*SUMIF('Daily Log'!$AO$18:$AO$1017,$B109,'Daily Log'!$AP$18:$AP$1017),0) -> 0 | U109: =IFERROR($E109*SUMIF('Daily Log'!$AR$18:$AR$1017,$B109,'Daily Log'!$AS$18:$AS$1017),0) -> 0 | V109: =IFERROR($E109*SUMIF('Daily Log'!$AU$18:$AU$1017,$B109,'Daily Log'!$AV$18:$AV$1017),0) -> 0 | W109: =IFERROR($E109*SUMIF('Daily Log'!$AX$18:$AX$1017,$B109,'Daily Log'!$AY$18:$AY$1017),0) -> 0 | X109: =IFERROR($E109*SUMIF('Daily Log'!$BA$18:$BA$1017,$B109,'Daily Log'!$BB$18:$BB$1017),0) -> 0 | Y109: =IFERROR($E109*SUMIF('Daily Log'!$BD$18:$BD$1017,$B109,'Daily Log'!$BE$18:$BE$1017),0) -> 0 | Z109: =IFERROR($E109*SUMIF('Daily Log'!$BG$18:$BG$1017,$B109,'Daily Log'!$BH$18:$BH$1017),0) -> 0 | AA109: =IFERROR($E109*SUMIF('Daily Log'!$BJ$18:$BJ$1017,$B109,'Daily Log'!$BK$18:$BK$1017),0) -> 0 | AB109: =IFERROR($E109*SUMIF('Daily Log'!$BM$18:$BM$1017,$B109,'Daily Log'!$BN$18:$BN$1017),0) -> 0 | AC109: =IFERROR($E109*SUMIF('Daily Log'!$BP$18:$BP$1017,$B109,'Daily Log'!$BQ$18:$BQ$1017),0) -> 0 | AD109: =IFERROR($E109*SUMIF('Daily Log'!$BS$18:$BS$1017,$B109,'Daily Log'!$BT$18:$BT$1017),0) -> 0 | AE109: =IFERROR($E109*SUMIF('Daily Log'!$BV$18:$BV$1017,$B109,'Daily Log'!$BW$18:$BW$1017),0) -> 0 | AF109: =IFERROR($E109*SUMIF('Daily Log'!$BY$18:$BY$1017,$B109,'Daily Log'!$BZ$18:$BZ$1017),0) -> 0 | AG109: =IFERROR($E109*SUMIF('Daily Log'!$CB$18:$CB$1017,$B109,'Daily Log'!$CC$18:$CC$1017),0) -> 0 | AH109: =IFERROR($E109*SUMIF('Daily Log'!$CE$18:$CE$1017,$B109,'Daily Log'!$CF$18:$CF$1017),0) -> 0 | AI109: =IFERROR($E109*SUMIF('Daily Log'!$CH$18:$CH$1017,$B109,'Daily Log'!$CI$18:$CI$1017),0) -> 0 | AJ109: =IFERROR($E109*SUMIF('Daily Log'!$CK$18:$CK$1017,$B109,'Daily Log'!$CL$18:$CL$1017),0) -> 0 | AK109: =IFERROR($E109*SUMIF('Daily Log'!$CN$18:$CN$1017,$B109,'Daily Log'!$CO$18:$CO$1017),0) -> 0
B110: CR01 88301:PAUL BTL | D110: BEER | E110: 1 | F110: =SUM($G110:$AK110) -> 1 | G110: =IFERROR($E110*SUMIF('Daily Log'!$B$18:$B$1017,$B110,'Daily Log'!$C$18:$C$1017),0) -> 0 | H110: =IFERROR($E110*SUMIF('Daily Log'!$E$18:$E$1017,$B110,'Daily Log'!$F$18:$F$1017),0) -> 0 | I110: =IFERROR($E110*SUMIF('Daily Log'!$H$18:$H$1017,$B110,'Daily Log'!$I$18:$I$1017),0) -> 0 | J110: =IFERROR($E110*SUMIF('Daily Log'!$K$18:$K$1017,$B110,'Daily Log'!$L$18:$L$1017),0) -> 0 | K110: =IFERROR($E110*SUMIF('Daily Log'!$N$18:$N$1017,$B110,'Daily Log'!$O$18:$O$1017),0) -> 0 | L110: =IFERROR($E110*SUMIF('Daily Log'!$Q$18:$Q$1017,$B110,'Daily Log'!$R$18:$R$1017),0) -> 0 | M110: =IFERROR($E110*SUMIF('Daily Log'!$T$18:$T$1017,$B110,'Daily Log'!$U$18:$U$1017),0) -> 0 | N110: =IFERROR($E110*SUMIF('Daily Log'!$W$18:$W$1017,$B110,'Daily Log'!$X$18:$X$1017),0) -> 0 | O110: =IFERROR($E110*SUMIF('Daily Log'!$Z$18:$Z$1017,$B110,'Daily Log'!$AA$18:$AA$1017),0) -> 0 | P110: =IFERROR($E110*SUMIF('Daily Log'!$AC$18:$AC$1017,$B110,'Daily Log'!$AD$18:$AD$1017),0) -> 0 | Q110: =IFERROR($E110*SUMIF('Daily Log'!$AF$18:$AF$1017,$B110,'Daily Log'!$AG$18:$AG$1017),0) -> 0 | R110: =IFERROR($E110*SUMIF('Daily Log'!$AI$18:$AI$1017,$B110,'Daily Log'!$AJ$18:$AJ$1017),0) -> 1 | S110: =IFERROR($E110*SUMIF('Daily Log'!$AL$18:$AL$1017,$B110,'Daily Log'!$AM$18:$AM$1017),0) -> 0 | T110: =IFERROR($E110*SUMIF('Daily Log'!$AO$18:$AO$1017,$B110,'Daily Log'!$AP$18:$AP$1017),0) -> 0 | U110: =IFERROR($E110*SUMIF('Daily Log'!$AR$18:$AR$1017,$B110,'Daily Log'!$AS$18:$AS$1017),0) -> 0 | V110: =IFERROR($E110*SUMIF('Daily Log'!$AU$18:$AU$1017,$B110,'Daily Log'!$AV$18:$AV$1017),0) -> 0 | W110: =IFERROR($E110*SUMIF('Daily Log'!$AX$18:$AX$1017,$B110,'Daily Log'!$AY$18:$AY$1017),0) -> 0 | X110: =IFERROR($E110*SUMIF('Daily Log'!$BA$18:$BA$1017,$B110,'Daily Log'!$BB$18:$BB$1017),0) -> 0 | Y110: =IFERROR($E110*SUMIF('Daily Log'!$BD$18:$BD$1017,$B110,'Daily Log'!$BE$18:$BE$1017),0) -> 0 | Z110: =IFERROR($E110*SUMIF('Daily Log'!$BG$18:$BG$1017,$B110,'Daily Log'!$BH$18:$BH$1017),0) -> 0 | AA110: =IFERROR($E110*SUMIF('Daily Log'!$BJ$18:$BJ$1017,$B110,'Daily Log'!$BK$18:$BK$1017),0) -> 0 | AB110: =IFERROR($E110*SUMIF('Daily Log'!$BM$18:$BM$1017,$B110,'Daily Log'!$BN$18:$BN$1017),0) -> 0 | AC110: =IFERROR($E110*SUMIF('Daily Log'!$BP$18:$BP$1017,$B110,'Daily Log'!$BQ$18:$BQ$1017),0) -> 0 | AD110: =IFERROR($E110*SUMIF('Daily Log'!$BS$18:$BS$1017,$B110,'Daily Log'!$BT$18:$BT$1017),0) -> 0 | AE110: =IFERROR($E110*SUMIF('Daily Log'!$BV$18:$BV$1017,$B110,'Daily Log'!$BW$18:$BW$1017),0) -> 0 | AF110: =IFERROR($E110*SUMIF('Daily Log'!$BY$18:$BY$1017,$B110,'Daily Log'!$BZ$18:$BZ$1017),0) -> 0 | AG110: =IFERROR($E110*SUMIF('Daily Log'!$CB$18:$CB$1017,$B110,'Daily Log'!$CC$18:$CC$1017),0) -> 0 | AH110: =IFERROR($E110*SUMIF('Daily Log'!$CE$18:$CE$1017,$B110,'Daily Log'!$CF$18:$CF$1017),0) -> 0 | AI110: =IFERROR($E110*SUMIF('Daily Log'!$CH$18:$CH$1017,$B110,'Daily Log'!$CI$18:$CI$1017),0) -> 0 | AJ110: =IFERROR($E110*SUMIF('Daily Log'!$CK$18:$CK$1017,$B110,'Daily Log'!$CL$18:$CL$1017),0) -> 0 | AK110: =IFERROR($E110*SUMIF('Daily Log'!$CN$18:$CN$1017,$B110,'Daily Log'!$CO$18:$CO$1017),0) -> 0
B111: CR02 88302:PAUL BKT | D111: BEER | E111: 4 | F111: =SUM($G111:$AK111) -> 4 | AC111: =IFERROR($E111*SUMIF('Daily Log'!$BP$18:$BP$1017,$B111,'Daily Log'!$BQ$18:$BQ$1017),0) -> 0 | AD111: =IFERROR($E111*SUMIF('Daily Log'!$BS$18:$BS$1017,$B111,'Daily Log'!$BT$18:$BT$1017),0) -> 4 | AE111: =IFERROR($E111*SUMIF('Daily Log'!$BV$18:$BV$1017,$B111,'Daily Log'!$BW$18:$BW$1017),0) -> 0 | AF111: =IFERROR($E111*SUMIF('Daily Log'!$BY$18:$BY$1017,$B111,'Daily Log'!$BZ$18:$BZ$1017),0) -> 0 | AG111: =IFERROR($E111*SUMIF('Daily Log'!$CB$18:$CB$1017,$B111,'Daily Log'!$CC$18:$CC$1017),0) -> 0 | AH111: =IFERROR($E111*SUMIF('Daily Log'!$CE$18:$CE$1017,$B111,'Daily Log'!$CF$18:$CF$1017),0) -> 0 | AI111: =IFERROR($E111*SUMIF('Daily Log'!$CH$18:$CH$1017,$B111,'Daily Log'!$CI$18:$CI$1017),0) -> 0 | AJ111: =IFERROR($E111*SUMIF('Daily Log'!$CK$18:$CK$1017,$B111,'Daily Log'!$CL$18:$CL$1017),0) -> 0 | AK111: =IFERROR($E111*SUMIF('Daily Log'!$CN$18:$CN$1017,$B111,'Daily Log'!$CO$18:$CO$1017),0) -> 0
B112: PAULANAR BEER TOTAL | D112: BEER | G112: =SUM(G108:G110) -> 0 | H112: 0 | I112: 0 | J112: 0 | K112: 0 | L112: 0 | M112: 0 | N112: 0 | O112: 0 | P112: 0 | Q112: 0 | R112: 1 | S112: 0 | T112: =SUM(T108:T110) -> 0 | U112: =SUM(U108:U110) -> 0 | V112: 0 | W112: 0 | X112: 0 | Y112: 0 | Z112: 0 | AA112: 0 | AB112: 0 | AC112: =SUM(AC108:AC111) -> 0 | AD112: 4 | AE112: 0 | AF112: 0 | AG112: 0 | AH112: 0 | AI112: 0 | AJ112: 0 | AK112: 0
B113: CB01 2001:MILO(C) | D113: SO-COLD BEVERAGE | E113: 1 | F113: 0 | G113: =IFERROR($E113*SUMIF('Daily Log'!$B$18:$B$1017,$B113,'Daily Log'!$C$18:$C$1017),0) -> 0 | H113: =IFERROR($E113*SUMIF('Daily Log'!$E$18:$E$1017,$B113,'Daily Log'!$F$18:$F$1017),0) -> 0 | I113: =IFERROR($E113*SUMIF('Daily Log'!$H$18:$H$1017,$B113,'Daily Log'!$I$18:$I$1017),0) -> 0 | J113: =IFERROR($E113*SUMIF('Daily Log'!$K$18:$K$1017,$B113,'Daily Log'!$L$18:$L$1017),0) -> 0 | K113: =IFERROR($E113*SUMIF('Daily Log'!$N$18:$N$1017,$B113,'Daily Log'!$O$18:$O$1017),0) -> 0 | L113: =IFERROR($E113*SUMIF('Daily Log'!$Q$18:$Q$1017,$B113,'Daily Log'!$R$18:$R$1017),0) -> 0 | M113: =IFERROR($E113*SUMIF('Daily Log'!$T$18:$T$1017,$B113,'Daily Log'!$U$18:$U$1017),0) -> 0 | N113: =IFERROR($E113*SUMIF('Daily Log'!$W$18:$W$1017,$B113,'Daily Log'!$X$18:$X$1017),0) -> 0 | O113: =IFERROR($E113*SUMIF('Daily Log'!$Z$18:$Z$1017,$B113,'Daily Log'!$AA$18:$AA$1017),0) -> 0 | P113: =IFERROR($E113*SUMIF('Daily Log'!$AC$18:$AC$1017,$B113,'Daily Log'!$AD$18:$AD$1017),0) -> 0 | Q113: =IFERROR($E113*SUMIF('Daily Log'!$AF$18:$AF$1017,$B113,'Daily Log'!$AG$18:$AG$1017),0) -> 0 | R113: =IFERROR($E113*SUMIF('Daily Log'!$AI$18:$AI$1017,$B113,'Daily Log'!$AJ$18:$AJ$1017),0) -> 0 | S113: =IFERROR($E113*SUMIF('Daily Log'!$AL$18:$AL$1017,$B113,'Daily Log'!$AM$18:$AM$1017),0) -> 0 | T113: =IFERROR($E113*SUMIF('Daily Log'!$AO$18:$AO$1017,$B113,'Daily Log'!$AP$18:$AP$1017),0) -> 0 | U113: =IFERROR($E113*SUMIF('Daily Log'!$AR$18:$AR$1017,$B113,'Daily Log'!$AS$18:$AS$1017),0) -> 0 | V113: =IFERROR($E113*SUMIF('Daily Log'!$AU$18:$AU$1017,$B113,'Daily Log'!$AV$18:$AV$1017),0) -> 0 | W113: =IFERROR($E113*SUMIF('Daily Log'!$AX$18:$AX$1017,$B113,'Daily Log'!$AY$18:$AY$1017),0) -> 0 | X113: =IFERROR($E113*SUMIF('Daily Log'!$BA$18:$BA$1017,$B113,'Daily Log'!$BB$18:$BB$1017),0) -> 0 | Y113: =IFERROR($E113*SUMIF('Daily Log'!$BD$18:$BD$1017,$B113,'Daily Log'!$BE$18:$BE$1017),0) -> 0 | Z113: =IFERROR($E113*SUMIF('Daily Log'!$BG$18:$BG$1017,$B113,'Daily Log'!$BH$18:$BH$1017),0) -> 0 | AA113: =IFERROR($E113*SUMIF('Daily Log'!$BJ$18:$BJ$1017,$B113,'Daily Log'!$BK$18:$BK$1017),0) -> 0 | AB113: =IFERROR($E113*SUMIF('Daily Log'!$BM$18:$BM$1017,$B113,'Daily Log'!$BN$18:$BN$1017),0) -> 0 | AC113: =IFERROR($E113*SUMIF('Daily Log'!$BP$18:$BP$1017,$B113,'Daily Log'!$BQ$18:$BQ$1017),0) -> 0 | AD113: =IFERROR($E113*SUMIF('Daily Log'!$BS$18:$BS$1017,$B113,'Daily Log'!$BT$18:$BT$1017),0) -> 0 | AE113: =IFERROR($E113*SUMIF('Daily Log'!$BV$18:$BV$1017,$B113,'Daily Log'!$BW$18:$BW$1017),0) -> 0 | AF113: =IFERROR($E113*SUMIF('Daily Log'!$BY$18:$BY$1017,$B113,'Daily Log'!$BZ$18:$BZ$1017),0) -> 0 | AG113: =IFERROR($E113*SUMIF('Daily Log'!$CB$18:$CB$1017,$B113,'Daily Log'!$CC$18:$CC$1017),0) -> 0 | AH113: =IFERROR($E113*SUMIF('Daily Log'!$CE$18:$CE$1017,$B113,'Daily Log'!$CF$18:$CF$1017),0) -> 0 | AI113: =IFERROR($E113*SUMIF('Daily Log'!$CH$18:$CH$1017,$B113,'Daily Log'!$CI$18:$CI$1017),0) -> 0 | AJ113: =IFERROR($E113*SUMIF('Daily Log'!$CK$18:$CK$1017,$B113,'Daily Log'!$CL$18:$CL$1017),0) -> 0 | AK113: =IFERROR($E113*SUMIF('Daily Log'!$CN$18:$CN$1017,$B113,'Daily Log'!$CO$18:$CO$1017),0) -> 0
B114: CB02 2003:NESCAFE(C) | D114: SO-COLD BEVERAGE | E114: 1 | F114: 1 | G114: =IFERROR($E114*SUMIF('Daily Log'!$B$18:$B$1017,$B114,'Daily Log'!$C$18:$C$1017),0) -> 0 | H114: =IFERROR($E114*SUMIF('Daily Log'!$E$18:$E$1017,$B114,'Daily Log'!$F$18:$F$1017),0) -> 0 | I114: =IFERROR($E114*SUMIF('Daily Log'!$H$18:$H$1017,$B114,'Daily Log'!$I$18:$I$1017),0) -> 0 | J114: =IFERROR($E114*SUMIF('Daily Log'!$K$18:$K$1017,$B114,'Daily Log'!$L$18:$L$1017),0) -> 0 | K114: =IFERROR($E114*SUMIF('Daily Log'!$N$18:$N$1017,$B114,'Daily Log'!$O$18:$O$1017),0) -> 0 | L114: =IFERROR($E114*SUMIF('Daily Log'!$Q$18:$Q$1017,$B114,'Daily Log'!$R$18:$R$1017),0) -> 0 | M114: =IFERROR($E114*SUMIF('Daily Log'!$T$18:$T$1017,$B114,'Daily Log'!$U$18:$U$1017),0) -> 0 | N114: =IFERROR($E114*SUMIF('Daily Log'!$W$18:$W$1017,$B114,'Daily Log'!$X$18:$X$1017),0) -> 0 | O114: =IFERROR($E114*SUMIF('Daily Log'!$Z$18:$Z$1017,$B114,'Daily Log'!$AA$18:$AA$1017),0) -> 0 | P114: =IFERROR($E114*SUMIF('Daily Log'!$AC$18:$AC$1017,$B114,'Daily Log'!$AD$18:$AD$1017),0) -> 0 | Q114: =IFERROR($E114*SUMIF('Daily Log'!$AF$18:$AF$1017,$B114,'Daily Log'!$AG$18:$AG$1017),0) -> 0 | R114: =IFERROR($E114*SUMIF('Daily Log'!$AI$18:$AI$1017,$B114,'Daily Log'!$AJ$18:$AJ$1017),0) -> 0 | S114: =IFERROR($E114*SUMIF('Daily Log'!$AL$18:$AL$1017,$B114,'Daily Log'!$AM$18:$AM$1017),0) -> 0 | T114: =IFERROR($E114*SUMIF('Daily Log'!$AO$18:$AO$1017,$B114,'Daily Log'!$AP$18:$AP$1017),0) -> 0 | U114: =IFERROR($E114*SUMIF('Daily Log'!$AR$18:$AR$1017,$B114,'Daily Log'!$AS$18:$AS$1017),0) -> 0 | V114: =IFERROR($E114*SUMIF('Daily Log'!$AU$18:$AU$1017,$B114,'Daily Log'!$AV$18:$AV$1017),0) -> 0 | W114: =IFERROR($E114*SUMIF('Daily Log'!$AX$18:$AX$1017,$B114,'Daily Log'!$AY$18:$AY$1017),0) -> 0 | X114: =IFERROR($E114*SUMIF('Daily Log'!$BA$18:$BA$1017,$B114,'Daily Log'!$BB$18:$BB$1017),0) -> 0 | Y114: =IFERROR($E114*SUMIF('Daily Log'!$BD$18:$BD$1017,$B114,'Daily Log'!$BE$18:$BE$1017),0) -> 1 | Z114: =IFERROR($E114*SUMIF('Daily Log'!$BG$18:$BG$1017,$B114,'Daily Log'!$BH$18:$BH$1017),0) -> 0 | AA114: =IFERROR($E114*SUMIF('Daily Log'!$BJ$18:$BJ$1017,$B114,'Daily Log'!$BK$18:$BK$1017),0) -> 0 | AB114: =IFERROR($E114*SUMIF('Daily Log'!$BM$18:$BM$1017,$B114,'Daily Log'!$BN$18:$BN$1017),0) -> 0 | AC114: =IFERROR($E114*SUMIF('Daily Log'!$BP$18:$BP$1017,$B114,'Daily Log'!$BQ$18:$BQ$1017),0) -> 0 | AD114: =IFERROR($E114*SUMIF('Daily Log'!$BS$18:$BS$1017,$B114,'Daily Log'!$BT$18:$BT$1017),0) -> 0 | AE114: =IFERROR($E114*SUMIF('Daily Log'!$BV$18:$BV$1017,$B114,'Daily Log'!$BW$18:$BW$1017),0) -> 0 | AF114: =IFERROR($E114*SUMIF('Daily Log'!$BY$18:$BY$1017,$B114,'Daily Log'!$BZ$18:$BZ$1017),0) -> 0 | AG114: =IFERROR($E114*SUMIF('Daily Log'!$CB$18:$CB$1017,$B114,'Daily Log'!$CC$18:$CC$1017),0) -> 0 | AH114: =IFERROR($E114*SUMIF('Daily Log'!$CE$18:$CE$1017,$B114,'Daily Log'!$CF$18:$CF$1017),0) -> 0 | AI114: =IFERROR($E114*SUMIF('Daily Log'!$CH$18:$CH$1017,$B114,'Daily Log'!$CI$18:$CI$1017),0) -> 0 | AJ114: =IFERROR($E114*SUMIF('Daily Log'!$CK$18:$CK$1017,$B114,'Daily Log'!$CL$18:$CL$1017),0) -> 0 | AK114: =IFERROR($E114*SUMIF('Daily Log'!$CN$18:$CN$1017,$B114,'Daily Log'!$CO$18:$CO$1017),0) -> 0
B115: CB03 2005:TEA(C) | D115: SO-COLD BEVERAGE | E115: 1 | F115: 0 | G115: =IFERROR($E115*SUMIF('Daily Log'!$B$18:$B$1017,$B115,'Daily Log'!$C$18:$C$1017),0) -> 0 | H115: =IFERROR($E115*SUMIF('Daily Log'!$E$18:$E$1017,$B115,'Daily Log'!$F$18:$F$1017),0) -> 0 | I115: =IFERROR($E115*SUMIF('Daily Log'!$H$18:$H$1017,$B115,'Daily Log'!$I$18:$I$1017),0) -> 0 | J115: =IFERROR($E115*SUMIF('Daily Log'!$K$18:$K$1017,$B115,'Daily Log'!$L$18:$L$1017),0) -> 0 | K115: =IFERROR($E115*SUMIF('Daily Log'!$N$18:$N$1017,$B115,'Daily Log'!$O$18:$O$1017),0) -> 0 | L115: =IFERROR($E115*SUMIF('Daily Log'!$Q$18:$Q$1017,$B115,'Daily Log'!$R$18:$R$1017),0) -> 0 | M115: =IFERROR($E115*SUMIF('Daily Log'!$T$18:$T$1017,$B115,'Daily Log'!$U$18:$U$1017),0) -> 0 | N115: =IFERROR($E115*SUMIF('Daily Log'!$W$18:$W$1017,$B115,'Daily Log'!$X$18:$X$1017),0) -> 0 | O115: =IFERROR($E115*SUMIF('Daily Log'!$Z$18:$Z$1017,$B115,'Daily Log'!$AA$18:$AA$1017),0) -> 0 | P115: =IFERROR($E115*SUMIF('Daily Log'!$AC$18:$AC$1017,$B115,'Daily Log'!$AD$18:$AD$1017),0) -> 0 | Q115: =IFERROR($E115*SUMIF('Daily Log'!$AF$18:$AF$1017,$B115,'Daily Log'!$AG$18:$AG$1017),0) -> 0 | R115: =IFERROR($E115*SUMIF('Daily Log'!$AI$18:$AI$1017,$B115,'Daily Log'!$AJ$18:$AJ$1017),0) -> 0 | S115: =IFERROR($E115*SUMIF('Daily Log'!$AL$18:$AL$1017,$B115,'Daily Log'!$AM$18:$AM$1017),0) -> 0 | T115: =IFERROR($E115*SUMIF('Daily Log'!$AO$18:$AO$1017,$B115,'Daily Log'!$AP$18:$AP$1017),0) -> 0 | U115: =IFERROR($E115*SUMIF('Daily Log'!$AR$18:$AR$1017,$B115,'Daily Log'!$AS$18:$AS$1017),0) -> 0 | V115: =IFERROR($E115*SUMIF('Daily Log'!$AU$18:$AU$1017,$B115,'Daily Log'!$AV$18:$AV$1017),0) -> 0 | W115: =IFERROR($E115*SUMIF('Daily Log'!$AX$18:$AX$1017,$B115,'Daily Log'!$AY$18:$AY$1017),0) -> 0 | X115: =IFERROR($E115*SUMIF('Daily Log'!$BA$18:$BA$1017,$B115,'Daily Log'!$BB$18:$BB$1017),0) -> 0 | Y115: =IFERROR($E115*SUMIF('Daily Log'!$BD$18:$BD$1017,$B115,'Daily Log'!$BE$18:$BE$1017),0) -> 0 | Z115: =IFERROR($E115*SUMIF('Daily Log'!$BG$18:$BG$1017,$B115,'Daily Log'!$BH$18:$BH$1017),0) -> 0 | AA115: =IFERROR($E115*SUMIF('Daily Log'!$BJ$18:$BJ$1017,$B115,'Daily Log'!$BK$18:$BK$1017),0) -> 0 | AB115: =IFERROR($E115*SUMIF('Daily Log'!$BM$18:$BM$1017,$B115,'Daily Log'!$BN$18:$BN$1017),0) -> 0 | AC115: =IFERROR($E115*SUMIF('Daily Log'!$BP$18:$BP$1017,$B115,'Daily Log'!$BQ$18:$BQ$1017),0) -> 0 | AD115: =IFERROR($E115*SUMIF('Daily Log'!$BS$18:$BS$1017,$B115,'Daily Log'!$BT$18:$BT$1017),0) -> 0 | AE115: =IFERROR($E115*SUMIF('Daily Log'!$BV$18:$BV$1017,$B115,'Daily Log'!$BW$18:$BW$1017),0) -> 0 | AF115: =IFERROR($E115*SUMIF('Daily Log'!$BY$18:$BY$1017,$B115,'Daily Log'!$BZ$18:$BZ$1017),0) -> 0 | AG115: =IFERROR($E115*SUMIF('Daily Log'!$CB$18:$CB$1017,$B115,'Daily Log'!$CC$18:$CC$1017),0) -> 0 | AH115: =IFERROR($E115*SUMIF('Daily Log'!$CE$18:$CE$1017,$B115,'Daily Log'!$CF$18:$CF$1017),0) -> 0 | AI115: =IFERROR($E115*SUMIF('Daily Log'!$CH$18:$CH$1017,$B115,'Daily Log'!$CI$18:$CI$1017),0) -> 0 | AJ115: =IFERROR($E115*SUMIF('Daily Log'!$CK$18:$CK$1017,$B115,'Daily Log'!$CL$18:$CL$1017),0) -> 0 | AK115: =IFERROR($E115*SUMIF('Daily Log'!$CN$18:$CN$1017,$B115,'Daily Log'!$CO$18:$CO$1017),0) -> 0
B116: CB04 2007:LMN TEA(C) | D116: SO-COLD BEVERAGE | E116: 1 | F116: 4 | G116: =IFERROR($E116*SUMIF('Daily Log'!$B$18:$B$1017,$B116,'Daily Log'!$C$18:$C$1017),0) -> 0 | H116: =IFERROR($E116*SUMIF('Daily Log'!$E$18:$E$1017,$B116,'Daily Log'!$F$18:$F$1017),0) -> 0 | I116: =IFERROR($E116*SUMIF('Daily Log'!$H$18:$H$1017,$B116,'Daily Log'!$I$18:$I$1017),0) -> 0 | J116: =IFERROR($E116*SUMIF('Daily Log'!$K$18:$K$1017,$B116,'Daily Log'!$L$18:$L$1017),0) -> 0 | K116: =IFERROR($E116*SUMIF('Daily Log'!$N$18:$N$1017,$B116,'Daily Log'!$O$18:$O$1017),0) -> 0 | L116: =IFERROR($E116*SUMIF('Daily Log'!$Q$18:$Q$1017,$B116,'Daily Log'!$R$18:$R$1017),0) -> 0 | M116: =IFERROR($E116*SUMIF('Daily Log'!$T$18:$T$1017,$B116,'Daily Log'!$U$18:$U$1017),0) -> 2 | N116: =IFERROR($E116*SUMIF('Daily Log'!$W$18:$W$1017,$B116,'Daily Log'!$X$18:$X$1017),0) -> 0 | O116: =IFERROR($E116*SUMIF('Daily Log'!$Z$18:$Z$1017,$B116,'Daily Log'!$AA$18:$AA$1017),0) -> 0 | P116: =IFERROR($E116*SUMIF('Daily Log'!$AC$18:$AC$1017,$B116,'Daily Log'!$AD$18:$AD$1017),0) -> 0 | Q116: =IFERROR($E116*SUMIF('Daily Log'!$AF$18:$AF$1017,$B116,'Daily Log'!$AG$18:$AG$1017),0) -> 0 | R116: =IFERROR($E116*SUMIF('Daily Log'!$AI$18:$AI$1017,$B116,'Daily Log'!$AJ$18:$AJ$1017),0) -> 0 | S116: =IFERROR($E116*SUMIF('Daily Log'!$AL$18:$AL$1017,$B116,'Daily Log'!$AM$18:$AM$1017),0) -> 1 | T116: =IFERROR($E116*SUMIF('Daily Log'!$AO$18:$AO$1017,$B116,'Daily Log'!$AP$18:$AP$1017),0) -> 0 | U116: =IFERROR($E116*SUMIF('Daily Log'!$AR$18:$AR$1017,$B116,'Daily Log'!$AS$18:$AS$1017),0) -> 0 | V116: =IFERROR($E116*SUMIF('Daily Log'!$AU$18:$AU$1017,$B116,'Daily Log'!$AV$18:$AV$1017),0) -> 0 | W116: =IFERROR($E116*SUMIF('Daily Log'!$AX$18:$AX$1017,$B116,'Daily Log'!$AY$18:$AY$1017),0) -> 0 | X116: =IFERROR($E116*SUMIF('Daily Log'!$BA$18:$BA$1017,$B116,'Daily Log'!$BB$18:$BB$1017),0) -> 0 | Y116: =IFERROR($E116*SUMIF('Daily Log'!$BD$18:$BD$1017,$B116,'Daily Log'!$BE$18:$BE$1017),0) -> 0 | Z116: =IFERROR($E116*SUMIF('Daily Log'!$BG$18:$BG$1017,$B116,'Daily Log'!$BH$18:$BH$1017),0) -> 0 | AA116: =IFERROR($E116*SUMIF('Daily Log'!$BJ$18:$BJ$1017,$B116,'Daily Log'!$BK$18:$BK$1017),0) -> 0 | AB116: =IFERROR($E116*SUMIF('Daily Log'!$BM$18:$BM$1017,$B116,'Daily Log'!$BN$18:$BN$1017),0) -> 0 | AC116: =IFERROR($E116*SUMIF('Daily Log'!$BP$18:$BP$1017,$B116,'Daily Log'!$BQ$18:$BQ$1017),0) -> 0 | AD116: =IFERROR($E116*SUMIF('Daily Log'!$BS$18:$BS$1017,$B116,'Daily Log'!$BT$18:$BT$1017),0) -> 0 | AE116: =IFERROR($E116*SUMIF('Daily Log'!$BV$18:$BV$1017,$B116,'Daily Log'!$BW$18:$BW$1017),0) -> 1 | AF116: =IFERROR($E116*SUMIF('Daily Log'!$BY$18:$BY$1017,$B116,'Daily Log'!$BZ$18:$BZ$1017),0) -> 0 | AG116: =IFERROR($E116*SUMIF('Daily Log'!$CB$18:$CB$1017,$B116,'Daily Log'!$CC$18:$CC$1017),0) -> 0 | AH116: =IFERROR($E116*SUMIF('Daily Log'!$CE$18:$CE$1017,$B116,'Daily Log'!$CF$18:$CF$1017),0) -> 0 | AI116: =IFERROR($E116*SUMIF('Daily Log'!$CH$18:$CH$1017,$B116,'Daily Log'!$CI$18:$CI$1017),0) -> 0 | AJ116: =IFERROR($E116*SUMIF('Daily Log'!$CK$18:$CK$1017,$B116,'Daily Log'!$CL$18:$CL$1017),0) -> 0 | AK116: =IFERROR($E116*SUMIF('Daily Log'!$CN$18:$CN$1017,$B116,'Daily Log'!$CO$18:$CO$1017),0) -> 0
B117: CB05 2009:GRN TEA(C) | D117: SO-COLD BEVERAGE | E117: 1 | F117: =SUM($G117:$AK117) -> 4 | G117: =IFERROR($E117*SUMIF('Daily Log'!$B$18:$B$1017,$B117,'Daily Log'!$C$18:$C$1017),0) -> 0 | H117: =IFERROR($E117*SUMIF('Daily Log'!$E$18:$E$1017,$B117,'Daily Log'!$F$18:$F$1017),0) -> 0 | I117: =IFERROR($E117*SUMIF('Daily Log'!$H$18:$H$1017,$B117,'Daily Log'!$I$18:$I$1017),0) -> 0 | J117: =IFERROR($E117*SUMIF('Daily Log'!$K$18:$K$1017,$B117,'Daily Log'!$L$18:$L$1017),0) -> 0 | K117: =IFERROR($E117*SUMIF('Daily Log'!$N$18:$N$1017,$B117,'Daily Log'!$O$18:$O$1017),0) -> 0 | L117: =IFERROR($E117*SUMIF('Daily Log'!$Q$18:$Q$1017,$B117,'Daily Log'!$R$18:$R$1017),0) -> 0 | M117: =IFERROR($E117*SUMIF('Daily Log'!$T$18:$T$1017,$B117,'Daily Log'!$U$18:$U$1017),0) -> 0 | N117: =IFERROR($E117*SUMIF('Daily Log'!$W$18:$W$1017,$B117,'Daily Log'!$X$18:$X$1017),0) -> 0 | O117: =IFERROR($E117*SUMIF('Daily Log'!$Z$18:$Z$1017,$B117,'Daily Log'!$AA$18:$AA$1017),0) -> 0 | P117: =IFERROR($E117*SUMIF('Daily Log'!$AC$18:$AC$1017,$B117,'Daily Log'!$AD$18:$AD$1017),0) -> 0 | Q117: =IFERROR($E117*SUMIF('Daily Log'!$AF$18:$AF$1017,$B117,'Daily Log'!$AG$18:$AG$1017),0) -> 0 | R117: =IFERROR($E117*SUMIF('Daily Log'!$AI$18:$AI$1017,$B117,'Daily Log'!$AJ$18:$AJ$1017),0) -> 0 | S117: =IFERROR($E117*SUMIF('Daily Log'!$AL$18:$AL$1017,$B117,'Daily Log'!$AM$18:$AM$1017),0) -> 0 | T117: =IFERROR($E117*SUMIF('Daily Log'!$AO$18:$AO$1017,$B117,'Daily Log'!$AP$18:$AP$1017),0) -> 0 | U117: =IFERROR($E117*SUMIF('Daily Log'!$AR$18:$AR$1017,$B117,'Daily Log'!$AS$18:$AS$1017),0) -> 0 | V117: =IFERROR($E117*SUMIF('Daily Log'!$AU$18:$AU$1017,$B117,'Daily Log'!$AV$18:$AV$1017),0) -> 0 | W117: =IFERROR($E117*SUMIF('Daily Log'!$AX$18:$AX$1017,$B117,'Daily Log'!$AY$18:$AY$1017),0) -> 0 | X117: =IFERROR($E117*SUMIF('Daily Log'!$BA$18:$BA$1017,$B117,'Daily Log'!$BB$18:$BB$1017),0) -> 0 | Y117: =IFERROR($E117*SUMIF('Daily Log'!$BD$18:$BD$1017,$B117,'Daily Log'!$BE$18:$BE$1017),0) -> 0 | Z117: =IFERROR($E117*SUMIF('Daily Log'!$BG$18:$BG$1017,$B117,'Daily Log'!$BH$18:$BH$1017),0) -> 4 | AA117: =IFERROR($E117*SUMIF('Daily Log'!$BJ$18:$BJ$1017,$B117,'Daily Log'!$BK$18:$BK$1017),0) -> 0 | AB117: =IFERROR($E117*SUMIF('Daily Log'!$BM$18:$BM$1017,$B117,'Daily Log'!$BN$18:$BN$1017),0) -> 0 | AC117: =IFERROR($E117*SUMIF('Daily Log'!$BP$18:$BP$1017,$B117,'Daily Log'!$BQ$18:$BQ$1017),0) -> 0 | AD117: =IFERROR($E117*SUMIF('Daily Log'!$BS$18:$BS$1017,$B117,'Daily Log'!$BT$18:$BT$1017),0) -> 0 | AE117: =IFERROR($E117*SUMIF('Daily Log'!$BV$18:$BV$1017,$B117,'Daily Log'!$BW$18:$BW$1017),0) -> 0 | AF117: =IFERROR($E117*SUMIF('Daily Log'!$BY$18:$BY$1017,$B117,'Daily Log'!$BZ$18:$BZ$1017),0) -> 0 | AG117: =IFERROR($E117*SUMIF('Daily Log'!$CB$18:$CB$1017,$B117,'Daily Log'!$CC$18:$CC$1017),0) -> 0 | AH117: =IFERROR($E117*SUMIF('Daily Log'!$CE$18:$CE$1017,$B117,'Daily Log'!$CF$18:$CF$1017),0) -> 0 | AI117: =IFERROR($E117*SUMIF('Daily Log'!$CH$18:$CH$1017,$B117,'Daily Log'!$CI$18:$CI$1017),0) -> 0 | AJ117: =IFERROR($E117*SUMIF('Daily Log'!$CK$18:$CK$1017,$B117,'Daily Log'!$CL$18:$CL$1017),0) -> 0 | AK117: =IFERROR($E117*SUMIF('Daily Log'!$CN$18:$CN$1017,$B117,'Daily Log'!$CO$18:$CO$1017),0) -> 0
B118: CB06 2011:HNY GT(C) | D118: SO-COLD BEVERAGE | E118: 1 | F118: 0 | G118: =IFERROR($E118*SUMIF('Daily Log'!$B$18:$B$1017,$B118,'Daily Log'!$C$18:$C$1017),0) -> 0 | H118: =IFERROR($E118*SUMIF('Daily Log'!$E$18:$E$1017,$B118,'Daily Log'!$F$18:$F$1017),0) -> 0 | I118: =IFERROR($E118*SUMIF('Daily Log'!$H$18:$H$1017,$B118,'Daily Log'!$I$18:$I$1017),0) -> 0 | J118: =IFERROR($E118*SUMIF('Daily Log'!$K$18:$K$1017,$B118,'Daily Log'!$L$18:$L$1017),0) -> 0 | K118: =IFERROR($E118*SUMIF('Daily Log'!$N$18:$N$1017,$B118,'Daily Log'!$O$18:$O$1017),0) -> 0 | L118: =IFERROR($E118*SUMIF('Daily Log'!$Q$18:$Q$1017,$B118,'Daily Log'!$R$18:$R$1017),0) -> 0 | M118: =IFERROR($E118*SUMIF('Daily Log'!$T$18:$T$1017,$B118,'Daily Log'!$U$18:$U$1017),0) -> 0 | N118: =IFERROR($E118*SUMIF('Daily Log'!$W$18:$W$1017,$B118,'Daily Log'!$X$18:$X$1017),0) -> 0 | O118: =IFERROR($E118*SUMIF('Daily Log'!$Z$18:$Z$1017,$B118,'Daily Log'!$AA$18:$AA$1017),0) -> 0 | P118: =IFERROR($E118*SUMIF('Daily Log'!$AC$18:$AC$1017,$B118,'Daily Log'!$AD$18:$AD$1017),0) -> 0 | Q118: =IFERROR($E118*SUMIF('Daily Log'!$AF$18:$AF$1017,$B118,'Daily Log'!$AG$18:$AG$1017),0) -> 0 | R118: =IFERROR($E118*SUMIF('Daily Log'!$AI$18:$AI$1017,$B118,'Daily Log'!$AJ$18:$AJ$1017),0) -> 0 | S118: =IFERROR($E118*SUMIF('Daily Log'!$AL$18:$AL$1017,$B118,'Daily Log'!$AM$18:$AM$1017),0) -> 0 | T118: =IFERROR($E118*SUMIF('Daily Log'!$AO$18:$AO$1017,$B118,'Daily Log'!$AP$18:$AP$1017),0) -> 0 | U118: =IFERROR($E118*SUMIF('Daily Log'!$AR$18:$AR$1017,$B118,'Daily Log'!$AS$18:$AS$1017),0) -> 0 | V118: =IFERROR($E118*SUMIF('Daily Log'!$AU$18:$AU$1017,$B118,'Daily Log'!$AV$18:$AV$1017),0) -> 0 | W118: =IFERROR($E118*SUMIF('Daily Log'!$AX$18:$AX$1017,$B118,'Daily Log'!$AY$18:$AY$1017),0) -> 0 | X118: =IFERROR($E118*SUMIF('Daily Log'!$BA$18:$BA$1017,$B118,'Daily Log'!$BB$18:$BB$1017),0) -> 0 | Y118: =IFERROR($E118*SUMIF('Daily Log'!$BD$18:$BD$1017,$B118,'Daily Log'!$BE$18:$BE$1017),0) -> 0 | Z118: =IFERROR($E118*SUMIF('Daily Log'!$BG$18:$BG$1017,$B118,'Daily Log'!$BH$18:$BH$1017),0) -> 0 | AA118: =IFERROR($E118*SUMIF('Daily Log'!$BJ$18:$BJ$1017,$B118,'Daily Log'!$BK$18:$BK$1017),0) -> 0 | AB118: =IFERROR($E118*SUMIF('Daily Log'!$BM$18:$BM$1017,$B118,'Daily Log'!$BN$18:$BN$1017),0) -> 0 | AC118: =IFERROR($E118*SUMIF('Daily Log'!$BP$18:$BP$1017,$B118,'Daily Log'!$BQ$18:$BQ$1017),0) -> 0 | AD118: =IFERROR($E118*SUMIF('Daily Log'!$BS$18:$BS$1017,$B118,'Daily Log'!$BT$18:$BT$1017),0) -> 0 | AE118: =IFERROR($E118*SUMIF('Daily Log'!$BV$18:$BV$1017,$B118,'Daily Log'!$BW$18:$BW$1017),0) -> 0 | AF118: =IFERROR($E118*SUMIF('Daily Log'!$BY$18:$BY$1017,$B118,'Daily Log'!$BZ$18:$BZ$1017),0) -> 0 | AG118: =IFERROR($E118*SUMIF('Daily Log'!$CB$18:$CB$1017,$B118,'Daily Log'!$CC$18:$CC$1017),0) -> 0 | AH118: =IFERROR($E118*SUMIF('Daily Log'!$CE$18:$CE$1017,$B118,'Daily Log'!$CF$18:$CF$1017),0) -> 0 | AI118: =IFERROR($E118*SUMIF('Daily Log'!$CH$18:$CH$1017,$B118,'Daily Log'!$CI$18:$CI$1017),0) -> 0 | AJ118: =IFERROR($E118*SUMIF('Daily Log'!$CK$18:$CK$1017,$B118,'Daily Log'!$CL$18:$CL$1017),0) -> 0 | AK118: =IFERROR($E118*SUMIF('Daily Log'!$CN$18:$CN$1017,$B118,'Daily Log'!$CO$18:$CO$1017),0) -> 0
B119: CB07 2013:HONEY (C) | D119: SO-COLD BEVERAGE | E119: 1 | F119: 0 | G119: =IFERROR($E119*SUMIF('Daily Log'!$B$18:$B$1017,$B119,'Daily Log'!$C$18:$C$1017),0) -> 0 | H119: =IFERROR($E119*SUMIF('Daily Log'!$E$18:$E$1017,$B119,'Daily Log'!$F$18:$F$1017),0) -> 0 | I119: =IFERROR($E119*SUMIF('Daily Log'!$H$18:$H$1017,$B119,'Daily Log'!$I$18:$I$1017),0) -> 0 | J119: =IFERROR($E119*SUMIF('Daily Log'!$K$18:$K$1017,$B119,'Daily Log'!$L$18:$L$1017),0) -> 0 | K119: =IFERROR($E119*SUMIF('Daily Log'!$N$18:$N$1017,$B119,'Daily Log'!$O$18:$O$1017),0) -> 0 | L119: =IFERROR($E119*SUMIF('Daily Log'!$Q$18:$Q$1017,$B119,'Daily Log'!$R$18:$R$1017),0) -> 0 | M119: =IFERROR($E119*SUMIF('Daily Log'!$T$18:$T$1017,$B119,'Daily Log'!$U$18:$U$1017),0) -> 0 | N119: =IFERROR($E119*SUMIF('Daily Log'!$W$18:$W$1017,$B119,'Daily Log'!$X$18:$X$1017),0) -> 0 | O119: =IFERROR($E119*SUMIF('Daily Log'!$Z$18:$Z$1017,$B119,'Daily Log'!$AA$18:$AA$1017),0) -> 0 | P119: =IFERROR($E119*SUMIF('Daily Log'!$AC$18:$AC$1017,$B119,'Daily Log'!$AD$18:$AD$1017),0) -> 0 | Q119: =IFERROR($E119*SUMIF('Daily Log'!$AF$18:$AF$1017,$B119,'Daily Log'!$AG$18:$AG$1017),0) -> 0 | R119: =IFERROR($E119*SUMIF('Daily Log'!$AI$18:$AI$1017,$B119,'Daily Log'!$AJ$18:$AJ$1017),0) -> 0 | S119: =IFERROR($E119*SUMIF('Daily Log'!$AL$18:$AL$1017,$B119,'Daily Log'!$AM$18:$AM$1017),0) -> 0 | T119: =IFERROR($E119*SUMIF('Daily Log'!$AO$18:$AO$1017,$B119,'Daily Log'!$AP$18:$AP$1017),0) -> 0 | U119: =IFERROR($E119*SUMIF('Daily Log'!$AR$18:$AR$1017,$B119,'Daily Log'!$AS$18:$AS$1017),0) -> 0 | V119: =IFERROR($E119*SUMIF('Daily Log'!$AU$18:$AU$1017,$B119,'Daily Log'!$AV$18:$AV$1017),0) -> 0 | W119: =IFERROR($E119*SUMIF('Daily Log'!$AX$18:$AX$1017,$B119,'Daily Log'!$AY$18:$AY$1017),0) -> 0 | X119: =IFERROR($E119*SUMIF('Daily Log'!$BA$18:$BA$1017,$B119,'Daily Log'!$BB$18:$BB$1017),0) -> 0 | Y119: =IFERROR($E119*SUMIF('Daily Log'!$BD$18:$BD$1017,$B119,'Daily Log'!$BE$18:$BE$1017),0) -> 0 | Z119: =IFERROR($E119*SUMIF('Daily Log'!$BG$18:$BG$1017,$B119,'Daily Log'!$BH$18:$BH$1017),0) -> 0 | AA119: =IFERROR($E119*SUMIF('Daily Log'!$BJ$18:$BJ$1017,$B119,'Daily Log'!$BK$18:$BK$1017),0) -> 0 | AB119: =IFERROR($E119*SUMIF('Daily Log'!$BM$18:$BM$1017,$B119,'Daily Log'!$BN$18:$BN$1017),0) -> 0 | AC119: =IFERROR($E119*SUMIF('Daily Log'!$BP$18:$BP$1017,$B119,'Daily Log'!$BQ$18:$BQ$1017),0) -> 0 | AD119: =IFERROR($E119*SUMIF('Daily Log'!$BS$18:$BS$1017,$B119,'Daily Log'!$BT$18:$BT$1017),0) -> 0 | AE119: =IFERROR($E119*SUMIF('Daily Log'!$BV$18:$BV$1017,$B119,'Daily Log'!$BW$18:$BW$1017),0) -> 0 | AF119: =IFERROR($E119*SUMIF('Daily Log'!$BY$18:$BY$1017,$B119,'Daily Log'!$BZ$18:$BZ$1017),0) -> 0 | AG119: =IFERROR($E119*SUMIF('Daily Log'!$CB$18:$CB$1017,$B119,'Daily Log'!$CC$18:$CC$1017),0) -> 0 | AH119: =IFERROR($E119*SUMIF('Daily Log'!$CE$18:$CE$1017,$B119,'Daily Log'!$CF$18:$CF$1017),0) -> 0 | AI119: =IFERROR($E119*SUMIF('Daily Log'!$CH$18:$CH$1017,$B119,'Daily Log'!$CI$18:$CI$1017),0) -> 0 | AJ119: =IFERROR($E119*SUMIF('Daily Log'!$CK$18:$CK$1017,$B119,'Daily Log'!$CL$18:$CL$1017),0) -> 0 | AK119: =IFERROR($E119*SUMIF('Daily Log'!$CN$18:$CN$1017,$B119,'Daily Log'!$CO$18:$CO$1017),0) -> 0
B120: CB08 2015:HNY LMN(C) | D120: SO-COLD BEVERAGE | E120: 1 | F120: 3 | G120: =IFERROR($E120*SUMIF('Daily Log'!$B$18:$B$1017,$B120,'Daily Log'!$C$18:$C$1017),0) -> 0 | H120: =IFERROR($E120*SUMIF('Daily Log'!$E$18:$E$1017,$B120,'Daily Log'!$F$18:$F$1017),0) -> 0 | I120: =IFERROR($E120*SUMIF('Daily Log'!$H$18:$H$1017,$B120,'Daily Log'!$I$18:$I$1017),0) -> 0 | J120: =IFERROR($E120*SUMIF('Daily Log'!$K$18:$K$1017,$B120,'Daily Log'!$L$18:$L$1017),0) -> 0 | K120: =IFERROR($E120*SUMIF('Daily Log'!$N$18:$N$1017,$B120,'Daily Log'!$O$18:$O$1017),0) -> 0 | L120: =IFERROR($E120*SUMIF('Daily Log'!$Q$18:$Q$1017,$B120,'Daily Log'!$R$18:$R$1017),0) -> 0 | M120: =IFERROR($E120*SUMIF('Daily Log'!$T$18:$T$1017,$B120,'Daily Log'!$U$18:$U$1017),0) -> 0 | N120: =IFERROR($E120*SUMIF('Daily Log'!$W$18:$W$1017,$B120,'Daily Log'!$X$18:$X$1017),0) -> 0 | O120: =IFERROR($E120*SUMIF('Daily Log'!$Z$18:$Z$1017,$B120,'Daily Log'!$AA$18:$AA$1017),0) -> 0 | P120: =IFERROR($E120*SUMIF('Daily Log'!$AC$18:$AC$1017,$B120,'Daily Log'!$AD$18:$AD$1017),0) -> 0 | Q120: =IFERROR($E120*SUMIF('Daily Log'!$AF$18:$AF$1017,$B120,'Daily Log'!$AG$18:$AG$1017),0) -> 0 | R120: =IFERROR($E120*SUMIF('Daily Log'!$AI$18:$AI$1017,$B120,'Daily Log'!$AJ$18:$AJ$1017),0) -> 0 | S120: =IFERROR($E120*SUMIF('Daily Log'!$AL$18:$AL$1017,$B120,'Daily Log'!$AM$18:$AM$1017),0) -> 1 | T120: =IFERROR($E120*SUMIF('Daily Log'!$AO$18:$AO$1017,$B120,'Daily Log'!$AP$18:$AP$1017),0) -> 0 | U120: =IFERROR($E120*SUMIF('Daily Log'!$AR$18:$AR$1017,$B120,'Daily Log'!$AS$18:$AS$1017),0) -> 0 | V120: =IFERROR($E120*SUMIF('Daily Log'!$AU$18:$AU$1017,$B120,'Daily Log'!$AV$18:$AV$1017),0) -> 0 | W120: =IFERROR($E120*SUMIF('Daily Log'!$AX$18:$AX$1017,$B120,'Daily Log'!$AY$18:$AY$1017),0) -> 0 | X120: =IFERROR($E120*SUMIF('Daily Log'!$BA$18:$BA$1017,$B120,'Daily Log'!$BB$18:$BB$1017),0) -> 0 | Y120: =IFERROR($E120*SUMIF('Daily Log'!$BD$18:$BD$1017,$B120,'Daily Log'!$BE$18:$BE$1017),0) -> 0 | Z120: =IFERROR($E120*SUMIF('Daily Log'!$BG$18:$BG$1017,$B120,'Daily Log'!$BH$18:$BH$1017),0) -> 0 | AA120: =IFERROR($E120*SUMIF('Daily Log'!$BJ$18:$BJ$1017,$B120,'Daily Log'!$BK$18:$BK$1017),0) -> 0 | AB120: =IFERROR($E120*SUMIF('Daily Log'!$BM$18:$BM$1017,$B120,'Daily Log'!$BN$18:$BN$1017),0) -> 0 | AC120: =IFERROR($E120*SUMIF('Daily Log'!$BP$18:$BP$1017,$B120,'Daily Log'!$BQ$18:$BQ$1017),0) -> 0 | AD120: =IFERROR($E120*SUMIF('Daily Log'!$BS$18:$BS$1017,$B120,'Daily Log'!$BT$18:$BT$1017),0) -> 0 | AE120: =IFERROR($E120*SUMIF('Daily Log'!$BV$18:$BV$1017,$B120,'Daily Log'!$BW$18:$BW$1017),0) -> 1 | AF120: =IFERROR($E120*SUMIF('Daily Log'!$BY$18:$BY$1017,$B120,'Daily Log'!$BZ$18:$BZ$1017),0) -> 0 | AG120: =IFERROR($E120*SUMIF('Daily Log'!$CB$18:$CB$1017,$B120,'Daily Log'!$CC$18:$CC$1017),0) -> 1 | AH120: =IFERROR($E120*SUMIF('Daily Log'!$CE$18:$CE$1017,$B120,'Daily Log'!$CF$18:$CF$1017),0) -> 0 | AI120: =IFERROR($E120*SUMIF('Daily Log'!$CH$18:$CH$1017,$B120,'Daily Log'!$CI$18:$CI$1017),0) -> 0 | AJ120: =IFERROR($E120*SUMIF('Daily Log'!$CK$18:$CK$1017,$B120,'Daily Log'!$CL$18:$CL$1017),0) -> 0 | AK120: =IFERROR($E120*SUMIF('Daily Log'!$CN$18:$CN$1017,$B120,'Daily Log'!$CO$18:$CO$1017),0) -> 0
B121: CF01 92001:MILO(C) | D121: FFDRINKS-COLD | E121: 1 | F121: 744 | G121: =IFERROR($E121*SUMIF('Daily Log'!$B$18:$B$1017,$B121,'Daily Log'!$C$18:$C$1017),0) -> 25 | H121: =IFERROR($E121*SUMIF('Daily Log'!$E$18:$E$1017,$B121,'Daily Log'!$F$18:$F$1017),0) -> 27 | I121: =IFERROR($E121*SUMIF('Daily Log'!$H$18:$H$1017,$B121,'Daily Log'!$I$18:$I$1017),0) -> 27 | J121: =IFERROR($E121*SUMIF('Daily Log'!$K$18:$K$1017,$B121,'Daily Log'!$L$18:$L$1017),0) -> 26 | K121: =IFERROR($E121*SUMIF('Daily Log'!$N$18:$N$1017,$B121,'Daily Log'!$O$18:$O$1017),0) -> 28 | L121: =IFERROR($E121*SUMIF('Daily Log'!$Q$18:$Q$1017,$B121,'Daily Log'!$R$18:$R$1017),0) -> 39 | M121: =IFERROR($E121*SUMIF('Daily Log'!$T$18:$T$1017,$B121,'Daily Log'!$U$18:$U$1017),0) -> 23 | N121: =IFERROR($E121*SUMIF('Daily Log'!$W$18:$W$1017,$B121,'Daily Log'!$X$18:$X$1017),0) -> 14 | O121: =IFERROR($E121*SUMIF('Daily Log'!$Z$18:$Z$1017,$B121,'Daily Log'!$AA$18:$AA$1017),0) -> 14 | P121: =IFERROR($E121*SUMIF('Daily Log'!$AC$18:$AC$1017,$B121,'Daily Log'!$AD$18:$AD$1017),0) -> 27 | Q121: =IFERROR($E121*SUMIF('Daily Log'!$AF$18:$AF$1017,$B121,'Daily Log'!$AG$18:$AG$1017),0) -> 34 | R121: =IFERROR($E121*SUMIF('Daily Log'!$AI$18:$AI$1017,$B121,'Daily Log'!$AJ$18:$AJ$1017),0) -> 27 | S121: =IFERROR($E121*SUMIF('Daily Log'!$AL$18:$AL$1017,$B121,'Daily Log'!$AM$18:$AM$1017),0) -> 29 | T121: =IFERROR($E121*SUMIF('Daily Log'!$AO$18:$AO$1017,$B121,'Daily Log'!$AP$18:$AP$1017),0) -> 5 | U121: =IFERROR($E121*SUMIF('Daily Log'!$AR$18:$AR$1017,$B121,'Daily Log'!$AS$18:$AS$1017),0) -> 23 | V121: =IFERROR($E121*SUMIF('Daily Log'!$AU$18:$AU$1017,$B121,'Daily Log'!$AV$18:$AV$1017),0) -> 25 | W121: =IFERROR($E121*SUMIF('Daily Log'!$AX$18:$AX$1017,$B121,'Daily Log'!$AY$18:$AY$1017),0) -> 18 | X121: =IFERROR($E121*SUMIF('Daily Log'!$BA$18:$BA$1017,$B121,'Daily Log'!$BB$18:$BB$1017),0) -> 28 | Y121: =IFERROR($E121*SUMIF('Daily Log'!$BD$18:$BD$1017,$B121,'Daily Log'!$BE$18:$BE$1017),0) -> 30 | Z121: =IFERROR($E121*SUMIF('Daily Log'!$BG$18:$BG$1017,$B121,'Daily Log'!$BH$18:$BH$1017),0) -> 35 | AA121: =IFERROR($E121*SUMIF('Daily Log'!$BJ$18:$BJ$1017,$B121,'Daily Log'!$BK$18:$BK$1017),0) -> 34 | AB121: =IFERROR($E121*SUMIF('Daily Log'!$BM$18:$BM$1017,$B121,'Daily Log'!$BN$18:$BN$1017),0) -> 27 | AC121: =IFERROR($E121*SUMIF('Daily Log'!$BP$18:$BP$1017,$B121,'Daily Log'!$BQ$18:$BQ$1017),0) -> 17 | AD121: =IFERROR($E121*SUMIF('Daily Log'!$BS$18:$BS$1017,$B121,'Daily Log'!$BT$18:$BT$1017),0) -> 15 | AE121: =IFERROR($E121*SUMIF('Daily Log'!$BV$18:$BV$1017,$B121,'Daily Log'!$BW$18:$BW$1017),0) -> 29 | AF121: =IFERROR($E121*SUMIF('Daily Log'!$BY$18:$BY$1017,$B121,'Daily Log'!$BZ$18:$BZ$1017),0) -> 23 | AG121: =IFERROR($E121*SUMIF('Daily Log'!$CB$18:$CB$1017,$B121,'Daily Log'!$CC$18:$CC$1017),0) -> 21 | AH121: =IFERROR($E121*SUMIF('Daily Log'!$CE$18:$CE$1017,$B121,'Daily Log'!$CF$18:$CF$1017),0) -> 17 | AI121: =IFERROR($E121*SUMIF('Daily Log'!$CH$18:$CH$1017,$B121,'Daily Log'!$CI$18:$CI$1017),0) -> 30 | AJ121: =IFERROR($E121*SUMIF('Daily Log'!$CK$18:$CK$1017,$B121,'Daily Log'!$CL$18:$CL$1017),0) -> 27 | AK121: =IFERROR($E121*SUMIF('Daily Log'!$CN$18:$CN$1017,$B121,'Daily Log'!$CO$18:$CO$1017),0) -> 0
B122: CF02 92003:NESCAFE(C) | D122: FFDRINKS-COLD | E122: 1 | F122: 229 | G122: =IFERROR($E122*SUMIF('Daily Log'!$B$18:$B$1017,$B122,'Daily Log'!$C$18:$C$1017),0) -> 3 | H122: =IFERROR($E122*SUMIF('Daily Log'!$E$18:$E$1017,$B122,'Daily Log'!$F$18:$F$1017),0) -> 8 | I122: =IFERROR($E122*SUMIF('Daily Log'!$H$18:$H$1017,$B122,'Daily Log'!$I$18:$I$1017),0) -> 3 | J122: =IFERROR($E122*SUMIF('Daily Log'!$K$18:$K$1017,$B122,'Daily Log'!$L$18:$L$1017),0) -> 6 | K122: =IFERROR($E122*SUMIF('Daily Log'!$N$18:$N$1017,$B122,'Daily Log'!$O$18:$O$1017),0) -> 8 | L122: =IFERROR($E122*SUMIF('Daily Log'!$Q$18:$Q$1017,$B122,'Daily Log'!$R$18:$R$1017),0) -> 10 | M122: =IFERROR($E122*SUMIF('Daily Log'!$T$18:$T$1017,$B122,'Daily Log'!$U$18:$U$1017),0) -> 7 | N122: =IFERROR($E122*SUMIF('Daily Log'!$W$18:$W$1017,$B122,'Daily Log'!$X$18:$X$1017),0) -> 3 | O122: =IFERROR($E122*SUMIF('Daily Log'!$Z$18:$Z$1017,$B122,'Daily Log'!$AA$18:$AA$1017),0) -> 5 | P122: =IFERROR($E122*SUMIF('Daily Log'!$AC$18:$AC$1017,$B122,'Daily Log'!$AD$18:$AD$1017),0) -> 10 | Q122: =IFERROR($E122*SUMIF('Daily Log'!$AF$18:$AF$1017,$B122,'Daily Log'!$AG$18:$AG$1017),0) -> 10 | R122: =IFERROR($E122*SUMIF('Daily Log'!$AI$18:$AI$1017,$B122,'Daily Log'!$AJ$18:$AJ$1017),0) -> 8 | S122: =IFERROR($E122*SUMIF('Daily Log'!$AL$18:$AL$1017,$B122,'Daily Log'!$AM$18:$AM$1017),0) -> 11 | T122: =IFERROR($E122*SUMIF('Daily Log'!$AO$18:$AO$1017,$B122,'Daily Log'!$AP$18:$AP$1017),0) -> 4 | U122: =IFERROR($E122*SUMIF('Daily Log'!$AR$18:$AR$1017,$B122,'Daily Log'!$AS$18:$AS$1017),0) -> 9 | V122: =IFERROR($E122*SUMIF('Daily Log'!$AU$18:$AU$1017,$B122,'Daily Log'!$AV$18:$AV$1017),0) -> 3 | W122: =IFERROR($E122*SUMIF('Daily Log'!$AX$18:$AX$1017,$B122,'Daily Log'!$AY$18:$AY$1017),0) -> 11 | X122: =IFERROR($E122*SUMIF('Daily Log'!$BA$18:$BA$1017,$B122,'Daily Log'!$BB$18:$BB$1017),0) -> 7 | Y122: =IFERROR($E122*SUMIF('Daily Log'!$BD$18:$BD$1017,$B122,'Daily Log'!$BE$18:$BE$1017),0) -> 14 | Z122: =IFERROR($E122*SUMIF('Daily Log'!$BG$18:$BG$1017,$B122,'Daily Log'!$BH$18:$BH$1017),0) -> 10 | AA122: =IFERROR($E122*SUMIF('Daily Log'!$BJ$18:$BJ$1017,$B122,'Daily Log'!$BK$18:$BK$1017),0) -> 4 | AB122: =IFERROR($E122*SUMIF('Daily Log'!$BM$18:$BM$1017,$B122,'Daily Log'!$BN$18:$BN$1017),0) -> 8 | AC122: =IFERROR($E122*SUMIF('Daily Log'!$BP$18:$BP$1017,$B122,'Daily Log'!$BQ$18:$BQ$1017),0) -> 4 | AD122: =IFERROR($E122*SUMIF('Daily Log'!$BS$18:$BS$1017,$B122,'Daily Log'!$BT$18:$BT$1017),0) -> 10 | AE122: =IFERROR($E122*SUMIF('Daily Log'!$BV$18:$BV$1017,$B122,'Daily Log'!$BW$18:$BW$1017),0) -> 2 | AF122: =IFERROR($E122*SUMIF('Daily Log'!$BY$18:$BY$1017,$B122,'Daily Log'!$BZ$18:$BZ$1017),0) -> 18 | AG122: =IFERROR($E122*SUMIF('Daily Log'!$CB$18:$CB$1017,$B122,'Daily Log'!$CC$18:$CC$1017),0) -> 13 | AH122: =IFERROR($E122*SUMIF('Daily Log'!$CE$18:$CE$1017,$B122,'Daily Log'!$CF$18:$CF$1017),0) -> 3 | AI122: =IFERROR($E122*SUMIF('Daily Log'!$CH$18:$CH$1017,$B122,'Daily Log'!$CI$18:$CI$1017),0) -> 9 | AJ122: =IFERROR($E122*SUMIF('Daily Log'!$CK$18:$CK$1017,$B122,'Daily Log'!$CL$18:$CL$1017),0) -> 8 | AK122: =IFERROR($E122*SUMIF('Daily Log'!$CN$18:$CN$1017,$B122,'Daily Log'!$CO$18:$CO$1017),0) -> 0
B123: CF03 92005:TEA(C) | D123: FFDRINKS-COLD | E123: 1 | F123: 366 | G123: =IFERROR($E123*SUMIF('Daily Log'!$B$18:$B$1017,$B123,'Daily Log'!$C$18:$C$1017),0) -> 19 | H123: =IFERROR($E123*SUMIF('Daily Log'!$E$18:$E$1017,$B123,'Daily Log'!$F$18:$F$1017),0) -> 23 | I123: =IFERROR($E123*SUMIF('Daily Log'!$H$18:$H$1017,$B123,'Daily Log'!$I$18:$I$1017),0) -> 8 | J123: =IFERROR($E123*SUMIF('Daily Log'!$K$18:$K$1017,$B123,'Daily Log'!$L$18:$L$1017),0) -> 14 | K123: =IFERROR($E123*SUMIF('Daily Log'!$N$18:$N$1017,$B123,'Daily Log'!$O$18:$O$1017),0) -> 6 | L123: =IFERROR($E123*SUMIF('Daily Log'!$Q$18:$Q$1017,$B123,'Daily Log'!$R$18:$R$1017),0) -> 17 | M123: =IFERROR($E123*SUMIF('Daily Log'!$T$18:$T$1017,$B123,'Daily Log'!$U$18:$U$1017),0) -> 15 | N123: =IFERROR($E123*SUMIF('Daily Log'!$W$18:$W$1017,$B123,'Daily Log'!$X$18:$X$1017),0) -> 13 | O123: =IFERROR($E123*SUMIF('Daily Log'!$Z$18:$Z$1017,$B123,'Daily Log'!$AA$18:$AA$1017),0) -> 7 | P123: =IFERROR($E123*SUMIF('Daily Log'!$AC$18:$AC$1017,$B123,'Daily Log'!$AD$18:$AD$1017),0) -> 14 | Q123: =IFERROR($E123*SUMIF('Daily Log'!$AF$18:$AF$1017,$B123,'Daily Log'!$AG$18:$AG$1017),0) -> 10 | R123: =IFERROR($E123*SUMIF('Daily Log'!$AI$18:$AI$1017,$B123,'Daily Log'!$AJ$18:$AJ$1017),0) -> 20 | S123: =IFERROR($E123*SUMIF('Daily Log'!$AL$18:$AL$1017,$B123,'Daily Log'!$AM$18:$AM$1017),0) -> 17 | T123: =IFERROR($E123*SUMIF('Daily Log'!$AO$18:$AO$1017,$B123,'Daily Log'!$AP$18:$AP$1017),0) -> 17 | U123: =IFERROR($E123*SUMIF('Daily Log'!$AR$18:$AR$1017,$B123,'Daily Log'!$AS$18:$AS$1017),0) -> 9 | V123: =IFERROR($E123*SUMIF('Daily Log'!$AU$18:$AU$1017,$B123,'Daily Log'!$AV$18:$AV$1017),0) -> 5 | W123: =IFERROR($E123*SUMIF('Daily Log'!$AX$18:$AX$1017,$B123,'Daily Log'!$AY$18:$AY$1017),0) -> 14 | X123: =IFERROR($E123*SUMIF('Daily Log'!$BA$18:$BA$1017,$B123,'Daily Log'!$BB$18:$BB$1017),0) -> 5 | Y123: =IFERROR($E123*SUMIF('Daily Log'!$BD$18:$BD$1017,$B123,'Daily Log'!$BE$18:$BE$1017),0) -> 12 | Z123: =IFERROR($E123*SUMIF('Daily Log'!$BG$18:$BG$1017,$B123,'Daily Log'!$BH$18:$BH$1017),0) -> 7 | AA123: =IFERROR($E123*SUMIF('Daily Log'!$BJ$18:$BJ$1017,$B123,'Daily Log'!$BK$18:$BK$1017),0) -> 7 | AB123: =IFERROR($E123*SUMIF('Daily Log'!$BM$18:$BM$1017,$B123,'Daily Log'!$BN$18:$BN$1017),0) -> 15 | AC123: =IFERROR($E123*SUMIF('Daily Log'!$BP$18:$BP$1017,$B123,'Daily Log'!$BQ$18:$BQ$1017),0) -> 16 | AD123: =IFERROR($E123*SUMIF('Daily Log'!$BS$18:$BS$1017,$B123,'Daily Log'!$BT$18:$BT$1017),0) -> 5 | AE123: =IFERROR($E123*SUMIF('Daily Log'!$BV$18:$BV$1017,$B123,'Daily Log'!$BW$18:$BW$1017),0) -> 10 | AF123: =IFERROR($E123*SUMIF('Daily Log'!$BY$18:$BY$1017,$B123,'Daily Log'!$BZ$18:$BZ$1017),0) -> 22 | AG123: =IFERROR($E123*SUMIF('Daily Log'!$CB$18:$CB$1017,$B123,'Daily Log'!$CC$18:$CC$1017),0) -> 15 | AH123: =IFERROR($E123*SUMIF('Daily Log'!$CE$18:$CE$1017,$B123,'Daily Log'!$CF$18:$CF$1017),0) -> 6 | AI123: =IFERROR($E123*SUMIF('Daily Log'!$CH$18:$CH$1017,$B123,'Daily Log'!$CI$18:$CI$1017),0) -> 6 | AJ123: =IFERROR($E123*SUMIF('Daily Log'!$CK$18:$CK$1017,$B123,'Daily Log'!$CL$18:$CL$1017),0) -> 12 | AK123: =IFERROR($E123*SUMIF('Daily Log'!$CN$18:$CN$1017,$B123,'Daily Log'!$CO$18:$CO$1017),0) -> 0
B124: CF04 92007:LMN TEA(C) | D124: FFDRINKS-COLD | E124: 1 | F124: 1122 | G124: =IFERROR($E124*SUMIF('Daily Log'!$B$18:$B$1017,$B124,'Daily Log'!$C$18:$C$1017),0) -> 41 | H124: =IFERROR($E124*SUMIF('Daily Log'!$E$18:$E$1017,$B124,'Daily Log'!$F$18:$F$1017),0) -> 28 | I124: =IFERROR($E124*SUMIF('Daily Log'!$H$18:$H$1017,$B124,'Daily Log'!$I$18:$I$1017),0) -> 35 | J124: =IFERROR($E124*SUMIF('Daily Log'!$K$18:$K$1017,$B124,'Daily Log'!$L$18:$L$1017),0) -> 47 | K124: =IFERROR($E124*SUMIF('Daily Log'!$N$18:$N$1017,$B124,'Daily Log'!$O$18:$O$1017),0) -> 59 | L124: =IFERROR($E124*SUMIF('Daily Log'!$Q$18:$Q$1017,$B124,'Daily Log'!$R$18:$R$1017),0) -> 60 | M124: =IFERROR($E124*SUMIF('Daily Log'!$T$18:$T$1017,$B124,'Daily Log'!$U$18:$U$1017),0) -> 35 | N124: =IFERROR($E124*SUMIF('Daily Log'!$W$18:$W$1017,$B124,'Daily Log'!$X$18:$X$1017),0) -> 30 | O124: =IFERROR($E124*SUMIF('Daily Log'!$Z$18:$Z$1017,$B124,'Daily Log'!$AA$18:$AA$1017),0) -> 26 | P124: =IFERROR($E124*SUMIF('Daily Log'!$AC$18:$AC$1017,$B124,'Daily Log'!$AD$18:$AD$1017),0) -> 23 | Q124: =IFERROR($E124*SUMIF('Daily Log'!$AF$18:$AF$1017,$B124,'Daily Log'!$AG$18:$AG$1017),0) -> 53 | R124: =IFERROR($E124*SUMIF('Daily Log'!$AI$18:$AI$1017,$B124,'Daily Log'!$AJ$18:$AJ$1017),0) -> 57 | S124: =IFERROR($E124*SUMIF('Daily Log'!$AL$18:$AL$1017,$B124,'Daily Log'!$AM$18:$AM$1017),0) -> 69 | T124: =IFERROR($E124*SUMIF('Daily Log'!$AO$18:$AO$1017,$B124,'Daily Log'!$AP$18:$AP$1017),0) -> 14 | U124: =IFERROR($E124*SUMIF('Daily Log'!$AR$18:$AR$1017,$B124,'Daily Log'!$AS$18:$AS$1017),0) -> 36 | V124: =IFERROR($E124*SUMIF('Daily Log'!$AU$18:$AU$1017,$B124,'Daily Log'!$AV$18:$AV$1017),0) -> 29 | W124: =IFERROR($E124*SUMIF('Daily Log'!$AX$18:$AX$1017,$B124,'Daily Log'!$AY$18:$AY$1017),0) -> 25 | X124: =IFERROR($E124*SUMIF('Daily Log'!$BA$18:$BA$1017,$B124,'Daily Log'!$BB$18:$BB$1017),0) -> 24 | Y124: =IFERROR($E124*SUMIF('Daily Log'!$BD$18:$BD$1017,$B124,'Daily Log'!$BE$18:$BE$1017),0) -> 60 | Z124: =IFERROR($E124*SUMIF('Daily Log'!$BG$18:$BG$1017,$B124,'Daily Log'!$BH$18:$BH$1017),0) -> 31 | AA124: =IFERROR($E124*SUMIF('Daily Log'!$BJ$18:$BJ$1017,$B124,'Daily Log'!$BK$18:$BK$1017),0) -> 16 | AB124: =IFERROR($E124*SUMIF('Daily Log'!$BM$18:$BM$1017,$B124,'Daily Log'!$BN$18:$BN$1017),0) -> 18 | AC124: =IFERROR($E124*SUMIF('Daily Log'!$BP$18:$BP$1017,$B124,'Daily Log'!$BQ$18:$BQ$1017),0) -> 9 | AD124: =IFERROR($E124*SUMIF('Daily Log'!$BS$18:$BS$1017,$B124,'Daily Log'!$BT$18:$BT$1017),0) -> 32 | AE124: =IFERROR($E124*SUMIF('Daily Log'!$BV$18:$BV$1017,$B124,'Daily Log'!$BW$18:$BW$1017),0) -> 42 | AF124: =IFERROR($E124*SUMIF('Daily Log'!$BY$18:$BY$1017,$B124,'Daily Log'!$BZ$18:$BZ$1017),0) -> 54 | AG124: =IFERROR($E124*SUMIF('Daily Log'!$CB$18:$CB$1017,$B124,'Daily Log'!$CC$18:$CC$1017),0) -> 66 | AH124: =IFERROR($E124*SUMIF('Daily Log'!$CE$18:$CE$1017,$B124,'Daily Log'!$CF$18:$CF$1017),0) -> 22 | AI124: =IFERROR($E124*SUMIF('Daily Log'!$CH$18:$CH$1017,$B124,'Daily Log'!$CI$18:$CI$1017),0) -> 27 | AJ124: =IFERROR($E124*SUMIF('Daily Log'!$CK$18:$CK$1017,$B124,'Daily Log'!$CL$18:$CL$1017),0) -> 54 | AK124: =IFERROR($E124*SUMIF('Daily Log'!$CN$18:$CN$1017,$B124,'Daily Log'!$CO$18:$CO$1017),0) -> 0
B125: CF05 92009:GRN TEA(C) | D125: FFDRINKS-COLD | E125: 1 | F125: 1648 | G125: =IFERROR($E125*SUMIF('Daily Log'!$B$18:$B$1017,$B125,'Daily Log'!$C$18:$C$1017),0) -> 61 | H125: =IFERROR($E125*SUMIF('Daily Log'!$E$18:$E$1017,$B125,'Daily Log'!$F$18:$F$1017),0) -> 29 | I125: =IFERROR($E125*SUMIF('Daily Log'!$H$18:$H$1017,$B125,'Daily Log'!$I$18:$I$1017),0) -> 40 | J125: =IFERROR($E125*SUMIF('Daily Log'!$K$18:$K$1017,$B125,'Daily Log'!$L$18:$L$1017),0) -> 62 | K125: =IFERROR($E125*SUMIF('Daily Log'!$N$18:$N$1017,$B125,'Daily Log'!$O$18:$O$1017),0) -> 75 | L125: =IFERROR($E125*SUMIF('Daily Log'!$Q$18:$Q$1017,$B125,'Daily Log'!$R$18:$R$1017),0) -> 71 | M125: =IFERROR($E125*SUMIF('Daily Log'!$T$18:$T$1017,$B125,'Daily Log'!$U$18:$U$1017),0) -> 28 | N125: =IFERROR($E125*SUMIF('Daily Log'!$W$18:$W$1017,$B125,'Daily Log'!$X$18:$X$1017),0) -> 57 | O125: =IFERROR($E125*SUMIF('Daily Log'!$Z$18:$Z$1017,$B125,'Daily Log'!$AA$18:$AA$1017),0) -> 54 | P125: =IFERROR($E125*SUMIF('Daily Log'!$AC$18:$AC$1017,$B125,'Daily Log'!$AD$18:$AD$1017),0) -> 34 | Q125: =IFERROR($E125*SUMIF('Daily Log'!$AF$18:$AF$1017,$B125,'Daily Log'!$AG$18:$AG$1017),0) -> 62 | R125: =IFERROR($E125*SUMIF('Daily Log'!$AI$18:$AI$1017,$B125,'Daily Log'!$AJ$18:$AJ$1017),0) -> 84 | S125: =IFERROR($E125*SUMIF('Daily Log'!$AL$18:$AL$1017,$B125,'Daily Log'!$AM$18:$AM$1017),0) -> 71 | T125: =IFERROR($E125*SUMIF('Daily Log'!$AO$18:$AO$1017,$B125,'Daily Log'!$AP$18:$AP$1017),0) -> 56 | U125: =IFERROR($E125*SUMIF('Daily Log'!$AR$18:$AR$1017,$B125,'Daily Log'!$AS$18:$AS$1017),0) -> 32 | V125: =IFERROR($E125*SUMIF('Daily Log'!$AU$18:$AU$1017,$B125,'Daily Log'!$AV$18:$AV$1017),0) -> 37 | W125: =IFERROR($E125*SUMIF('Daily Log'!$AX$18:$AX$1017,$B125,'Daily Log'!$AY$18:$AY$1017),0) -> 42 | X125: =IFERROR($E125*SUMIF('Daily Log'!$BA$18:$BA$1017,$B125,'Daily Log'!$BB$18:$BB$1017),0) -> 49 | Y125: =IFERROR($E125*SUMIF('Daily Log'!$BD$18:$BD$1017,$B125,'Daily Log'!$BE$18:$BE$1017),0) -> 78 | Z125: =IFERROR($E125*SUMIF('Daily Log'!$BG$18:$BG$1017,$B125,'Daily Log'!$BH$18:$BH$1017),0) -> 54 | AA125: =IFERROR($E125*SUMIF('Daily Log'!$BJ$18:$BJ$1017,$B125,'Daily Log'!$BK$18:$BK$1017),0) -> 40 | AB125: =IFERROR($E125*SUMIF('Daily Log'!$BM$18:$BM$1017,$B125,'Daily Log'!$BN$18:$BN$1017),0) -> 47 | AC125: =IFERROR($E125*SUMIF('Daily Log'!$BP$18:$BP$1017,$B125,'Daily Log'!$BQ$18:$BQ$1017),0) -> 44 | AD125: =IFERROR($E125*SUMIF('Daily Log'!$BS$18:$BS$1017,$B125,'Daily Log'!$BT$18:$BT$1017),0) -> 54 | AE125: =IFERROR($E125*SUMIF('Daily Log'!$BV$18:$BV$1017,$B125,'Daily Log'!$BW$18:$BW$1017),0) -> 55 | AF125: =IFERROR($E125*SUMIF('Daily Log'!$BY$18:$BY$1017,$B125,'Daily Log'!$BZ$18:$BZ$1017),0) -> 93 | AG125: =IFERROR($E125*SUMIF('Daily Log'!$CB$18:$CB$1017,$B125,'Daily Log'!$CC$18:$CC$1017),0) -> 66 | AH125: =IFERROR($E125*SUMIF('Daily Log'!$CE$18:$CE$1017,$B125,'Daily Log'!$CF$18:$CF$1017),0) -> 56 | AI125: =IFERROR($E125*SUMIF('Daily Log'!$CH$18:$CH$1017,$B125,'Daily Log'!$CI$18:$CI$1017),0) -> 46 | AJ125: =IFERROR($E125*SUMIF('Daily Log'!$CK$18:$CK$1017,$B125,'Daily Log'!$CL$18:$CL$1017),0) -> 71 | AK125: =IFERROR($E125*SUMIF('Daily Log'!$CN$18:$CN$1017,$B125,'Daily Log'!$CO$18:$CO$1017),0) -> 0
B126: CF06 92011:HNY GT(C) | D126: FFDRINKS-COLD | E126: 1 | F126: 1373 | G126: =IFERROR($E126*SUMIF('Daily Log'!$B$18:$B$1017,$B126,'Daily Log'!$C$18:$C$1017),0) -> 38 | H126: =IFERROR($E126*SUMIF('Daily Log'!$E$18:$E$1017,$B126,'Daily Log'!$F$18:$F$1017),0) -> 61 | I126: =IFERROR($E126*SUMIF('Daily Log'!$H$18:$H$1017,$B126,'Daily Log'!$I$18:$I$1017),0) -> 38 | J126: =IFERROR($E126*SUMIF('Daily Log'!$K$18:$K$1017,$B126,'Daily Log'!$L$18:$L$1017),0) -> 61 | K126: =IFERROR($E126*SUMIF('Daily Log'!$N$18:$N$1017,$B126,'Daily Log'!$O$18:$O$1017),0) -> 48 | L126: =IFERROR($E126*SUMIF('Daily Log'!$Q$18:$Q$1017,$B126,'Daily Log'!$R$18:$R$1017),0) -> 58 | M126: =IFERROR($E126*SUMIF('Daily Log'!$T$18:$T$1017,$B126,'Daily Log'!$U$18:$U$1017),0) -> 41 | N126: =IFERROR($E126*SUMIF('Daily Log'!$W$18:$W$1017,$B126,'Daily Log'!$X$18:$X$1017),0) -> 37 | O126: =IFERROR($E126*SUMIF('Daily Log'!$Z$18:$Z$1017,$B126,'Daily Log'!$AA$18:$AA$1017),0) -> 24 | P126: =IFERROR($E126*SUMIF('Daily Log'!$AC$18:$AC$1017,$B126,'Daily Log'!$AD$18:$AD$1017),0) -> 46 | Q126: =IFERROR($E126*SUMIF('Daily Log'!$AF$18:$AF$1017,$B126,'Daily Log'!$AG$18:$AG$1017),0) -> 51 | R126: =IFERROR($E126*SUMIF('Daily Log'!$AI$18:$AI$1017,$B126,'Daily Log'!$AJ$18:$AJ$1017),0) -> 81 | S126: =IFERROR($E126*SUMIF('Daily Log'!$AL$18:$AL$1017,$B126,'Daily Log'!$AM$18:$AM$1017),0) -> 51 | T126: =IFERROR($E126*SUMIF('Daily Log'!$AO$18:$AO$1017,$B126,'Daily Log'!$AP$18:$AP$1017),0) -> 37 | U126: =IFERROR($E126*SUMIF('Daily Log'!$AR$18:$AR$1017,$B126,'Daily Log'!$AS$18:$AS$1017),0) -> 34 | V126: =IFERROR($E126*SUMIF('Daily Log'!$AU$18:$AU$1017,$B126,'Daily Log'!$AV$18:$AV$1017),0) -> 60 | W126: =IFERROR($E126*SUMIF('Daily Log'!$AX$18:$AX$1017,$B126,'Daily Log'!$AY$18:$AY$1017),0) -> 41 | X126: =IFERROR($E126*SUMIF('Daily Log'!$BA$18:$BA$1017,$B126,'Daily Log'!$BB$18:$BB$1017),0) -> 50 | Y126: =IFERROR($E126*SUMIF('Daily Log'!$BD$18:$BD$1017,$B126,'Daily Log'!$BE$18:$BE$1017),0) -> 94 | Z126: =IFERROR($E126*SUMIF('Daily Log'!$BG$18:$BG$1017,$B126,'Daily Log'!$BH$18:$BH$1017),0) -> 55 | AA126: =IFERROR($E126*SUMIF('Daily Log'!$BJ$18:$BJ$1017,$B126,'Daily Log'!$BK$18:$BK$1017),0) -> 23 | AB126: =IFERROR($E126*SUMIF('Daily Log'!$BM$18:$BM$1017,$B126,'Daily Log'!$BN$18:$BN$1017),0) -> 44 | AC126: =IFERROR($E126*SUMIF('Daily Log'!$BP$18:$BP$1017,$B126,'Daily Log'!$BQ$18:$BQ$1017),0) -> 25 | AD126: =IFERROR($E126*SUMIF('Daily Log'!$BS$18:$BS$1017,$B126,'Daily Log'!$BT$18:$BT$1017),0) -> 40 | AE126: =IFERROR($E126*SUMIF('Daily Log'!$BV$18:$BV$1017,$B126,'Daily Log'!$BW$18:$BW$1017),0) -> 55 | AF126: =IFERROR($E126*SUMIF('Daily Log'!$BY$18:$BY$1017,$B126,'Daily Log'!$BZ$18:$BZ$1017),0) -> 39 | AG126: =IFERROR($E126*SUMIF('Daily Log'!$CB$18:$CB$1017,$B126,'Daily Log'!$CC$18:$CC$1017),0) -> 62 | AH126: =IFERROR($E126*SUMIF('Daily Log'!$CE$18:$CE$1017,$B126,'Daily Log'!$CF$18:$CF$1017),0) -> 28 | AI126: =IFERROR($E126*SUMIF('Daily Log'!$CH$18:$CH$1017,$B126,'Daily Log'!$CI$18:$CI$1017),0) -> 22 | AJ126: =IFERROR($E126*SUMIF('Daily Log'!$CK$18:$CK$1017,$B126,'Daily Log'!$CL$18:$CL$1017),0) -> 29 | AK126: =IFERROR($E126*SUMIF('Daily Log'!$CN$18:$CN$1017,$B126,'Daily Log'!$CO$18:$CO$1017),0) -> 0
B127: CF07 92013:HONEY(C) | D127: FFDRINKS-COLD | E127: 1 | F127: 443 | G127: =IFERROR($E127*SUMIF('Daily Log'!$B$18:$B$1017,$B127,'Daily Log'!$C$18:$C$1017),0) -> 22 | H127: =IFERROR($E127*SUMIF('Daily Log'!$E$18:$E$1017,$B127,'Daily Log'!$F$18:$F$1017),0) -> 8 | I127: =IFERROR($E127*SUMIF('Daily Log'!$H$18:$H$1017,$B127,'Daily Log'!$I$18:$I$1017),0) -> 12 | J127: =IFERROR($E127*SUMIF('Daily Log'!$K$18:$K$1017,$B127,'Daily Log'!$L$18:$L$1017),0) -> 17 | K127: =IFERROR($E127*SUMIF('Daily Log'!$N$18:$N$1017,$B127,'Daily Log'!$O$18:$O$1017),0) -> 20 | L127: =IFERROR($E127*SUMIF('Daily Log'!$Q$18:$Q$1017,$B127,'Daily Log'!$R$18:$R$1017),0) -> 23 | M127: =IFERROR($E127*SUMIF('Daily Log'!$T$18:$T$1017,$B127,'Daily Log'!$U$18:$U$1017),0) -> 11 | N127: =IFERROR($E127*SUMIF('Daily Log'!$W$18:$W$1017,$B127,'Daily Log'!$X$18:$X$1017),0) -> 10 | O127: =IFERROR($E127*SUMIF('Daily Log'!$Z$18:$Z$1017,$B127,'Daily Log'!$AA$18:$AA$1017),0) -> 16 | P127: =IFERROR($E127*SUMIF('Daily Log'!$AC$18:$AC$1017,$B127,'Daily Log'!$AD$18:$AD$1017),0) -> 14 | Q127: =IFERROR($E127*SUMIF('Daily Log'!$AF$18:$AF$1017,$B127,'Daily Log'!$AG$18:$AG$1017),0) -> 23 | R127: =IFERROR($E127*SUMIF('Daily Log'!$AI$18:$AI$1017,$B127,'Daily Log'!$AJ$18:$AJ$1017),0) -> 14 | S127: =IFERROR($E127*SUMIF('Daily Log'!$AL$18:$AL$1017,$B127,'Daily Log'!$AM$18:$AM$1017),0) -> 11 | T127: =IFERROR($E127*SUMIF('Daily Log'!$AO$18:$AO$1017,$B127,'Daily Log'!$AP$18:$AP$1017),0) -> 14 | U127: =IFERROR($E127*SUMIF('Daily Log'!$AR$18:$AR$1017,$B127,'Daily Log'!$AS$18:$AS$1017),0) -> 6 | V127: =IFERROR($E127*SUMIF('Daily Log'!$AU$18:$AU$1017,$B127,'Daily Log'!$AV$18:$AV$1017),0) -> 19 | W127: =IFERROR($E127*SUMIF('Daily Log'!$AX$18:$AX$1017,$B127,'Daily Log'!$AY$18:$AY$1017),0) -> 13 | X127: =IFERROR($E127*SUMIF('Daily Log'!$BA$18:$BA$1017,$B127,'Daily Log'!$BB$18:$BB$1017),0) -> 26 | Y127: =IFERROR($E127*SUMIF('Daily Log'!$BD$18:$BD$1017,$B127,'Daily Log'!$BE$18:$BE$1017),0) -> 21 | Z127: =IFERROR($E127*SUMIF('Daily Log'!$BG$18:$BG$1017,$B127,'Daily Log'!$BH$18:$BH$1017),0) -> 10 | AA127: =IFERROR($E127*SUMIF('Daily Log'!$BJ$18:$BJ$1017,$B127,'Daily Log'!$BK$18:$BK$1017),0) -> 19 | AB127: =IFERROR($E127*SUMIF('Daily Log'!$BM$18:$BM$1017,$B127,'Daily Log'!$BN$18:$BN$1017),0) -> 15 | AC127: =IFERROR($E127*SUMIF('Daily Log'!$BP$18:$BP$1017,$B127,'Daily Log'!$BQ$18:$BQ$1017),0) -> 9 | AD127: =IFERROR($E127*SUMIF('Daily Log'!$BS$18:$BS$1017,$B127,'Daily Log'!$BT$18:$BT$1017),0) -> 13 | AE127: =IFERROR($E127*SUMIF('Daily Log'!$BV$18:$BV$1017,$B127,'Daily Log'!$BW$18:$BW$1017),0) -> 8 | AF127: =IFERROR($E127*SUMIF('Daily Log'!$BY$18:$BY$1017,$B127,'Daily Log'!$BZ$18:$BZ$1017),0) -> 12 | AG127: =IFERROR($E127*SUMIF('Daily Log'!$CB$18:$CB$1017,$B127,'Daily Log'!$CC$18:$CC$1017),0) -> 12 | AH127: =IFERROR($E127*SUMIF('Daily Log'!$CE$18:$CE$1017,$B127,'Daily Log'!$CF$18:$CF$1017),0) -> 19 | AI127: =IFERROR($E127*SUMIF('Daily Log'!$CH$18:$CH$1017,$B127,'Daily Log'!$CI$18:$CI$1017),0) -> 10 | AJ127: =IFERROR($E127*SUMIF('Daily Log'!$CK$18:$CK$1017,$B127,'Daily Log'!$CL$18:$CL$1017),0) -> 16 | AK127: =IFERROR($E127*SUMIF('Daily Log'!$CN$18:$CN$1017,$B127,'Daily Log'!$CO$18:$CO$1017),0) -> 0
B128: CF08 92015:HNY LMN(C) | D128: FFDRINKS-COLD | E128: 1 | F128: 2990 | G128: =IFERROR($E128*SUMIF('Daily Log'!$B$18:$B$1017,$B128,'Daily Log'!$C$18:$C$1017),0) -> 118 | H128: =IFERROR($E128*SUMIF('Daily Log'!$E$18:$E$1017,$B128,'Daily Log'!$F$18:$F$1017),0) -> 111 | I128: =IFERROR($E128*SUMIF('Daily Log'!$H$18:$H$1017,$B128,'Daily Log'!$I$18:$I$1017),0) -> 91 | J128: =IFERROR($E128*SUMIF('Daily Log'!$K$18:$K$1017,$B128,'Daily Log'!$L$18:$L$1017),0) -> 118 | K128: =IFERROR($E128*SUMIF('Daily Log'!$N$18:$N$1017,$B128,'Daily Log'!$O$18:$O$1017),0) -> 145 | L128: =IFERROR($E128*SUMIF('Daily Log'!$Q$18:$Q$1017,$B128,'Daily Log'!$R$18:$R$1017),0) -> 157 | M128: =IFERROR($E128*SUMIF('Daily Log'!$T$18:$T$1017,$B128,'Daily Log'!$U$18:$U$1017),0) -> 68 | N128: =IFERROR($E128*SUMIF('Daily Log'!$W$18:$W$1017,$B128,'Daily Log'!$X$18:$X$1017),0) -> 82 | O128: =IFERROR($E128*SUMIF('Daily Log'!$Z$18:$Z$1017,$B128,'Daily Log'!$AA$18:$AA$1017),0) -> 54 | P128: =IFERROR($E128*SUMIF('Daily Log'!$AC$18:$AC$1017,$B128,'Daily Log'!$AD$18:$AD$1017),0) -> 84 | Q128: =IFERROR($E128*SUMIF('Daily Log'!$AF$18:$AF$1017,$B128,'Daily Log'!$AG$18:$AG$1017),0) -> 99 | R128: =IFERROR($E128*SUMIF('Daily Log'!$AI$18:$AI$1017,$B128,'Daily Log'!$AJ$18:$AJ$1017),0) -> 161 | S128: =IFERROR($E128*SUMIF('Daily Log'!$AL$18:$AL$1017,$B128,'Daily Log'!$AM$18:$AM$1017),0) -> 102 | T128: =IFERROR($E128*SUMIF('Daily Log'!$AO$18:$AO$1017,$B128,'Daily Log'!$AP$18:$AP$1017),0) -> 54 | U128: =IFERROR($E128*SUMIF('Daily Log'!$AR$18:$AR$1017,$B128,'Daily Log'!$AS$18:$AS$1017),0) -> 63 | V128: =IFERROR($E128*SUMIF('Daily Log'!$AU$18:$AU$1017,$B128,'Daily Log'!$AV$18:$AV$1017),0) -> 67 | W128: =IFERROR($E128*SUMIF('Daily Log'!$AX$18:$AX$1017,$B128,'Daily Log'!$AY$18:$AY$1017),0) -> 78 | X128: =IFERROR($E128*SUMIF('Daily Log'!$BA$18:$BA$1017,$B128,'Daily Log'!$BB$18:$BB$1017),0) -> 96 | Y128: =IFERROR($E128*SUMIF('Daily Log'!$BD$18:$BD$1017,$B128,'Daily Log'!$BE$18:$BE$1017),0) -> 170 | Z128: =IFERROR($E128*SUMIF('Daily Log'!$BG$18:$BG$1017,$B128,'Daily Log'!$BH$18:$BH$1017),0) -> 91 | AA128: =IFERROR($E128*SUMIF('Daily Log'!$BJ$18:$BJ$1017,$B128,'Daily Log'!$BK$18:$BK$1017),0) -> 98 | AB128: =IFERROR($E128*SUMIF('Daily Log'!$BM$18:$BM$1017,$B128,'Daily Log'!$BN$18:$BN$1017),0) -> 97 | AC128: =IFERROR($E128*SUMIF('Daily Log'!$BP$18:$BP$1017,$B128,'Daily Log'!$BQ$18:$BQ$1017),0) -> 87 | AD128: =IFERROR($E128*SUMIF('Daily Log'!$BS$18:$BS$1017,$B128,'Daily Log'!$BT$18:$BT$1017),0) -> 77 | AE128: =IFERROR($E128*SUMIF('Daily Log'!$BV$18:$BV$1017,$B128,'Daily Log'!$BW$18:$BW$1017),0) -> 139 | AF128: =IFERROR($E128*SUMIF('Daily Log'!$BY$18:$BY$1017,$B128,'Daily Log'!$BZ$18:$BZ$1017),0) -> 109 | AG128: =IFERROR($E128*SUMIF('Daily Log'!$CB$18:$CB$1017,$B128,'Daily Log'!$CC$18:$CC$1017),0) -> 105 | AH128: =IFERROR($E128*SUMIF('Daily Log'!$CE$18:$CE$1017,$B128,'Daily Log'!$CF$18:$CF$1017),0) -> 82 | AI128: =IFERROR($E128*SUMIF('Daily Log'!$CH$18:$CH$1017,$B128,'Daily Log'!$CI$18:$CI$1017),0) -> 85 | AJ128: =IFERROR($E128*SUMIF('Daily Log'!$CK$18:$CK$1017,$B128,'Daily Log'!$CL$18:$CL$1017),0) -> 102 | AK128: =IFERROR($E128*SUMIF('Daily Log'!$CN$18:$CN$1017,$B128,'Daily Log'!$CO$18:$CO$1017),0) -> 0
B129: HB01 2002:MILO(H) | D129: SO-HOT BEVERAGES | E129: 1 | F129: 2 | G129: =IFERROR($E129*SUMIF('Daily Log'!$B$18:$B$1017,$B129,'Daily Log'!$C$18:$C$1017),0) -> 0 | H129: =IFERROR($E129*SUMIF('Daily Log'!$E$18:$E$1017,$B129,'Daily Log'!$F$18:$F$1017),0) -> 0 | I129: =IFERROR($E129*SUMIF('Daily Log'!$H$18:$H$1017,$B129,'Daily Log'!$I$18:$I$1017),0) -> 0 | J129: =IFERROR($E129*SUMIF('Daily Log'!$K$18:$K$1017,$B129,'Daily Log'!$L$18:$L$1017),0) -> 1 | K129: =IFERROR($E129*SUMIF('Daily Log'!$N$18:$N$1017,$B129,'Daily Log'!$O$18:$O$1017),0) -> 0 | L129: =IFERROR($E129*SUMIF('Daily Log'!$Q$18:$Q$1017,$B129,'Daily Log'!$R$18:$R$1017),0) -> 0 | M129: =IFERROR($E129*SUMIF('Daily Log'!$T$18:$T$1017,$B129,'Daily Log'!$U$18:$U$1017),0) -> 0 | N129: =IFERROR($E129*SUMIF('Daily Log'!$W$18:$W$1017,$B129,'Daily Log'!$X$18:$X$1017),0) -> 0 | O129: =IFERROR($E129*SUMIF('Daily Log'!$Z$18:$Z$1017,$B129,'Daily Log'!$AA$18:$AA$1017),0) -> 0 | P129: =IFERROR($E129*SUMIF('Daily Log'!$AC$18:$AC$1017,$B129,'Daily Log'!$AD$18:$AD$1017),0) -> 0 | Q129: =IFERROR($E129*SUMIF('Daily Log'!$AF$18:$AF$1017,$B129,'Daily Log'!$AG$18:$AG$1017),0) -> 0 | R129: =IFERROR($E129*SUMIF('Daily Log'!$AI$18:$AI$1017,$B129,'Daily Log'!$AJ$18:$AJ$1017),0) -> 0 | S129: =IFERROR($E129*SUMIF('Daily Log'!$AL$18:$AL$1017,$B129,'Daily Log'!$AM$18:$AM$1017),0) -> 0 | T129: =IFERROR($E129*SUMIF('Daily Log'!$AO$18:$AO$1017,$B129,'Daily Log'!$AP$18:$AP$1017),0) -> 1 | U129: =IFERROR($E129*SUMIF('Daily Log'!$AR$18:$AR$1017,$B129,'Daily Log'!$AS$18:$AS$1017),0) -> 0 | V129: =IFERROR($E129*SUMIF('Daily Log'!$AU$18:$AU$1017,$B129,'Daily Log'!$AV$18:$AV$1017),0) -> 0 | W129: =IFERROR($E129*SUMIF('Daily Log'!$AX$18:$AX$1017,$B129,'Daily Log'!$AY$18:$AY$1017),0) -> 0 | X129: =IFERROR($E129*SUMIF('Daily Log'!$BA$18:$BA$1017,$B129,'Daily Log'!$BB$18:$BB$1017),0) -> 0 | Y129: =IFERROR($E129*SUMIF('Daily Log'!$BD$18:$BD$1017,$B129,'Daily Log'!$BE$18:$BE$1017),0) -> 0 | Z129: =IFERROR($E129*SUMIF('Daily Log'!$BG$18:$BG$1017,$B129,'Daily Log'!$BH$18:$BH$1017),0) -> 0 | AA129: =IFERROR($E129*SUMIF('Daily Log'!$BJ$18:$BJ$1017,$B129,'Daily Log'!$BK$18:$BK$1017),0) -> 0 | AB129: =IFERROR($E129*SUMIF('Daily Log'!$BM$18:$BM$1017,$B129,'Daily Log'!$BN$18:$BN$1017),0) -> 0 | AC129: =IFERROR($E129*SUMIF('Daily Log'!$BP$18:$BP$1017,$B129,'Daily Log'!$BQ$18:$BQ$1017),0) -> 0 | AD129: =IFERROR($E129*SUMIF('Daily Log'!$BS$18:$BS$1017,$B129,'Daily Log'!$BT$18:$BT$1017),0) -> 0 | AE129: =IFERROR($E129*SUMIF('Daily Log'!$BV$18:$BV$1017,$B129,'Daily Log'!$BW$18:$BW$1017),0) -> 0 | AF129: =IFERROR($E129*SUMIF('Daily Log'!$BY$18:$BY$1017,$B129,'Daily Log'!$BZ$18:$BZ$1017),0) -> 0 | AG129: =IFERROR($E129*SUMIF('Daily Log'!$CB$18:$CB$1017,$B129,'Daily Log'!$CC$18:$CC$1017),0) -> 0 | AH129: =IFERROR($E129*SUMIF('Daily Log'!$CE$18:$CE$1017,$B129,'Daily Log'!$CF$18:$CF$1017),0) -> 0 | AI129: =IFERROR($E129*SUMIF('Daily Log'!$CH$18:$CH$1017,$B129,'Daily Log'!$CI$18:$CI$1017),0) -> 0 | AJ129: =IFERROR($E129*SUMIF('Daily Log'!$CK$18:$CK$1017,$B129,'Daily Log'!$CL$18:$CL$1017),0) -> 0 | AK129: =IFERROR($E129*SUMIF('Daily Log'!$CN$18:$CN$1017,$B129,'Daily Log'!$CO$18:$CO$1017),0) -> 0
B130: HB02 2004:NESCAFE(H) | D130: SO-HOT BEVERAGES | E130: 1 | F130: 1 | G130: =IFERROR($E130*SUMIF('Daily Log'!$B$18:$B$1017,$B130,'Daily Log'!$C$18:$C$1017),0) -> 0 | H130: =IFERROR($E130*SUMIF('Daily Log'!$E$18:$E$1017,$B130,'Daily Log'!$F$18:$F$1017),0) -> 0 | I130: =IFERROR($E130*SUMIF('Daily Log'!$H$18:$H$1017,$B130,'Daily Log'!$I$18:$I$1017),0) -> 0 | J130: =IFERROR($E130*SUMIF('Daily Log'!$K$18:$K$1017,$B130,'Daily Log'!$L$18:$L$1017),0) -> 0 | K130: =IFERROR($E130*SUMIF('Daily Log'!$N$18:$N$1017,$B130,'Daily Log'!$O$18:$O$1017),0) -> 0 | L130: =IFERROR($E130*SUMIF('Daily Log'!$Q$18:$Q$1017,$B130,'Daily Log'!$R$18:$R$1017),0) -> 0 | M130: =IFERROR($E130*SUMIF('Daily Log'!$T$18:$T$1017,$B130,'Daily Log'!$U$18:$U$1017),0) -> 0 | N130: =IFERROR($E130*SUMIF('Daily Log'!$W$18:$W$1017,$B130,'Daily Log'!$X$18:$X$1017),0) -> 0 | O130: =IFERROR($E130*SUMIF('Daily Log'!$Z$18:$Z$1017,$B130,'Daily Log'!$AA$18:$AA$1017),0) -> 0 | P130: =IFERROR($E130*SUMIF('Daily Log'!$AC$18:$AC$1017,$B130,'Daily Log'!$AD$18:$AD$1017),0) -> 1 | Q130: =IFERROR($E130*SUMIF('Daily Log'!$AF$18:$AF$1017,$B130,'Daily Log'!$AG$18:$AG$1017),0) -> 0 | R130: =IFERROR($E130*SUMIF('Daily Log'!$AI$18:$AI$1017,$B130,'Daily Log'!$AJ$18:$AJ$1017),0) -> 0 | S130: =IFERROR($E130*SUMIF('Daily Log'!$AL$18:$AL$1017,$B130,'Daily Log'!$AM$18:$AM$1017),0) -> 0 | T130: =IFERROR($E130*SUMIF('Daily Log'!$AO$18:$AO$1017,$B130,'Daily Log'!$AP$18:$AP$1017),0) -> 0 | U130: =IFERROR($E130*SUMIF('Daily Log'!$AR$18:$AR$1017,$B130,'Daily Log'!$AS$18:$AS$1017),0) -> 0 | V130: =IFERROR($E130*SUMIF('Daily Log'!$AU$18:$AU$1017,$B130,'Daily Log'!$AV$18:$AV$1017),0) -> 0 | W130: =IFERROR($E130*SUMIF('Daily Log'!$AX$18:$AX$1017,$B130,'Daily Log'!$AY$18:$AY$1017),0) -> 0 | X130: =IFERROR($E130*SUMIF('Daily Log'!$BA$18:$BA$1017,$B130,'Daily Log'!$BB$18:$BB$1017),0) -> 0 | Y130: =IFERROR($E130*SUMIF('Daily Log'!$BD$18:$BD$1017,$B130,'Daily Log'!$BE$18:$BE$1017),0) -> 0 | Z130: =IFERROR($E130*SUMIF('Daily Log'!$BG$18:$BG$1017,$B130,'Daily Log'!$BH$18:$BH$1017),0) -> 0 | AA130: =IFERROR($E130*SUMIF('Daily Log'!$BJ$18:$BJ$1017,$B130,'Daily Log'!$BK$18:$BK$1017),0) -> 0 | AB130: =IFERROR($E130*SUMIF('Daily Log'!$BM$18:$BM$1017,$B130,'Daily Log'!$BN$18:$BN$1017),0) -> 0 | AC130: =IFERROR($E130*SUMIF('Daily Log'!$BP$18:$BP$1017,$B130,'Daily Log'!$BQ$18:$BQ$1017),0) -> 0 | AD130: =IFERROR($E130*SUMIF('Daily Log'!$BS$18:$BS$1017,$B130,'Daily Log'!$BT$18:$BT$1017),0) -> 0 | AE130: =IFERROR($E130*SUMIF('Daily Log'!$BV$18:$BV$1017,$B130,'Daily Log'!$BW$18:$BW$1017),0) -> 0 | AF130: =IFERROR($E130*SUMIF('Daily Log'!$BY$18:$BY$1017,$B130,'Daily Log'!$BZ$18:$BZ$1017),0) -> 0 | AG130: =IFERROR($E130*SUMIF('Daily Log'!$CB$18:$CB$1017,$B130,'Daily Log'!$CC$18:$CC$1017),0) -> 0 | AH130: =IFERROR($E130*SUMIF('Daily Log'!$CE$18:$CE$1017,$B130,'Daily Log'!$CF$18:$CF$1017),0) -> 0 | AI130: =IFERROR($E130*SUMIF('Daily Log'!$CH$18:$CH$1017,$B130,'Daily Log'!$CI$18:$CI$1017),0) -> 0 | AJ130: =IFERROR($E130*SUMIF('Daily Log'!$CK$18:$CK$1017,$B130,'Daily Log'!$CL$18:$CL$1017),0) -> 0 | AK130: =IFERROR($E130*SUMIF('Daily Log'!$CN$18:$CN$1017,$B130,'Daily Log'!$CO$18:$CO$1017),0) -> 0
B131: HB03 2006:TEA(H) | D131: SO-HOT BEVERAGES | E131: 1 | F131: 0 | G131: =IFERROR($E131*SUMIF('Daily Log'!$B$18:$B$1017,$B131,'Daily Log'!$C$18:$C$1017),0) -> 0 | H131: =IFERROR($E131*SUMIF('Daily Log'!$E$18:$E$1017,$B131,'Daily Log'!$F$18:$F$1017),0) -> 0 | I131: =IFERROR($E131*SUMIF('Daily Log'!$H$18:$H$1017,$B131,'Daily Log'!$I$18:$I$1017),0) -> 0 | J131: =IFERROR($E131*SUMIF('Daily Log'!$K$18:$K$1017,$B131,'Daily Log'!$L$18:$L$1017),0) -> 0 | K131: =IFERROR($E131*SUMIF('Daily Log'!$N$18:$N$1017,$B131,'Daily Log'!$O$18:$O$1017),0) -> 0 | L131: =IFERROR($E131*SUMIF('Daily Log'!$Q$18:$Q$1017,$B131,'Daily Log'!$R$18:$R$1017),0) -> 0 | M131: =IFERROR($E131*SUMIF('Daily Log'!$T$18:$T$1017,$B131,'Daily Log'!$U$18:$U$1017),0) -> 0 | N131: =IFERROR($E131*SUMIF('Daily Log'!$W$18:$W$1017,$B131,'Daily Log'!$X$18:$X$1017),0) -> 0 | O131: =IFERROR($E131*SUMIF('Daily Log'!$Z$18:$Z$1017,$B131,'Daily Log'!$AA$18:$AA$1017),0) -> 0 | P131: =IFERROR($E131*SUMIF('Daily Log'!$AC$18:$AC$1017,$B131,'Daily Log'!$AD$18:$AD$1017),0) -> 0 | Q131: =IFERROR($E131*SUMIF('Daily Log'!$AF$18:$AF$1017,$B131,'Daily Log'!$AG$18:$AG$1017),0) -> 0 | R131: =IFERROR($E131*SUMIF('Daily Log'!$AI$18:$AI$1017,$B131,'Daily Log'!$AJ$18:$AJ$1017),0) -> 0 | S131: =IFERROR($E131*SUMIF('Daily Log'!$AL$18:$AL$1017,$B131,'Daily Log'!$AM$18:$AM$1017),0) -> 0 | T131: =IFERROR($E131*SUMIF('Daily Log'!$AO$18:$AO$1017,$B131,'Daily Log'!$AP$18:$AP$1017),0) -> 0 | U131: =IFERROR($E131*SUMIF('Daily Log'!$AR$18:$AR$1017,$B131,'Daily Log'!$AS$18:$AS$1017),0) -> 0 | V131: =IFERROR($E131*SUMIF('Daily Log'!$AU$18:$AU$1017,$B131,'Daily Log'!$AV$18:$AV$1017),0) -> 0 | W131: =IFERROR($E131*SUMIF('Daily Log'!$AX$18:$AX$1017,$B131,'Daily Log'!$AY$18:$AY$1017),0) -> 0 | X131: =IFERROR($E131*SUMIF('Daily Log'!$BA$18:$BA$1017,$B131,'Daily Log'!$BB$18:$BB$1017),0) -> 0 | Y131: =IFERROR($E131*SUMIF('Daily Log'!$BD$18:$BD$1017,$B131,'Daily Log'!$BE$18:$BE$1017),0) -> 0 | Z131: =IFERROR($E131*SUMIF('Daily Log'!$BG$18:$BG$1017,$B131,'Daily Log'!$BH$18:$BH$1017),0) -> 0 | AA131: =IFERROR($E131*SUMIF('Daily Log'!$BJ$18:$BJ$1017,$B131,'Daily Log'!$BK$18:$BK$1017),0) -> 0 | AB131: =IFERROR($E131*SUMIF('Daily Log'!$BM$18:$BM$1017,$B131,'Daily Log'!$BN$18:$BN$1017),0) -> 0 | AC131: =IFERROR($E131*SUMIF('Daily Log'!$BP$18:$BP$1017,$B131,'Daily Log'!$BQ$18:$BQ$1017),0) -> 0 | AD131: =IFERROR($E131*SUMIF('Daily Log'!$BS$18:$BS$1017,$B131,'Daily Log'!$BT$18:$BT$1017),0) -> 0 | AE131: =IFERROR($E131*SUMIF('Daily Log'!$BV$18:$BV$1017,$B131,'Daily Log'!$BW$18:$BW$1017),0) -> 0 | AF131: =IFERROR($E131*SUMIF('Daily Log'!$BY$18:$BY$1017,$B131,'Daily Log'!$BZ$18:$BZ$1017),0) -> 0 | AG131: =IFERROR($E131*SUMIF('Daily Log'!$CB$18:$CB$1017,$B131,'Daily Log'!$CC$18:$CC$1017),0) -> 0 | AH131: =IFERROR($E131*SUMIF('Daily Log'!$CE$18:$CE$1017,$B131,'Daily Log'!$CF$18:$CF$1017),0) -> 0 | AI131: =IFERROR($E131*SUMIF('Daily Log'!$CH$18:$CH$1017,$B131,'Daily Log'!$CI$18:$CI$1017),0) -> 0 | AJ131: =IFERROR($E131*SUMIF('Daily Log'!$CK$18:$CK$1017,$B131,'Daily Log'!$CL$18:$CL$1017),0) -> 0 | AK131: =IFERROR($E131*SUMIF('Daily Log'!$CN$18:$CN$1017,$B131,'Daily Log'!$CO$18:$CO$1017),0) -> 0
B132: HB04 2008:LMN TEA(H) | D132: SO-HOT BEVERAGES | E132: 1 | F132: 0 | G132: =IFERROR($E132*SUMIF('Daily Log'!$B$18:$B$1017,$B132,'Daily Log'!$C$18:$C$1017),0) -> 0 | H132: =IFERROR($E132*SUMIF('Daily Log'!$E$18:$E$1017,$B132,'Daily Log'!$F$18:$F$1017),0) -> 0 | I132: =IFERROR($E132*SUMIF('Daily Log'!$H$18:$H$1017,$B132,'Daily Log'!$I$18:$I$1017),0) -> 0 | J132: =IFERROR($E132*SUMIF('Daily Log'!$K$18:$K$1017,$B132,'Daily Log'!$L$18:$L$1017),0) -> 0 | K132: =IFERROR($E132*SUMIF('Daily Log'!$N$18:$N$1017,$B132,'Daily Log'!$O$18:$O$1017),0) -> 0 | L132: =IFERROR($E132*SUMIF('Daily Log'!$Q$18:$Q$1017,$B132,'Daily Log'!$R$18:$R$1017),0) -> 0 | M132: =IFERROR($E132*SUMIF('Daily Log'!$T$18:$T$1017,$B132,'Daily Log'!$U$18:$U$1017),0) -> 0 | N132: =IFERROR($E132*SUMIF('Daily Log'!$W$18:$W$1017,$B132,'Daily Log'!$X$18:$X$1017),0) -> 0 | O132: =IFERROR($E132*SUMIF('Daily Log'!$Z$18:$Z$1017,$B132,'Daily Log'!$AA$18:$AA$1017),0) -> 0 | P132: =IFERROR($E132*SUMIF('Daily Log'!$AC$18:$AC$1017,$B132,'Daily Log'!$AD$18:$AD$1017),0) -> 0 | Q132: =IFERROR($E132*SUMIF('Daily Log'!$AF$18:$AF$1017,$B132,'Daily Log'!$AG$18:$AG$1017),0) -> 0 | R132: =IFERROR($E132*SUMIF('Daily Log'!$AI$18:$AI$1017,$B132,'Daily Log'!$AJ$18:$AJ$1017),0) -> 0 | S132: =IFERROR($E132*SUMIF('Daily Log'!$AL$18:$AL$1017,$B132,'Daily Log'!$AM$18:$AM$1017),0) -> 0 | T132: =IFERROR($E132*SUMIF('Daily Log'!$AO$18:$AO$1017,$B132,'Daily Log'!$AP$18:$AP$1017),0) -> 0 | U132: =IFERROR($E132*SUMIF('Daily Log'!$AR$18:$AR$1017,$B132,'Daily Log'!$AS$18:$AS$1017),0) -> 0 | V132: =IFERROR($E132*SUMIF('Daily Log'!$AU$18:$AU$1017,$B132,'Daily Log'!$AV$18:$AV$1017),0) -> 0 | W132: =IFERROR($E132*SUMIF('Daily Log'!$AX$18:$AX$1017,$B132,'Daily Log'!$AY$18:$AY$1017),0) -> 0 | X132: =IFERROR($E132*SUMIF('Daily Log'!$BA$18:$BA$1017,$B132,'Daily Log'!$BB$18:$BB$1017),0) -> 0 | Y132: =IFERROR($E132*SUMIF('Daily Log'!$BD$18:$BD$1017,$B132,'Daily Log'!$BE$18:$BE$1017),0) -> 0 | Z132: =IFERROR($E132*SUMIF('Daily Log'!$BG$18:$BG$1017,$B132,'Daily Log'!$BH$18:$BH$1017),0) -> 0 | AA132: =IFERROR($E132*SUMIF('Daily Log'!$BJ$18:$BJ$1017,$B132,'Daily Log'!$BK$18:$BK$1017),0) -> 0 | AB132: =IFERROR($E132*SUMIF('Daily Log'!$BM$18:$BM$1017,$B132,'Daily Log'!$BN$18:$BN$1017),0) -> 0 | AC132: =IFERROR($E132*SUMIF('Daily Log'!$BP$18:$BP$1017,$B132,'Daily Log'!$BQ$18:$BQ$1017),0) -> 0 | AD132: =IFERROR($E132*SUMIF('Daily Log'!$BS$18:$BS$1017,$B132,'Daily Log'!$BT$18:$BT$1017),0) -> 0 | AE132: =IFERROR($E132*SUMIF('Daily Log'!$BV$18:$BV$1017,$B132,'Daily Log'!$BW$18:$BW$1017),0) -> 0 | AF132: =IFERROR($E132*SUMIF('Daily Log'!$BY$18:$BY$1017,$B132,'Daily Log'!$BZ$18:$BZ$1017),0) -> 0 | AG132: =IFERROR($E132*SUMIF('Daily Log'!$CB$18:$CB$1017,$B132,'Daily Log'!$CC$18:$CC$1017),0) -> 0 | AH132: =IFERROR($E132*SUMIF('Daily Log'!$CE$18:$CE$1017,$B132,'Daily Log'!$CF$18:$CF$1017),0) -> 0 | AI132: =IFERROR($E132*SUMIF('Daily Log'!$CH$18:$CH$1017,$B132,'Daily Log'!$CI$18:$CI$1017),0) -> 0 | AJ132: =IFERROR($E132*SUMIF('Daily Log'!$CK$18:$CK$1017,$B132,'Daily Log'!$CL$18:$CL$1017),0) -> 0 | AK132: =IFERROR($E132*SUMIF('Daily Log'!$CN$18:$CN$1017,$B132,'Daily Log'!$CO$18:$CO$1017),0) -> 0
B133: HB05 2010:GRN TEA(H) | D133: SO-HOT BEVERAGES | E133: 1 | F133: 0 | G133: =IFERROR($E133*SUMIF('Daily Log'!$B$18:$B$1017,$B133,'Daily Log'!$C$18:$C$1017),0) -> 0 | H133: =IFERROR($E133*SUMIF('Daily Log'!$E$18:$E$1017,$B133,'Daily Log'!$F$18:$F$1017),0) -> 0 | I133: =IFERROR($E133*SUMIF('Daily Log'!$H$18:$H$1017,$B133,'Daily Log'!$I$18:$I$1017),0) -> 0 | J133: =IFERROR($E133*SUMIF('Daily Log'!$K$18:$K$1017,$B133,'Daily Log'!$L$18:$L$1017),0) -> 0 | K133: =IFERROR($E133*SUMIF('Daily Log'!$N$18:$N$1017,$B133,'Daily Log'!$O$18:$O$1017),0) -> 0 | L133: =IFERROR($E133*SUMIF('Daily Log'!$Q$18:$Q$1017,$B133,'Daily Log'!$R$18:$R$1017),0) -> 0 | M133: =IFERROR($E133*SUMIF('Daily Log'!$T$18:$T$1017,$B133,'Daily Log'!$U$18:$U$1017),0) -> 0 | N133: =IFERROR($E133*SUMIF('Daily Log'!$W$18:$W$1017,$B133,'Daily Log'!$X$18:$X$1017),0) -> 0 | O133: =IFERROR($E133*SUMIF('Daily Log'!$Z$18:$Z$1017,$B133,'Daily Log'!$AA$18:$AA$1017),0) -> 0 | P133: =IFERROR($E133*SUMIF('Daily Log'!$AC$18:$AC$1017,$B133,'Daily Log'!$AD$18:$AD$1017),0) -> 0 | Q133: =IFERROR($E133*SUMIF('Daily Log'!$AF$18:$AF$1017,$B133,'Daily Log'!$AG$18:$AG$1017),0) -> 0 | R133: =IFERROR($E133*SUMIF('Daily Log'!$AI$18:$AI$1017,$B133,'Daily Log'!$AJ$18:$AJ$1017),0) -> 0 | S133: =IFERROR($E133*SUMIF('Daily Log'!$AL$18:$AL$1017,$B133,'Daily Log'!$AM$18:$AM$1017),0) -> 0 | T133: =IFERROR($E133*SUMIF('Daily Log'!$AO$18:$AO$1017,$B133,'Daily Log'!$AP$18:$AP$1017),0) -> 0 | U133: =IFERROR($E133*SUMIF('Daily Log'!$AR$18:$AR$1017,$B133,'Daily Log'!$AS$18:$AS$1017),0) -> 0 | V133: =IFERROR($E133*SUMIF('Daily Log'!$AU$18:$AU$1017,$B133,'Daily Log'!$AV$18:$AV$1017),0) -> 0 | W133: =IFERROR($E133*SUMIF('Daily Log'!$AX$18:$AX$1017,$B133,'Daily Log'!$AY$18:$AY$1017),0) -> 0 | X133: =IFERROR($E133*SUMIF('Daily Log'!$BA$18:$BA$1017,$B133,'Daily Log'!$BB$18:$BB$1017),0) -> 0 | Y133: =IFERROR($E133*SUMIF('Daily Log'!$BD$18:$BD$1017,$B133,'Daily Log'!$BE$18:$BE$1017),0) -> 0 | Z133: =IFERROR($E133*SUMIF('Daily Log'!$BG$18:$BG$1017,$B133,'Daily Log'!$BH$18:$BH$1017),0) -> 0 | AA133: =IFERROR($E133*SUMIF('Daily Log'!$BJ$18:$BJ$1017,$B133,'Daily Log'!$BK$18:$BK$1017),0) -> 0 | AB133: =IFERROR($E133*SUMIF('Daily Log'!$BM$18:$BM$1017,$B133,'Daily Log'!$BN$18:$BN$1017),0) -> 0 | AC133: =IFERROR($E133*SUMIF('Daily Log'!$BP$18:$BP$1017,$B133,'Daily Log'!$BQ$18:$BQ$1017),0) -> 0 | AD133: =IFERROR($E133*SUMIF('Daily Log'!$BS$18:$BS$1017,$B133,'Daily Log'!$BT$18:$BT$1017),0) -> 0 | AE133: =IFERROR($E133*SUMIF('Daily Log'!$BV$18:$BV$1017,$B133,'Daily Log'!$BW$18:$BW$1017),0) -> 0 | AF133: =IFERROR($E133*SUMIF('Daily Log'!$BY$18:$BY$1017,$B133,'Daily Log'!$BZ$18:$BZ$1017),0) -> 0 | AG133: =IFERROR($E133*SUMIF('Daily Log'!$CB$18:$CB$1017,$B133,'Daily Log'!$CC$18:$CC$1017),0) -> 0 | AH133: =IFERROR($E133*SUMIF('Daily Log'!$CE$18:$CE$1017,$B133,'Daily Log'!$CF$18:$CF$1017),0) -> 0 | AI133: =IFERROR($E133*SUMIF('Daily Log'!$CH$18:$CH$1017,$B133,'Daily Log'!$CI$18:$CI$1017),0) -> 0 | AJ133: =IFERROR($E133*SUMIF('Daily Log'!$CK$18:$CK$1017,$B133,'Daily Log'!$CL$18:$CL$1017),0) -> 0 | AK133: =IFERROR($E133*SUMIF('Daily Log'!$CN$18:$CN$1017,$B133,'Daily Log'!$CO$18:$CO$1017),0) -> 0
B134: HB06 2012:HNY GT(H) | D134: SO-HOT BEVERAGES | E134: 1 | F134: 0 | G134: =IFERROR($E134*SUMIF('Daily Log'!$B$18:$B$1017,$B134,'Daily Log'!$C$18:$C$1017),0) -> 0 | H134: =IFERROR($E134*SUMIF('Daily Log'!$E$18:$E$1017,$B134,'Daily Log'!$F$18:$F$1017),0) -> 0 | I134: =IFERROR($E134*SUMIF('Daily Log'!$H$18:$H$1017,$B134,'Daily Log'!$I$18:$I$1017),0) -> 0 | J134: =IFERROR($E134*SUMIF('Daily Log'!$K$18:$K$1017,$B134,'Daily Log'!$L$18:$L$1017),0) -> 0 | K134: =IFERROR($E134*SUMIF('Daily Log'!$N$18:$N$1017,$B134,'Daily Log'!$O$18:$O$1017),0) -> 0 | L134: =IFERROR($E134*SUMIF('Daily Log'!$Q$18:$Q$1017,$B134,'Daily Log'!$R$18:$R$1017),0) -> 0 | M134: =IFERROR($E134*SUMIF('Daily Log'!$T$18:$T$1017,$B134,'Daily Log'!$U$18:$U$1017),0) -> 0 | N134: =IFERROR($E134*SUMIF('Daily Log'!$W$18:$W$1017,$B134,'Daily Log'!$X$18:$X$1017),0) -> 0 | O134: =IFERROR($E134*SUMIF('Daily Log'!$Z$18:$Z$1017,$B134,'Daily Log'!$AA$18:$AA$1017),0) -> 0 | P134: =IFERROR($E134*SUMIF('Daily Log'!$AC$18:$AC$1017,$B134,'Daily Log'!$AD$18:$AD$1017),0) -> 0 | Q134: =IFERROR($E134*SUMIF('Daily Log'!$AF$18:$AF$1017,$B134,'Daily Log'!$AG$18:$AG$1017),0) -> 0 | R134: =IFERROR($E134*SUMIF('Daily Log'!$AI$18:$AI$1017,$B134,'Daily Log'!$AJ$18:$AJ$1017),0) -> 0 | S134: =IFERROR($E134*SUMIF('Daily Log'!$AL$18:$AL$1017,$B134,'Daily Log'!$AM$18:$AM$1017),0) -> 0 | T134: =IFERROR($E134*SUMIF('Daily Log'!$AO$18:$AO$1017,$B134,'Daily Log'!$AP$18:$AP$1017),0) -> 0 | U134: =IFERROR($E134*SUMIF('Daily Log'!$AR$18:$AR$1017,$B134,'Daily Log'!$AS$18:$AS$1017),0) -> 0 | V134: =IFERROR($E134*SUMIF('Daily Log'!$AU$18:$AU$1017,$B134,'Daily Log'!$AV$18:$AV$1017),0) -> 0 | W134: =IFERROR($E134*SUMIF('Daily Log'!$AX$18:$AX$1017,$B134,'Daily Log'!$AY$18:$AY$1017),0) -> 0 | X134: =IFERROR($E134*SUMIF('Daily Log'!$BA$18:$BA$1017,$B134,'Daily Log'!$BB$18:$BB$1017),0) -> 0 | Y134: =IFERROR($E134*SUMIF('Daily Log'!$BD$18:$BD$1017,$B134,'Daily Log'!$BE$18:$BE$1017),0) -> 0 | Z134: =IFERROR($E134*SUMIF('Daily Log'!$BG$18:$BG$1017,$B134,'Daily Log'!$BH$18:$BH$1017),0) -> 0 | AA134: =IFERROR($E134*SUMIF('Daily Log'!$BJ$18:$BJ$1017,$B134,'Daily Log'!$BK$18:$BK$1017),0) -> 0 | AB134: =IFERROR($E134*SUMIF('Daily Log'!$BM$18:$BM$1017,$B134,'Daily Log'!$BN$18:$BN$1017),0) -> 0 | AC134: =IFERROR($E134*SUMIF('Daily Log'!$BP$18:$BP$1017,$B134,'Daily Log'!$BQ$18:$BQ$1017),0) -> 0 | AD134: =IFERROR($E134*SUMIF('Daily Log'!$BS$18:$BS$1017,$B134,'Daily Log'!$BT$18:$BT$1017),0) -> 0 | AE134: =IFERROR($E134*SUMIF('Daily Log'!$BV$18:$BV$1017,$B134,'Daily Log'!$BW$18:$BW$1017),0) -> 0 | AF134: =IFERROR($E134*SUMIF('Daily Log'!$BY$18:$BY$1017,$B134,'Daily Log'!$BZ$18:$BZ$1017),0) -> 0 | AG134: =IFERROR($E134*SUMIF('Daily Log'!$CB$18:$CB$1017,$B134,'Daily Log'!$CC$18:$CC$1017),0) -> 0 | AH134: =IFERROR($E134*SUMIF('Daily Log'!$CE$18:$CE$1017,$B134,'Daily Log'!$CF$18:$CF$1017),0) -> 0 | AI134: =IFERROR($E134*SUMIF('Daily Log'!$CH$18:$CH$1017,$B134,'Daily Log'!$CI$18:$CI$1017),0) -> 0 | AJ134: =IFERROR($E134*SUMIF('Daily Log'!$CK$18:$CK$1017,$B134,'Daily Log'!$CL$18:$CL$1017),0) -> 0 | AK134: =IFERROR($E134*SUMIF('Daily Log'!$CN$18:$CN$1017,$B134,'Daily Log'!$CO$18:$CO$1017),0) -> 0
